Workbook

Sheet Front Sheet
B3: Local Government Rate Retention Scheme
B4: Interactive Calculator
B7: About the Interactive Calculator | F7: Where do I go for more help? | J7: Disclaimer
J36: Please tick the box to confirm you have read and understood the disclaimer. A button will appear. Click this to proceed to the interactive calculator.
M50: Oct 2014
M51: Local Government Finance Directorate, Department for Communities and Local Government
J52: NDR@communities.gsi.gov.uk

Sheet Type of pool
B2: Step 1: Choose whether you wish to model an existing pool or a new pool.
B4: If you wish to model an existing pool use the 'existing pool' tab. Please note that outputs for existing pools will be produced in the 'existing pools summary' tab.
B5: If you wish to model a new pool use the 'new pool' tab. Please note that outputs for existing pools will be produced in the 'new pools summary' tab.
B7: Produce a calculation for an existing pool
B9: Produce a calculation for a new pool

Sheet Existing Pool
B1: Local Government Rate Retention Scheme
B2: Interactive Calculator | N2: RPI information for tariff / top up and levy calculation
F3: Cell colour key
B4: Cells where the user is required to enter information are highlighted in blue. | F4: Input cell | G4: Output cell | H4: N/A | O4: Year 1 | P4: Year 2 | Q4: Year 3 | R4: Year 4 | S4: Year 5 | T4: Year 6 | U4: Year 7 | V4: Year 8
B6: Stage 1: Starting Position | J6: £ million (unless otherwise stated) | N6: RPI Index (Year 1) | O6: 1 | P6: =O6*(1+'Existing Pool'!G64) -> 1.019480519 | Q6: =P6*(1+'Existing Pool'!H64) -> 1.044967532 | R6: =Q6*(1+'Existing Pool'!I64) -> 1.079451461 | S6: =R6*(1+'Existing Pool'!J64) -> 1.119391165 | T6: =S6*(1+'Existing Pool'!K64) -> 1.161928029 | U6: =T6*(1+'Existing Pool'!L64) -> 1.207243223 | V6: =U6*(1+'Existing Pool'!M64) -> 1.254325708
N7: RPI Index (Year 1) | O7: 1 | P7: =O7*(1+'Existing Pool'!G64) -> 1.019480519 | Q7: =P7*(1+'Existing Pool'!H64) -> 1.044967532 | R7: =Q7*(1+'Existing Pool'!I64) -> 1.079451461 | S7: =R7*(1+'Existing Pool'!J64) -> 1.119391165 | T7: =S7*(1+'Existing Pool'!K64) -> 1.161928029 | U7: =T7*(1+'Existing Pool'!L64) -> 1.207243223 | V7: =U7*(1+'Existing Pool'!M64) -> 1.254325708
B9: Step 2: Select your pool
B11: Choose your pool from the drop down box below
F14: Individual authority business rates baseline | G14: Individual authority baseline funding level | H14: Tariff or Top-up
C15: Choose your pool here
C17: Billing Authorities
C18: =IF(C$15="Choose your pool here","",IFERROR((VLOOKUP(C$15,pool_BAs,E18,0)),"")) ->  | E18: 2 | F18: =IF(OR($C18="",$C18=" "),"",VLOOKUP($C18,Baselines!$C$12:$H$499,3,0)) ->  | G18: =IF(OR($C18="",$C18=" "),"",VLOOKUP($C18,Baselines!$C$12:$H$499,2,0)) ->  | H18: =IF(OR(F18="",G18=""),"",IF(F18>G18,"Tariff","Top-up")) ->  | I18: =IFERROR(G18/F18,0) -> 0 | J18: =IFERROR(IF(1/I18<1,0,IF((1-I18)>0.5,0.5,(1-I18))),"") -> 
E19: 3 | F19: =IF(OR($C19="",$C19=" "),"",VLOOKUP($C19,Baselines!$C$12:$H$499,3,0)) ->  | G19: =IF(OR($C19="",$C19=" "),"",VLOOKUP($C19,Baselines!$C$12:$H$499,2,0)) ->  | H19: =IF(OR(F19="",G19=""),"",IF(F19>G19,"Tariff","Top-up")) ->  | I19: =IFERROR(G19/F19,0) -> 0 | J19: =IFERROR(IF(1/I19<1,0,IF((1-I19)>0.5,0.5,(1-I19))),"") -> 
E20: 4 | F20: =IF(OR($C20="",$C20=" "),"",VLOOKUP($C20,Baselines!$C$12:$H$499,3,0)) ->  | G20: =IF(OR($C20="",$C20=" "),"",VLOOKUP($C20,Baselines!$C$12:$H$499,2,0)) ->  | I20: 0
E21: 5 | F21: =IF(OR($C21="",$C21=" "),"",VLOOKUP($C21,Baselines!$C$12:$H$499,3,0)) ->  | G21: =IF(OR($C21="",$C21=" "),"",VLOOKUP($C21,Baselines!$C$12:$H$499,2,0)) ->  | I21: 0
E22: 6 | F22: =IF(OR($C22="",$C22=" "),"",VLOOKUP($C22,Baselines!$C$12:$H$499,3,0)) ->  | G22: =IF(OR($C22="",$C22=" "),"",VLOOKUP($C22,Baselines!$C$12:$H$499,2,0)) ->  | I22: 0
E23: 7 | F23: =IF(OR($C23="",$C23=" "),"",VLOOKUP($C23,Baselines!$C$12:$H$499,3,0)) ->  | G23: =IF(OR($C23="",$C23=" "),"",VLOOKUP($C23,Baselines!$C$12:$H$499,2,0)) ->  | I23: 0
E24: 8 | F24: =IF(OR($C24="",$C24=" "),"",VLOOKUP($C24,Baselines!$C$12:$H$499,3,0)) ->  | G24: =IF(OR($C24="",$C24=" "),"",VLOOKUP($C24,Baselines!$C$12:$H$499,2,0)) ->  | I24: 0
E25: 9 | F25: =IF(OR($C25="",$C25=" "),"",VLOOKUP($C25,Baselines!$C$12:$H$499,3,0)) ->  | G25: =IF(OR($C25="",$C25=" "),"",VLOOKUP($C25,Baselines!$C$12:$H$499,2,0)) ->  | I25: 0
E26: 10 | F26: =IF(OR($C26="",$C26=" "),"",VLOOKUP($C26,Baselines!$C$12:$H$499,3,0)) ->  | G26: =IF(OR($C26="",$C26=" "),"",VLOOKUP($C26,Baselines!$C$12:$H$499,2,0)) ->  | I26: 0
E27: 11 | F27: =IF(OR($C27="",$C27=" "),"",VLOOKUP($C27,Baselines!$C$12:$H$499,3,0)) ->  | G27: =IF(OR($C27="",$C27=" "),"",VLOOKUP($C27,Baselines!$C$12:$H$499,2,0)) ->  | I27: 0
E28: 12 | F28: =IF(OR($C28="",$C28=" "),"",VLOOKUP($C28,Baselines!$C$12:$H$499,3,0)) ->  | G28: =IF(OR($C28="",$C28=" "),"",VLOOKUP($C28,Baselines!$C$12:$H$499,2,0)) ->  | I28: 0
E29: 13 | F29: =IF(OR($C29="",$C29=" "),"",VLOOKUP($C29,Baselines!$C$12:$H$499,3,0)) ->  | G29: =IF(OR($C29="",$C29=" "),"",VLOOKUP($C29,Baselines!$C$12:$H$499,2,0)) ->  | I29: 0
E30: 14 | F30: =IF(OR($C30="",$C30=" "),"",VLOOKUP($C30,Baselines!$C$12:$H$499,3,0)) ->  | G30: =IF(OR($C30="",$C30=" "),"",VLOOKUP($C30,Baselines!$C$12:$H$499,2,0)) ->  | I30: 0
E31: 15 | F31: =IF(OR($C31="",$C31=" "),"",VLOOKUP($C31,Baselines!$C$12:$H$499,3,0)) ->  | G31: =IF(OR($C31="",$C31=" "),"",VLOOKUP($C31,Baselines!$C$12:$H$499,2,0)) ->  | I31: 0
E32: 16 | F32: =IF(OR($C32="",$C32=" "),"",VLOOKUP($C32,Baselines!$C$12:$H$499,3,0)) ->  | G32: =IF(OR($C32="",$C32=" "),"",VLOOKUP($C32,Baselines!$C$12:$H$499,2,0)) ->  | I32: 0
E33: 17 | F33: =IF(OR($C33="",$C33=" "),"",VLOOKUP($C33,Baselines!$C$12:$H$499,3,0)) ->  | G33: =IF(OR($C33="",$C33=" "),"",VLOOKUP($C33,Baselines!$C$12:$H$499,2,0)) ->  | I33: 0
E34: 18 | F34: =IF(OR($C34="",$C34=" "),"",VLOOKUP($C34,Baselines!$C$12:$H$499,3,0)) ->  | G34: =IF(OR($C34="",$C34=" "),"",VLOOKUP($C34,Baselines!$C$12:$H$499,2,0)) ->  | I34: 0
E35: 19 | F35: =IF(OR($C35="",$C35=" "),"",VLOOKUP($C35,Baselines!$C$12:$H$499,3,0)) ->  | G35: =IF(OR($C35="",$C35=" "),"",VLOOKUP($C35,Baselines!$C$12:$H$499,2,0)) ->  | I35: 0
E36: 20 | F36: =IF(OR($C36="",$C36=" "),"",VLOOKUP($C36,Baselines!$C$12:$H$499,3,0)) ->  | G36: =IF(OR($C36="",$C36=" "),"",VLOOKUP($C36,Baselines!$C$12:$H$499,2,0)) ->  | I36: 0
E37: 21 | F37: =IF(OR($C37="",$C37=" "),"",VLOOKUP($C37,Baselines!$C$12:$H$499,3,0)) ->  | G37: =IF(OR($C37="",$C37=" "),"",VLOOKUP($C37,Baselines!$C$12:$H$499,2,0)) ->  | I37: 0
E38: 22 | F38: =IF(OR($C38="",$C38=" "),"",VLOOKUP($C38,Baselines!$C$12:$H$499,3,0)) ->  | G38: =IF(OR($C38="",$C38=" "),"",VLOOKUP($C38,Baselines!$C$12:$H$499,2,0)) ->  | I38: 0
E39: 23 | F39: =IF(OR($C39="",$C39=" "),"",VLOOKUP($C39,Baselines!$C$12:$H$499,3,0)) ->  | G39: =IF(OR($C39="",$C39=" "),"",VLOOKUP($C39,Baselines!$C$12:$H$499,2,0)) ->  | I39: 0
E40: 24 | F40: =IF(OR($C40="",$C40=" "),"",VLOOKUP($C40,Baselines!$C$12:$H$499,3,0)) ->  | G40: =IF(OR($C40="",$C40=" "),"",VLOOKUP($C40,Baselines!$C$12:$H$499,2,0)) ->  | I40: 0
E41: 25 | F41: =IF(OR($C41="",$C41=" "),"",VLOOKUP($C41,Baselines!$C$12:$H$499,3,0)) ->  | G41: =IF(OR($C41="",$C41=" "),"",VLOOKUP($C41,Baselines!$C$12:$H$499,2,0)) ->  | I41: 0
E42: 26 | F42: =IF(OR($C42="",$C42=" "),"",VLOOKUP($C42,Baselines!$C$12:$H$499,3,0)) ->  | G42: =IF(OR($C42="",$C42=" "),"",VLOOKUP($C42,Baselines!$C$12:$H$499,2,0)) ->  | I42: 0
E43: 27 | F43: =IF(OR($C43="",$C43=" "),"",VLOOKUP($C43,Baselines!$C$12:$H$499,3,0)) ->  | G43: =IF(OR($C43="",$C43=" "),"",VLOOKUP($C43,Baselines!$C$12:$H$499,2,0)) ->  | I43: 0
E44: 28 | F44: =IF(OR($C44="",$C44=" "),"",VLOOKUP($C44,Baselines!$C$12:$H$499,3,0)) ->  | G44: =IF(OR($C44="",$C44=" "),"",VLOOKUP($C44,Baselines!$C$12:$H$499,2,0)) ->  | I44: 0
E45: 29 | F45: =IF(OR($C45="",$C45=" "),"",VLOOKUP($C45,Baselines!$C$12:$H$499,3,0)) ->  | G45: =IF(OR($C45="",$C45=" "),"",VLOOKUP($C45,Baselines!$C$12:$H$499,2,0)) ->  | I45: 0
E46: 30 | F46: =IF(OR($C46="",$C46=" "),"",VLOOKUP($C46,Baselines!$C$12:$H$499,3,0)) ->  | G46: =IF(OR($C46="",$C46=" "),"",VLOOKUP($C46,Baselines!$C$12:$H$499,2,0)) ->  | I46: 0
E47: 31 | F47: =IF(OR($C47="",$C47=" "),"",VLOOKUP($C47,Baselines!$C$12:$H$499,3,0)) ->  | G47: =IF(OR($C47="",$C47=" "),"",VLOOKUP($C47,Baselines!$C$12:$H$499,2,0)) ->  | I47: 0
E48: 32 | F48: =IF(OR($C48="",$C48=" "),"",VLOOKUP($C48,Baselines!$C$12:$H$499,3,0)) ->  | G48: =IF(OR($C48="",$C48=" "),"",VLOOKUP($C48,Baselines!$C$12:$H$499,2,0)) ->  | I48: 0
E49: 33 | F49: =IF(OR($C49="",$C49=" "),"",VLOOKUP($C49,Baselines!$C$12:$H$499,3,0)) ->  | G49: =IF(OR($C49="",$C49=" "),"",VLOOKUP($C49,Baselines!$C$12:$H$499,2,0)) ->  | I49: 0
E50: 34 | F50: =IF(OR($C50="",$C50=" "),"",VLOOKUP($C50,Baselines!$C$12:$H$499,3,0)) ->  | G50: =IF(OR($C50="",$C50=" "),"",VLOOKUP($C50,Baselines!$C$12:$H$499,2,0)) ->  | I50: 0
C52: Major Precepting Authorities
B53: =IF(C53="GLA",33,COUNTA(OFFSET('Upper tiers (existing pool)'!$A$1,,MATCH(C53,'Upper tiers (existing pool)'!$A$1:$BF$1,0)-1):OFFSET('Upper tiers (existing pool)'!$A$1,20,MATCH(C53,'Upper tiers (existing pool)'!$A$1:$BF$1,0)-1))-1) -> 0 | C53: =IF(C$15="Choose your pool here","",IFERROR(VLOOKUP(C$15,pool_MPAs,E53,0),"")) ->  | E53: 2 | F53: =IFERROR(VLOOKUP($C53,Baselines!$C$12:$H$499,3,0),"") ->  | G53: =IFERROR(VLOOKUP($C53,Baselines!$C$12:$H$499,2,0),"") ->  | H53: =IF(OR(F53="",G53=""),"",IF(F53>G53,"Tariff","Top-up")) ->  | I53: =IFERROR(G53/F53,0) -> 0 | J53: =IFERROR(IF(1/I53<1,0,IF((1-I53)>0.5,0.5,(1-I53))),"") -> 
B54: =IF(C54="GLA",33,COUNTA(OFFSET('Upper tiers (existing pool)'!$A$1,,MATCH(C54,'Upper tiers (existing pool)'!$A$1:$BF$1,0)-1):OFFSET('Upper tiers (existing pool)'!$A$1,20,MATCH(C54,'Upper tiers (existing pool)'!$A$1:$BF$1,0)-1))-1) -> 0 | C54: =IF(C$15="Choose your pool here","",IFERROR(VLOOKUP(C$15,pool_MPAs,E54,0),"")) ->  | E54: 3 | F54: =IFERROR(VLOOKUP($C54,Baselines!$C$12:$H$499,3,0),"") ->  | G54: =IFERROR(VLOOKUP($C54,Baselines!$C$12:$H$499,2,0),"") ->  | H54: =IF(OR(F54="",G54=""),"",IF(F54>G54,"Tariff","Top-up")) ->  | I54: 0
B55: =IF(C55="GLA",33,COUNTA(OFFSET('Upper tiers (existing pool)'!$A$1,,MATCH(C55,'Upper tiers (existing pool)'!$A$1:$BF$1,0)-1):OFFSET('Upper tiers (existing pool)'!$A$1,20,MATCH(C55,'Upper tiers (existing pool)'!$A$1:$BF$1,0)-1))-1) -> 0 | C55: =IF(C$15="Choose your pool here","",IFERROR(VLOOKUP(C$15,pool_MPAs,E55,0),"")) ->  | E55: 4 | F55: =IFERROR(VLOOKUP($C55,Baselines!$C$12:$H$499,3,0),"") ->  | G55: =IFERROR(VLOOKUP($C55,Baselines!$C$12:$H$499,2,0),"") ->  | H55: =IF(OR(F55="",G55=""),"",IF(F55>G55,"Tariff","Top-up")) ->  | I55: 0
B56: =IF(C56="GLA",33,COUNTA(OFFSET('Upper tiers (existing pool)'!$A$1,,MATCH(C56,'Upper tiers (existing pool)'!$A$1:$BF$1,0)-1):OFFSET('Upper tiers (existing pool)'!$A$1,20,MATCH(C56,'Upper tiers (existing pool)'!$A$1:$BF$1,0)-1))-1) -> 0 | C56: =IF(C$15="Choose your pool here","",IFERROR(VLOOKUP(C$15,pool_MPAs,E56,0),"")) ->  | E56: 5 | F56: =IFERROR(VLOOKUP($C56,Baselines!$C$12:$H$499,3,0),"") ->  | G56: =IFERROR(VLOOKUP($C56,Baselines!$C$12:$H$499,2,0),"") ->  | H56: =IF(OR(F56="",G56=""),"",IF(F56>G56,"Tariff","Top-up")) ->  | I56: 0
C58: Pooled Area | F58: =SUM(F18:F56) -> 0 | G58: =SUM(G18:G56) -> 0 | H58: =IF(F58=0,"N/A",IF(F58>G58,"Tariff","Top-up")) -> N/A | I58: =IF(ISERROR(G58/F58),"N/A",G58/F58) -> N/A | J58: =IF(I58="N/A","N/A",IF(1/I58<1,0,IF((1-I58)>0.5,0.5,(1-I58)))) -> N/A
C61: actual multiplier | E61: 0.45 | F61: 0.462 | G61: 0.471
B63: Step 3. Retail Price Index (percentage) | F63: 2013-14 | G63: 2014-15 | H63: 2015-16 | I63: 2016-17 | J63: 2017-18 | K63: 2018-19 | L63: 2019-20 | M63: 2020-21*
B64: The following percentages are taken from the OBR's economic forecast at March 2013. The figures relate to Quarter 3 of the previous year. These can be overwritten if you wish. | F64: =F61/E61-1 -> 0.02666666667 | G64: =G61/F61-1 -> 0.01948051948 | H64: 0.025 | I64: 0.033 | J64: 0.037 | K64: 0.038 | L64: 0.039 | M64: 0.039
B65: OBR RPI forecasts | F65: * The OBR have not yet forecasted to Quarter 3 2019, so this value has been retained from the previous year.
B67: Step 4. Annual business rates growth
B68: To calculate a business rates forecast, please enter values for 2013-14 of the amount of NNDR that you expect to be retained by the Billing Authority under the rates retention scheme (i.e. the local share (50%) of total NNDR). If you would like to use NNDR1 data to populate this cell, the links to the published data are below. A growth percentage should then be entered for each subsequent year. | F68: 2013-14 | G68: 2014-15 | H68: 2015-16 | I68: 2016-17 | J68: 2017-18 | K68: 2018-19 | L68: 2019-20 | M68: 2020-21
B69: 2013-14 NNDR1 Data | F69: Local Share of NNDR (£m)
B70: 2014-15 NNDR1 Data | H70: Annual business rates growth (Percentage) (This should include growth due to RPI, business rates growth, any loss due to appeals)
C71: Billing Authorities
C73: =C18 -> 
C74: =C19 -> 
C106: Billing Authorities for Major Precepting Authorities in the Pool
B107: (In order to obtain a value for precepting authorites, a starting position needs to be entered for any billing authorities that are not already in the pool, but do contibute to the precepting value.)
B108: =IF(D108<=$B$53,$C$53,IF(D108<=$B$53+$B$54,$C$54,IF(D108<=$B$53+$B$54+$B$55,$C$55,$C$56))) ->  | C108: =IFERROR(IF(ISERROR(MATCH(HLOOKUP(B108,'Upper tiers (existing pool)'!$A$1:$BF$34,E108,0),$C$73:$C$105,0))=TRUE,HLOOKUP(B108,'Upper tiers (existing pool)'!$A$1:$BF$34,E108,0),""),"") ->  | D108: 1 | E108: 2
B109: =IF(D109<=$B$53,$C$53,IF(D109<=$B$53+$B$54,$C$54,IF(D109<=$B$53+$B$54+$B$55,$C$55,$C$56))) ->  | C109: =IFERROR(IF(ISERROR(MATCH(HLOOKUP(B109,'Upper tiers (existing pool)'!$A$1:$BF$34,E109,0),$C$73:$C$105,0))=TRUE,HLOOKUP(B109,'Upper tiers (existing pool)'!$A$1:$BF$34,E109,0),""),"") ->  | D109: 2 | E109: =IF(B109=B108,E108+1,2) -> 3
C110: =IFERROR(IF(ISERROR(MATCH(HLOOKUP(B110,'Upper tiers (existing pool)'!$A$1:$BF$34,E110,0),$C$73:$C$105,0))=TRUE,HLOOKUP(B110,'Upper tiers (existing pool)'!$A$1:$BF$34,E110,0),""),"") ->  | D110: 3 | E110: =IF(B110=B109,E109+1,2) -> 4
C111: =IFERROR(IF(ISERROR(MATCH(HLOOKUP(B111,'Upper tiers (existing pool)'!$A$1:$BF$34,E111,0),$C$73:$C$105,0))=TRUE,HLOOKUP(B111,'Upper tiers (existing pool)'!$A$1:$BF$34,E111,0),""),"") ->  | D111: 4 | E111: 5
C112: =IFERROR(IF(ISERROR(MATCH(HLOOKUP(B112,'Upper tiers (existing pool)'!$A$1:$BF$34,E112,0),$C$73:$C$105,0))=TRUE,HLOOKUP(B112,'Upper tiers (existing pool)'!$A$1:$BF$34,E112,0),""),"") ->  | D112: 5 | E112: 6
C113: =IFERROR(IF(ISERROR(MATCH(HLOOKUP(B113,'Upper tiers (existing pool)'!$A$1:$BF$34,E113,0),$C$73:$C$105,0))=TRUE,HLOOKUP(B113,'Upper tiers (existing pool)'!$A$1:$BF$34,E113,0),""),"") ->  | D113: 6 | E113: 7
B114: =IF(D114<=$B$53,$C$53,IF(D114<=$B$53+$B$54,$C$54,IF(D114<=$B$53+$B$54+$B$55,$C$55,$C$56))) ->  | C114: =IFERROR(IF(ISERROR(MATCH(HLOOKUP(B114,'Upper tiers (existing pool)'!$A$1:$BF$34,E114,0),$C$73:$C$105,0))=TRUE,HLOOKUP(B114,'Upper tiers (existing pool)'!$A$1:$BF$34,E114,0),""),"") ->  | D114: 7 | E114: 8
C115: =IFERROR(IF(ISERROR(MATCH(HLOOKUP(B115,'Upper tiers (existing pool)'!$A$1:$BF$34,E115,0),$C$73:$C$105,0))=TRUE,HLOOKUP(B115,'Upper tiers (existing pool)'!$A$1:$BF$34,E115,0),""),"") ->  | D115: 8 | E115: 9
C116: =IFERROR(IF(ISERROR(MATCH(HLOOKUP(B116,'Upper tiers (existing pool)'!$A$1:$BF$34,E116,0),$C$73:$C$105,0))=TRUE,HLOOKUP(B116,'Upper tiers (existing pool)'!$A$1:$BF$34,E116,0),""),"") ->  | D116: 9 | E116: 10
B117: =IF(D117<=$B$53,$C$53,IF(D117<=$B$53+$B$54,$C$54,IF(D117<=$B$53+$B$54+$B$55,$C$55,$C$56))) ->  | C117: =IFERROR(IF(ISERROR(MATCH(HLOOKUP(B117,'Upper tiers (existing pool)'!$A$1:$BF$34,E117,0),$C$73:$C$105,0))=TRUE,HLOOKUP(B117,'Upper tiers (existing pool)'!$A$1:$BF$34,E117,0),""),"") ->  | D117: 10 | E117: 11
C118: =IFERROR(IF(ISERROR(MATCH(HLOOKUP(B118,'Upper tiers (existing pool)'!$A$1:$BF$34,E118,0),$C$73:$C$105,0))=TRUE,HLOOKUP(B118,'Upper tiers (existing pool)'!$A$1:$BF$34,E118,0),""),"") ->  | D118: 11 | E118: 12
B119: =IF(D119<=$B$53,$C$53,IF(D119<=$B$53+$B$54,$C$54,IF(D119<=$B$53+$B$54+$B$55,$C$55,$C$56))) ->  | C119: =IFERROR(IF(ISERROR(MATCH(HLOOKUP(B119,'Upper tiers (existing pool)'!$A$1:$BF$34,E119,0),$C$73:$C$105,0))=TRUE,HLOOKUP(B119,'Upper tiers (existing pool)'!$A$1:$BF$34,E119,0),""),"") ->  | D119: 12 | E119: 13
C120: =IFERROR(IF(ISERROR(MATCH(HLOOKUP(B120,'Upper tiers (existing pool)'!$A$1:$BF$34,E120,0),$C$73:$C$105,0))=TRUE,HLOOKUP(B120,'Upper tiers (existing pool)'!$A$1:$BF$34,E120,0),""),"") ->  | D120: 13 | E120: 14
C121: =IFERROR(IF(ISERROR(MATCH(HLOOKUP(B121,'Upper tiers (existing pool)'!$A$1:$BF$34,E121,0),$C$73:$C$105,0))=TRUE,HLOOKUP(B121,'Upper tiers (existing pool)'!$A$1:$BF$34,E121,0),""),"") ->  | D121: 14 | E121: 15
C122: =IFERROR(IF(ISERROR(MATCH(HLOOKUP(B122,'Upper tiers (existing pool)'!$A$1:$BF$34,E122,0),$C$73:$C$105,0))=TRUE,HLOOKUP(B122,'Upper tiers (existing pool)'!$A$1:$BF$34,E122,0),""),"") ->  | D122: 15 | E122: 16
C123: =IFERROR(IF(ISERROR(MATCH(HLOOKUP(B123,'Upper tiers (existing pool)'!$A$1:$BF$34,E123,0),$C$73:$C$105,0))=TRUE,HLOOKUP(B123,'Upper tiers (existing pool)'!$A$1:$BF$34,E123,0),""),"") ->  | D123: 16 | E123: 17
C124: =IFERROR(IF(ISERROR(MATCH(HLOOKUP(B124,'Upper tiers (existing pool)'!$A$1:$BF$34,E124,0),$C$73:$C$105,0))=TRUE,HLOOKUP(B124,'Upper tiers (existing pool)'!$A$1:$BF$34,E124,0),""),"") ->  | D124: 17 | E124: 18
C125: =IFERROR(IF(ISERROR(MATCH(HLOOKUP(B125,'Upper tiers (existing pool)'!$A$1:$BF$34,E125,0),$C$73:$C$105,0))=TRUE,HLOOKUP(B125,'Upper tiers (existing pool)'!$A$1:$BF$34,E125,0),""),"") ->  | D125: 18 | E125: 19
C126: =IFERROR(IF(ISERROR(MATCH(HLOOKUP(B126,'Upper tiers (existing pool)'!$A$1:$BF$34,E126,0),$C$73:$C$105,0))=TRUE,HLOOKUP(B126,'Upper tiers (existing pool)'!$A$1:$BF$34,E126,0),""),"") ->  | D126: 19 | E126: 20
C127: =IFERROR(IF(ISERROR(MATCH(HLOOKUP(B127,'Upper tiers (existing pool)'!$A$1:$BF$34,E127,0),$C$73:$C$105,0))=TRUE,HLOOKUP(B127,'Upper tiers (existing pool)'!$A$1:$BF$34,E127,0),""),"") ->  | D127: 20 | E127: 21
C128: =IFERROR(IF(ISERROR(MATCH(HLOOKUP(B128,'Upper tiers (existing pool)'!$A$1:$BF$34,E128,0),$C$73:$C$105,0))=TRUE,HLOOKUP(B128,'Upper tiers (existing pool)'!$A$1:$BF$34,E128,0),""),"") ->  | D128: 21 | E128: 22
C129: =IFERROR(IF(ISERROR(MATCH(HLOOKUP(B129,'Upper tiers (existing pool)'!$A$1:$BF$34,E129,0),$C$73:$C$105,0))=TRUE,HLOOKUP(B129,'Upper tiers (existing pool)'!$A$1:$BF$34,E129,0),""),"") ->  | D129: 22 | E129: 23
C130: =IFERROR(IF(ISERROR(MATCH(HLOOKUP(B130,'Upper tiers (existing pool)'!$A$1:$BF$34,E130,0),$C$73:$C$105,0))=TRUE,HLOOKUP(B130,'Upper tiers (existing pool)'!$A$1:$BF$34,E130,0),""),"") ->  | D130: 23 | E130: 24
C131: =IFERROR(IF(ISERROR(MATCH(HLOOKUP(B131,'Upper tiers (existing pool)'!$A$1:$BF$34,E131,0),$C$73:$C$105,0))=TRUE,HLOOKUP(B131,'Upper tiers (existing pool)'!$A$1:$BF$34,E131,0),""),"") ->  | D131: 24 | E131: 25
C132: =IFERROR(IF(ISERROR(MATCH(HLOOKUP(B132,'Upper tiers (existing pool)'!$A$1:$BF$34,E132,0),$C$73:$C$105,0))=TRUE,HLOOKUP(B132,'Upper tiers (existing pool)'!$A$1:$BF$34,E132,0),""),"") ->  | D132: 25 | E132: 26
C133: =IFERROR(IF(ISERROR(MATCH(HLOOKUP(B133,'Upper tiers (existing pool)'!$A$1:$BF$34,E133,0),$C$73:$C$105,0))=TRUE,HLOOKUP(B133,'Upper tiers (existing pool)'!$A$1:$BF$34,E133,0),""),"") ->  | D133: 26 | E133: 27
C134: =IFERROR(IF(ISERROR(MATCH(HLOOKUP(B134,'Upper tiers (existing pool)'!$A$1:$BF$34,E134,0),$C$73:$C$105,0))=TRUE,HLOOKUP(B134,'Upper tiers (existing pool)'!$A$1:$BF$34,E134,0),""),"") ->  | D134: 27 | E134: 28
C135: =IFERROR(IF(ISERROR(MATCH(HLOOKUP(B135,'Upper tiers (existing pool)'!$A$1:$BF$34,E135,0),$C$73:$C$105,0))=TRUE,HLOOKUP(B135,'Upper tiers (existing pool)'!$A$1:$BF$34,E135,0),""),"") ->  | D135: 28 | E135: 29
C136: =IFERROR(IF(ISERROR(MATCH(HLOOKUP(B136,'Upper tiers (existing pool)'!$A$1:$BF$34,E136,0),$C$73:$C$105,0))=TRUE,HLOOKUP(B136,'Upper tiers (existing pool)'!$A$1:$BF$34,E136,0),""),"") ->  | D136: 29 | E136: 30
C137: =IFERROR(IF(ISERROR(MATCH(HLOOKUP(B137,'Upper tiers (existing pool)'!$A$1:$BF$34,E137,0),$C$73:$C$105,0))=TRUE,HLOOKUP(B137,'Upper tiers (existing pool)'!$A$1:$BF$34,E137,0),""),"") ->  | D137: 30 | E137: 31
C138: =IFERROR(IF(ISERROR(MATCH(HLOOKUP(B138,'Upper tiers (existing pool)'!$A$1:$BF$34,E138,0),$C$73:$C$105,0))=TRUE,HLOOKUP(B138,'Upper tiers (existing pool)'!$A$1:$BF$34,E138,0),""),"") ->  | D138: 31 | E138: 32
C139: =IFERROR(IF(ISERROR(MATCH(HLOOKUP(B139,'Upper tiers (existing pool)'!$A$1:$BF$34,E139,0),$C$73:$C$105,0))=TRUE,HLOOKUP(B139,'Upper tiers (existing pool)'!$A$1:$BF$34,E139,0),""),"") ->  | D139: 32 | E139: 33
C140: =IFERROR(IF(ISERROR(MATCH(HLOOKUP(B140,'Upper tiers (existing pool)'!$A$1:$BF$34,E140,0),$C$73:$C$105,0))=TRUE,HLOOKUP(B140,'Upper tiers (existing pool)'!$A$1:$BF$34,E140,0),""),"") ->  | D140: 33 | E140: 34
C141: If you have more than one Major Precepting Authority (MPA) in your pool, please check that all the Billing Authorities (BA) you would expect to see are visible in the list above (either under the 'Billing Authorities' heading or the 'Billing Authoritiess for Major Precepting Authorities in the Pool' heading. It is possible that if you have selected multiple MPAs where many of the BAs are not in the pool themselves, then an error may have occurred. If this has happened, please get in touch and we will be happy to help resolve the issue.
B142: =IF(ISERROR(VLOOKUP($C$55,Baselines!$C$621:S$678,16,FALSE)),"",VLOOKUP($C$55,Baselines!$C$621:S$678,16,FALSE)) ->  | F142: 2013-14 | G142: 2014-15 | H142: 2015-16 | I142: 2016-17 | J142: 2017-18 | K142: 2018-19 | L142: 2019-20 | M142: 2020-21
B143: =IF(ISERROR(VLOOKUP($C$55,Baselines!$C$621:S$678,17,FALSE)),"",VLOOKUP($C$55,Baselines!$C$621:S$678,17,FALSE)) ->  | F143: Individual authority business rates
B144: =IF(ISERROR(VLOOKUP($C$54,Baselines!$C$621:S$678,13,FALSE)),"",VLOOKUP($C$54,Baselines!$C$621:S$678,13,FALSE)) ->  | C144: Billing Authorities
B145: =IF(ISERROR(VLOOKUP($C$54,Baselines!$C$621:S$678,14,FALSE)),"",VLOOKUP($C$54,Baselines!$C$621:S$678,14,FALSE)) ->  | C145: =C18 ->  | F145: =IF(OR(C145="",C145=" "),"",VLOOKUP(C145,'Tier split'!A$3:D$328,4,0)) ->  | G145: =IF(OR(C145="",C145=" "),"",VLOOKUP(C145,'Tier split'!A$3:F$328,6,0)) ->  | H145: =IF(OR(C145="",C145=" "),"",IF(H73="",G145,G145*(1+H73))) ->  | I145: =IF(OR(C145="",C145=" "),"",IF(I73="",H145,H145*(1+I73))) ->  | J145: =IF(OR(C145="",C145=" "),"",IF(J73="",I145,I145*(1+J73))) ->  | K145: =IF(OR(C145="",C145=" "),"",IF(K73="",J145,J145*(1+K73))) ->  | L145: =IF(OR(C145="",C145=" "),"",IF(L73="",K145,K145*(1+L73))) ->  | M145: =IF(OR(C145="",C145=" "),"",IF(M73="",L145,L145*(1+M73))) -> 
B146: =IF(ISERROR(VLOOKUP($C$54,Baselines!$C$621:S$678,15,FALSE)),"",VLOOKUP($C$54,Baselines!$C$621:S$678,15,FALSE)) ->  | C146: =C19 ->  | F146: =IF(OR(C146="",C146=" "),"",VLOOKUP(C146,'Tier split'!A$3:D$328,4,0)) ->  | G146: =IF(OR(C146="",C146=" "),"",VLOOKUP(C146,'Tier split'!A$3:F$328,6,0)) ->  | H146: =IF(OR(C146="",C146=" "),"",IF(H74="",G146,G146*(1+H74))) ->  | I146: =IF(OR(C146="",C146=" "),"",IF(I74="",H146,H146*(1+I74))) ->  | J146: =IF(OR(C146="",C146=" "),"",IF(J74="",I146,I146*(1+J74))) ->  | K146: =IF(OR(C146="",C146=" "),"",IF(K74="",J146,J146*(1+K74))) ->  | L146: =IF(OR(C146="",C146=" "),"",IF(L74="",K146,K146*(1+L74))) ->  | M146: =IF(OR(C146="",C146=" "),"",IF(M74="",L146,L146*(1+M74))) -> 
B147: =IF(ISERROR(VLOOKUP($C$54,Baselines!$C$621:S$678,16,FALSE)),"",VLOOKUP($C$54,Baselines!$C$621:S$678,16,FALSE)) ->  | F147: =IF(OR(C147="",C147=" "),"",VLOOKUP(C147,'Tier split'!A$3:D$328,4,0)) ->  | G147: =IF(OR(C147="",C147=" "),"",VLOOKUP(C147,'Tier split'!A$3:F$328,6,0)) -> 
B148: =IF(ISERROR(VLOOKUP($C$54,Baselines!$C$621:S$678,17,FALSE)),"",VLOOKUP($C$54,Baselines!$C$621:S$678,17,FALSE)) ->  | F148: =IF(OR(C148="",C148=" "),"",VLOOKUP(C148,'Tier split'!A$3:D$328,4,0)) ->  | G148: =IF(OR(C148="",C148=" "),"",VLOOKUP(C148,'Tier split'!A$3:F$328,6,0)) -> 
B149: =IF(ISERROR(VLOOKUP($C$54,Baselines!$C$621:S$678,10,FALSE)),"",VLOOKUP($C$54,Baselines!$C$621:S$678,10,FALSE)) ->  | F149: =IF(OR(C149="",C149=" "),"",VLOOKUP(C149,'Tier split'!A$3:D$328,4,0)) ->  | G149: =IF(OR(C149="",C149=" "),"",VLOOKUP(C149,'Tier split'!A$3:F$328,6,0)) -> 
B150: =IF(ISERROR(VLOOKUP($C$54,Baselines!$C$621:S$678,11,FALSE)),"",VLOOKUP($C$54,Baselines!$C$621:S$678,11,FALSE)) ->  | F150: =IF(OR(C150="",C150=" "),"",VLOOKUP(C150,'Tier split'!A$3:D$328,4,0)) ->  | G150: =IF(OR(C150="",C150=" "),"",VLOOKUP(C150,'Tier split'!A$3:F$328,6,0)) -> 
B151: =IF(ISERROR(VLOOKUP($C$54,Baselines!$C$621:S$678,12,FALSE)),"",VLOOKUP($C$54,Baselines!$C$621:S$678,12,FALSE)) ->  | F151: =IF(OR(C151="",C151=" "),"",VLOOKUP(C151,'Tier split'!A$3:D$328,4,0)) ->  | G151: =IF(OR(C151="",C151=" "),"",VLOOKUP(C151,'Tier split'!A$3:F$328,6,0)) ->  | H151: =IF(OR(C151="",C151=" "),"",IF(H79="",G151,G151*(1+H79))) ->  | I151: =IF(OR(C151="",C151=" "),"",IF(I79="",H151,H151*(1+I79))) ->  | J151: =IF(OR(C151="",C151=" "),"",IF(J79="",I151,I151*(1+J79))) ->  | K151: =IF(OR(C151="",C151=" "),"",IF(K79="",J151,J151*(1+K79))) ->  | L151: =IF(OR(C151="",C151=" "),"",IF(L79="",K151,K151*(1+L79))) ->  | M151: =IF(OR(C151="",C151=" "),"",IF(M79="",L151,L151*(1+M79))) -> 
B152: =IF(ISERROR(VLOOKUP($C$54,Baselines!$C$621:S$678,13,FALSE)),"",VLOOKUP($C$54,Baselines!$C$621:S$678,13,FALSE)) ->  | F152: =IF(OR(C152="",C152=" "),"",VLOOKUP(C152,'Tier split'!A$3:D$328,4,0)) ->  | G152: =IF(OR(C152="",C152=" "),"",VLOOKUP(C152,'Tier split'!A$3:F$328,6,0)) -> 
B153: =IF(ISERROR(VLOOKUP($C$54,Baselines!$C$621:S$678,14,FALSE)),"",VLOOKUP($C$54,Baselines!$C$621:S$678,14,FALSE)) ->  | F153: =IF(OR(C153="",C153=" "),"",VLOOKUP(C153,'Tier split'!A$3:D$328,4,0)) ->  | G153: =IF(OR(C153="",C153=" "),"",VLOOKUP(C153,'Tier split'!A$3:F$328,6,0)) -> 
B154: =IF(ISERROR(VLOOKUP($C$54,Baselines!$C$621:S$678,15,FALSE)),"",VLOOKUP($C$54,Baselines!$C$621:S$678,15,FALSE)) ->  | F154: =IF(OR(C154="",C154=" "),"",VLOOKUP(C154,'Tier split'!A$3:D$328,4,0)) ->  | G154: =IF(OR(C154="",C154=" "),"",VLOOKUP(C154,'Tier split'!A$3:F$328,6,0)) -> 
B155: =IF(ISERROR(VLOOKUP($C$54,Baselines!$C$621:S$678,16,FALSE)),"",VLOOKUP($C$54,Baselines!$C$621:S$678,16,FALSE)) ->  | F155: =IF(OR(C155="",C155=" "),"",VLOOKUP(C155,'Tier split'!A$3:D$328,4,0)) ->  | G155: =IF(OR(C155="",C155=" "),"",VLOOKUP(C155,'Tier split'!A$3:F$328,6,0)) -> 
B156: =IF(ISERROR(VLOOKUP($C$54,Baselines!$C$621:S$678,17,FALSE)),"",VLOOKUP($C$54,Baselines!$C$621:S$678,17,FALSE)) ->  | F156: =IF(OR(C156="",C156=" "),"",VLOOKUP(C156,'Tier split'!A$3:D$328,4,0)) ->  | G156: =IF(OR(C156="",C156=" "),"",VLOOKUP(C156,'Tier split'!A$3:F$328,6,0)) -> 
F157: =IF(OR(C157="",C157=" "),"",VLOOKUP(C157,'Tier split'!A$3:D$328,4,0)) ->  | G157: =IF(OR(C157="",C157=" "),"",VLOOKUP(C157,'Tier split'!A$3:F$328,6,0)) -> 
F158: =IF(OR(C158="",C158=" "),"",VLOOKUP(C158,'Tier split'!A$3:D$328,4,0)) ->  | G158: =IF(OR(C158="",C158=" "),"",VLOOKUP(C158,'Tier split'!A$3:F$328,6,0)) -> 
F159: =IF(OR(C159="",C159=" "),"",VLOOKUP(C159,'Tier split'!A$3:D$328,4,0)) ->  | G159: =IF(OR(C159="",C159=" "),"",VLOOKUP(C159,'Tier split'!A$3:F$328,6,0)) -> 
F160: =IF(OR(C160="",C160=" "),"",VLOOKUP(C160,'Tier split'!A$3:D$328,4,0)) ->  | G160: =IF(OR(C160="",C160=" "),"",VLOOKUP(C160,'Tier split'!A$3:F$328,6,0)) -> 
F161: =IF(OR(C161="",C161=" "),"",VLOOKUP(C161,'Tier split'!A$3:D$328,4,0)) ->  | G161: =IF(OR(C161="",C161=" "),"",VLOOKUP(C161,'Tier split'!A$3:F$328,6,0)) -> 
F162: =IF(OR(C162="",C162=" "),"",VLOOKUP(C162,'Tier split'!A$3:D$328,4,0)) ->  | G162: =IF(OR(C162="",C162=" "),"",VLOOKUP(C162,'Tier split'!A$3:F$328,6,0)) -> 
F163: =IF(OR(C163="",C163=" "),"",VLOOKUP(C163,'Tier split'!A$3:D$328,4,0)) ->  | G163: =IF(OR(C163="",C163=" "),"",VLOOKUP(C163,'Tier split'!A$3:F$328,6,0)) -> 
F164: =IF(OR(C164="",C164=" "),"",VLOOKUP(C164,'Tier split'!A$3:D$328,4,0)) ->  | G164: =IF(OR(C164="",C164=" "),"",VLOOKUP(C164,'Tier split'!A$3:F$328,6,0)) -> 
F165: =IF(OR(C165="",C165=" "),"",VLOOKUP(C165,'Tier split'!A$3:D$328,4,0)) ->  | G165: =IF(OR(C165="",C165=" "),"",VLOOKUP(C165,'Tier split'!A$3:F$328,6,0)) -> 
F166: =IF(OR(C166="",C166=" "),"",VLOOKUP(C166,'Tier split'!A$3:D$328,4,0)) ->  | G166: =IF(OR(C166="",C166=" "),"",VLOOKUP(C166,'Tier split'!A$3:F$328,6,0)) -> 
F167: =IF(OR(C167="",C167=" "),"",VLOOKUP(C167,'Tier split'!A$3:D$328,4,0)) ->  | G167: =IF(OR(C167="",C167=" "),"",VLOOKUP(C167,'Tier split'!A$3:F$328,6,0)) -> 
F168: =IF(OR(C168="",C168=" "),"",VLOOKUP(C168,'Tier split'!A$3:D$328,4,0)) ->  | G168: =IF(OR(C168="",C168=" "),"",VLOOKUP(C168,'Tier split'!A$3:F$328,6,0)) -> 
F169: =IF(OR(C169="",C169=" "),"",VLOOKUP(C169,'Tier split'!A$3:D$328,4,0)) ->  | G169: =IF(OR(C169="",C169=" "),"",VLOOKUP(C169,'Tier split'!A$3:F$328,6,0)) -> 
F170: =IF(OR(C170="",C170=" "),"",VLOOKUP(C170,'Tier split'!A$3:D$328,4,0)) ->  | G170: =IF(OR(C170="",C170=" "),"",VLOOKUP(C170,'Tier split'!A$3:F$328,6,0)) -> 
F171: =IF(OR(C171="",C171=" "),"",VLOOKUP(C171,'Tier split'!A$3:D$328,4,0)) ->  | G171: =IF(OR(C171="",C171=" "),"",VLOOKUP(C171,'Tier split'!A$3:F$328,6,0)) -> 
F172: =IF(OR(C172="",C172=" "),"",VLOOKUP(C172,'Tier split'!A$3:D$328,4,0)) ->  | G172: =IF(OR(C172="",C172=" "),"",VLOOKUP(C172,'Tier split'!A$3:F$328,6,0)) -> 
F173: =IF(OR(C173="",C173=" "),"",VLOOKUP(C173,'Tier split'!A$3:D$328,4,0)) ->  | G173: =IF(OR(C173="",C173=" "),"",VLOOKUP(C173,'Tier split'!A$3:F$328,6,0)) -> 
F174: =IF(OR(C174="",C174=" "),"",VLOOKUP(C174,'Tier split'!A$3:D$328,4,0)) ->  | G174: =IF(OR(C174="",C174=" "),"",VLOOKUP(C174,'Tier split'!A$3:F$328,6,0)) -> 
F175: =IF(OR(C175="",C175=" "),"",VLOOKUP(C175,'Tier split'!A$3:D$328,4,0)) ->  | G175: =IF(OR(C175="",C175=" "),"",VLOOKUP(C175,'Tier split'!A$3:F$328,6,0)) -> 
F176: =IF(OR(C176="",C176=" "),"",VLOOKUP(C176,'Tier split'!A$3:D$328,4,0)) ->  | G176: =IF(OR(C176="",C176=" "),"",VLOOKUP(C176,'Tier split'!A$3:F$328,6,0)) -> 
F177: =IF(OR(C177="",C177=" "),"",VLOOKUP(C177,'Tier split'!A$3:D$328,4,0)) ->  | G177: =IF(OR(C177="",C177=" "),"",VLOOKUP(C177,'Tier split'!A$3:F$328,6,0)) -> 
C179: Billing Authorities for Major Precepting Authorities in the Pool
C180: =C108 ->  | F180: =IF(OR(C180="",C180=" "),"",VLOOKUP(C180,'Tier split'!A$3:E$328,5,0)) ->  | G180: =IF(OR(C180="",C180=" "),"",VLOOKUP(C180,'Tier split'!A$3:G$328,7,0)) ->  | H180: =IF(OR(C180="",C180=" "),"",IF(H108="",G180,G180*(1+H108))) ->  | I180: =IF(OR(C180="",C180=" "),"",IF(I108="",H180,H180*(1+I108))) ->  | J180: =IF(OR(C180="",C180=" "),"",IF(J108="",I180,I180*(1+J108))) ->  | K180: =IF(OR(C180="",C180=" "),"",IF(K108="",J180,J180*(1+K108))) ->  | L180: =IF(OR(C180="",C180=" "),"",IF(L108="",K180,K180*(1+L108))) ->  | M180: =IF(OR(C180="",C180=" "),"",IF(M108="",L180,L180*(1+M108))) -> 
F181: =IF(OR(C181="",C181=" "),"",VLOOKUP(C181,'Tier split'!A$3:E$328,5,0)) ->  | G181: =IF(OR(C181="",C181=" "),"",VLOOKUP(C181,'Tier split'!A$3:G$328,7,0)) ->  | H181: =IF(OR(C181="",C181=" "),"",IF(H109="",G181,G181*(1+H109))) ->  | I181: =IF(OR(C181="",C181=" "),"",IF(I109="",H181,H181*(1+I109))) ->  | J181: =IF(OR(C181="",C181=" "),"",IF(J109="",I181,I181*(1+J109))) ->  | K181: =IF(OR(C181="",C181=" "),"",IF(K109="",J181,J181*(1+K109))) ->  | L181: =IF(OR(C181="",C181=" "),"",IF(L109="",K181,K181*(1+L109))) ->  | M181: =IF(OR(C181="",C181=" "),"",IF(M109="",L181,L181*(1+M109))) -> 
F182: =IF(OR(C182="",C182=" "),"",VLOOKUP(C182,'Tier split'!A$3:E$328,5,0)) ->  | G182: =IF(OR(C182="",C182=" "),"",VLOOKUP(C182,'Tier split'!A$3:G$328,7,0)) -> 
F183: =IF(OR(C183="",C183=" "),"",VLOOKUP(C183,'Tier split'!A$3:E$328,5,0)) ->  | G183: =IF(OR(C183="",C183=" "),"",VLOOKUP(C183,'Tier split'!A$3:G$328,7,0)) -> 
F184: =IF(OR(C184="",C184=" "),"",VLOOKUP(C184,'Tier split'!A$3:E$328,5,0)) ->  | G184: =IF(OR(C184="",C184=" "),"",VLOOKUP(C184,'Tier split'!A$3:G$328,7,0)) -> 
F185: =IF(OR(C185="",C185=" "),"",VLOOKUP(C185,'Tier split'!A$3:E$328,5,0)) ->  | G185: =IF(OR(C185="",C185=" "),"",VLOOKUP(C185,'Tier split'!A$3:G$328,7,0)) -> 
F186: =IF(OR(C186="",C186=" "),"",VLOOKUP(C186,'Tier split'!A$3:E$328,5,0)) ->  | G186: =IF(OR(C186="",C186=" "),"",VLOOKUP(C186,'Tier split'!A$3:G$328,7,0)) -> 
F187: =IF(OR(C187="",C187=" "),"",VLOOKUP(C187,'Tier split'!A$3:E$328,5,0)) ->  | G187: =IF(OR(C187="",C187=" "),"",VLOOKUP(C187,'Tier split'!A$3:G$328,7,0)) -> 
F188: =IF(OR(C188="",C188=" "),"",VLOOKUP(C188,'Tier split'!A$3:E$328,5,0)) ->  | G188: =IF(OR(C188="",C188=" "),"",VLOOKUP(C188,'Tier split'!A$3:G$328,7,0)) -> 
F189: =IF(OR(C189="",C189=" "),"",VLOOKUP(C189,'Tier split'!A$3:E$328,5,0)) ->  | G189: =IF(OR(C189="",C189=" "),"",VLOOKUP(C189,'Tier split'!A$3:G$328,7,0)) -> 
F190: =IF(OR(C190="",C190=" "),"",VLOOKUP(C190,'Tier split'!A$3:E$328,5,0)) ->  | G190: =IF(OR(C190="",C190=" "),"",VLOOKUP(C190,'Tier split'!A$3:G$328,7,0)) -> 
F191: =IF(OR(C191="",C191=" "),"",VLOOKUP(C191,'Tier split'!A$3:E$328,5,0)) ->  | G191: =IF(OR(C191="",C191=" "),"",VLOOKUP(C191,'Tier split'!A$3:G$328,7,0)) -> 
F192: =IF(OR(C192="",C192=" "),"",VLOOKUP(C192,'Tier split'!A$3:E$328,5,0)) ->  | G192: =IF(OR(C192="",C192=" "),"",VLOOKUP(C192,'Tier split'!A$3:G$328,7,0)) -> 
F193: =IF(OR(C193="",C193=" "),"",VLOOKUP(C193,'Tier split'!A$3:E$328,5,0)) ->  | G193: =IF(OR(C193="",C193=" "),"",VLOOKUP(C193,'Tier split'!A$3:G$328,7,0)) -> 
F194: =IF(OR(C194="",C194=" "),"",VLOOKUP(C194,'Tier split'!A$3:E$328,5,0)) ->  | G194: =IF(OR(C194="",C194=" "),"",VLOOKUP(C194,'Tier split'!A$3:G$328,7,0)) -> 
F195: =IF(OR(C195="",C195=" "),"",VLOOKUP(C195,'Tier split'!A$3:E$328,5,0)) ->  | G195: =IF(OR(C195="",C195=" "),"",VLOOKUP(C195,'Tier split'!A$3:G$328,7,0)) -> 
F196: =IF(OR(C196="",C196=" "),"",VLOOKUP(C196,'Tier split'!A$3:E$328,5,0)) ->  | G196: =IF(OR(C196="",C196=" "),"",VLOOKUP(C196,'Tier split'!A$3:G$328,7,0)) -> 
F197: =IF(OR(C197="",C197=" "),"",VLOOKUP(C197,'Tier split'!A$3:E$328,5,0)) ->  | G197: =IF(OR(C197="",C197=" "),"",VLOOKUP(C197,'Tier split'!A$3:G$328,7,0)) -> 
F198: =IF(OR(C198="",C198=" "),"",VLOOKUP(C198,'Tier split'!A$3:E$328,5,0)) ->  | G198: =IF(OR(C198="",C198=" "),"",VLOOKUP(C198,'Tier split'!A$3:G$328,7,0)) -> 
F199: =IF(OR(C199="",C199=" "),"",VLOOKUP(C199,'Tier split'!A$3:E$328,5,0)) ->  | G199: =IF(OR(C199="",C199=" "),"",VLOOKUP(C199,'Tier split'!A$3:G$328,7,0)) -> 
F200: =IF(OR(C200="",C200=" "),"",VLOOKUP(C200,'Tier split'!A$3:E$328,5,0)) ->  | G200: =IF(OR(C200="",C200=" "),"",VLOOKUP(C200,'Tier split'!A$3:G$328,7,0)) -> 
F201: =IF(OR(C201="",C201=" "),"",VLOOKUP(C201,'Tier split'!A$3:E$328,5,0)) ->  | G201: =IF(OR(C201="",C201=" "),"",VLOOKUP(C201,'Tier split'!A$3:G$328,7,0)) -> 
F202: =IF(OR(C202="",C202=" "),"",VLOOKUP(C202,'Tier split'!A$3:E$328,5,0)) ->  | G202: =IF(OR(C202="",C202=" "),"",VLOOKUP(C202,'Tier split'!A$3:G$328,7,0)) -> 
F203: =IF(OR(C203="",C203=" "),"",VLOOKUP(C203,'Tier split'!A$3:E$328,5,0)) ->  | G203: =IF(OR(C203="",C203=" "),"",VLOOKUP(C203,'Tier split'!A$3:G$328,7,0)) -> 
F204: =IF(OR(C204="",C204=" "),"",VLOOKUP(C204,'Tier split'!A$3:E$328,5,0)) ->  | G204: =IF(OR(C204="",C204=" "),"",VLOOKUP(C204,'Tier split'!A$3:G$328,7,0)) -> 
F205: =IF(OR(C205="",C205=" "),"",VLOOKUP(C205,'Tier split'!A$3:E$328,5,0)) ->  | G205: =IF(OR(C205="",C205=" "),"",VLOOKUP(C205,'Tier split'!A$3:G$328,7,0)) -> 
F206: =IF(OR(C206="",C206=" "),"",VLOOKUP(C206,'Tier split'!A$3:E$328,5,0)) ->  | G206: =IF(OR(C206="",C206=" "),"",VLOOKUP(C206,'Tier split'!A$3:G$328,7,0)) -> 
C207: =C135 ->  | F207: =IF(OR(C207="",C207=" "),"",VLOOKUP(C207,'Tier split'!A$3:E$328,5,0)) ->  | G207: =IF(OR(C207="",C207=" "),"",VLOOKUP(C207,'Tier split'!A$3:G$328,7,0)) -> 
F208: =IF(OR(C208="",C208=" "),"",VLOOKUP(C208,'Tier split'!A$3:E$328,5,0)) ->  | G208: =IF(OR(C208="",C208=" "),"",VLOOKUP(C208,'Tier split'!A$3:G$328,7,0)) -> 
F209: =IF(OR(C209="",C209=" "),"",VLOOKUP(C209,'Tier split'!A$3:E$328,5,0)) ->  | G209: =IF(OR(C209="",C209=" "),"",VLOOKUP(C209,'Tier split'!A$3:G$328,7,0)) -> 
F210: =IF(OR(C210="",C210=" "),"",VLOOKUP(C210,'Tier split'!A$3:E$328,5,0)) ->  | G210: =IF(OR(C210="",C210=" "),"",VLOOKUP(C210,'Tier split'!A$3:G$328,7,0)) -> 
F211: =IF(OR(C211="",C211=" "),"",VLOOKUP(C211,'Tier split'!A$3:E$328,5,0)) ->  | G211: =IF(OR(C211="",C211=" "),"",VLOOKUP(C211,'Tier split'!A$3:G$328,7,0)) -> 
F212: =IF(OR(C212="",C212=" "),"",VLOOKUP(C212,'Tier split'!A$3:E$328,5,0)) ->  | G212: =IF(OR(C212="",C212=" "),"",VLOOKUP(C212,'Tier split'!A$3:G$328,7,0)) -> 
C214: Major Precepting Authorities
C215: =C53 ->  | F215: =IF(OR(C215="",C215=" "),"",HLOOKUP($C215,'Upper tiers (existing pool)'!$A$72:$BF$106,35,0)) ->  | G215: =IF(OR(C215="",C215=" "),"",HLOOKUP($C215,'Upper tiers (existing pool)'!$A$108:$BF$142,35,0)) ->  | H215: =IF(OR(C215="",C215=" "),"",HLOOKUP($C215,'Upper tiers (existing pool)'!$A$145:$BF$179,35,0)) ->  | I215: =IF(OR(C215="",C215=" "),"",HLOOKUP($C215,'Upper tiers (existing pool)'!$A$182:$BF$216,35,0)) ->  | J215: =IF(OR(C215="",C215=" "),"",HLOOKUP($C215,'Upper tiers (existing pool)'!$A$219:$BF$253,35,0)) ->  | K215: =IF(OR(C215="",C215=" "),"",HLOOKUP($C215,'Upper tiers (existing pool)'!$A$256:$BF$290,35,0)) ->  | L215: =IF(OR(C215="",C215=" "),"",HLOOKUP($C215,'Upper tiers (existing pool)'!$A$293:$BF$327,35,0)) ->  | M215: =IF(OR(C215="",C215=" "),"",HLOOKUP($C215,'Upper tiers (existing pool)'!$A$330:$BF$364,35,0)) -> 
C216: =C54 ->  | F216: =IF(OR(C216="",C216=" "),"",HLOOKUP($C216,'Upper tiers (existing pool)'!$A$72:$BF$106,35,0)) ->  | G216: =IF(OR(C216="",C216=" "),"",HLOOKUP($C216,'Upper tiers (existing pool)'!$A$108:$BF$142,35,0)) ->  | H216: =IF(OR(C216="",C216=" "),"",HLOOKUP($C216,'Upper tiers (existing pool)'!$A$145:$BF$179,35,0)) ->  | I216: =IF(OR(C216="",C216=" "),"",HLOOKUP($C216,'Upper tiers (existing pool)'!$A$182:$BF$216,35,0)) ->  | J216: =IF(OR(C216="",C216=" "),"",HLOOKUP($C216,'Upper tiers (existing pool)'!$A$219:$BF$253,35,0)) ->  | K216: =IF(OR(C216="",C216=" "),"",HLOOKUP($C216,'Upper tiers (existing pool)'!$A$256:$BF$290,35,0)) ->  | L216: =IF(OR(C216="",C216=" "),"",HLOOKUP($C216,'Upper tiers (existing pool)'!$A$293:$BF$327,35,0)) ->  | M216: =IF(OR(C216="",C216=" "),"",HLOOKUP($C216,'Upper tiers (existing pool)'!$A$330:$BF$364,35,0)) -> 
C217: =C55 ->  | F217: =IF(OR(C217="",C217=" "),"",HLOOKUP($C217,'Upper tiers (existing pool)'!$A$72:$BF$106,35,0)) ->  | G217: =IF(OR(C217="",C217=" "),"",HLOOKUP($C217,'Upper tiers (existing pool)'!$A$108:$BF$142,35,0)) ->  | H217: =IF(OR(C217="",C217=" "),"",HLOOKUP($C217,'Upper tiers (existing pool)'!$A$145:$BF$179,35,0)) ->  | I217: =IF(OR(C217="",C217=" "),"",HLOOKUP($C217,'Upper tiers (existing pool)'!$A$182:$BF$216,35,0)) ->  | J217: =IF(OR(C217="",C217=" "),"",HLOOKUP($C217,'Upper tiers (existing pool)'!$A$219:$BF$253,35,0)) ->  | K217: =IF(OR(C217="",C217=" "),"",HLOOKUP($C217,'Upper tiers (existing pool)'!$A$256:$BF$290,35,0)) ->  | L217: =IF(OR(C217="",C217=" "),"",HLOOKUP($C217,'Upper tiers (existing pool)'!$A$293:$BF$327,35,0)) ->  | M217: =IF(OR(C217="",C217=" "),"",HLOOKUP($C217,'Upper tiers (existing pool)'!$A$330:$BF$364,35,0)) -> 
C218: =C56 ->  | F218: =IF(OR(C218="",C218=" "),"",HLOOKUP($C218,'Upper tiers (existing pool)'!$A$72:$BF$106,35,0)) ->  | G218: =IF(OR(C218="",C218=" "),"",HLOOKUP($C218,'Upper tiers (existing pool)'!$A$108:$BF$142,35,0)) ->  | H218: =IF(OR(C218="",C218=" "),"",HLOOKUP($C218,'Upper tiers (existing pool)'!$A$145:$BF$179,35,0)) ->  | I218: =IF(OR(C218="",C218=" "),"",HLOOKUP($C218,'Upper tiers (existing pool)'!$A$182:$BF$216,35,0)) ->  | J218: =IF(OR(C218="",C218=" "),"",HLOOKUP($C218,'Upper tiers (existing pool)'!$A$219:$BF$253,35,0)) ->  | K218: =IF(OR(C218="",C218=" "),"",HLOOKUP($C218,'Upper tiers (existing pool)'!$A$256:$BF$290,35,0)) ->  | L218: =IF(OR(C218="",C218=" "),"",HLOOKUP($C218,'Upper tiers (existing pool)'!$A$293:$BF$327,35,0)) ->  | M218: =IF(OR(C218="",C218=" "),"",HLOOKUP($C218,'Upper tiers (existing pool)'!$A$330:$BF$364,35,0)) -> 
C220: Pooled area's business rates | F220: =SUM(F145:F177)+SUM(F215:F218) -> 0 | G220: =SUM(G145:G177)+SUM(G215:G218) -> 0 | H220: =SUM(H145:H177)+SUM(H215:H218) -> 0 | I220: 0 | J220: 0 | K220: 0 | L220: 0 | M220: 0
C222: Pooled area's business rates growth | G222: =IF(ISERROR(-(1-(G220/F220))),"",-(1-(G220/F220))) -> 
B228: Stage 2: Calculating Retained Income (step-by-step)
B230: Step 5. Calculate pre-levy income | G230: (Tariffs and Top ups are uprated by RPI from step 3)
F231: 2013-14 | G231: 2014-15 | H231: 2015-16 | I231: 2016-17 | J231: 2017-18 | K231: 2018-19 | L231: 2019-20 | M231: 2020-21
B232: Billing Authorities
B233: =C18 ->  | C233: =IF(OR(F18="",G18=""),"Tariff or Top up",IF(F233<0,"Tariff","Top up")) -> Tariff or Top up | F233: =IF(OR(B233="",B233=" "),"",G18-F18) ->  | G233: =IF(OR(B233="",B233=" "),"",$F233*'Existing Pool'!P$6) ->  | H233: =IF(OR(B233="",B233=" "),"",$F233*'Existing Pool'!Q$6) ->  | I233: =IF(OR(B233="",B233=" "),"",$F233*'Existing Pool'!R$6) ->  | J233: =IF(OR(B233="",B233=" "),"",$F233*'Existing Pool'!S$6) ->  | K233: =IF(OR(B233="",B233=" "),"",$F233*'Existing Pool'!T$6) ->  | L233: =IF(OR(B233="",B233=" "),"",$F233*'Existing Pool'!U$6) ->  | M233: =IF(OR(B233="",B233=" "),"",$F233*'Existing Pool'!V$6) ->  | O233: =IF(OR(B233="",B233=" "),FALSE,TRUE) -> FALSE
C234: Pre-levy income | F234: =IF(OR(B233="",B233=" "),"",F145+F233) ->  | G234: =IF(OR(B233="",B233=" "),"",G145+G233) ->  | H234: =IF(OR(B233="",B233=" "),"",H145+H233) ->  | I234: =IF(OR(B233="",B233=" "),"",I145+I233) ->  | J234: =IF(OR(B233="",B233=" "),"",J145+J233) ->  | K234: =IF(OR(B233="",B233=" "),"",K145+K233) ->  | L234: =IF(OR(B233="",B233=" "),"",L145+L233) ->  | M234: =IF(OR(B233="",B233=" "),"",M145+M233) ->  | O234: =IF(OR(B233="",B233=" "),FALSE,TRUE) -> FALSE
B236: =C19 ->  | C236: =IF(OR(F19="",G19=""),"Tariff or Top up",IF(F236<0,"Tariff","Top up")) -> Tariff or Top up | F236: =IF(OR(B236="",B236=" "),"",G19-F19) ->  | G236: =IF(OR(B236="",B236=" "),"",$F236*'Existing Pool'!P$6) ->  | H236: =IF(OR(B236="",B236=" "),"",$F236*'Existing Pool'!Q$6) ->  | I236: =IF(OR(B236="",B236=" "),"",$F236*'Existing Pool'!R$6) ->  | J236: =IF(OR(B236="",B236=" "),"",$F236*'Existing Pool'!S$6) ->  | K236: =IF(OR(B236="",B236=" "),"",$F236*'Existing Pool'!T$6) ->  | L236: =IF(OR(B236="",B236=" "),"",$F236*'Existing Pool'!U$6) ->  | M236: =IF(OR(B236="",B236=" "),"",$F236*'Existing Pool'!V$6) ->  | O236: =IF(OR(B236="",B236=" "),FALSE,TRUE) -> FALSE
C237: Pre-levy income | F237: =IF(OR(B236="",B236=" "),"",F146+F236) ->  | G237: =IF(OR(B236="",B236=" "),"",G146+G236) ->  | H237: =IF(OR(B236="",B236=" "),"",H146+H236) ->  | I237: =IF(OR(B236="",B236=" "),"",I146+I236) ->  | J237: =IF(OR(B236="",B236=" "),"",J146+J236) ->  | K237: =IF(OR(B236="",B236=" "),"",K146+K236) ->  | L237: =IF(OR(B236="",B236=" "),"",L146+L236) ->  | M237: =IF(OR(B236="",B236=" "),"",M146+M236) ->  | O237: =IF(OR(B236="",B236=" "),FALSE,TRUE) -> FALSE
B239: =C20 ->  | C239: =IF(OR(F20="",G20=""),"Tariff or Top up",IF(F239<0,"Tariff","Top up")) -> Tariff or Top up | F239: =IF($O239=FALSE,"",G20-F20) ->  | G239: =IF($O239=FALSE,"",$F239*'Existing Pool'!P$6) ->  | H239: =IF($O239=FALSE,"",$F239*'Existing Pool'!Q$6) ->  | I239: =IF($O239=FALSE,"",$F239*'Existing Pool'!R$6) ->  | J239: =IF($O239=FALSE,"",$F239*'Existing Pool'!S$6) ->  | K239: =IF($O239=FALSE,"",$F239*'Existing Pool'!T$6) ->  | L239: =IF($O239=FALSE,"",$F239*'Existing Pool'!U$6) ->  | M239: =IF($O239=FALSE,"",$F239*'Existing Pool'!V$6) ->  | O239: =IF(OR(B239="",B239=" "),FALSE,TRUE) -> FALSE
C240: Pre-levy income | F240: =IF($O240=FALSE,"",F147+F239) ->  | O240: =IF(OR(B239="",B239=" "),FALSE,TRUE) -> FALSE
B242: =C21 ->  | C242: =IF(OR(F21="",G21=""),"Tariff or Top up",IF(F242<0,"Tariff","Top up")) -> Tariff or Top up | F242: =IF($O242=FALSE,"",G21-F21) ->  | G242: =IF($O242=FALSE,"",$F242*'Existing Pool'!P$6) ->  | H242: =IF($O242=FALSE,"",$F242*'Existing Pool'!Q$6) ->  | I242: =IF($O242=FALSE,"",$F242*'Existing Pool'!R$6) ->  | J242: =IF($O242=FALSE,"",$F242*'Existing Pool'!S$6) ->  | K242: =IF($O242=FALSE,"",$F242*'Existing Pool'!T$6) ->  | L242: =IF($O242=FALSE,"",$F242*'Existing Pool'!U$6) ->  | M242: =IF($O242=FALSE,"",$F242*'Existing Pool'!V$6) ->  | O242: =IF(OR(B242="",B242=" "),FALSE,TRUE) -> FALSE
C243: Pre-levy income | F243: =IF($O243=FALSE,"",F148+F242) ->  | O243: =IF(OR(B242="",B242=" "),FALSE,TRUE) -> FALSE
B245: =C22 ->  | C245: =IF(OR(F22="",G22=""),"Tariff or Top up",IF(F245<0,"Tariff","Top up")) -> Tariff or Top up | F245: =IF($O245=FALSE,"",G22-F22) ->  | G245: =IF($O245=FALSE,"",$F245*'Existing Pool'!P$6) ->  | H245: =IF($O245=FALSE,"",$F245*'Existing Pool'!Q$6) ->  | I245: =IF($O245=FALSE,"",$F245*'Existing Pool'!R$6) ->  | J245: =IF($O245=FALSE,"",$F245*'Existing Pool'!S$6) ->  | K245: =IF($O245=FALSE,"",$F245*'Existing Pool'!T$6) ->  | L245: =IF($O245=FALSE,"",$F245*'Existing Pool'!U$6) ->  | O245: =IF(OR(B245="",B245=" "),FALSE,TRUE) -> FALSE
C246: Pre-levy income | F246: =IF($O246=FALSE,"",F149+F245) ->  | O246: =IF(OR(B245="",B245=" "),FALSE,TRUE) -> FALSE
B248: =C23 ->  | C248: =IF(OR(F23="",G23=""),"Tariff or Top up",IF(F248<0,"Tariff","Top up")) -> Tariff or Top up | F248: =IF($O248=FALSE,"",G23-F23) ->  | G248: =IF($O248=FALSE,"",$F248*'Existing Pool'!P$6) ->  | H248: =IF($O248=FALSE,"",$F248*'Existing Pool'!Q$6) ->  | I248: =IF($O248=FALSE,"",$F248*'Existing Pool'!R$6) ->  | J248: =IF($O248=FALSE,"",$F248*'Existing Pool'!S$6) ->  | K248: =IF($O248=FALSE,"",$F248*'Existing Pool'!T$6) ->  | L248: =IF($O248=FALSE,"",$F248*'Existing Pool'!U$6) ->  | M248: =IF($O248=FALSE,"",$F248*'Existing Pool'!V$6) ->  | O248: =IF(OR(B248="",B248=" "),FALSE,TRUE) -> FALSE
C249: Pre-levy income | F249: =IF($O249=FALSE,"",F150+F248) ->  | O249: =IF(OR(B248="",B248=" "),FALSE,TRUE) -> FALSE
B251: =C24 ->  | C251: =IF(OR(F24="",G24=""),"Tariff or Top up",IF(F251<0,"Tariff","Top up")) -> Tariff or Top up | F251: =IF($O251=FALSE,"",G24-F24) ->  | G251: =IF($O251=FALSE,"",$F251*'Existing Pool'!P$6) ->  | H251: =IF($O251=FALSE,"",$F251*'Existing Pool'!Q$6) ->  | I251: =IF($O251=FALSE,"",$F251*'Existing Pool'!R$6) ->  | J251: =IF($O251=FALSE,"",$F251*'Existing Pool'!S$6) ->  | K251: =IF($O251=FALSE,"",$F251*'Existing Pool'!T$6) ->  | L251: =IF($O251=FALSE,"",$F251*'Existing Pool'!U$6) ->  | M251: =IF($O251=FALSE,"",$F251*'Existing Pool'!V$6) ->  | O251: =IF(OR(B251="",B251=" "),FALSE,TRUE) -> FALSE
C252: Pre-levy income | F252: =IF($O252=FALSE,"",F151+F251) ->  | O252: =IF(OR(B251="",B251=" "),FALSE,TRUE) -> FALSE
B254: =C25 ->  | C254: =IF(OR(F25="",G25=""),"Tariff or Top up",IF(F254<0,"Tariff","Top up")) -> Tariff or Top up | F254: =IF($O254=FALSE,"",G25-F25) ->  | G254: =IF($O254=FALSE,"",$F254*'Existing Pool'!P$6) ->  | H254: =IF($O254=FALSE,"",$F254*'Existing Pool'!Q$6) ->  | I254: =IF($O254=FALSE,"",$F254*'Existing Pool'!R$6) ->  | J254: =IF($O254=FALSE,"",$F254*'Existing Pool'!S$6) ->  | K254: =IF($O254=FALSE,"",$F254*'Existing Pool'!T$6) ->  | L254: =IF($O254=FALSE,"",$F254*'Existing Pool'!U$6) ->  | M254: =IF($O254=FALSE,"",$F254*'Existing Pool'!V$6) ->  | O254: =IF(OR(B254="",B254=" "),FALSE,TRUE) -> FALSE
C255: Pre-levy income | F255: =IF($O255=FALSE,"",F152+F254) ->  | O255: =IF(OR(B254="",B254=" "),FALSE,TRUE) -> FALSE
B257: =C26 ->  | C257: =IF(OR(F26="",G26=""),"Tariff or Top up",IF(F257<0,"Tariff","Top up")) -> Tariff or Top up | F257: =IF($O257=FALSE,"",G26-F26) ->  | G257: =IF($O257=FALSE,"",$F257*'Existing Pool'!P$6) ->  | H257: =IF($O257=FALSE,"",$F257*'Existing Pool'!Q$6) ->  | I257: =IF($O257=FALSE,"",$F257*'Existing Pool'!R$6) ->  | J257: =IF($O257=FALSE,"",$F257*'Existing Pool'!S$6) ->  | K257: =IF($O257=FALSE,"",$F257*'Existing Pool'!T$6) ->  | L257: =IF($O257=FALSE,"",$F257*'Existing Pool'!U$6) ->  | M257: =IF($O257=FALSE,"",$F257*'Existing Pool'!V$6) ->  | O257: =IF(OR(B257="",B257=" "),FALSE,TRUE) -> FALSE
C258: Pre-levy income | F258: =IF($O258=FALSE,"",F153+F257) ->  | O258: =IF(OR(B257="",B257=" "),FALSE,TRUE) -> FALSE
B260: =C27 ->  | C260: =IF(OR(F27="",G27=""),"Tariff or Top up",IF(F260<0,"Tariff","Top up")) -> Tariff or Top up | F260: =IF($O260=FALSE,"",G27-F27) ->  | G260: =IF($O260=FALSE,"",$F260*'Existing Pool'!P$6) ->  | H260: =IF($O260=FALSE,"",$F260*'Existing Pool'!Q$6) ->  | I260: =IF($O260=FALSE,"",$F260*'Existing Pool'!R$6) ->  | J260: =IF($O260=FALSE,"",$F260*'Existing Pool'!S$6) ->  | K260: =IF($O260=FALSE,"",$F260*'Existing Pool'!T$6) ->  | L260: =IF($O260=FALSE,"",$F260*'Existing Pool'!U$6) ->  | M260: =IF($O260=FALSE,"",$F260*'Existing Pool'!V$6) ->  | O260: =IF(OR(B260="",B260=" "),FALSE,TRUE) -> FALSE
C261: Pre-levy income | F261: =IF($O261=FALSE,"",F154+F260) ->  | O261: =IF(OR(B260="",B260=" "),FALSE,TRUE) -> FALSE
B263: =C28 ->  | C263: =IF(OR(F28="",G28=""),"Tariff or Top up",IF(F263<0,"Tariff","Top up")) -> Tariff or Top up | F263: =IF($O263=FALSE,"",G28-F28) ->  | G263: =IF($O263=FALSE,"",$F263*'Existing Pool'!P$6) ->  | H263: =IF($O263=FALSE,"",$F263*'Existing Pool'!Q$6) ->  | I263: =IF($O263=FALSE,"",$F263*'Existing Pool'!R$6) ->  | J263: =IF($O263=FALSE,"",$F263*'Existing Pool'!S$6) ->  | K263: =IF($O263=FALSE,"",$F263*'Existing Pool'!T$6) ->  | L263: =IF($O263=FALSE,"",$F263*'Existing Pool'!U$6) ->  | M263: =IF($O263=FALSE,"",$F263*'Existing Pool'!V$6) ->  | O263: =IF(OR(B263="",B263=" "),FALSE,TRUE) -> FALSE
C264: Pre-levy income | F264: =IF($O264=FALSE,"",F155+F263) ->  | O264: =IF(OR(B263="",B263=" "),FALSE,TRUE) -> FALSE
... 264 more rows

Sheet New Pool
B1: Local Government Rate Retention Scheme
B2: Interactive Calculator | N2: RPI information for tariff / top up and levy calculation
F3: Cell colour key
B4: Cells where the user is required to enter information are highlighted in blue. | F4: Input cell | G4: Output cell | H4: N/A | O4: Year 1 | P4: Year 2 | Q4: Year 3 | R4: Year 4 | S4: Year 5 | T4: Year 6 | U4: Year 7 | V4: Year 8
B6: Stage 1: Starting Position | J6: £ million (unless otherwise stated) | N6: RPI Index (Year 1) | O6: 1 | P6: =O6*(1+'New Pool'!G64) -> 1.019480519 | Q6: =P6*(1+'New Pool'!H64) -> 1.044967532 | R6: =Q6*(1+'New Pool'!I64) -> 1.079451461 | S6: =R6*(1+'New Pool'!J64) -> 1.119391165 | T6: =S6*(1+'New Pool'!K64) -> 1.161928029 | U6: =T6*(1+'New Pool'!L64) -> 1.207243223 | V6: =U6*(1+'New Pool'!M64) -> 1.254325708
B7: To use the pooling functionality: select if you wish to either create a new pool or use an New Pool: | N7: RPI Index (Year 1) | O7: 1 | P7: =O7*(1+'New Pool'!G64) -> 1.019480519 | Q7: =P7*(1+'New Pool'!H64) -> 1.044967532 | R7: =Q7*(1+'New Pool'!I64) -> 1.079451461 | S7: =R7*(1+'New Pool'!J64) -> 1.119391165 | T7: =S7*(1+'New Pool'!K64) -> 1.161928029 | U7: =T7*(1+'New Pool'!L64) -> 1.207243223 | V7: =U7*(1+'New Pool'!M64) -> 1.254325708
B11: To select a local authority pick one from the drop down menu in cells c18:c50
B12: To remove a billing authority or major precepting authority from your pool, select blank option from the drop down box.
F14: Individual authority business rates baseline | G14: Individual authority baseline funding level | H14: Tariff or Top-up
C17: Billing Authorities
F18: =IF(OR($C18="",$C18=" "),"",VLOOKUP($C18,Baselines!$C$12:$H$499,3,0)) ->  | G18: =IF(OR($C18="",$C18=" "),"",VLOOKUP($C18,Baselines!$C$12:$H$499,2,0)) ->  | H18: =IF(OR(F18="",G18=""),"",IF(F18>G18,"Tariff","Top-up")) ->  | I18: =IFERROR(G18/F18,0) -> 0 | J18: =IFERROR(IF(1/I18<1,0,IF((1-I18)>0.5,0.5,(1-I18))),"") -> 
F19: =IF(OR($C19="",$C19=" "),"",VLOOKUP($C19,Baselines!$C$12:$H$499,3,0)) ->  | G19: =IF(OR($C19="",$C19=" "),"",VLOOKUP($C19,Baselines!$C$12:$H$499,2,0)) ->  | H19: =IF(OR(F19="",G19=""),"",IF(F19>G19,"Tariff","Top-up")) ->  | I19: =IFERROR(G19/F19,0) -> 0 | J19: =IFERROR(IF(1/I19<1,0,IF((1-I19)>0.5,0.5,(1-I19))),"") -> 
F20: =IF(OR($C20="",$C20=" "),"",VLOOKUP($C20,Baselines!$C$12:$H$499,3,0)) ->  | G20: =IF(OR($C20="",$C20=" "),"",VLOOKUP($C20,Baselines!$C$12:$H$499,2,0)) ->  | I20: 0
F21: =IF(OR($C21="",$C21=" "),"",VLOOKUP($C21,Baselines!$C$12:$H$499,3,0)) ->  | G21: =IF(OR($C21="",$C21=" "),"",VLOOKUP($C21,Baselines!$C$12:$H$499,2,0)) ->  | I21: 0
F22: =IF(OR($C22="",$C22=" "),"",VLOOKUP($C22,Baselines!$C$12:$H$499,3,0)) ->  | G22: =IF(OR($C22="",$C22=" "),"",VLOOKUP($C22,Baselines!$C$12:$H$499,2,0)) ->  | I22: 0
F23: =IF(OR($C23="",$C23=" "),"",VLOOKUP($C23,Baselines!$C$12:$H$499,3,0)) ->  | G23: =IF(OR($C23="",$C23=" "),"",VLOOKUP($C23,Baselines!$C$12:$H$499,2,0)) ->  | I23: 0
F24: =IF(OR($C24="",$C24=" "),"",VLOOKUP($C24,Baselines!$C$12:$H$499,3,0)) ->  | G24: =IF(OR($C24="",$C24=" "),"",VLOOKUP($C24,Baselines!$C$12:$H$499,2,0)) ->  | I24: 0
F25: =IF(OR($C25="",$C25=" "),"",VLOOKUP($C25,Baselines!$C$12:$H$499,3,0)) ->  | G25: =IF(OR($C25="",$C25=" "),"",VLOOKUP($C25,Baselines!$C$12:$H$499,2,0)) ->  | I25: 0
F26: =IF(OR($C26="",$C26=" "),"",VLOOKUP($C26,Baselines!$C$12:$H$499,3,0)) ->  | G26: =IF(OR($C26="",$C26=" "),"",VLOOKUP($C26,Baselines!$C$12:$H$499,2,0)) ->  | I26: 0
F27: =IF(OR($C27="",$C27=" "),"",VLOOKUP($C27,Baselines!$C$12:$H$499,3,0)) ->  | G27: =IF(OR($C27="",$C27=" "),"",VLOOKUP($C27,Baselines!$C$12:$H$499,2,0)) ->  | I27: 0
F28: =IF(OR($C28="",$C28=" "),"",VLOOKUP($C28,Baselines!$C$12:$H$499,3,0)) ->  | G28: =IF(OR($C28="",$C28=" "),"",VLOOKUP($C28,Baselines!$C$12:$H$499,2,0)) ->  | I28: 0
F29: =IF(OR($C29="",$C29=" "),"",VLOOKUP($C29,Baselines!$C$12:$H$499,3,0)) ->  | G29: =IF(OR($C29="",$C29=" "),"",VLOOKUP($C29,Baselines!$C$12:$H$499,2,0)) ->  | I29: 0
F30: =IF(OR($C30="",$C30=" "),"",VLOOKUP($C30,Baselines!$C$12:$H$499,3,0)) ->  | G30: =IF(OR($C30="",$C30=" "),"",VLOOKUP($C30,Baselines!$C$12:$H$499,2,0)) ->  | I30: 0
F31: =IF(OR($C31="",$C31=" "),"",VLOOKUP($C31,Baselines!$C$12:$H$499,3,0)) ->  | G31: =IF(OR($C31="",$C31=" "),"",VLOOKUP($C31,Baselines!$C$12:$H$499,2,0)) ->  | I31: 0
F32: =IF(OR($C32="",$C32=" "),"",VLOOKUP($C32,Baselines!$C$12:$H$499,3,0)) ->  | G32: =IF(OR($C32="",$C32=" "),"",VLOOKUP($C32,Baselines!$C$12:$H$499,2,0)) ->  | I32: 0
F33: =IF(OR($C33="",$C33=" "),"",VLOOKUP($C33,Baselines!$C$12:$H$499,3,0)) ->  | G33: =IF(OR($C33="",$C33=" "),"",VLOOKUP($C33,Baselines!$C$12:$H$499,2,0)) ->  | I33: 0
F34: =IF(OR($C34="",$C34=" "),"",VLOOKUP($C34,Baselines!$C$12:$H$499,3,0)) ->  | G34: =IF(OR($C34="",$C34=" "),"",VLOOKUP($C34,Baselines!$C$12:$H$499,2,0)) ->  | I34: 0
F35: =IF(OR($C35="",$C35=" "),"",VLOOKUP($C35,Baselines!$C$12:$H$499,3,0)) ->  | G35: =IF(OR($C35="",$C35=" "),"",VLOOKUP($C35,Baselines!$C$12:$H$499,2,0)) ->  | I35: 0
F36: =IF(OR($C36="",$C36=" "),"",VLOOKUP($C36,Baselines!$C$12:$H$499,3,0)) ->  | G36: =IF(OR($C36="",$C36=" "),"",VLOOKUP($C36,Baselines!$C$12:$H$499,2,0)) ->  | I36: 0
F37: =IF(OR($C37="",$C37=" "),"",VLOOKUP($C37,Baselines!$C$12:$H$499,3,0)) ->  | G37: =IF(OR($C37="",$C37=" "),"",VLOOKUP($C37,Baselines!$C$12:$H$499,2,0)) ->  | I37: 0
F38: =IF(OR($C38="",$C38=" "),"",VLOOKUP($C38,Baselines!$C$12:$H$499,3,0)) ->  | G38: =IF(OR($C38="",$C38=" "),"",VLOOKUP($C38,Baselines!$C$12:$H$499,2,0)) ->  | I38: 0
F39: =IF(OR($C39="",$C39=" "),"",VLOOKUP($C39,Baselines!$C$12:$H$499,3,0)) ->  | G39: =IF(OR($C39="",$C39=" "),"",VLOOKUP($C39,Baselines!$C$12:$H$499,2,0)) ->  | I39: 0
F40: =IF(OR($C40="",$C40=" "),"",VLOOKUP($C40,Baselines!$C$12:$H$499,3,0)) ->  | G40: =IF(OR($C40="",$C40=" "),"",VLOOKUP($C40,Baselines!$C$12:$H$499,2,0)) ->  | I40: 0
F41: =IF(OR($C41="",$C41=" "),"",VLOOKUP($C41,Baselines!$C$12:$H$499,3,0)) ->  | G41: =IF(OR($C41="",$C41=" "),"",VLOOKUP($C41,Baselines!$C$12:$H$499,2,0)) ->  | I41: 0
F42: =IF(OR($C42="",$C42=" "),"",VLOOKUP($C42,Baselines!$C$12:$H$499,3,0)) ->  | G42: =IF(OR($C42="",$C42=" "),"",VLOOKUP($C42,Baselines!$C$12:$H$499,2,0)) ->  | I42: 0
F43: =IF(OR($C43="",$C43=" "),"",VLOOKUP($C43,Baselines!$C$12:$H$499,3,0)) ->  | G43: =IF(OR($C43="",$C43=" "),"",VLOOKUP($C43,Baselines!$C$12:$H$499,2,0)) ->  | I43: 0
F44: =IF(OR($C44="",$C44=" "),"",VLOOKUP($C44,Baselines!$C$12:$H$499,3,0)) ->  | G44: =IF(OR($C44="",$C44=" "),"",VLOOKUP($C44,Baselines!$C$12:$H$499,2,0)) ->  | I44: 0
F45: =IF(OR($C45="",$C45=" "),"",VLOOKUP($C45,Baselines!$C$12:$H$499,3,0)) ->  | G45: =IF(OR($C45="",$C45=" "),"",VLOOKUP($C45,Baselines!$C$12:$H$499,2,0)) ->  | I45: 0
F46: =IF(OR($C46="",$C46=" "),"",VLOOKUP($C46,Baselines!$C$12:$H$499,3,0)) ->  | G46: =IF(OR($C46="",$C46=" "),"",VLOOKUP($C46,Baselines!$C$12:$H$499,2,0)) ->  | I46: 0
F47: =IF(OR($C47="",$C47=" "),"",VLOOKUP($C47,Baselines!$C$12:$H$499,3,0)) ->  | G47: =IF(OR($C47="",$C47=" "),"",VLOOKUP($C47,Baselines!$C$12:$H$499,2,0)) ->  | I47: 0
F48: =IF(OR($C48="",$C48=" "),"",VLOOKUP($C48,Baselines!$C$12:$H$499,3,0)) ->  | G48: =IF(OR($C48="",$C48=" "),"",VLOOKUP($C48,Baselines!$C$12:$H$499,2,0)) ->  | I48: 0
F49: =IF(OR($C49="",$C49=" "),"",VLOOKUP($C49,Baselines!$C$12:$H$499,3,0)) ->  | G49: =IF(OR($C49="",$C49=" "),"",VLOOKUP($C49,Baselines!$C$12:$H$499,2,0)) ->  | I49: 0
F50: =IF(OR($C50="",$C50=" "),"",VLOOKUP($C50,Baselines!$C$12:$H$499,3,0)) ->  | G50: =IF(OR($C50="",$C50=" "),"",VLOOKUP($C50,Baselines!$C$12:$H$499,2,0)) ->  | I50: 0
C52: Major Precepting Authorities
B53: =IF(C53="GLA",33,COUNTA(OFFSET('Upper tiers (new pool)'!$A$1,,MATCH(C53,'Upper tiers (new pool)'!$A$1:$BF$1,0)-1):OFFSET('Upper tiers (new pool)'!$A$1,20,MATCH(C53,'Upper tiers (new pool)'!$A$1:$BF$1,0)-1))-1) -> 0 | F53: =IFERROR(VLOOKUP($C53,Baselines!$C$12:$H$499,3,0),"") ->  | G53: =IFERROR(VLOOKUP($C53,Baselines!$C$12:$H$499,2,0),"") ->  | H53: =IF(OR(F53="",G53=""),"",IF(F53>G53,"Tariff","Top-up")) ->  | I53: =IFERROR(G53/F53,0) -> 0 | J53: =IFERROR(IF(1/I53<1,0,IF((1-I53)>0.5,0.5,(1-I53))),"") -> 
B54: =IF(C54="GLA",33,COUNTA(OFFSET('Upper tiers (new pool)'!$A$1,,MATCH(C54,'Upper tiers (new pool)'!$A$1:$BF$1,0)-1):OFFSET('Upper tiers (new pool)'!$A$1,20,MATCH(C54,'Upper tiers (new pool)'!$A$1:$BF$1,0)-1))-1) -> 0 | F54: =IFERROR(VLOOKUP($C54,Baselines!$C$12:$H$499,3,0),"") ->  | G54: =IFERROR(VLOOKUP($C54,Baselines!$C$12:$H$499,2,0),"") ->  | H54: =IF(OR(F54="",G54=""),"",IF(F54>G54,"Tariff","Top-up")) ->  | I54: 0
B55: =IF(C55="GLA",33,COUNTA(OFFSET('Upper tiers (new pool)'!$A$1,,MATCH(C55,'Upper tiers (new pool)'!$A$1:$BF$1,0)-1):OFFSET('Upper tiers (new pool)'!$A$1,20,MATCH(C55,'Upper tiers (new pool)'!$A$1:$BF$1,0)-1))-1) -> 0 | F55: =IFERROR(VLOOKUP($C55,Baselines!$C$12:$H$499,3,0),"") ->  | G55: =IFERROR(VLOOKUP($C55,Baselines!$C$12:$H$499,2,0),"") ->  | H55: =IF(OR(F55="",G55=""),"",IF(F55>G55,"Tariff","Top-up")) ->  | I55: 0
B56: =IF(C56="GLA",33,COUNTA(OFFSET('Upper tiers (new pool)'!$A$1,,MATCH(C56,'Upper tiers (new pool)'!$A$1:$BF$1,0)-1):OFFSET('Upper tiers (new pool)'!$A$1,20,MATCH(C56,'Upper tiers (new pool)'!$A$1:$BF$1,0)-1))-1) -> 0 | F56: =IFERROR(VLOOKUP($C56,Baselines!$C$12:$H$499,3,0),"") ->  | G56: =IFERROR(VLOOKUP($C56,Baselines!$C$12:$H$499,2,0),"") ->  | H56: =IF(OR(F56="",G56=""),"",IF(F56>G56,"Tariff","Top-up")) ->  | I56: 0
C58: Pooled Area | F58: =SUM(F18:F56) -> 0 | G58: =SUM(G18:G56) -> 0 | H58: =IF(F58=0,"N/A",IF(F58>G58,"Tariff","Top-up")) -> N/A | I58: =IF(ISERROR(G58/F58),"N/A",G58/F58) -> N/A | J58: =IF(I58="N/A","N/A",IF(1/I58<1,0,IF((1-I58)>0.5,0.5,(1-I58)))) -> N/A
C61: actual multiplier | E61: 0.45 | F61: 0.462 | G61: 0.471
B63: Step 3. Retail Price Index (percentage) | F63: 2013-14 | G63: 2014-15 | H63: 2015-16 | I63: 2016-17 | J63: 2017-18 | K63: 2018-19 | L63: 2019-20 | M63: 2020-21*
B64: The following percentages are taken from the OBR's economic forecast at March 2013. The figures relate to Quarter 3 of the previous year. These can be overwritten if you wish. | F64: =F61/E61-1 -> 0.02666666667 | G64: =G61/F61-1 -> 0.01948051948 | H64: 0.025 | I64: 0.033 | J64: 0.037 | K64: 0.038 | L64: 0.039 | M64: 0.039
B65: OBR RPI forecasts | F65: * The OBR have not yet forecasted to Quarter 3 2019, so this value has been retained from the previous year.
B67: Step 4. Annual business rates growth
B68: To calculate a business rates forecast, please enter values for 2013-14 of the amount of NNDR that you expect to be retained by the Billing Authority under the rates retention scheme (i.e. the local share (50%) of total NNDR). If you would like to use NNDR1 data to populate this cell, the links to the published data are below. A growth percentage should then be entered for each subsequent year. | F68: 2013-14 | G68: 2014-15 | H68: 2015-16 | I68: 2016-17 | J68: 2017-18 | K68: 2018-19 | L68: 2019-20 | M68: 2020-21
B69: 2013-14 NNDR1 Data | F69: Local Share of NNDR (£m)
B70: 2014-15 NNDR1 Data | H70: Annual business rates growth (Percentage) (This should include growth due to RPI, business rates growth, any loss due to appeals)
C71: Billing Authorities
C73: =C18 -> 
C74: =C19 -> 
C106: Billing Authorities for Major Precepting Authorities in the Pool
B107: (In order to obtain a value for precepting authorites, a starting position needs to be entered for any billing authorities that are not already in the pool, but do contibute to the precepting value.)
B108: =IF(D108<=$B$53,$C$53,IF(D108<=$B$53+$B$54,$C$54,IF(D108<=$B$53+$B$54+$B$55,$C$55,$C$56))) ->  | C108: =IFERROR(IF(ISERROR(MATCH(HLOOKUP(B108,'Upper tiers (new pool)'!$A$1:$BF$34,E108,0),$C$73:$C$105,0))=TRUE,HLOOKUP(B108,'Upper tiers (new pool)'!$A$1:$BF$34,E108,0),""),"") ->  | D108: 1 | E108: 2
B109: =IF(D109<=$B$53,$C$53,IF(D109<=$B$53+$B$54,$C$54,IF(D109<=$B$53+$B$54+$B$55,$C$55,$C$56))) ->  | C109: =IFERROR(IF(ISERROR(MATCH(HLOOKUP(B109,'Upper tiers (new pool)'!$A$1:$BF$34,E109,0),$C$73:$C$105,0))=TRUE,HLOOKUP(B109,'Upper tiers (new pool)'!$A$1:$BF$34,E109,0),""),"") ->  | D109: 2 | E109: =IF(B109=B108,E108+1,2) -> 3
C110: =IFERROR(IF(ISERROR(MATCH(HLOOKUP(B110,'Upper tiers (new pool)'!$A$1:$BF$34,E110,0),$C$73:$C$105,0))=TRUE,HLOOKUP(B110,'Upper tiers (new pool)'!$A$1:$BF$34,E110,0),""),"") ->  | D110: 3 | E110: =IF(B110=B109,E109+1,2) -> 4
C111: =IFERROR(IF(ISERROR(MATCH(HLOOKUP(B111,'Upper tiers (new pool)'!$A$1:$BF$34,E111,0),$C$73:$C$105,0))=TRUE,HLOOKUP(B111,'Upper tiers (new pool)'!$A$1:$BF$34,E111,0),""),"") ->  | D111: 4 | E111: 5
C112: =IFERROR(IF(ISERROR(MATCH(HLOOKUP(B112,'Upper tiers (new pool)'!$A$1:$BF$34,E112,0),$C$73:$C$105,0))=TRUE,HLOOKUP(B112,'Upper tiers (new pool)'!$A$1:$BF$34,E112,0),""),"") ->  | D112: 5 | E112: 6
C113: =IFERROR(IF(ISERROR(MATCH(HLOOKUP(B113,'Upper tiers (new pool)'!$A$1:$BF$34,E113,0),$C$73:$C$105,0))=TRUE,HLOOKUP(B113,'Upper tiers (new pool)'!$A$1:$BF$34,E113,0),""),"") ->  | D113: 6 | E113: 7
B114: =IF(D114<=$B$53,$C$53,IF(D114<=$B$53+$B$54,$C$54,IF(D114<=$B$53+$B$54+$B$55,$C$55,$C$56))) ->  | C114: =IFERROR(IF(ISERROR(MATCH(HLOOKUP(B114,'Upper tiers (new pool)'!$A$1:$BF$34,E114,0),$C$73:$C$105,0))=TRUE,HLOOKUP(B114,'Upper tiers (new pool)'!$A$1:$BF$34,E114,0),""),"") ->  | D114: 7 | E114: 8
C115: =IFERROR(IF(ISERROR(MATCH(HLOOKUP(B115,'Upper tiers (new pool)'!$A$1:$BF$34,E115,0),$C$73:$C$105,0))=TRUE,HLOOKUP(B115,'Upper tiers (new pool)'!$A$1:$BF$34,E115,0),""),"") ->  | D115: 8 | E115: 9
C116: =IFERROR(IF(ISERROR(MATCH(HLOOKUP(B116,'Upper tiers (new pool)'!$A$1:$BF$34,E116,0),$C$73:$C$105,0))=TRUE,HLOOKUP(B116,'Upper tiers (new pool)'!$A$1:$BF$34,E116,0),""),"") ->  | D116: 9 | E116: 10
B117: =IF(D117<=$B$53,$C$53,IF(D117<=$B$53+$B$54,$C$54,IF(D117<=$B$53+$B$54+$B$55,$C$55,$C$56))) ->  | C117: =IFERROR(IF(ISERROR(MATCH(HLOOKUP(B117,'Upper tiers (new pool)'!$A$1:$BF$34,E117,0),$C$73:$C$105,0))=TRUE,HLOOKUP(B117,'Upper tiers (new pool)'!$A$1:$BF$34,E117,0),""),"") ->  | D117: 10 | E117: 11
C118: =IFERROR(IF(ISERROR(MATCH(HLOOKUP(B118,'Upper tiers (new pool)'!$A$1:$BF$34,E118,0),$C$73:$C$105,0))=TRUE,HLOOKUP(B118,'Upper tiers (new pool)'!$A$1:$BF$34,E118,0),""),"") ->  | D118: 11 | E118: 12
B119: =IF(D119<=$B$53,$C$53,IF(D119<=$B$53+$B$54,$C$54,IF(D119<=$B$53+$B$54+$B$55,$C$55,$C$56))) ->  | C119: =IFERROR(IF(ISERROR(MATCH(HLOOKUP(B119,'Upper tiers (new pool)'!$A$1:$BF$34,E119,0),$C$73:$C$105,0))=TRUE,HLOOKUP(B119,'Upper tiers (new pool)'!$A$1:$BF$34,E119,0),""),"") ->  | D119: 12 | E119: 13
C120: =IFERROR(IF(ISERROR(MATCH(HLOOKUP(B120,'Upper tiers (new pool)'!$A$1:$BF$34,E120,0),$C$73:$C$105,0))=TRUE,HLOOKUP(B120,'Upper tiers (new pool)'!$A$1:$BF$34,E120,0),""),"") ->  | D120: 13 | E120: 14
C121: =IFERROR(IF(ISERROR(MATCH(HLOOKUP(B121,'Upper tiers (new pool)'!$A$1:$BF$34,E121,0),$C$73:$C$105,0))=TRUE,HLOOKUP(B121,'Upper tiers (new pool)'!$A$1:$BF$34,E121,0),""),"") ->  | D121: 14 | E121: 15
C122: =IFERROR(IF(ISERROR(MATCH(HLOOKUP(B122,'Upper tiers (new pool)'!$A$1:$BF$34,E122,0),$C$73:$C$105,0))=TRUE,HLOOKUP(B122,'Upper tiers (new pool)'!$A$1:$BF$34,E122,0),""),"") ->  | D122: 15 | E122: 16
C123: =IFERROR(IF(ISERROR(MATCH(HLOOKUP(B123,'Upper tiers (new pool)'!$A$1:$BF$34,E123,0),$C$73:$C$105,0))=TRUE,HLOOKUP(B123,'Upper tiers (new pool)'!$A$1:$BF$34,E123,0),""),"") ->  | D123: 16 | E123: 17
C124: =IFERROR(IF(ISERROR(MATCH(HLOOKUP(B124,'Upper tiers (new pool)'!$A$1:$BF$34,E124,0),$C$73:$C$105,0))=TRUE,HLOOKUP(B124,'Upper tiers (new pool)'!$A$1:$BF$34,E124,0),""),"") ->  | D124: 17 | E124: 18
C125: =IFERROR(IF(ISERROR(MATCH(HLOOKUP(B125,'Upper tiers (new pool)'!$A$1:$BF$34,E125,0),$C$73:$C$105,0))=TRUE,HLOOKUP(B125,'Upper tiers (new pool)'!$A$1:$BF$34,E125,0),""),"") ->  | D125: 18 | E125: 19
C126: =IFERROR(IF(ISERROR(MATCH(HLOOKUP(B126,'Upper tiers (new pool)'!$A$1:$BF$34,E126,0),$C$73:$C$105,0))=TRUE,HLOOKUP(B126,'Upper tiers (new pool)'!$A$1:$BF$34,E126,0),""),"") ->  | D126: 19 | E126: 20
C127: =IFERROR(IF(ISERROR(MATCH(HLOOKUP(B127,'Upper tiers (new pool)'!$A$1:$BF$34,E127,0),$C$73:$C$105,0))=TRUE,HLOOKUP(B127,'Upper tiers (new pool)'!$A$1:$BF$34,E127,0),""),"") ->  | D127: 20 | E127: 21
C128: =IFERROR(IF(ISERROR(MATCH(HLOOKUP(B128,'Upper tiers (new pool)'!$A$1:$BF$34,E128,0),$C$73:$C$105,0))=TRUE,HLOOKUP(B128,'Upper tiers (new pool)'!$A$1:$BF$34,E128,0),""),"") ->  | D128: 21 | E128: 22
C129: =IFERROR(IF(ISERROR(MATCH(HLOOKUP(B129,'Upper tiers (new pool)'!$A$1:$BF$34,E129,0),$C$73:$C$105,0))=TRUE,HLOOKUP(B129,'Upper tiers (new pool)'!$A$1:$BF$34,E129,0),""),"") ->  | D129: 22 | E129: 23
C130: =IFERROR(IF(ISERROR(MATCH(HLOOKUP(B130,'Upper tiers (new pool)'!$A$1:$BF$34,E130,0),$C$73:$C$105,0))=TRUE,HLOOKUP(B130,'Upper tiers (new pool)'!$A$1:$BF$34,E130,0),""),"") ->  | D130: 23 | E130: 24
C131: =IFERROR(IF(ISERROR(MATCH(HLOOKUP(B131,'Upper tiers (new pool)'!$A$1:$BF$34,E131,0),$C$73:$C$105,0))=TRUE,HLOOKUP(B131,'Upper tiers (new pool)'!$A$1:$BF$34,E131,0),""),"") ->  | D131: 24 | E131: 25
C132: =IFERROR(IF(ISERROR(MATCH(HLOOKUP(B132,'Upper tiers (new pool)'!$A$1:$BF$34,E132,0),$C$73:$C$105,0))=TRUE,HLOOKUP(B132,'Upper tiers (new pool)'!$A$1:$BF$34,E132,0),""),"") ->  | D132: 25 | E132: 26
C133: =IFERROR(IF(ISERROR(MATCH(HLOOKUP(B133,'Upper tiers (new pool)'!$A$1:$BF$34,E133,0),$C$73:$C$105,0))=TRUE,HLOOKUP(B133,'Upper tiers (new pool)'!$A$1:$BF$34,E133,0),""),"") ->  | D133: 26 | E133: 27
C134: =IFERROR(IF(ISERROR(MATCH(HLOOKUP(B134,'Upper tiers (new pool)'!$A$1:$BF$34,E134,0),$C$73:$C$105,0))=TRUE,HLOOKUP(B134,'Upper tiers (new pool)'!$A$1:$BF$34,E134,0),""),"") ->  | D134: 27 | E134: 28
C135: =IFERROR(IF(ISERROR(MATCH(HLOOKUP(B135,'Upper tiers (new pool)'!$A$1:$BF$34,E135,0),$C$73:$C$105,0))=TRUE,HLOOKUP(B135,'Upper tiers (new pool)'!$A$1:$BF$34,E135,0),""),"") ->  | D135: 28 | E135: 29
C136: =IFERROR(IF(ISERROR(MATCH(HLOOKUP(B136,'Upper tiers (new pool)'!$A$1:$BF$34,E136,0),$C$73:$C$105,0))=TRUE,HLOOKUP(B136,'Upper tiers (new pool)'!$A$1:$BF$34,E136,0),""),"") ->  | D136: 29 | E136: 30
C137: =IFERROR(IF(ISERROR(MATCH(HLOOKUP(B137,'Upper tiers (new pool)'!$A$1:$BF$34,E137,0),$C$73:$C$105,0))=TRUE,HLOOKUP(B137,'Upper tiers (new pool)'!$A$1:$BF$34,E137,0),""),"") ->  | D137: 30 | E137: 31
C138: =IFERROR(IF(ISERROR(MATCH(HLOOKUP(B138,'Upper tiers (new pool)'!$A$1:$BF$34,E138,0),$C$73:$C$105,0))=TRUE,HLOOKUP(B138,'Upper tiers (new pool)'!$A$1:$BF$34,E138,0),""),"") ->  | D138: 31 | E138: 32
C139: =IFERROR(IF(ISERROR(MATCH(HLOOKUP(B139,'Upper tiers (new pool)'!$A$1:$BF$34,E139,0),$C$73:$C$105,0))=TRUE,HLOOKUP(B139,'Upper tiers (new pool)'!$A$1:$BF$34,E139,0),""),"") ->  | D139: 32 | E139: 33
C140: =IFERROR(IF(ISERROR(MATCH(HLOOKUP(B140,'Upper tiers (new pool)'!$A$1:$BF$34,E140,0),$C$73:$C$105,0))=TRUE,HLOOKUP(B140,'Upper tiers (new pool)'!$A$1:$BF$34,E140,0),""),"") ->  | D140: 33 | E140: 34
C141: If you have more than one Major Precepting Authority (MPA) in your pool, please check that all the Billing Authorities (BA) you would expect to see are visible in the list above (either under the 'Billing Authorities' heading or the 'Billing Authoritiess for Major Precepting Authorities in the Pool' heading. It is possible that if you have selected multiple MPAs where many of the BAs are not in the pool themselves, then an error may have occurred. If this has happened, please get in touch and we will be happy to help resolve the issue.
B142: =IF(ISERROR(VLOOKUP($C$55,Baselines!$C$621:S$678,16,FALSE)),"",VLOOKUP($C$55,Baselines!$C$621:S$678,16,FALSE)) ->  | F142: 2013-14 | G142: 2014-15 | H142: 2015-16 | I142: 2016-17 | J142: 2017-18 | K142: 2018-19 | L142: 2019-20 | M142: 2020-21
B143: =IF(ISERROR(VLOOKUP($C$55,Baselines!$C$621:S$678,17,FALSE)),"",VLOOKUP($C$55,Baselines!$C$621:S$678,17,FALSE)) ->  | F143: Individual authority business rates
B144: =IF(ISERROR(VLOOKUP($C$54,Baselines!$C$621:S$678,13,FALSE)),"",VLOOKUP($C$54,Baselines!$C$621:S$678,13,FALSE)) ->  | C144: Billing Authorities
B145: =IF(ISERROR(VLOOKUP($C$54,Baselines!$C$621:S$678,14,FALSE)),"",VLOOKUP($C$54,Baselines!$C$621:S$678,14,FALSE)) ->  | C145: =C18 ->  | F145: =IF(OR(C145="",C145=" "),"",VLOOKUP(C145,'Tier split'!A$3:K$328,8,0)) ->  | G145: =IF(OR(C145="",C145=" "),"",VLOOKUP(C145,'Tier split'!A$3:K$328,10,0)) ->  | H145: =IF(OR(C145="",C145=" "),"",IF(H73="",G145,G145*(1+H73))) ->  | I145: =IF(OR(C145="",C145=" "),"",IF(I73="",H145,H145*(1+I73))) ->  | J145: =IF(OR(C145="",C145=" "),"",IF(J73="",I145,I145*(1+J73))) ->  | K145: =IF(OR(C145="",C145=" "),"",IF(K73="",J145,J145*(1+K73))) ->  | L145: =IF(OR(C145="",C145=" "),"",IF(L73="",K145,K145*(1+L73))) ->  | M145: =IF(OR(C145="",C145=" "),"",IF(M73="",L145,L145*(1+M73))) -> 
B146: =IF(ISERROR(VLOOKUP($C$54,Baselines!$C$621:S$678,15,FALSE)),"",VLOOKUP($C$54,Baselines!$C$621:S$678,15,FALSE)) ->  | C146: =C19 ->  | F146: =IF(OR(C146="",C146=" "),"",VLOOKUP(C146,'Tier split'!A$3:K$328,8,0)) ->  | G146: =IF(OR(C146="",C146=" "),"",VLOOKUP(C146,'Tier split'!A$3:K$328,10,0)) ->  | H146: =IF(OR(C146="",C146=" "),"",IF(H74="",G146,G146*(1+H74))) ->  | I146: =IF(OR(C146="",C146=" "),"",IF(I74="",H146,H146*(1+I74))) ->  | J146: =IF(OR(C146="",C146=" "),"",IF(J74="",I146,I146*(1+J74))) ->  | K146: =IF(OR(C146="",C146=" "),"",IF(K74="",J146,J146*(1+K74))) ->  | L146: =IF(OR(C146="",C146=" "),"",IF(L74="",K146,K146*(1+L74))) ->  | M146: =IF(OR(C146="",C146=" "),"",IF(M74="",L146,L146*(1+M74))) -> 
B147: =IF(ISERROR(VLOOKUP($C$54,Baselines!$C$621:S$678,16,FALSE)),"",VLOOKUP($C$54,Baselines!$C$621:S$678,16,FALSE)) ->  | F147: =IF(OR(C147="",C147=" "),"",VLOOKUP(C147,'Tier split'!A$3:K$328,8,0)) ->  | G147: =IF(OR(C147="",C147=" "),"",VLOOKUP(C147,'Tier split'!A$3:K$328,10,0)) -> 
B148: =IF(ISERROR(VLOOKUP($C$54,Baselines!$C$621:S$678,17,FALSE)),"",VLOOKUP($C$54,Baselines!$C$621:S$678,17,FALSE)) ->  | F148: =IF(OR(C148="",C148=" "),"",VLOOKUP(C148,'Tier split'!A$3:K$328,8,0)) ->  | G148: =IF(OR(C148="",C148=" "),"",VLOOKUP(C148,'Tier split'!A$3:K$328,10,0)) -> 
B149: =IF(ISERROR(VLOOKUP($C$54,Baselines!$C$621:S$678,10,FALSE)),"",VLOOKUP($C$54,Baselines!$C$621:S$678,10,FALSE)) ->  | F149: =IF(OR(C149="",C149=" "),"",VLOOKUP(C149,'Tier split'!A$3:K$328,8,0)) ->  | G149: =IF(OR(C149="",C149=" "),"",VLOOKUP(C149,'Tier split'!A$3:K$328,10,0)) -> 
B150: =IF(ISERROR(VLOOKUP($C$54,Baselines!$C$621:S$678,11,FALSE)),"",VLOOKUP($C$54,Baselines!$C$621:S$678,11,FALSE)) ->  | F150: =IF(OR(C150="",C150=" "),"",VLOOKUP(C150,'Tier split'!A$3:K$328,8,0)) ->  | G150: =IF(OR(C150="",C150=" "),"",VLOOKUP(C150,'Tier split'!A$3:K$328,10,0)) -> 
B151: =IF(ISERROR(VLOOKUP($C$54,Baselines!$C$621:S$678,12,FALSE)),"",VLOOKUP($C$54,Baselines!$C$621:S$678,12,FALSE)) ->  | F151: =IF(OR(C151="",C151=" "),"",VLOOKUP(C151,'Tier split'!A$3:K$328,8,0)) ->  | G151: =IF(OR(C151="",C151=" "),"",VLOOKUP(C151,'Tier split'!A$3:K$328,10,0)) -> 
B152: =IF(ISERROR(VLOOKUP($C$54,Baselines!$C$621:S$678,13,FALSE)),"",VLOOKUP($C$54,Baselines!$C$621:S$678,13,FALSE)) ->  | F152: =IF(OR(C152="",C152=" "),"",VLOOKUP(C152,'Tier split'!A$3:K$328,8,0)) ->  | G152: =IF(OR(C152="",C152=" "),"",VLOOKUP(C152,'Tier split'!A$3:K$328,10,0)) -> 
B153: =IF(ISERROR(VLOOKUP($C$54,Baselines!$C$621:S$678,14,FALSE)),"",VLOOKUP($C$54,Baselines!$C$621:S$678,14,FALSE)) ->  | F153: =IF(OR(C153="",C153=" "),"",VLOOKUP(C153,'Tier split'!A$3:K$328,8,0)) ->  | G153: =IF(OR(C153="",C153=" "),"",VLOOKUP(C153,'Tier split'!A$3:K$328,10,0)) -> 
B154: =IF(ISERROR(VLOOKUP($C$54,Baselines!$C$621:S$678,15,FALSE)),"",VLOOKUP($C$54,Baselines!$C$621:S$678,15,FALSE)) ->  | F154: =IF(OR(C154="",C154=" "),"",VLOOKUP(C154,'Tier split'!A$3:K$328,8,0)) ->  | G154: =IF(OR(C154="",C154=" "),"",VLOOKUP(C154,'Tier split'!A$3:K$328,10,0)) -> 
B155: =IF(ISERROR(VLOOKUP($C$54,Baselines!$C$621:S$678,16,FALSE)),"",VLOOKUP($C$54,Baselines!$C$621:S$678,16,FALSE)) ->  | F155: =IF(OR(C155="",C155=" "),"",VLOOKUP(C155,'Tier split'!A$3:K$328,8,0)) ->  | G155: =IF(OR(C155="",C155=" "),"",VLOOKUP(C155,'Tier split'!A$3:K$328,10,0)) -> 
B156: =IF(ISERROR(VLOOKUP($C$54,Baselines!$C$621:S$678,17,FALSE)),"",VLOOKUP($C$54,Baselines!$C$621:S$678,17,FALSE)) ->  | F156: =IF(OR(C156="",C156=" "),"",VLOOKUP(C156,'Tier split'!A$3:K$328,8,0)) ->  | G156: =IF(OR(C156="",C156=" "),"",VLOOKUP(C156,'Tier split'!A$3:K$328,10,0)) -> 
F157: =IF(OR(C157="",C157=" "),"",VLOOKUP(C157,'Tier split'!A$3:K$328,8,0)) ->  | G157: =IF(OR(C157="",C157=" "),"",VLOOKUP(C157,'Tier split'!A$3:K$328,10,0)) -> 
F158: =IF(OR(C158="",C158=" "),"",VLOOKUP(C158,'Tier split'!A$3:K$328,8,0)) ->  | G158: =IF(OR(C158="",C158=" "),"",VLOOKUP(C158,'Tier split'!A$3:K$328,10,0)) -> 
F159: =IF(OR(C159="",C159=" "),"",VLOOKUP(C159,'Tier split'!A$3:K$328,8,0)) ->  | G159: =IF(OR(C159="",C159=" "),"",VLOOKUP(C159,'Tier split'!A$3:K$328,10,0)) -> 
F160: =IF(OR(C160="",C160=" "),"",VLOOKUP(C160,'Tier split'!A$3:K$328,8,0)) ->  | G160: =IF(OR(C160="",C160=" "),"",VLOOKUP(C160,'Tier split'!A$3:K$328,10,0)) -> 
F161: =IF(OR(C161="",C161=" "),"",VLOOKUP(C161,'Tier split'!A$3:K$328,8,0)) ->  | G161: =IF(OR(C161="",C161=" "),"",VLOOKUP(C161,'Tier split'!A$3:K$328,10,0)) -> 
F162: =IF(OR(C162="",C162=" "),"",VLOOKUP(C162,'Tier split'!A$3:K$328,8,0)) ->  | G162: =IF(OR(C162="",C162=" "),"",VLOOKUP(C162,'Tier split'!A$3:K$328,10,0)) -> 
F163: =IF(OR(C163="",C163=" "),"",VLOOKUP(C163,'Tier split'!A$3:K$328,8,0)) ->  | G163: =IF(OR(C163="",C163=" "),"",VLOOKUP(C163,'Tier split'!A$3:K$328,10,0)) -> 
F164: =IF(OR(C164="",C164=" "),"",VLOOKUP(C164,'Tier split'!A$3:K$328,8,0)) ->  | G164: =IF(OR(C164="",C164=" "),"",VLOOKUP(C164,'Tier split'!A$3:K$328,10,0)) -> 
F165: =IF(OR(C165="",C165=" "),"",VLOOKUP(C165,'Tier split'!A$3:K$328,8,0)) ->  | G165: =IF(OR(C165="",C165=" "),"",VLOOKUP(C165,'Tier split'!A$3:K$328,10,0)) -> 
F166: =IF(OR(C166="",C166=" "),"",VLOOKUP(C166,'Tier split'!A$3:K$328,8,0)) ->  | G166: =IF(OR(C166="",C166=" "),"",VLOOKUP(C166,'Tier split'!A$3:K$328,10,0)) -> 
F167: =IF(OR(C167="",C167=" "),"",VLOOKUP(C167,'Tier split'!A$3:K$328,8,0)) ->  | G167: =IF(OR(C167="",C167=" "),"",VLOOKUP(C167,'Tier split'!A$3:K$328,10,0)) -> 
F168: =IF(OR(C168="",C168=" "),"",VLOOKUP(C168,'Tier split'!A$3:K$328,8,0)) ->  | G168: =IF(OR(C168="",C168=" "),"",VLOOKUP(C168,'Tier split'!A$3:K$328,10,0)) -> 
F169: =IF(OR(C169="",C169=" "),"",VLOOKUP(C169,'Tier split'!A$3:K$328,8,0)) ->  | G169: =IF(OR(C169="",C169=" "),"",VLOOKUP(C169,'Tier split'!A$3:K$328,10,0)) -> 
F170: =IF(OR(C170="",C170=" "),"",VLOOKUP(C170,'Tier split'!A$3:K$328,8,0)) ->  | G170: =IF(OR(C170="",C170=" "),"",VLOOKUP(C170,'Tier split'!A$3:K$328,10,0)) -> 
F171: =IF(OR(C171="",C171=" "),"",VLOOKUP(C171,'Tier split'!A$3:K$328,8,0)) ->  | G171: =IF(OR(C171="",C171=" "),"",VLOOKUP(C171,'Tier split'!A$3:K$328,10,0)) -> 
F172: =IF(OR(C172="",C172=" "),"",VLOOKUP(C172,'Tier split'!A$3:K$328,8,0)) ->  | G172: =IF(OR(C172="",C172=" "),"",VLOOKUP(C172,'Tier split'!A$3:K$328,10,0)) -> 
F173: =IF(OR(C173="",C173=" "),"",VLOOKUP(C173,'Tier split'!A$3:K$328,8,0)) ->  | G173: =IF(OR(C173="",C173=" "),"",VLOOKUP(C173,'Tier split'!A$3:K$328,10,0)) -> 
F174: =IF(OR(C174="",C174=" "),"",VLOOKUP(C174,'Tier split'!A$3:K$328,8,0)) ->  | G174: =IF(OR(C174="",C174=" "),"",VLOOKUP(C174,'Tier split'!A$3:K$328,10,0)) -> 
F175: =IF(OR(C175="",C175=" "),"",VLOOKUP(C175,'Tier split'!A$3:K$328,8,0)) ->  | G175: =IF(OR(C175="",C175=" "),"",VLOOKUP(C175,'Tier split'!A$3:K$328,10,0)) -> 
F176: =IF(OR(C176="",C176=" "),"",VLOOKUP(C176,'Tier split'!A$3:K$328,8,0)) ->  | G176: =IF(OR(C176="",C176=" "),"",VLOOKUP(C176,'Tier split'!A$3:K$328,10,0)) -> 
F177: =IF(OR(C177="",C177=" "),"",VLOOKUP(C177,'Tier split'!A$3:K$328,8,0)) ->  | G177: =IF(OR(C177="",C177=" "),"",VLOOKUP(C177,'Tier split'!A$3:K$328,10,0)) -> 
C179: Billing Authorities for Major Precepting Authorities in the Pool
C180: =C108 ->  | F180: =IF(OR(C180="",C180=" "),"",VLOOKUP(C180,'Tier split'!A$3:K$328,9,0)) ->  | G180: =IF(OR(C180="",C180=" "),"",VLOOKUP(C180,'Tier split'!A$3:K$328,11,0)) ->  | H180: =IF(OR(C180="",C180=" "),"",IF(H108="",G180,G180*(1+H108))) ->  | I180: =IF(OR(C180="",C180=" "),"",IF(I108="",H180,H180*(1+I108))) ->  | J180: =IF(OR(C180="",C180=" "),"",IF(J108="",I180,I180*(1+J108))) ->  | K180: =IF(OR(C180="",C180=" "),"",IF(K108="",J180,J180*(1+K108))) ->  | L180: =IF(OR(C180="",C180=" "),"",IF(L108="",K180,K180*(1+L108))) ->  | M180: =IF(OR(C180="",C180=" "),"",IF(M108="",L180,L180*(1+M108))) -> 
F181: =IF(OR(C181="",C181=" "),"",VLOOKUP(C181,'Tier split'!A$3:K$328,9,0)) ->  | G181: =IF(OR(C181="",C181=" "),"",VLOOKUP(C181,'Tier split'!A$3:K$328,11,0)) ->  | H181: =IF(OR(C181="",C181=" "),"",IF(H109="",G181,G181*(1+H109))) ->  | I181: =IF(OR(C181="",C181=" "),"",IF(I109="",H181,H181*(1+I109))) ->  | J181: =IF(OR(C181="",C181=" "),"",IF(J109="",I181,I181*(1+J109))) ->  | K181: =IF(OR(C181="",C181=" "),"",IF(K109="",J181,J181*(1+K109))) ->  | L181: =IF(OR(C181="",C181=" "),"",IF(L109="",K181,K181*(1+L109))) ->  | M181: =IF(OR(C181="",C181=" "),"",IF(M109="",L181,L181*(1+M109))) -> 
F182: =IF(OR(C182="",C182=" "),"",VLOOKUP(C182,'Tier split'!A$3:K$328,9,0)) ->  | G182: =IF(OR(C182="",C182=" "),"",VLOOKUP(C182,'Tier split'!A$3:K$328,11,0)) -> 
F183: =IF(OR(C183="",C183=" "),"",VLOOKUP(C183,'Tier split'!A$3:K$328,9,0)) ->  | G183: =IF(OR(C183="",C183=" "),"",VLOOKUP(C183,'Tier split'!A$3:K$328,11,0)) -> 
F184: =IF(OR(C184="",C184=" "),"",VLOOKUP(C184,'Tier split'!A$3:K$328,9,0)) ->  | G184: =IF(OR(C184="",C184=" "),"",VLOOKUP(C184,'Tier split'!A$3:K$328,11,0)) -> 
F185: =IF(OR(C185="",C185=" "),"",VLOOKUP(C185,'Tier split'!A$3:K$328,9,0)) ->  | G185: =IF(OR(C185="",C185=" "),"",VLOOKUP(C185,'Tier split'!A$3:K$328,11,0)) -> 
F186: =IF(OR(C186="",C186=" "),"",VLOOKUP(C186,'Tier split'!A$3:K$328,9,0)) ->  | G186: =IF(OR(C186="",C186=" "),"",VLOOKUP(C186,'Tier split'!A$3:K$328,11,0)) -> 
F187: =IF(OR(C187="",C187=" "),"",VLOOKUP(C187,'Tier split'!A$3:K$328,9,0)) ->  | G187: =IF(OR(C187="",C187=" "),"",VLOOKUP(C187,'Tier split'!A$3:K$328,11,0)) -> 
F188: =IF(OR(C188="",C188=" "),"",VLOOKUP(C188,'Tier split'!A$3:K$328,9,0)) ->  | G188: =IF(OR(C188="",C188=" "),"",VLOOKUP(C188,'Tier split'!A$3:K$328,11,0)) -> 
F189: =IF(OR(C189="",C189=" "),"",VLOOKUP(C189,'Tier split'!A$3:K$328,9,0)) ->  | G189: =IF(OR(C189="",C189=" "),"",VLOOKUP(C189,'Tier split'!A$3:K$328,11,0)) -> 
F190: =IF(OR(C190="",C190=" "),"",VLOOKUP(C190,'Tier split'!A$3:K$328,9,0)) ->  | G190: =IF(OR(C190="",C190=" "),"",VLOOKUP(C190,'Tier split'!A$3:K$328,11,0)) -> 
F191: =IF(OR(C191="",C191=" "),"",VLOOKUP(C191,'Tier split'!A$3:K$328,9,0)) ->  | G191: =IF(OR(C191="",C191=" "),"",VLOOKUP(C191,'Tier split'!A$3:K$328,11,0)) -> 
F192: =IF(OR(C192="",C192=" "),"",VLOOKUP(C192,'Tier split'!A$3:K$328,9,0)) ->  | G192: =IF(OR(C192="",C192=" "),"",VLOOKUP(C192,'Tier split'!A$3:K$328,11,0)) -> 
F193: =IF(OR(C193="",C193=" "),"",VLOOKUP(C193,'Tier split'!A$3:K$328,9,0)) ->  | G193: =IF(OR(C193="",C193=" "),"",VLOOKUP(C193,'Tier split'!A$3:K$328,11,0)) -> 
F194: =IF(OR(C194="",C194=" "),"",VLOOKUP(C194,'Tier split'!A$3:K$328,9,0)) ->  | G194: =IF(OR(C194="",C194=" "),"",VLOOKUP(C194,'Tier split'!A$3:K$328,11,0)) -> 
F195: =IF(OR(C195="",C195=" "),"",VLOOKUP(C195,'Tier split'!A$3:K$328,9,0)) ->  | G195: =IF(OR(C195="",C195=" "),"",VLOOKUP(C195,'Tier split'!A$3:K$328,11,0)) -> 
F196: =IF(OR(C196="",C196=" "),"",VLOOKUP(C196,'Tier split'!A$3:K$328,9,0)) ->  | G196: =IF(OR(C196="",C196=" "),"",VLOOKUP(C196,'Tier split'!A$3:K$328,11,0)) -> 
F197: =IF(OR(C197="",C197=" "),"",VLOOKUP(C197,'Tier split'!A$3:K$328,9,0)) ->  | G197: =IF(OR(C197="",C197=" "),"",VLOOKUP(C197,'Tier split'!A$3:K$328,11,0)) -> 
F198: =IF(OR(C198="",C198=" "),"",VLOOKUP(C198,'Tier split'!A$3:K$328,9,0)) ->  | G198: =IF(OR(C198="",C198=" "),"",VLOOKUP(C198,'Tier split'!A$3:K$328,11,0)) -> 
F199: =IF(OR(C199="",C199=" "),"",VLOOKUP(C199,'Tier split'!A$3:K$328,9,0)) ->  | G199: =IF(OR(C199="",C199=" "),"",VLOOKUP(C199,'Tier split'!A$3:K$328,11,0)) -> 
F200: =IF(OR(C200="",C200=" "),"",VLOOKUP(C200,'Tier split'!A$3:K$328,9,0)) ->  | G200: =IF(OR(C200="",C200=" "),"",VLOOKUP(C200,'Tier split'!A$3:K$328,11,0)) -> 
F201: =IF(OR(C201="",C201=" "),"",VLOOKUP(C201,'Tier split'!A$3:K$328,9,0)) ->  | G201: =IF(OR(C201="",C201=" "),"",VLOOKUP(C201,'Tier split'!A$3:K$328,11,0)) -> 
F202: =IF(OR(C202="",C202=" "),"",VLOOKUP(C202,'Tier split'!A$3:K$328,9,0)) ->  | G202: =IF(OR(C202="",C202=" "),"",VLOOKUP(C202,'Tier split'!A$3:K$328,11,0)) -> 
F203: =IF(OR(C203="",C203=" "),"",VLOOKUP(C203,'Tier split'!A$3:K$328,9,0)) ->  | G203: =IF(OR(C203="",C203=" "),"",VLOOKUP(C203,'Tier split'!A$3:K$328,11,0)) -> 
F204: =IF(OR(C204="",C204=" "),"",VLOOKUP(C204,'Tier split'!A$3:K$328,9,0)) ->  | G204: =IF(OR(C204="",C204=" "),"",VLOOKUP(C204,'Tier split'!A$3:K$328,11,0)) -> 
F205: =IF(OR(C205="",C205=" "),"",VLOOKUP(C205,'Tier split'!A$3:K$328,9,0)) ->  | G205: =IF(OR(C205="",C205=" "),"",VLOOKUP(C205,'Tier split'!A$3:K$328,11,0)) -> 
F206: =IF(OR(C206="",C206=" "),"",VLOOKUP(C206,'Tier split'!A$3:K$328,9,0)) ->  | G206: =IF(OR(C206="",C206=" "),"",VLOOKUP(C206,'Tier split'!A$3:K$328,11,0)) -> 
F207: =IF(OR(C207="",C207=" "),"",VLOOKUP(C207,'Tier split'!A$3:K$328,9,0)) ->  | G207: =IF(OR(C207="",C207=" "),"",VLOOKUP(C207,'Tier split'!A$3:K$328,11,0)) -> 
F208: =IF(OR(C208="",C208=" "),"",VLOOKUP(C208,'Tier split'!A$3:K$328,9,0)) ->  | G208: =IF(OR(C208="",C208=" "),"",VLOOKUP(C208,'Tier split'!A$3:K$328,11,0)) -> 
F209: =IF(OR(C209="",C209=" "),"",VLOOKUP(C209,'Tier split'!A$3:K$328,9,0)) ->  | G209: =IF(OR(C209="",C209=" "),"",VLOOKUP(C209,'Tier split'!A$3:K$328,11,0)) -> 
F210: =IF(OR(C210="",C210=" "),"",VLOOKUP(C210,'Tier split'!A$3:K$328,9,0)) ->  | G210: =IF(OR(C210="",C210=" "),"",VLOOKUP(C210,'Tier split'!A$3:K$328,11,0)) -> 
F211: =IF(OR(C211="",C211=" "),"",VLOOKUP(C211,'Tier split'!A$3:K$328,9,0)) ->  | G211: =IF(OR(C211="",C211=" "),"",VLOOKUP(C211,'Tier split'!A$3:K$328,11,0)) -> 
F212: =IF(OR(C212="",C212=" "),"",VLOOKUP(C212,'Tier split'!A$3:K$328,9,0)) ->  | G212: =IF(OR(C212="",C212=" "),"",VLOOKUP(C212,'Tier split'!A$3:K$328,11,0)) -> 
C214: Major Precepting Authorities
C215: =C53 ->  | F215: =IF(OR(C215="",C215=" "),"",HLOOKUP($C215,'Upper tiers (new pool)'!$A$72:$BF$106,35,0)) ->  | G215: =IF(OR(C215="",C215=" "),"",HLOOKUP($C215,'Upper tiers (new pool)'!$A$108:$BF$142,35,0)) ->  | H215: =IF(OR(C215="",C215=" "),"",HLOOKUP($C215,'Upper tiers (new pool)'!$A$145:$BF$179,35,0)) ->  | I215: =IF(OR(C215="",C215=" "),"",HLOOKUP($C215,'Upper tiers (new pool)'!$A$182:$BF$216,35,0)) ->  | J215: =IF(OR(C215="",C215=" "),"",HLOOKUP($C215,'Upper tiers (new pool)'!$A$219:$BF$253,35,0)) ->  | K215: =IF(OR(C215="",C215=" "),"",HLOOKUP($C215,'Upper tiers (new pool)'!$A$256:$BF$290,35,0)) ->  | L215: =IF(OR(C215="",C215=" "),"",HLOOKUP($C215,'Upper tiers (new pool)'!$A$293:$BF$327,35,0)) ->  | M215: =IF(OR(C215="",C215=" "),"",HLOOKUP($C215,'Upper tiers (new pool)'!$A$330:$BF$364,35,0)) -> 
C216: =C54 ->  | F216: =IF(OR(C216="",C216=" "),"",HLOOKUP($C216,'Upper tiers (new pool)'!$A$72:$BF$106,35,0)) ->  | G216: =IF(OR(C216="",C216=" "),"",HLOOKUP($C216,'Upper tiers (new pool)'!$A$108:$BF$142,35,0)) ->  | H216: =IF(OR(C216="",C216=" "),"",HLOOKUP($C216,'Upper tiers (new pool)'!$A$145:$BF$179,35,0)) ->  | I216: =IF(OR(C216="",C216=" "),"",HLOOKUP($C216,'Upper tiers (new pool)'!$A$182:$BF$216,35,0)) ->  | J216: =IF(OR(C216="",C216=" "),"",HLOOKUP($C216,'Upper tiers (new pool)'!$A$219:$BF$253,35,0)) ->  | K216: =IF(OR(C216="",C216=" "),"",HLOOKUP($C216,'Upper tiers (new pool)'!$A$256:$BF$290,35,0)) ->  | L216: =IF(OR(C216="",C216=" "),"",HLOOKUP($C216,'Upper tiers (new pool)'!$A$293:$BF$327,35,0)) ->  | M216: =IF(OR(C216="",C216=" "),"",HLOOKUP($C216,'Upper tiers (new pool)'!$A$330:$BF$364,35,0)) -> 
C217: =C55 ->  | F217: =IF(OR(C217="",C217=" "),"",HLOOKUP($C217,'Upper tiers (new pool)'!$A$72:$BF$106,35,0)) ->  | G217: =IF(OR(C217="",C217=" "),"",HLOOKUP($C217,'Upper tiers (new pool)'!$A$108:$BF$142,35,0)) ->  | H217: =IF(OR(C217="",C217=" "),"",HLOOKUP($C217,'Upper tiers (new pool)'!$A$145:$BF$179,35,0)) ->  | I217: =IF(OR(C217="",C217=" "),"",HLOOKUP($C217,'Upper tiers (new pool)'!$A$182:$BF$216,35,0)) ->  | J217: =IF(OR(C217="",C217=" "),"",HLOOKUP($C217,'Upper tiers (new pool)'!$A$219:$BF$253,35,0)) ->  | K217: =IF(OR(C217="",C217=" "),"",HLOOKUP($C217,'Upper tiers (new pool)'!$A$256:$BF$290,35,0)) ->  | L217: =IF(OR(C217="",C217=" "),"",HLOOKUP($C217,'Upper tiers (new pool)'!$A$293:$BF$327,35,0)) ->  | M217: =IF(OR(C217="",C217=" "),"",HLOOKUP($C217,'Upper tiers (new pool)'!$A$330:$BF$364,35,0)) -> 
C218: =C56 ->  | F218: =IF(OR(C218="",C218=" "),"",HLOOKUP($C218,'Upper tiers (new pool)'!$A$72:$BF$106,35,0)) ->  | G218: =IF(OR(C218="",C218=" "),"",HLOOKUP($C218,'Upper tiers (new pool)'!$A$108:$BF$142,35,0)) ->  | H218: =IF(OR(C218="",C218=" "),"",HLOOKUP($C218,'Upper tiers (new pool)'!$A$145:$BF$179,35,0)) ->  | I218: =IF(OR(C218="",C218=" "),"",HLOOKUP($C218,'Upper tiers (new pool)'!$A$182:$BF$216,35,0)) ->  | J218: =IF(OR(C218="",C218=" "),"",HLOOKUP($C218,'Upper tiers (new pool)'!$A$219:$BF$253,35,0)) ->  | K218: =IF(OR(C218="",C218=" "),"",HLOOKUP($C218,'Upper tiers (new pool)'!$A$256:$BF$290,35,0)) ->  | L218: =IF(OR(C218="",C218=" "),"",HLOOKUP($C218,'Upper tiers (new pool)'!$A$293:$BF$327,35,0)) ->  | M218: =IF(OR(C218="",C218=" "),"",HLOOKUP($C218,'Upper tiers (new pool)'!$A$330:$BF$364,35,0)) -> 
C220: Pooled area's business rates | F220: =SUM(F145:F177)+SUM(F215:F218) -> 0 | G220: =SUM(G145:G177)+SUM(G215:G218) -> 0 | H220: =SUM(H145:H177)+SUM(H215:H218) -> 0 | I220: 0 | J220: 0 | K220: 0 | L220: 0 | M220: 0
C222: Pooled area's business rates growth | G222: =IF(ISERROR(-(1-(G220/F220))),"",-(1-(G220/F220))) -> 
B228: Stage 2: Calculating Retained Income (step-by-step)
B230: Step 5. Calculate pre-levy income | G230: (Tariffs and Top ups are uprated by RPI from step 3)
F231: 2013-14 | G231: 2014-15 | H231: 2015-16 | I231: 2016-17 | J231: 2017-18 | K231: 2018-19 | L231: 2019-20 | M231: 2020-21
B232: Billing Authorities
B233: =C18 ->  | C233: =IF(OR(F18="",G18=""),"Tariff or Top up",IF(F233<0,"Tariff","Top up")) -> Tariff or Top up | F233: =IF(OR(B233="",B233=" "),"",G18-F18) ->  | G233: =IF(OR(B233="",B233=" "),"",$F233*'New Pool'!P$6) ->  | H233: =IF(OR(B233="",B233=" "),"",$F233*'New Pool'!Q$6) ->  | I233: =IF(OR(B233="",B233=" "),"",$F233*'New Pool'!R$6) ->  | J233: =IF(OR(B233="",B233=" "),"",$F233*'New Pool'!S$6) ->  | K233: =IF(OR(B233="",B233=" "),"",$F233*'New Pool'!T$6) ->  | L233: =IF(OR(B233="",B233=" "),"",$F233*'New Pool'!U$6) ->  | M233: =IF(OR(B233="",B233=" "),"",$F233*'New Pool'!V$6) ->  | O233: =IF(OR(B233="",B233=" "),FALSE,TRUE) -> FALSE
C234: Pre-levy income | F234: =IF(OR(B233="",B233=" "),"",F145+F233) ->  | G234: =IF(OR(B233="",B233=" "),"",G145+G233) ->  | H234: =IF(OR(B233="",B233=" "),"",H145+H233) ->  | I234: =IF(OR(B233="",B233=" "),"",I145+I233) ->  | J234: =IF(OR(B233="",B233=" "),"",J145+J233) ->  | K234: =IF(OR(B233="",B233=" "),"",K145+K233) ->  | L234: =IF(OR(B233="",B233=" "),"",L145+L233) ->  | M234: =IF(OR(B233="",B233=" "),"",M145+M233) ->  | O234: =IF(OR(B233="",B233=" "),FALSE,TRUE) -> FALSE
B236: =C19 ->  | C236: =IF(OR(F19="",G19=""),"Tariff or Top up",IF(F236<0,"Tariff","Top up")) -> Tariff or Top up | F236: =IF(OR(B236="",B236=" "),"",G19-F19) ->  | G236: =IF(OR(B236="",B236=" "),"",$F236*'New Pool'!P$6) ->  | H236: =IF(OR(B236="",B236=" "),"",$F236*'New Pool'!Q$6) ->  | I236: =IF(OR(B236="",B236=" "),"",$F236*'New Pool'!R$6) ->  | J236: =IF(OR(B236="",B236=" "),"",$F236*'New Pool'!S$6) ->  | K236: =IF(OR(B236="",B236=" "),"",$F236*'New Pool'!T$6) ->  | L236: =IF(OR(B236="",B236=" "),"",$F236*'New Pool'!U$6) ->  | M236: =IF(OR(B236="",B236=" "),"",$F236*'New Pool'!V$6) ->  | O236: =IF(OR(B236="",B236=" "),FALSE,TRUE) -> FALSE
C237: Pre-levy income | F237: =IF(OR(B236="",B236=" "),"",F146+F236) ->  | G237: =IF(OR(B236="",B236=" "),"",G146+G236) ->  | H237: =IF(OR(B236="",B236=" "),"",H146+H236) ->  | I237: =IF(OR(B236="",B236=" "),"",I146+I236) ->  | J237: =IF(OR(B236="",B236=" "),"",J146+J236) ->  | K237: =IF(OR(B236="",B236=" "),"",K146+K236) ->  | L237: =IF(OR(B236="",B236=" "),"",L146+L236) ->  | M237: =IF(OR(B236="",B236=" "),"",M146+M236) ->  | O237: =IF(OR(B236="",B236=" "),FALSE,TRUE) -> FALSE
B239: =C20 ->  | C239: =IF(OR(F20="",G20=""),"Tariff or Top up",IF(F239<0,"Tariff","Top up")) -> Tariff or Top up | F239: =IF($O239=FALSE,"",G20-F20) ->  | G239: =IF($O239=FALSE,"",$F239*'New Pool'!P$6) ->  | H239: =IF($O239=FALSE,"",$F239*'New Pool'!Q$6) ->  | I239: =IF($O239=FALSE,"",$F239*'New Pool'!R$6) ->  | J239: =IF($O239=FALSE,"",$F239*'New Pool'!S$6) ->  | K239: =IF($O239=FALSE,"",$F239*'New Pool'!T$6) ->  | L239: =IF($O239=FALSE,"",$F239*'New Pool'!U$6) ->  | M239: =IF($O239=FALSE,"",$F239*'New Pool'!V$6) ->  | O239: =IF(OR(B239="",B239=" "),FALSE,TRUE) -> FALSE
C240: Pre-levy income | F240: =IF($O240=FALSE,"",F147+F239) ->  | O240: =IF(OR(B239="",B239=" "),FALSE,TRUE) -> FALSE
B242: =C21 ->  | C242: =IF(OR(F21="",G21=""),"Tariff or Top up",IF(F242<0,"Tariff","Top up")) -> Tariff or Top up | F242: =IF($O242=FALSE,"",G21-F21) ->  | G242: =IF($O242=FALSE,"",$F242*'New Pool'!P$6) ->  | H242: =IF($O242=FALSE,"",$F242*'New Pool'!Q$6) ->  | I242: =IF($O242=FALSE,"",$F242*'New Pool'!R$6) ->  | J242: =IF($O242=FALSE,"",$F242*'New Pool'!S$6) ->  | K242: =IF($O242=FALSE,"",$F242*'New Pool'!T$6) ->  | L242: =IF($O242=FALSE,"",$F242*'New Pool'!U$6) ->  | M242: =IF($O242=FALSE,"",$F242*'New Pool'!V$6) ->  | O242: =IF(OR(B242="",B242=" "),FALSE,TRUE) -> FALSE
C243: Pre-levy income | F243: =IF($O243=FALSE,"",F148+F242) ->  | O243: =IF(OR(B242="",B242=" "),FALSE,TRUE) -> FALSE
B245: =C22 ->  | C245: =IF(OR(F22="",G22=""),"Tariff or Top up",IF(F245<0,"Tariff","Top up")) -> Tariff or Top up | F245: =IF($O245=FALSE,"",G22-F22) ->  | G245: =IF($O245=FALSE,"",$F245*'New Pool'!P$6) ->  | H245: =IF($O245=FALSE,"",$F245*'New Pool'!Q$6) ->  | I245: =IF($O245=FALSE,"",$F245*'New Pool'!R$6) ->  | J245: =IF($O245=FALSE,"",$F245*'New Pool'!S$6) ->  | K245: =IF($O245=FALSE,"",$F245*'New Pool'!T$6) ->  | L245: =IF($O245=FALSE,"",$F245*'New Pool'!U$6) ->  | O245: =IF(OR(B245="",B245=" "),FALSE,TRUE) -> FALSE
C246: Pre-levy income | F246: =IF($O246=FALSE,"",F149+F245) ->  | O246: =IF(OR(B245="",B245=" "),FALSE,TRUE) -> FALSE
B248: =C23 ->  | C248: =IF(OR(F23="",G23=""),"Tariff or Top up",IF(F248<0,"Tariff","Top up")) -> Tariff or Top up | F248: =IF($O248=FALSE,"",G23-F23) ->  | G248: =IF($O248=FALSE,"",$F248*'New Pool'!P$6) ->  | H248: =IF($O248=FALSE,"",$F248*'New Pool'!Q$6) ->  | I248: =IF($O248=FALSE,"",$F248*'New Pool'!R$6) ->  | J248: =IF($O248=FALSE,"",$F248*'New Pool'!S$6) ->  | K248: =IF($O248=FALSE,"",$F248*'New Pool'!T$6) ->  | L248: =IF($O248=FALSE,"",$F248*'New Pool'!U$6) ->  | M248: =IF($O248=FALSE,"",$F248*'New Pool'!V$6) ->  | O248: =IF(OR(B248="",B248=" "),FALSE,TRUE) -> FALSE
C249: Pre-levy income | F249: =IF($O249=FALSE,"",F150+F248) ->  | O249: =IF(OR(B248="",B248=" "),FALSE,TRUE) -> FALSE
B251: =C24 ->  | C251: =IF(OR(F24="",G24=""),"Tariff or Top up",IF(F251<0,"Tariff","Top up")) -> Tariff or Top up | F251: =IF($O251=FALSE,"",G24-F24) ->  | G251: =IF($O251=FALSE,"",$F251*'New Pool'!P$6) ->  | H251: =IF($O251=FALSE,"",$F251*'New Pool'!Q$6) ->  | I251: =IF($O251=FALSE,"",$F251*'New Pool'!R$6) ->  | J251: =IF($O251=FALSE,"",$F251*'New Pool'!S$6) ->  | K251: =IF($O251=FALSE,"",$F251*'New Pool'!T$6) ->  | L251: =IF($O251=FALSE,"",$F251*'New Pool'!U$6) ->  | M251: =IF($O251=FALSE,"",$F251*'New Pool'!V$6) ->  | O251: =IF(OR(B251="",B251=" "),FALSE,TRUE) -> FALSE
C252: Pre-levy income | F252: =IF($O252=FALSE,"",F151+F251) ->  | O252: =IF(OR(B251="",B251=" "),FALSE,TRUE) -> FALSE
B254: =C25 ->  | C254: =IF(OR(F25="",G25=""),"Tariff or Top up",IF(F254<0,"Tariff","Top up")) -> Tariff or Top up | F254: =IF($O254=FALSE,"",G25-F25) ->  | G254: =IF($O254=FALSE,"",$F254*'New Pool'!P$6) ->  | H254: =IF($O254=FALSE,"",$F254*'New Pool'!Q$6) ->  | I254: =IF($O254=FALSE,"",$F254*'New Pool'!R$6) ->  | J254: =IF($O254=FALSE,"",$F254*'New Pool'!S$6) ->  | K254: =IF($O254=FALSE,"",$F254*'New Pool'!T$6) ->  | L254: =IF($O254=FALSE,"",$F254*'New Pool'!U$6) ->  | M254: =IF($O254=FALSE,"",$F254*'New Pool'!V$6) ->  | O254: =IF(OR(B254="",B254=" "),FALSE,TRUE) -> FALSE
C255: Pre-levy income | F255: =IF($O255=FALSE,"",F152+F254) ->  | O255: =IF(OR(B254="",B254=" "),FALSE,TRUE) -> FALSE
B257: =C26 ->  | C257: =IF(OR(F26="",G26=""),"Tariff or Top up",IF(F257<0,"Tariff","Top up")) -> Tariff or Top up | F257: =IF($O257=FALSE,"",G26-F26) ->  | G257: =IF($O257=FALSE,"",$F257*'New Pool'!P$6) ->  | H257: =IF($O257=FALSE,"",$F257*'New Pool'!Q$6) ->  | I257: =IF($O257=FALSE,"",$F257*'New Pool'!R$6) ->  | J257: =IF($O257=FALSE,"",$F257*'New Pool'!S$6) ->  | K257: =IF($O257=FALSE,"",$F257*'New Pool'!T$6) ->  | L257: =IF($O257=FALSE,"",$F257*'New Pool'!U$6) ->  | M257: =IF($O257=FALSE,"",$F257*'New Pool'!V$6) ->  | O257: =IF(OR(B257="",B257=" "),FALSE,TRUE) -> FALSE
C258: Pre-levy income | F258: =IF($O258=FALSE,"",F153+F257) ->  | O258: =IF(OR(B257="",B257=" "),FALSE,TRUE) -> FALSE
B260: =C27 ->  | C260: =IF(OR(F27="",G27=""),"Tariff or Top up",IF(F260<0,"Tariff","Top up")) -> Tariff or Top up | F260: =IF($O260=FALSE,"",G27-F27) ->  | G260: =IF($O260=FALSE,"",$F260*'New Pool'!P$6) ->  | H260: =IF($O260=FALSE,"",$F260*'New Pool'!Q$6) ->  | I260: =IF($O260=FALSE,"",$F260*'New Pool'!R$6) ->  | J260: =IF($O260=FALSE,"",$F260*'New Pool'!S$6) ->  | K260: =IF($O260=FALSE,"",$F260*'New Pool'!T$6) ->  | L260: =IF($O260=FALSE,"",$F260*'New Pool'!U$6) ->  | M260: =IF($O260=FALSE,"",$F260*'New Pool'!V$6) ->  | O260: =IF(OR(B260="",B260=" "),FALSE,TRUE) -> FALSE
C261: Pre-levy income | F261: =IF($O261=FALSE,"",F154+F260) ->  | O261: =IF(OR(B260="",B260=" "),FALSE,TRUE) -> FALSE
B263: =C28 ->  | C263: =IF(OR(F28="",G28=""),"Tariff or Top up",IF(F263<0,"Tariff","Top up")) -> Tariff or Top up | F263: =IF($O263=FALSE,"",G28-F28) ->  | G263: =IF($O263=FALSE,"",$F263*'New Pool'!P$6) ->  | H263: =IF($O263=FALSE,"",$F263*'New Pool'!Q$6) ->  | I263: =IF($O263=FALSE,"",$F263*'New Pool'!R$6) ->  | J263: =IF($O263=FALSE,"",$F263*'New Pool'!S$6) ->  | K263: =IF($O263=FALSE,"",$F263*'New Pool'!T$6) ->  | L263: =IF($O263=FALSE,"",$F263*'New Pool'!U$6) ->  | M263: =IF($O263=FALSE,"",$F263*'New Pool'!V$6) ->  | O263: =IF(OR(B263="",B263=" "),FALSE,TRUE) -> FALSE
C264: Pre-levy income | F264: =IF($O264=FALSE,"",F155+F263) ->  | O264: =IF(OR(B263="",B263=" "),FALSE,TRUE) -> FALSE
B266: =C29 ->  | C266: =IF(OR(F29="",G29=""),"Tariff or Top up",IF(F266<0,"Tariff","Top up")) -> Tariff or Top up | F266: =IF($O266=FALSE,"",G29-F29) ->  | G266: =IF($O266=FALSE,"",$F266*'New Pool'!P$6) ->  | H266: =IF($O266=FALSE,"",$F266*'New Pool'!Q$6) ->  | I266: =IF($O266=FALSE,"",$F266*'New Pool'!R$6) ->  | J266: =IF($O266=FALSE,"",$F266*'New Pool'!S$6) ->  | K266: =IF($O266=FALSE,"",$F266*'New Pool'!T$6) ->  | L266: =IF($O266=FALSE,"",$F266*'New Pool'!U$6) ->  | M266: =IF($O266=FALSE,"",$F266*'New Pool'!V$6) ->  | O266: =IF(OR(B266="",B266=" "),FALSE,TRUE) -> FALSE
... 263 more rows

Sheet Upper tiers (existing pool) (hidden)
A1: Buckinghamshire | B1: Cambridgeshire | C1: Cumbria | D1: Derbyshire | E1: Devon | F1: Dorset | G1: East Sussex | H1: Essex | I1: GLA | J1: Gloucestershire | K1: Hampshire | L1: Worcestershire | M1: Hertfordshire | N1: Kent | O1: Lancashire | P1: Leicestershire | Q1: Lincolnshire | R1: Norfolk | S1: North Yorkshire | T1: Northamptonshire | U1: Nottinghamshire | V1: Oxfordshire | W1: Somerset | X1: Staffordshire | Y1: Suffolk | Z1: Surrey | AA1: Warwickshire | AB1: West Sussex | AC1: Avon Fire | AD1: Bedfordshire Fire | AE1: Berkshire Fire Authority | AF1: Buckinghamshire Fire | AG1: Cambridgeshire Fire | AH1: Cheshire Fire | AI1: Cleveland Fire | AJ1: Derbyshire Fire | AK1: Dorset Fire | AL1: Durham Fire | AM1: East Sussex Fire | AN1: Essex Fire Authority | AO1: Hampshire Fire | AP1: Hereford & Worcester Fire | AQ1: Humberside Fire | AR1: Kent Fire | AS1: Lancashire Fire | AT1: Leicestershire Fire | AU1: North Yorkshire Fire | AV1: Nottinghamshire Fire | AW1: Shropshire Fire | AX1: Staffordshire Fire | AY1: Wiltshire Fire | AZ1: Greater Manchester Fire | BA1: Merseyside Fire | BB1: South Yorkshire Fire | BC1: Tyne and Wear Fire | BD1: West Midlands Fire | BE1: West Yorkshire Fire | BF1: Devon and Somerset Fire
A2: Aylesbury Vale | B2: Cambridge | C2: Allerdale | D2: Amber Valley | E2: East Devon | F2: Christchurch | G2: Eastbourne | H2: Basildon | I2: Barking and Dagenham | J2: Cheltenham | K2: Basingstoke and Deane | L2: Bromsgrove | M2: Broxbourne | N2: Ashford | O2: Burnley | P2: Blaby | Q2: Boston | R2: Breckland | S2: Craven | T2: Corby | U2: Ashfield | V2: Cherwell | W2: Mendip | X2: Cannock Chase | Y2: Babergh | Z2: Elmbridge | AA2: North Warwickshire | AB2: Adur | AC2: Bath & North East Somerset | AD2: Bedford | AE2: Bracknell Forest | AF2: Aylesbury Vale | AG2: Cambridge | AH2: Cheshire East | AI2: Hartlepool | AJ2: Amber Valley | AK2: Bournemouth | AL2: Durham | AM2: Brighton & Hove | AN2: Basildon | AO2: Basingstoke and Deane | AP2: Bromsgrove | AQ2: East Riding of Yorkshire | AR2: Ashford | AS2: Blackburn with Darwen | AT2: Blaby | AU2: Craven | AV2: Ashfield | AW2: Shropshire | AX2: Cannock Chase | AY2: Wiltshire | AZ2: Bolton | BA2: Knowsley | BB2: Barnsley | BC2: Gateshead | BD2: Birmingham | BE2: Bradford | BF2: East Devon
A3: Chiltern | B3: East Cambridgeshire | C3: Barrow-in-Furness | D3: Bolsover | E3: Exeter | F3: East Dorset | G3: Hastings | H3: Braintree | I3: Barnet | J3: Cotswold | K3: East Hampshire | L3: Malvern Hills | M3: Dacorum | N3: Canterbury | O3: Chorley | P3: Charnwood | Q3: East Lindsey | R3: Broadland | S3: Hambleton | T3: Daventry | U3: Bassetlaw | V3: Oxford | W3: Sedgemoor | X3: East Staffordshire | Y3: Forest Heath | Z3: Epsom and Ewell | AA3: Nuneaton and Bedworth | AB3: Arun | AC3: Bristol | AD3: Central Bedfordshire | AE3: Reading | AF3: Chiltern | AG3: East Cambridgeshire | AH3: Cheshire West & Chester | AI3: Middlesbrough | AJ3: Bolsover | AK3: Christchurch | AL3: Darlington | AM3: Eastbourne | AN3: Braintree | AO3: East Hampshire | AP3: Herefordshire | AQ3: Kingston upon Hull | AR3: Canterbury | AS3: Blackpool | AT3: Charnwood | AU3: Hambleton | AV3: Bassetlaw | AW3: Telford and the Wrekin | AX3: East Staffordshire | AY3: Swindon | AZ3: Bury | BA3: Liverpool | BB3: Doncaster | BC3: Newcastle upon Tyne | BD3: Coventry | BE3: Calderdale | BF3: Exeter
A4: South Bucks | B4: Fenland | C4: Carlisle | D4: Chesterfield | E4: Mid Devon | F4: North Dorset | G4: Lewes | H4: Brentwood | I4: Bexley | J4: Forest of Dean | K4: Eastleigh | L4: Redditch | M4: East Hertfordshire | N4: Dartford | O4: Fylde | P4: Harborough | Q4: Lincoln | R4: Great Yarmouth | S4: Harrogate | T4: East Northamptonshire | U4: Broxtowe | V4: South Oxfordshire | W4: South Somerset | X4: Lichfield | Y4: Ipswich | Z4: Guildford | AA4: Rugby | AB4: Chichester | AC4: North Somerset | AD4: Luton | AE4: Slough | AF4: Milton Keynes | AG4: Fenland | AH4: Halton | AI4: Redcar and Cleveland | AJ4: Chesterfield | AK4: East Dorset | AM4: Hastings | AN4: Brentwood | AO4: Eastleigh | AP4: Malvern Hills | AQ4: North East Lincolnshire | AR4: Dartford | AS4: Burnley | AT4: Harborough | AU4: Harrogate | AV4: Broxtowe | AX4: Lichfield | AZ4: Manchester | BA4: Sefton | BB4: Rotherham | BC4: North Tyneside | BD4: Dudley | BE4: Kirklees | BF4: Mendip
A5: Wycombe | B5: Huntingdonshire | C5: Copeland | D5: Derbyshire Dales | E5: North Devon | F5: Purbeck | G5: Rother | H5: Castle Point | I5: Brent | J5: Gloucester | K5: Fareham | L5: Worcester | M5: Hertsmere | N5: Dover | O5: Hyndburn | P5: Hinckley and Bosworth | Q5: North Kesteven | R5: King's Lynn and West Norfolk | S5: Richmondshire | T5: Kettering | U5: Gedling | V5: Vale of White Horse | W5: Taunton Deane | X5: Newcastle-under-Lyme | Y5: Mid Suffolk | Z5: Mole Valley | AA5: Stratford-on-Avon | AB5: Crawley | AC5: South Gloucestershire | AE5: West Berkshire | AF5: South Bucks | AG5: Huntingdonshire | AH5: Warrington | AI5: Stockton-on-Tees | AJ5: Derby | AK5: North Dorset | AM5: Lewes | AN5: Castle Point | AO5: Fareham | AP5: Redditch | AQ5: North Lincolnshire | AR5: Dover | AS5: Chorley | AT5: Hinckley and Bosworth | AU5: Richmondshire | AV5: Gedling | AX5: Newcastle-under-Lyme | AZ5: Oldham | BA5: St Helens | BB5: Sheffield | BC5: South Tyneside | BD5: Sandwell | BE5: Leeds | BF5: Mid Devon
B6: South Cambridgeshire | C6: Eden | D6: Erewash | E6: South Hams | F6: West Dorset | G6: Wealden | H6: Chelmsford | I6: Bromley | J6: Stroud | K6: Gosport | L6: Wychavon | M6: North Hertfordshire | N6: Gravesham | O6: Lancaster | P6: Melton | Q6: South Holland | R6: North Norfolk | S6: Ryedale | T6: Northampton | U6: Mansfield | V6: West Oxfordshire | W6: West Somerset | X6: South Staffordshire | Y6: St Edmundsbury | Z6: Reigate and Banstead | AA6: Warwick | AB6: Horsham | AE6: Windsor and Maidenhead | AF6: Wycombe | AG6: Peterborough | AJ6: Derbyshire Dales | AK6: Poole | AM6: Rother | AN6: Chelmsford | AO6: Gosport | AP6: Worcester | AR6: Gravesham | AS6: Fylde | AT6: Leicester | AU6: Ryedale | AV6: Mansfield | AX6: South Staffordshire | AZ6: Rochdale | BA6: Wirral | BC6: Sunderland | BD6: Solihull | BE6: Wakefield | BF6: North Devon
C7: South Lakeland | D7: High Peak | E7: Teignbridge | F7: Weymouth and Portland | H7: Colchester | I7: Camden | J7: Tewkesbury | K7: Hart | L7: Wyre Forest | M7: St Albans | N7: Maidstone | O7: Pendle | P7: North West Leicestershire | Q7: South Kesteven | R7: Norwich | S7: Scarborough | T7: South Northamptonshire | U7: Newark and Sherwood | X7: Stafford | Y7: Suffolk Coastal | Z7: Runnymede | AB7: Mid Sussex | AE7: Wokingham | AG7: South Cambridgeshire | AJ7: Erewash | AK7: Purbeck | AM7: Wealden | AN7: Colchester | AO7: Hart | AP7: Wychavon | AR7: Maidstone | AS7: Hyndburn | AT7: Melton | AU7: Scarborough | AV7: Newark and Sherwood | AX7: Stafford | AZ7: Salford | BD7: Walsall | BF7: Plymouth
D8: North East Derbyshire | E8: Torridge | H8: Epping Forest | I8: City of London - Non-Police | K8: Havant | M8: Stevenage | N8: Sevenoaks | O8: Preston | P8: Oadby and Wigston | Q8: West Lindsey | R8: South Norfolk | S8: Selby | T8: Wellingborough | U8: Rushcliffe | X8: Staffordshire Moorlands | Y8: Waveney | Z8: Spelthorne | AB8: Worthing | AJ8: High Peak | AK8: West Dorset | AN8: Epping Forest | AO8: Havant | AP8: Wyre Forest | AR8: Medway | AS8: Lancaster | AT8: North West Leicestershire | AU8: Selby | AV8: Nottingham | AX8: Staffordshire Moorlands | AZ8: Stockport | BD8: Wolverhampton | BF8: Sedgemoor
D9: South Derbyshire | E9: West Devon | H9: Harlow | I9: Croydon | K9: New Forest | M9: Three Rivers | N9: Shepway | O9: Ribble Valley | X9: Tamworth | Z9: Surrey Heath | AJ9: North East Derbyshire | AK9: Weymouth and Portland | AN9: Harlow | AO9: New Forest | AR9: Sevenoaks | AS9: Pendle | AT9: Oadby and Wigston | AU9: York | AV9: Rushcliffe | AX9: Stoke-on-Trent | AZ9: Tameside | BF9: South Hams
H10: Maldon | I10: Ealing | K10: Rushmoor | M10: Watford | N10: Swale | O10: Rossendale | Z10: Tandridge | AJ10: South Derbyshire | AN10: Maldon | AO10: Portsmouth | AR10: Shepway | AS10: Preston | AT10: Rutland | AX10: Tamworth | AZ10: Trafford | BF10: South Somerset
H11: Rochford | I11: Enfield | K11: Test Valley | M11: Welwyn Hatfield | N11: Thanet | O11: South Ribble | Z11: Waverley | AN11: Rochford | AO11: Rushmoor | AR11: Swale | AS11: Ribble Valley | AZ11: Wigan | BF11: Taunton Deane
H12: Tendring | I12: Greenwich | K12: Winchester | N12: Tonbridge and Malling | O12: West Lancashire | Z12: Woking | AN12: Southend-on-Sea | AO12: Southampton | AR12: Thanet | AS12: Rossendale | BF12: Teignbridge
H13: Uttlesford | I13: Hackney | N13: Tunbridge Wells | O13: Wyre | AN13: Tendring | AO13: Test Valley | AR13: Tonbridge and Malling | AS13: South Ribble | BF13: Torbay
I14: Hammersmith and Fulham | AN14: Thurrock | AO14: Winchester | AR14: Tunbridge Wells | AS14: West Lancashire | BF14: Torridge
I15: Haringey | AN15: Uttlesford | AS15: Wyre | BF15: West Devon
I16: Harrow | BF16: West Somerset
I17: Havering
I18: Hillingdon
I19: Hounslow
I20: Islington
I21: Kensington and Chelsea
I22: Kingston upon Thames
I23: Lambeth
I24: Lewisham
I25: Merton
I26: Newham
I27: Redbridge
I28: Richmond upon Thames
I29: Southwark
I30: Sutton
I31: Tower Hamlets
I32: Waltham Forest
I33: Wandsworth
A34: ACTUAL BASELINES | I34: Westminster
A35: Buckinghamshire | B35: Cambridgeshire | C35: Cumbria | D35: Derbyshire | E35: Devon | F35: Dorset | G35: East Sussex | H35: Essex | I35: GLA | J35: Gloucestershire | K35: Hampshire | L35: Worcestershire | M35: Hertfordshire | N35: Kent | O35: Lancashire | P35: Leicestershire | Q35: Lincolnshire | R35: Norfolk | S35: North Yorkshire | T35: Northamptonshire | U35: Nottinghamshire | V35: Oxfordshire | W35: Somerset | X35: Staffordshire | Y35: Suffolk | Z35: Surrey | AA35: Warwickshire | AB35: West Sussex | AC35: Avon Fire | AD35: Bedfordshire Fire | AE35: Berkshire Fire Authority | AF35: Buckinghamshire Fire | AG35: Cambridgeshire Fire | AH35: Cheshire Fire | AI35: Cleveland Fire | AJ35: Derbyshire Fire | AK35: Dorset Fire | AL35: Durham Fire | AM35: East Sussex Fire | AN35: Essex Fire Authority | AO35: Hampshire Fire | AP35: Hereford & Worcester Fire | AQ35: Humberside Fire | AR35: Kent Fire | AS35: Lancashire Fire | AT35: Leicestershire Fire | AU35: North Yorkshire Fire | AV35: Nottinghamshire Fire | AW35: Shropshire Fire | AX35: Staffordshire Fire | AY35: Wiltshire Fire | AZ35: Greater Manchester Fire | BA35: Merseyside Fire | BB35: South Yorkshire Fire | BC35: Tyne and Wear Fire | BD35: West Midlands Fire | BE35: West Yorkshire Fire | BF35: Devon and Somerset Fire
A36: =VLOOKUP(A2,Baselines!$C$12:$J$499,8,0)*0.18 -> 4.25276281 | B36: =VLOOKUP(B2,Baselines!$C$12:$J$499,8,0)*0.18 -> 8.103914667 | C36: =VLOOKUP(C2,Baselines!$C$12:$J$499,8,0)*0.2 -> 2.457358016 | D36: =VLOOKUP(D2,Baselines!$C$12:$J$499,8,0)*0.18 -> 2.593564533 | E36: =VLOOKUP(E2,Baselines!$C$12:$J$499,8,0)*0.18 -> 2.763256621 | F36: =VLOOKUP(F2,Baselines!$C$12:$J$499,8,0)*0.18 -> 1.555145189 | G36: =VLOOKUP(G2,Baselines!$C$12:$J$499,8,0)*0.18 -> 2.892191549 | H36: =VLOOKUP(H2,Baselines!$C$12:$J$499,8,0)*0.18 -> 6.741328442 | I36: =VLOOKUP(I2,Baselines!$C$12:$J$499,8,0)*0.4 -> 11.14321874 | J36: =VLOOKUP(J2,Baselines!$C$12:$J$499,8,0)*0.2 -> 5.212719141 | K36: =VLOOKUP(K2,Baselines!$C$12:$J$499,8,0)*0.18 -> 6.43433434 | L36: =VLOOKUP(L2,Baselines!$C$12:$J$499,8,0)*0.18 -> 2.332114159 | M36: =VLOOKUP(M2,Baselines!$C$12:$J$499,8,0)*0.2 -> 3.820285973 | N36: =VLOOKUP(N2,Baselines!$C$12:$J$499,8,0)*0.18 -> 3.921177535 | O36: =VLOOKUP(O2,Baselines!$C$12:$J$499,8,0)*0.18 -> 2.37887988 | P36: =VLOOKUP(P2,Baselines!$C$12:$J$499,8,0)*0.18 -> 3.426537791 | Q36: =VLOOKUP(Q2,Baselines!$C$12:$J$499,8,0)*0.2 -> 1.824734561 | R36: =VLOOKUP(R2,Baselines!$C$12:$J$499,8,0)*0.2 -> 2.766111986 | S36: =VLOOKUP(S2,Baselines!$C$12:$J$499,8,0)*0.18 -> 1.553989491 | T36: =VLOOKUP(T2,Baselines!$C$12:$J$499,8,0)*0.2 -> 2.985686479 | U36: =VLOOKUP(U2,Baselines!$C$12:$J$499,8,0)*0.18 -> 2.77182479 | V36: =VLOOKUP(V2,Baselines!$C$12:$J$499,8,0)*0.2 -> 6.547796444 | W36: =VLOOKUP(W2,Baselines!$C$12:$J$499,8,0)*0.18 -> 2.72815257 | X36: =VLOOKUP(X2,Baselines!$C$12:$J$499,8,0)*0.18 -> 2.879486013 | Y36: =VLOOKUP(Y2,Baselines!$C$12:$J$499,8,0)*0.2 -> 2.201197098 | Z36: =VLOOKUP(Z2,Baselines!$C$12:$J$499,8,0)*0.2 -> 5.023720458 | AA36: =VLOOKUP(AA2,Baselines!$C$12:$J$499,8,0)*0.2 -> 3.915537115 | AB36: =VLOOKUP(AB2,Baselines!$C$12:$J$499,8,0)*0.2 -> 1.627567452 | AC36: =VLOOKUP(AC2,Baselines!$C$12:$J$499,8,0)*0.02 -> 0.6155612383 | AD36: =VLOOKUP(AD2,Baselines!$C$12:$J$499,8,0)*0.02 -> 0.6144799338 | AE36: =VLOOKUP(AE2,Baselines!$C$12:$J$499,8,0)*0.02 -> 0.5198620297 | AF36: =VLOOKUP(AF2,Baselines!$C$12:$J$499,8,0)*0.02 -> 0.4725292011 | AG36: =VLOOKUP(AG2,Baselines!$C$12:$J$499,8,0)*0.02 -> 0.900434963 | AH36: =VLOOKUP(AH2,Baselines!$C$12:$J$499,8,0)*0.02 -> 1.325023777 | AI36: =VLOOKUP(AI2,Baselines!$C$12:$J$499,8,0)*0.02 -> 0.3616515954 | AJ36: =VLOOKUP(AJ2,Baselines!$C$12:$J$499,8,0)*0.02 -> 0.2881738369 | AK36: =VLOOKUP(AK2,Baselines!$C$12:$J$499,8,0)*0.02 -> 0.6502495956 | AL36: =VLOOKUP(AL2,Baselines!$C$12:$J$499,8,0)*0.02 -> 1.081334018 | AM36: =VLOOKUP(AM2,Baselines!$C$12:$J$499,8,0)*0.02 -> 1.022019777 | AN36: =VLOOKUP(AN2,Baselines!$C$12:$J$499,8,0)*0.02 -> 0.7490364936 | AO36: =VLOOKUP(AO2,Baselines!$C$12:$J$499,8,0)*0.02 -> 0.7149260378 | AP36: =VLOOKUP(AP2,Baselines!$C$12:$J$499,8,0)*0.02 -> 0.2591237955 | AQ36: =VLOOKUP(AQ2,Baselines!$C$12:$J$499,8,0)*0.02 -> 0.8343917233 | AR36: =VLOOKUP(AR2,Baselines!$C$12:$J$499,8,0)*0.02 -> 0.4356863928 | AS36: =VLOOKUP(AS2,Baselines!$C$12:$J$499,8,0)*0.02 -> 0.4442896774 | AT36: =VLOOKUP(AT2,Baselines!$C$12:$J$499,8,0)*0.02 -> 0.3807264212 | AU36: =VLOOKUP(AU2,Baselines!$C$12:$J$499,8,0)*0.02 -> 0.172665499 | AV36: =VLOOKUP(AV2,Baselines!$C$12:$J$499,8,0)*0.02 -> 0.3079805322 | AW36: =VLOOKUP(AW2,Baselines!$C$12:$J$499,8,0)*0.02 -> 0.7135221861 | AX36: =VLOOKUP(AX2,Baselines!$C$12:$J$499,8,0)*0.02 -> 0.3199428904 | AY36: =VLOOKUP(AY2,Baselines!$C$12:$J$499,8,0)*0.02 -> 1.388727087 | AZ36: =VLOOKUP(AZ2,Baselines!$C$12:$J$499,8,0)*0.02 -> 0.83854361 | BA36: =VLOOKUP(BA2,Baselines!$C$12:$J$499,8,0)*0.02 -> 0.3945223656 | BB36: =VLOOKUP(BB2,Baselines!$C$12:$J$499,8,0)*0.02 -> 0.4957876831 | BC36: =VLOOKUP(BC2,Baselines!$C$12:$J$499,8,0)*0.02 -> 0.848547163 | BD36: =VLOOKUP(BD2,Baselines!$C$12:$J$499,8,0)*0.02 -> 3.91097306 | BE36: =VLOOKUP(BE2,Baselines!$C$12:$J$499,8,0)*0.02 -> 1.371556986 | BF36: =VLOOKUP(BF2,Baselines!$C$12:$J$499,8,0)*0.02 -> 0.3070285134
A37: =VLOOKUP(A3,Baselines!$C$12:$J$499,8,0)*0.18 -> 1.779227666 | B37: =VLOOKUP(B3,Baselines!$C$12:$J$499,8,0)*0.18 -> 1.511933459 | C37: =VLOOKUP(C3,Baselines!$C$12:$J$499,8,0)*0.2 -> 2.19467906 | D37: =VLOOKUP(D3,Baselines!$C$12:$J$499,8,0)*0.18 -> 1.783064631 | E37: =VLOOKUP(E3,Baselines!$C$12:$J$499,8,0)*0.18 -> 6.522778111 | F37: =VLOOKUP(F3,Baselines!$C$12:$J$499,8,0)*0.18 -> 1.871385042 | G37: =VLOOKUP(G3,Baselines!$C$12:$J$499,8,0)*0.18 -> 1.904211096 | H37: =VLOOKUP(H3,Baselines!$C$12:$J$499,8,0)*0.18 -> 3.480330894 | I37: =VLOOKUP(I3,Baselines!$C$12:$J$499,8,0)*0.4 -> 22.58099834 | J37: =VLOOKUP(J3,Baselines!$C$12:$J$499,8,0)*0.2 -> 2.870357982 | K37: =VLOOKUP(K3,Baselines!$C$12:$J$499,8,0)*0.18 -> 2.486244684 | L37: =VLOOKUP(L3,Baselines!$C$12:$J$499,8,0)*0.18 -> 1.400682635 | M37: =VLOOKUP(M3,Baselines!$C$12:$J$499,8,0)*0.2 -> 5.930097073 | N37: =VLOOKUP(N3,Baselines!$C$12:$J$499,8,0)*0.18 -> 4.488447343 | O37: =VLOOKUP(O3,Baselines!$C$12:$J$499,8,0)*0.18 -> 2.265478841 | P37: =VLOOKUP(P3,Baselines!$C$12:$J$499,8,0)*0.18 -> 3.873475541 | Q37: =VLOOKUP(Q3,Baselines!$C$12:$J$499,8,0)*0.2 -> 3.077226107 | R37: =VLOOKUP(R3,Baselines!$C$12:$J$499,8,0)*0.2 -> 2.774730689 | S37: =VLOOKUP(S3,Baselines!$C$12:$J$499,8,0)*0.18 -> 2.329326295 | T37: =VLOOKUP(T3,Baselines!$C$12:$J$499,8,0)*0.2 -> 3.522241288 | U37: =VLOOKUP(U3,Baselines!$C$12:$J$499,8,0)*0.18 -> 4.107095144 | V37: =VLOOKUP(V3,Baselines!$C$12:$J$499,8,0)*0.2 -> 7.979559181 | W37: =VLOOKUP(W3,Baselines!$C$12:$J$499,8,0)*0.18 -> 2.984183929 | X37: =VLOOKUP(X3,Baselines!$C$12:$J$499,8,0)*0.18 -> 4.674110903 | Y37: =VLOOKUP(Y3,Baselines!$C$12:$J$499,8,0)*0.2 -> 2.113744774 | Z37: =VLOOKUP(Z3,Baselines!$C$12:$J$499,8,0)*0.2 -> 2.280802109 | AA37: =VLOOKUP(AA3,Baselines!$C$12:$J$499,8,0)*0.2 -> 3.168302758 | AB37: =VLOOKUP(AB3,Baselines!$C$12:$J$499,8,0)*0.2 -> 2.906311624 | AC37: =VLOOKUP(AC3,Baselines!$C$12:$J$499,8,0)*0.02 -> 2.015025422 | AD37: =VLOOKUP(AD3,Baselines!$C$12:$J$499,8,0)*0.02 -> 0.75715686 | AE37: =VLOOKUP(AE3,Baselines!$C$12:$J$499,8,0)*0.02 -> 0.9829734951 | AF37: =VLOOKUP(AF3,Baselines!$C$12:$J$499,8,0)*0.02 -> 0.1976919629 | AG37: =VLOOKUP(AG3,Baselines!$C$12:$J$499,8,0)*0.02 -> 0.1679926065 | AH37: =VLOOKUP(AH3,Baselines!$C$12:$J$499,8,0)*0.02 -> 1.447123198 | AI37: =VLOOKUP(AI3,Baselines!$C$12:$J$499,8,0)*0.02 -> 0.3955417985 | AJ37: =VLOOKUP(AJ3,Baselines!$C$12:$J$499,8,0)*0.02 -> 0.1981182923 | AK37: =VLOOKUP(AK3,Baselines!$C$12:$J$499,8,0)*0.02 -> 0.1727939099 | AL37: =VLOOKUP(AL3,Baselines!$C$12:$J$499,8,0)*0.02 -> 0.3302291116 | AM37: =VLOOKUP(AM3,Baselines!$C$12:$J$499,8,0)*0.02 -> 0.3213546165 | AN37: =VLOOKUP(AN3,Baselines!$C$12:$J$499,8,0)*0.02 -> 0.3867034327 | AO37: =VLOOKUP(AO3,Baselines!$C$12:$J$499,8,0)*0.02 -> 0.2762494094 | AP37: =VLOOKUP(AP3,Baselines!$C$12:$J$499,8,0)*0.02 -> 0.4480799875 | AQ37: =VLOOKUP(AQ3,Baselines!$C$12:$J$499,8,0)*0.02 -> 0.8431418556 | AR37: =VLOOKUP(AR3,Baselines!$C$12:$J$499,8,0)*0.02 -> 0.4987163715 | AS37: =VLOOKUP(AS3,Baselines!$C$12:$J$499,8,0)*0.02 -> 0.4848109777 | AT37: =VLOOKUP(AT3,Baselines!$C$12:$J$499,8,0)*0.02 -> 0.4303861712 | AU37: =VLOOKUP(AU3,Baselines!$C$12:$J$499,8,0)*0.02 -> 0.2588140327 | AV37: =VLOOKUP(AV3,Baselines!$C$12:$J$499,8,0)*0.02 -> 0.4563439049 | AW37: =VLOOKUP(AW3,Baselines!$C$12:$J$499,8,0)*0.02 -> 0.649107875 | AX37: =VLOOKUP(AX3,Baselines!$C$12:$J$499,8,0)*0.02 -> 0.5193456559 | AY37: =VLOOKUP(AY3,Baselines!$C$12:$J$499,8,0)*0.02 -> 1.008676429 | AZ37: =VLOOKUP(AZ3,Baselines!$C$12:$J$499,8,0)*0.02 -> 0.492933251 | BA37: =VLOOKUP(BA3,Baselines!$C$12:$J$499,8,0)*0.02 -> 1.881796212 | BB37: =VLOOKUP(BB3,Baselines!$C$12:$J$499,8,0)*0.02 -> 0.8316750053 | BC37: =VLOOKUP(BC3,Baselines!$C$12:$J$499,8,0)*0.02 -> 1.452371463 | BD37: =VLOOKUP(BD3,Baselines!$C$12:$J$499,8,0)*0.02 -> 1.128184141 | BE37: =VLOOKUP(BE3,Baselines!$C$12:$J$499,8,0)*0.02 -> 0.5650988239 | BF37: =VLOOKUP(BF3,Baselines!$C$12:$J$499,8,0)*0.02 -> 0.7247531235
A38: =VLOOKUP(A4,Baselines!$C$12:$J$499,8,0)*0.18 -> 2.582387396 | B38: =VLOOKUP(B4,Baselines!$C$12:$J$499,8,0)*0.18 -> 2.099932769 | C38: =VLOOKUP(C4,Baselines!$C$12:$J$499,8,0)*0.2 -> 3.963909899 | D38: =VLOOKUP(D4,Baselines!$C$12:$J$499,8,0)*0.18 -> 3.055940708 | E38: =VLOOKUP(E4,Baselines!$C$12:$J$499,8,0)*0.18 -> 1.314822263 | F38: =VLOOKUP(F4,Baselines!$C$12:$J$499,8,0)*0.18 -> 1.264506119 | G38: =VLOOKUP(G4,Baselines!$C$12:$J$499,8,0)*0.18 -> 2.03000469 | H38: =VLOOKUP(H4,Baselines!$C$12:$J$499,8,0)*0.18 -> 2.611782026 | I38: =VLOOKUP(I4,Baselines!$C$12:$J$499,8,0)*0.4 -> 12.11838512 | J38: =VLOOKUP(J4,Baselines!$C$12:$J$499,8,0)*0.2 -> 1.131777457 | K38: =VLOOKUP(K4,Baselines!$C$12:$J$499,8,0)*0.18 -> 4.907007475 | L38: =VLOOKUP(L4,Baselines!$C$12:$J$499,8,0)*0.18 -> 3.118424546 | M38: =VLOOKUP(M4,Baselines!$C$12:$J$499,8,0)*0.2 -> 4.311149328 | N38: =VLOOKUP(N4,Baselines!$C$12:$J$499,8,0)*0.18 -> 7.085394748 | O38: =VLOOKUP(O4,Baselines!$C$12:$J$499,8,0)*0.18 -> 2.151611635 | P38: =VLOOKUP(P4,Baselines!$C$12:$J$499,8,0)*0.18 -> 2.92815211 | Q38: =VLOOKUP(Q4,Baselines!$C$12:$J$499,8,0)*0.2 -> 3.92003161 | R38: =VLOOKUP(R4,Baselines!$C$12:$J$499,8,0)*0.2 -> 2.921884141 | S38: =VLOOKUP(S4,Baselines!$C$12:$J$499,8,0)*0.18 -> 5.267092047 | T38: =VLOOKUP(T4,Baselines!$C$12:$J$499,8,0)*0.2 -> 1.933384076 | U38: =VLOOKUP(U4,Baselines!$C$12:$J$499,8,0)*0.18 -> 2.118948691 | V38: =VLOOKUP(V4,Baselines!$C$12:$J$499,8,0)*0.2 -> 4.148934845 | W38: =VLOOKUP(W4,Baselines!$C$12:$J$499,8,0)*0.18 -> 3.741677036 | X38: =VLOOKUP(X4,Baselines!$C$12:$J$499,8,0)*0.18 -> 2.836422147 | Y38: =VLOOKUP(Y4,Baselines!$C$12:$J$499,8,0)*0.2 -> 5.265336428 | Z38: =VLOOKUP(Z4,Baselines!$C$12:$J$499,8,0)*0.2 -> 7.391457339 | AA38: =VLOOKUP(AA4,Baselines!$C$12:$J$499,8,0)*0.2 -> 3.813259544 | AB38: =VLOOKUP(AB4,Baselines!$C$12:$J$499,8,0)*0.2 -> 4.173660464 | AC38: =VLOOKUP(AC4,Baselines!$C$12:$J$499,8,0)*0.02 -> 0.5603691555 | AD38: =VLOOKUP(AD4,Baselines!$C$12:$J$499,8,0)*0.02 -> 0.65766755 | AE38: =VLOOKUP(AE4,Baselines!$C$12:$J$499,8,0)*0.02 -> 0.9013660489 | AF38: =VLOOKUP(AF4,Baselines!$C$12:$J$499,8,0)*0.02 -> 1.372240156 | AG38: =VLOOKUP(AG4,Baselines!$C$12:$J$499,8,0)*0.02 -> 0.2333258632 | AH38: =VLOOKUP(AH4,Baselines!$C$12:$J$499,8,0)*0.02 -> 0.4973465382 | AI38: =VLOOKUP(AI4,Baselines!$C$12:$J$499,8,0)*0.02 -> 0.476449034 | AJ38: =VLOOKUP(AJ4,Baselines!$C$12:$J$499,8,0)*0.02 -> 0.3395489675 | AK38: =VLOOKUP(AK4,Baselines!$C$12:$J$499,8,0)*0.02 -> 0.2079316714 | AM38: =VLOOKUP(AM4,Baselines!$C$12:$J$499,8,0)*0.02 -> 0.2115790106 | AN38: =VLOOKUP(AN4,Baselines!$C$12:$J$499,8,0)*0.02 -> 0.2901980029 | AO38: =VLOOKUP(AO4,Baselines!$C$12:$J$499,8,0)*0.02 -> 0.5452230528 | AP38: =VLOOKUP(AP4,Baselines!$C$12:$J$499,8,0)*0.02 -> 0.1556314038 | AQ38: =VLOOKUP(AQ4,Baselines!$C$12:$J$499,8,0)*0.02 -> 0.6389472743 | AR38: =VLOOKUP(AR4,Baselines!$C$12:$J$499,8,0)*0.02 -> 0.7872660831 | AS38: =VLOOKUP(AS4,Baselines!$C$12:$J$499,8,0)*0.02 -> 0.2643199866 | AT38: =VLOOKUP(AT4,Baselines!$C$12:$J$499,8,0)*0.02 -> 0.3253502344 | AU38: =VLOOKUP(AU4,Baselines!$C$12:$J$499,8,0)*0.02 -> 0.5852324497 | AV38: =VLOOKUP(AV4,Baselines!$C$12:$J$499,8,0)*0.02 -> 0.2354387434 | AX38: =VLOOKUP(AX4,Baselines!$C$12:$J$499,8,0)*0.02 -> 0.3151580163 | AZ38: =VLOOKUP(AZ4,Baselines!$C$12:$J$499,8,0)*0.02 -> 3.039553515 | BA38: =VLOOKUP(BA4,Baselines!$C$12:$J$499,8,0)*0.02 -> 0.6811889909 | BB38: =VLOOKUP(BB4,Baselines!$C$12:$J$499,8,0)*0.02 -> 0.7000901559 | BC38: =VLOOKUP(BC4,Baselines!$C$12:$J$499,8,0)*0.02 -> 0.5558005828 | BD38: =VLOOKUP(BD4,Baselines!$C$12:$J$499,8,0)*0.02 -> 0.9299585191 | BE38: =VLOOKUP(BE4,Baselines!$C$12:$J$499,8,0)*0.02 -> 1.05656273 | BF38: =VLOOKUP(BF4,Baselines!$C$12:$J$499,8,0)*0.02 -> 0.3031280633
A39: =VLOOKUP(A5,Baselines!$C$12:$J$499,8,0)*0.18 -> 6.029683236 | B39: =VLOOKUP(B5,Baselines!$C$12:$J$499,8,0)*0.18 -> 4.978917895 | C39: =VLOOKUP(C5,Baselines!$C$12:$J$499,8,0)*0.2 -> 3.972725491 | D39: =VLOOKUP(D5,Baselines!$C$12:$J$499,8,0)*0.18 -> 1.51175627 | E39: =VLOOKUP(E5,Baselines!$C$12:$J$499,8,0)*0.18 -> 2.811864119 | F39: =VLOOKUP(F5,Baselines!$C$12:$J$499,8,0)*0.18 -> 1.527557476 | G39: =VLOOKUP(G5,Baselines!$C$12:$J$499,8,0)*0.18 -> 1.454476855 | H39: =VLOOKUP(H5,Baselines!$C$12:$J$499,8,0)*0.18 -> 1.309176672 | I39: =VLOOKUP(I5,Baselines!$C$12:$J$499,8,0)*0.4 -> 20.41557532 | J39: =VLOOKUP(J5,Baselines!$C$12:$J$499,8,0)*0.2 -> 4.780288302 | K39: =VLOOKUP(K5,Baselines!$C$12:$J$499,8,0)*0.18 -> 3.6596778 | L39: =VLOOKUP(L5,Baselines!$C$12:$J$499,8,0)*0.18 -> 3.475691118 | M39: =VLOOKUP(M5,Baselines!$C$12:$J$499,8,0)*0.2 -> 4.225991228 | N39: =VLOOKUP(N5,Baselines!$C$12:$J$499,8,0)*0.18 -> 3.005810007 | O39: =VLOOKUP(O5,Baselines!$C$12:$J$499,8,0)*0.18 -> 1.795189013 | P39: =VLOOKUP(P5,Baselines!$C$12:$J$499,8,0)*0.18 -> 2.452778438 | Q39: =VLOOKUP(Q5,Baselines!$C$12:$J$499,8,0)*0.2 -> 2.163950625 | R39: =VLOOKUP(R5,Baselines!$C$12:$J$499,8,0)*0.2 -> 4.019903983 | S39: =VLOOKUP(S5,Baselines!$C$12:$J$499,8,0)*0.18 -> 1.103735324 | T39: =VLOOKUP(T5,Baselines!$C$12:$J$499,8,0)*0.2 -> 2.714173889 | U39: =VLOOKUP(U5,Baselines!$C$12:$J$499,8,0)*0.18 -> 1.79192979 | V39: =VLOOKUP(V5,Baselines!$C$12:$J$499,8,0)*0.2 -> 5.541885051 | W39: =VLOOKUP(W5,Baselines!$C$12:$J$499,8,0)*0.18 -> 3.505489261 | X39: =VLOOKUP(X5,Baselines!$C$12:$J$499,8,0)*0.18 -> 2.793363702 | Y39: =VLOOKUP(Y5,Baselines!$C$12:$J$499,8,0)*0.2 -> 2.075305041 | Z39: =VLOOKUP(Z5,Baselines!$C$12:$J$499,8,0)*0.2 -> 3.486124655 | AA39: =VLOOKUP(AA5,Baselines!$C$12:$J$499,8,0)*0.2 -> 5.013507742 | AB39: =VLOOKUP(AB5,Baselines!$C$12:$J$499,8,0)*0.2 -> 10.822174 | AC39: =VLOOKUP(AC5,Baselines!$C$12:$J$499,8,0)*0.02 -> 1.276725516 | AE39: =VLOOKUP(AE5,Baselines!$C$12:$J$499,8,0)*0.02 -> 0.762249423 | AF39: =VLOOKUP(AF5,Baselines!$C$12:$J$499,8,0)*0.02 -> 0.2869319329 | AG39: =VLOOKUP(AG5,Baselines!$C$12:$J$499,8,0)*0.02 -> 0.5532130994 | AH39: =VLOOKUP(AH5,Baselines!$C$12:$J$499,8,0)*0.02 -> 1.019549268 | AI39: =VLOOKUP(AI5,Baselines!$C$12:$J$499,8,0)*0.02 -> 0.7562717748 | AJ39: =VLOOKUP(AJ5,Baselines!$C$12:$J$499,8,0)*0.02 -> 0.7705535836 | AK39: =VLOOKUP(AK5,Baselines!$C$12:$J$499,8,0)*0.02 -> 0.1405006799 | AM39: =VLOOKUP(AM5,Baselines!$C$12:$J$499,8,0)*0.02 -> 0.2255560766 | AN39: =VLOOKUP(AN5,Baselines!$C$12:$J$499,8,0)*0.02 -> 0.1454640746 | AO39: =VLOOKUP(AO5,Baselines!$C$12:$J$499,8,0)*0.02 -> 0.4066308667 | AP39: =VLOOKUP(AP5,Baselines!$C$12:$J$499,8,0)*0.02 -> 0.3464916162 | AQ39: =VLOOKUP(AQ5,Baselines!$C$12:$J$499,8,0)*0.02 -> 0.7842769556 | AR39: =VLOOKUP(AR5,Baselines!$C$12:$J$499,8,0)*0.02 -> 0.3339788897 | AS39: =VLOOKUP(AS5,Baselines!$C$12:$J$499,8,0)*0.02 -> 0.2517198712 | AT39: =VLOOKUP(AT5,Baselines!$C$12:$J$499,8,0)*0.02 -> 0.2725309375 | AU39: =VLOOKUP(AU5,Baselines!$C$12:$J$499,8,0)*0.02 -> 0.1226372582 | AV39: =VLOOKUP(AV5,Baselines!$C$12:$J$499,8,0)*0.02 -> 0.19910331 | AX39: =VLOOKUP(AX5,Baselines!$C$12:$J$499,8,0)*0.02 -> 0.3103737446 | AZ39: =VLOOKUP(AZ5,Baselines!$C$12:$J$499,8,0)*0.02 -> 0.5661019583 | BA39: =VLOOKUP(BA5,Baselines!$C$12:$J$499,8,0)*0.02 -> 0.4705261294 | BB39: =VLOOKUP(BB5,Baselines!$C$12:$J$499,8,0)*0.02 -> 2.013706923 | BC39: =VLOOKUP(BC5,Baselines!$C$12:$J$499,8,0)*0.02 -> 0.2924771366 | BD39: =VLOOKUP(BD5,Baselines!$C$12:$J$499,8,0)*0.02 -> 0.9375564637 | BE39: =VLOOKUP(BE5,Baselines!$C$12:$J$499,8,0)*0.02 -> 3.470403683 | BF39: =VLOOKUP(BF5,Baselines!$C$12:$J$499,8,0)*0.02 -> 0.1460913626
B40: =VLOOKUP(B6,Baselines!$C$12:$J$499,8,0)*0.18 -> 5.728735019 | C40: =VLOOKUP(C6,Baselines!$C$12:$J$499,8,0)*0.2 -> 1.918198095 | D40: =VLOOKUP(D6,Baselines!$C$12:$J$499,8,0)*0.18 -> 2.076134358 | E40: =VLOOKUP(E6,Baselines!$C$12:$J$499,8,0)*0.18 -> 2.816769658 | F40: =VLOOKUP(F6,Baselines!$C$12:$J$499,8,0)*0.18 -> 2.589811152 | G40: =VLOOKUP(G6,Baselines!$C$12:$J$499,8,0)*0.18 -> 2.596827736 | H40: =VLOOKUP(H6,Baselines!$C$12:$J$499,8,0)*0.18 -> 6.749239832 | I40: =VLOOKUP(I6,Baselines!$C$12:$J$499,8,0)*0.4 -> 16.02192537 | J40: =VLOOKUP(J6,Baselines!$C$12:$J$499,8,0)*0.2 -> 2.37735245 | K40: =VLOOKUP(K6,Baselines!$C$12:$J$499,8,0)*0.18 -> 1.248524451 | L40: =VLOOKUP(L6,Baselines!$C$12:$J$499,8,0)*0.18 -> 3.430836662 | M40: =VLOOKUP(M6,Baselines!$C$12:$J$499,8,0)*0.2 -> 3.661783393 | N40: =VLOOKUP(N6,Baselines!$C$12:$J$499,8,0)*0.18 -> 1.968565933 | O40: =VLOOKUP(O6,Baselines!$C$12:$J$499,8,0)*0.18 -> 5.407510482 | P40: =VLOOKUP(P6,Baselines!$C$12:$J$499,8,0)*0.18 -> 1.117593505 | Q40: =VLOOKUP(Q6,Baselines!$C$12:$J$499,8,0)*0.2 -> 2.341624061 | R40: =VLOOKUP(R6,Baselines!$C$12:$J$499,8,0)*0.2 -> 2.328309095 | S40: =VLOOKUP(S6,Baselines!$C$12:$J$499,8,0)*0.18 -> 1.43327516 | T40: =VLOOKUP(T6,Baselines!$C$12:$J$499,8,0)*0.2 -> 9.366948739 | U40: =VLOOKUP(U6,Baselines!$C$12:$J$499,8,0)*0.18 -> 2.339198778 | V40: =VLOOKUP(V6,Baselines!$C$12:$J$499,8,0)*0.2 -> 2.947141845 | W40: =VLOOKUP(W6,Baselines!$C$12:$J$499,8,0)*0.18 -> 0.893962227 | X40: =VLOOKUP(X6,Baselines!$C$12:$J$499,8,0)*0.18 -> 1.722401734 | Y40: =VLOOKUP(Y6,Baselines!$C$12:$J$499,8,0)*0.2 -> 4.3800917 | Z40: =VLOOKUP(Z6,Baselines!$C$12:$J$499,8,0)*0.2 -> 4.688069645 | AA40: =VLOOKUP(AA6,Baselines!$C$12:$J$499,8,0)*0.2 -> 6.259737728 | AB40: =VLOOKUP(AB6,Baselines!$C$12:$J$499,8,0)*0.2 -> 3.806364371 | AE40: =VLOOKUP(AE6,Baselines!$C$12:$J$499,8,0)*0.02 -> 0.7421760186 | AF40: =VLOOKUP(AF6,Baselines!$C$12:$J$499,8,0)*0.02 -> 0.669964804 | AG40: =VLOOKUP(AG6,Baselines!$C$12:$J$499,8,0)*0.02 -> 0.8802114417 | AJ40: =VLOOKUP(AJ6,Baselines!$C$12:$J$499,8,0)*0.02 -> 0.1679729189 | AK40: =VLOOKUP(AK6,Baselines!$C$12:$J$499,8,0)*0.02 -> 0.5947053389 | AM40: =VLOOKUP(AM6,Baselines!$C$12:$J$499,8,0)*0.02 -> 0.1616085394 | AN40: =VLOOKUP(AN6,Baselines!$C$12:$J$499,8,0)*0.02 -> 0.7499155369 | AO40: =VLOOKUP(AO6,Baselines!$C$12:$J$499,8,0)*0.02 -> 0.138724939 | AP40: =VLOOKUP(AP6,Baselines!$C$12:$J$499,8,0)*0.02 -> 0.386187902 | AR40: =VLOOKUP(AR6,Baselines!$C$12:$J$499,8,0)*0.02 -> 0.2187295481 | AS40: =VLOOKUP(AS6,Baselines!$C$12:$J$499,8,0)*0.02 -> 0.2390679594 | AT40: =VLOOKUP(AT6,Baselines!$C$12:$J$499,8,0)*0.02 -> 0.9451083699 | AU40: =VLOOKUP(AU6,Baselines!$C$12:$J$499,8,0)*0.02 -> 0.1592527956 | AV40: =VLOOKUP(AV6,Baselines!$C$12:$J$499,8,0)*0.02 -> 0.2599109754 | AX40: =VLOOKUP(AX6,Baselines!$C$12:$J$499,8,0)*0.02 -> 0.1913779705 | AZ40: =VLOOKUP(AZ6,Baselines!$C$12:$J$499,8,0)*0.02 -> 0.5912386851 | BA40: =VLOOKUP(BA6,Baselines!$C$12:$J$499,8,0)*0.02 -> 0.6412985031 | BC40: =VLOOKUP(BC6,Baselines!$C$12:$J$499,8,0)*0.02 -> 0.8247871815 | BD40: =VLOOKUP(BD6,Baselines!$C$12:$J$499,8,0)*0.02 -> 1.049657261 | BE40: =VLOOKUP(BE6,Baselines!$C$12:$J$499,8,0)*0.02 -> 1.150113262 | BF40: =VLOOKUP(BF6,Baselines!$C$12:$J$499,8,0)*0.02 -> 0.3124293466
C41: =VLOOKUP(C7,Baselines!$C$12:$J$499,8,0)*0.2 -> 3.8850145 | D41: =VLOOKUP(D7,Baselines!$C$12:$J$499,8,0)*0.18 -> 2.022186881 | E41: =VLOOKUP(E7,Baselines!$C$12:$J$499,8,0)*0.18 -> 2.694263886 | F41: =VLOOKUP(F7,Baselines!$C$12:$J$499,8,0)*0.18 -> 1.445371057 | H41: =VLOOKUP(H7,Baselines!$C$12:$J$499,8,0)*0.18 -> 5.171517033 | I41: =VLOOKUP(I7,Baselines!$C$12:$J$499,8,0)*0.4 -> 95.02989923 | J41: =VLOOKUP(J7,Baselines!$C$12:$J$499,8,0)*0.2 -> 3.321410509 | K41: =VLOOKUP(K7,Baselines!$C$12:$J$499,8,0)*0.18 -> 2.559978528 | L41: =VLOOKUP(L7,Baselines!$C$12:$J$499,8,0)*0.18 -> 2.489734446 | M41: =VLOOKUP(M7,Baselines!$C$12:$J$499,8,0)*0.2 -> 6.209133605 | N41: =VLOOKUP(N7,Baselines!$C$12:$J$499,8,0)*0.18 -> 4.861819208 | O41: =VLOOKUP(O7,Baselines!$C$12:$J$499,8,0)*0.18 -> 1.679499823 | P41: =VLOOKUP(P7,Baselines!$C$12:$J$499,8,0)*0.18 -> 4.117750626 | Q41: =VLOOKUP(Q7,Baselines!$C$12:$J$499,8,0)*0.2 -> 3.872952103 | R41: =VLOOKUP(R7,Baselines!$C$12:$J$499,8,0)*0.2 -> 7.536077928 | S41: =VLOOKUP(S7,Baselines!$C$12:$J$499,8,0)*0.18 -> 2.811672247 | T41: =VLOOKUP(T7,Baselines!$C$12:$J$499,8,0)*0.2 -> 1.938243842 | U41: =VLOOKUP(U7,Baselines!$C$12:$J$499,8,0)*0.18 -> 2.985609267 | X41: =VLOOKUP(X7,Baselines!$C$12:$J$499,8,0)*0.18 -> 3.668004934 | Y41: =VLOOKUP(Y7,Baselines!$C$12:$J$499,8,0)*0.2 -> 4.713757327 | Z41: =VLOOKUP(Z7,Baselines!$C$12:$J$499,8,0)*0.2 -> 4.210421846 | AB41: =VLOOKUP(AB7,Baselines!$C$12:$J$499,8,0)*0.2 -> 4.045245951 | AE41: =VLOOKUP(AE7,Baselines!$C$12:$J$499,8,0)*0.02 -> 0.5203243601 | AG41: =VLOOKUP(AG7,Baselines!$C$12:$J$499,8,0)*0.02 -> 0.6365261133 | AJ41: =VLOOKUP(AJ7,Baselines!$C$12:$J$499,8,0)*0.02 -> 0.2306815953 | AK41: =VLOOKUP(AK7,Baselines!$C$12:$J$499,8,0)*0.02 -> 0.1697286085 | AM41: =VLOOKUP(AM7,Baselines!$C$12:$J$499,8,0)*0.02 -> 0.2885364151 | AN41: =VLOOKUP(AN7,Baselines!$C$12:$J$499,8,0)*0.02 -> 0.5746130037 | AO41: =VLOOKUP(AO7,Baselines!$C$12:$J$499,8,0)*0.02 -> 0.2844420587 | AP41: =VLOOKUP(AP7,Baselines!$C$12:$J$499,8,0)*0.02 -> 0.3812040735 | AR41: =VLOOKUP(AR7,Baselines!$C$12:$J$499,8,0)*0.02 -> 0.5402021342 | AS41: =VLOOKUP(AS7,Baselines!$C$12:$J$499,8,0)*0.02 -> 0.1994654459 | AT41: =VLOOKUP(AT7,Baselines!$C$12:$J$499,8,0)*0.02 -> 0.1241770561 | AU41: =VLOOKUP(AU7,Baselines!$C$12:$J$499,8,0)*0.02 -> 0.3124080275 | AV41: =VLOOKUP(AV7,Baselines!$C$12:$J$499,8,0)*0.02 -> 0.331734363 | AX41: =VLOOKUP(AX7,Baselines!$C$12:$J$499,8,0)*0.02 -> 0.4075561037 | AZ41: =VLOOKUP(AZ7,Baselines!$C$12:$J$499,8,0)*0.02 -> 0.7950848967 | BD41: =VLOOKUP(BD7,Baselines!$C$12:$J$499,8,0)*0.02 -> 0.6818069049 | BF41: =VLOOKUP(BF7,Baselines!$C$12:$J$499,8,0)*0.02 -> 0.8600355936
D42: =VLOOKUP(D8,Baselines!$C$12:$J$499,8,0)*0.18 -> 1.196570233 | E42: =VLOOKUP(E8,Baselines!$C$12:$J$499,8,0)*0.18 -> 0.9463050586 | H42: =VLOOKUP(H8,Baselines!$C$12:$J$499,8,0)*0.18 -> 2.869950229 | I42: =VLOOKUP(I8,Baselines!$C$12:$J$499,8,0)*0.4 -> 150.2915307 | K42: =VLOOKUP(K8,Baselines!$C$12:$J$499,8,0)*0.18 -> 2.772260702 | M42: =VLOOKUP(M8,Baselines!$C$12:$J$499,8,0)*0.2 -> 4.469109282 | N42: =VLOOKUP(N8,Baselines!$C$12:$J$499,8,0)*0.18 -> 3.053493907 | O42: =VLOOKUP(O8,Baselines!$C$12:$J$499,8,0)*0.18 -> 5.802169591 | P42: =VLOOKUP(P8,Baselines!$C$12:$J$499,8,0)*0.18 -> 1.063690708 | Q42: =VLOOKUP(Q8,Baselines!$C$12:$J$499,8,0)*0.2 -> 1.49343009 | R42: =VLOOKUP(R8,Baselines!$C$12:$J$499,8,0)*0.2 -> 2.647683641 | S42: =VLOOKUP(S8,Baselines!$C$12:$J$499,8,0)*0.18 -> 3.6660422 | T42: =VLOOKUP(T8,Baselines!$C$12:$J$499,8,0)*0.2 -> 2.60809343 | U42: =VLOOKUP(U8,Baselines!$C$12:$J$499,8,0)*0.18 -> 2.386310457 | X42: =VLOOKUP(X8,Baselines!$C$12:$J$499,8,0)*0.18 -> 1.536751168 | Y42: =VLOOKUP(Y8,Baselines!$C$12:$J$499,8,0)*0.2 -> 2.572934671 | Z42: =VLOOKUP(Z8,Baselines!$C$12:$J$499,8,0)*0.2 -> 3.813381611 | AB42: =VLOOKUP(AB8,Baselines!$C$12:$J$499,8,0)*0.2 -> 2.993332039 | AJ42: =VLOOKUP(AJ8,Baselines!$C$12:$J$499,8,0)*0.02 -> 0.2246874312 | AK42: =VLOOKUP(AK8,Baselines!$C$12:$J$499,8,0)*0.02 -> 0.2877567947 | AN42: =VLOOKUP(AN8,Baselines!$C$12:$J$499,8,0)*0.02 -> 0.3188833587 | AO42: =VLOOKUP(AO8,Baselines!$C$12:$J$499,8,0)*0.02 -> 0.3080289669 | AP42: =VLOOKUP(AP8,Baselines!$C$12:$J$499,8,0)*0.02 -> 0.2766371607 | AR42: =VLOOKUP(AR8,Baselines!$C$12:$J$499,8,0)*0.02 -> 0.8511434226 | AS42: =VLOOKUP(AS8,Baselines!$C$12:$J$499,8,0)*0.02 -> 0.600834498 | AT42: =VLOOKUP(AT8,Baselines!$C$12:$J$499,8,0)*0.02 -> 0.4575278474 | AU42: =VLOOKUP(AU8,Baselines!$C$12:$J$499,8,0)*0.02 -> 0.4073380222 | AV42: =VLOOKUP(AV8,Baselines!$C$12:$J$499,8,0)*0.02 -> 1.185411421 | AX42: =VLOOKUP(AX8,Baselines!$C$12:$J$499,8,0)*0.02 -> 0.1707501297 | AZ42: =VLOOKUP(AZ8,Baselines!$C$12:$J$499,8,0)*0.02 -> 0.8875777026 | BD42: =VLOOKUP(BD8,Baselines!$C$12:$J$499,8,0)*0.02 -> 0.7152958167 | BF42: =VLOOKUP(BF8,Baselines!$C$12:$J$499,8,0)*0.02 -> 0.3315759922
D43: =VLOOKUP(D9,Baselines!$C$12:$J$499,8,0)*0.18 -> 1.838835667 | E43: =VLOOKUP(E9,Baselines!$C$12:$J$499,8,0)*0.18 -> 0.9722670323 | H43: =VLOOKUP(H9,Baselines!$C$12:$J$499,8,0)*0.18 -> 4.016899304 | I43: =VLOOKUP(I9,Baselines!$C$12:$J$499,8,0)*0.4 -> 21.97476591 | K43: =VLOOKUP(K9,Baselines!$C$12:$J$499,8,0)*0.18 -> 5.592892568 | M43: =VLOOKUP(M9,Baselines!$C$12:$J$499,8,0)*0.2 -> 2.515982564 | N43: =VLOOKUP(N9,Baselines!$C$12:$J$499,8,0)*0.18 -> 2.10904747 | O43: =VLOOKUP(O9,Baselines!$C$12:$J$499,8,0)*0.18 -> 1.202944308 | X43: =VLOOKUP(X9,Baselines!$C$12:$J$499,8,0)*0.18 -> 2.744819996 | Z43: =VLOOKUP(Z9,Baselines!$C$12:$J$499,8,0)*0.2 -> 3.275118021 | AJ43: =VLOOKUP(AJ9,Baselines!$C$12:$J$499,8,0)*0.02 -> 0.1329522481 | AK43: =VLOOKUP(AK9,Baselines!$C$12:$J$499,8,0)*0.02 -> 0.1605967842 | AN43: =VLOOKUP(AN9,Baselines!$C$12:$J$499,8,0)*0.02 -> 0.4463221449 | AO43: =VLOOKUP(AO9,Baselines!$C$12:$J$499,8,0)*0.02 -> 0.6214325076 | AR43: =VLOOKUP(AR9,Baselines!$C$12:$J$499,8,0)*0.02 -> 0.3392771008 | AS43: =VLOOKUP(AS9,Baselines!$C$12:$J$499,8,0)*0.02 -> 0.1866110914 | AT43: =VLOOKUP(AT9,Baselines!$C$12:$J$499,8,0)*0.02 -> 0.1181878565 | AU43: =VLOOKUP(AU9,Baselines!$C$12:$J$499,8,0)*0.02 -> 0.9204441953 | AV43: =VLOOKUP(AV9,Baselines!$C$12:$J$499,8,0)*0.02 -> 0.2651456063 | AX43: =VLOOKUP(AX9,Baselines!$C$12:$J$499,8,0)*0.02 -> 0.8001277305 | AZ43: =VLOOKUP(AZ9,Baselines!$C$12:$J$499,8,0)*0.02 -> 0.5353363727 | BF43: =VLOOKUP(BF9,Baselines!$C$12:$J$499,8,0)*0.02 -> 0.3129744065
H44: =VLOOKUP(H10,Baselines!$C$12:$J$499,8,0)*0.18 -> 1.127881648 | I44: =VLOOKUP(I10,Baselines!$C$12:$J$499,8,0)*0.4 -> 26.12676267 | K44: =VLOOKUP(K10,Baselines!$C$12:$J$499,8,0)*0.18 -> 3.755050026 | M44: =VLOOKUP(M10,Baselines!$C$12:$J$499,8,0)*0.2 -> 6.537302404 | N44: =VLOOKUP(N10,Baselines!$C$12:$J$499,8,0)*0.18 -> 3.337773317 | O44: =VLOOKUP(O10,Baselines!$C$12:$J$499,8,0)*0.18 -> 1.138397512 | Z44: =VLOOKUP(Z10,Baselines!$C$12:$J$499,8,0)*0.2 -> 2.013279322 | AJ44: =VLOOKUP(AJ10,Baselines!$C$12:$J$499,8,0)*0.02 -> 0.2043150742 | AN44: =VLOOKUP(AN10,Baselines!$C$12:$J$499,8,0)*0.02 -> 0.1253201831 | AO44: =VLOOKUP(AO10,Baselines!$C$12:$J$499,8,0)*0.02 -> 0.777323002 | AR44: =VLOOKUP(AR10,Baselines!$C$12:$J$499,8,0)*0.02 -> 0.2343386077 | AS44: =VLOOKUP(AS10,Baselines!$C$12:$J$499,8,0)*0.02 -> 0.6446855102 | AT44: =VLOOKUP(AT10,Baselines!$C$12:$J$499,8,0)*0.02 -> 0.0949285061 | AX44: =VLOOKUP(AX10,Baselines!$C$12:$J$499,8,0)*0.02 -> 0.3049799996 | AZ44: =VLOOKUP(AZ10,Baselines!$C$12:$J$499,8,0)*0.02 -> 1.516337489 | BF44: =VLOOKUP(BF10,Baselines!$C$12:$J$499,8,0)*0.02 -> 0.4157418929
H45: =VLOOKUP(H11,Baselines!$C$12:$J$499,8,0)*0.18 -> 1.390502657 | I45: =VLOOKUP(I11,Baselines!$C$12:$J$499,8,0)*0.4 -> 20.55614665 | K45: =VLOOKUP(K11,Baselines!$C$12:$J$499,8,0)*0.18 -> 4.002778076 | M45: =VLOOKUP(M11,Baselines!$C$12:$J$499,8,0)*0.2 -> 5.387306132 | N45: =VLOOKUP(N11,Baselines!$C$12:$J$499,8,0)*0.18 -> 2.846055593 | O45: =VLOOKUP(O11,Baselines!$C$12:$J$499,8,0)*0.18 -> 3.028765204 | Z45: =VLOOKUP(Z11,Baselines!$C$12:$J$499,8,0)*0.2 -> 3.466848054 | AN45: =VLOOKUP(AN11,Baselines!$C$12:$J$499,8,0)*0.02 -> 0.1545002952 | AO45: =VLOOKUP(AO11,Baselines!$C$12:$J$499,8,0)*0.02 -> 0.4172277806 | AR45: =VLOOKUP(AR11,Baselines!$C$12:$J$499,8,0)*0.02 -> 0.3708637018 | AS45: =VLOOKUP(AS11,Baselines!$C$12:$J$499,8,0)*0.02 -> 0.1336604787 | AZ45: =VLOOKUP(AZ11,Baselines!$C$12:$J$499,8,0)*0.02 -> 0.7527821782 | BF45: =VLOOKUP(BF11,Baselines!$C$12:$J$499,8,0)*0.02 -> 0.3894988068
H46: =VLOOKUP(H12,Baselines!$C$12:$J$499,8,0)*0.18 -> 2.139831049 | I46: =VLOOKUP(I12,Baselines!$C$12:$J$499,8,0)*0.4 -> 11.8792065 | K46: =VLOOKUP(K12,Baselines!$C$12:$J$499,8,0)*0.18 -> 4.422621514 | N46: =VLOOKUP(N12,Baselines!$C$12:$J$499,8,0)*0.18 -> 4.81620626 | O46: =VLOOKUP(O12,Baselines!$C$12:$J$499,8,0)*0.18 -> 2.720518648 | Z46: =VLOOKUP(Z12,Baselines!$C$12:$J$499,8,0)*0.2 -> 4.21345778 | AN46: =VLOOKUP(AN12,Baselines!$C$12:$J$499,8,0)*0.02 -> 0.4436394379 | AO46: =VLOOKUP(AO12,Baselines!$C$12:$J$499,8,0)*0.02 -> 0.955267559 | AR46: =VLOOKUP(AR12,Baselines!$C$12:$J$499,8,0)*0.02 -> 0.3162283993 | AS46: =VLOOKUP(AS12,Baselines!$C$12:$J$499,8,0)*0.02 -> 0.1264886125 | BF46: =VLOOKUP(BF12,Baselines!$C$12:$J$499,8,0)*0.02 -> 0.299362654
H47: =VLOOKUP(H13,Baselines!$C$12:$J$499,8,0)*0.18 -> 3.485224051 | I47: =VLOOKUP(I13,Baselines!$C$12:$J$499,8,0)*0.4 -> 16.84499058 | N47: =VLOOKUP(N13,Baselines!$C$12:$J$499,8,0)*0.18 -> 4.322033337 | O47: =VLOOKUP(O13,Baselines!$C$12:$J$499,8,0)*0.18 -> 2.249233996 | AN47: =VLOOKUP(AN13,Baselines!$C$12:$J$499,8,0)*0.02 -> 0.2377590055 | AO47: =VLOOKUP(AO13,Baselines!$C$12:$J$499,8,0)*0.02 -> 0.4447531196 | AR47: =VLOOKUP(AR13,Baselines!$C$12:$J$499,8,0)*0.02 -> 0.5351340289 | AS47: =VLOOKUP(AS13,Baselines!$C$12:$J$499,8,0)*0.02 -> 0.3365294671 | BF47: =VLOOKUP(BF13,Baselines!$C$12:$J$499,8,0)*0.02 -> 0.3679493244
I48: =VLOOKUP(I14,Baselines!$C$12:$J$499,8,0)*0.4 -> 37.90878982 | AN48: =VLOOKUP(AN14,Baselines!$C$12:$J$499,8,0)*0.02 -> 1.056941034 | AO48: =VLOOKUP(AO14,Baselines!$C$12:$J$499,8,0)*0.02 -> 0.4914023905 | AR48: =VLOOKUP(AR14,Baselines!$C$12:$J$499,8,0)*0.02 -> 0.4802259264 | AS48: =VLOOKUP(AS14,Baselines!$C$12:$J$499,8,0)*0.02 -> 0.3022798497 | BF48: =VLOOKUP(BF14,Baselines!$C$12:$J$499,8,0)*0.02 -> 0.1051450065
I49: =VLOOKUP(I15,Baselines!$C$12:$J$499,8,0)*0.4 -> 12.60985453 | AN49: =VLOOKUP(AN15,Baselines!$C$12:$J$499,8,0)*0.02 -> 0.3872471167 | AS49: =VLOOKUP(AS15,Baselines!$C$12:$J$499,8,0)*0.02 -> 0.2499148885 | BF49: =VLOOKUP(BF15,Baselines!$C$12:$J$499,8,0)*0.02 -> 0.1080296703
I50: =VLOOKUP(I16,Baselines!$C$12:$J$499,8,0)*0.4 -> 9.670782965 | BF50: =VLOOKUP(BF16,Baselines!$C$12:$J$499,8,0)*0.02 -> 0.09932913634
I51: =VLOOKUP(I17,Baselines!$C$12:$J$499,8,0)*0.4 -> 14.1046507
I52: =VLOOKUP(I18,Baselines!$C$12:$J$499,8,0)*0.4 -> 66.18598994
I53: =VLOOKUP(I19,Baselines!$C$12:$J$499,8,0)*0.4 -> 28.37454141
I54: =VLOOKUP(I20,Baselines!$C$12:$J$499,8,0)*0.4 -> 36.57372666
I55: =VLOOKUP(I21,Baselines!$C$12:$J$499,8,0)*0.4 -> 53.63929494
I56: =VLOOKUP(I22,Baselines!$C$12:$J$499,8,0)*0.4 -> 15.70973435
I57: =VLOOKUP(I23,Baselines!$C$12:$J$499,8,0)*0.4 -> 23.0081651
I58: =VLOOKUP(I24,Baselines!$C$12:$J$499,8,0)*0.4 -> 9.873142048
I59: =VLOOKUP(I25,Baselines!$C$12:$J$499,8,0)*0.4 -> 15.91183528
I60: =VLOOKUP(I26,Baselines!$C$12:$J$499,8,0)*0.4 -> 19.62365921
I61: =VLOOKUP(I27,Baselines!$C$12:$J$499,8,0)*0.4 -> 10.94872863
I62: =VLOOKUP(I28,Baselines!$C$12:$J$499,8,0)*0.4 -> 15.5602856
I63: =VLOOKUP(I29,Baselines!$C$12:$J$499,8,0)*0.4 -> 38.62861977
I64: =VLOOKUP(I30,Baselines!$C$12:$J$499,8,0)*0.4 -> 9.995329816
I65: =VLOOKUP(I31,Baselines!$C$12:$J$499,8,0)*0.4 -> 62.13046562
I66: =VLOOKUP(I32,Baselines!$C$12:$J$499,8,0)*0.4 -> 11.45054047
I67: =VLOOKUP(I33,Baselines!$C$12:$J$499,8,0)*0.4 -> 20.12273074
I68: =VLOOKUP(I34,Baselines!$C$12:$J$499,8,0)*0.4 -> 348.8066656
A69: =SUM(A36:A50) -> 14.64406111 | B69: =SUM(B36:B50) -> 22.42343381 | C69: 18.39188506 | D69: 16.07805328 | E69: 20.84232675 | F69: 10.25377604 | G69: 10.87771192 | H69: 41.09366384 | I69: 485.1728325 | J69: 19.69390584 | K69: 41.84137017 | L69: 16.24748357 | M69: 47.06814098 | N69: 45.81582466 | O69: 31.82019893 | P69: 18.97997872 | Q69: 18.69394916 | R69: 24.99470146 | S69: 18.16513276 | T69: 25.06877174 | U69: 18.50091692 | V69: 27.16531737 | W69: 13.85346502 | X69: 22.8553606 | Y69: 23.32236704 | Z69: 43.86268084 | AA69: 22.17034489 | AB69: 30.3746559 | AC69: 4.467681331 | AD69: 2.029304344 | AE69: 4.428951375 | AF69: 2.999358057 | AG69: 3.371704087 | AH69: 4.289042781 | AI69: 1.989914203 | AJ69: 2.557003948 | AK69: 2.384263383 | AL69: 1.41156313 | AM69: 2.230654435 | AN69: 6.06654312 | AO69: 6.381631691 | AP69: 2.253355939 | AQ69: 3.100757809 | AR69: 5.941790607 | AS69: 4.464678314 | AT69: 3.1489234 | AU69: 2.93879228 | AV69: 3.241068856 | AW69: 1.362630061 | AX69: 3.339612241 | AY69: 2.397403516 | AZ69: 10.01548966 | BA69: 4.069332201 | BB69: 4.041259767 | BC69: 3.973983527 | BD69: 9.353432166 | BE69: 7.613735485 | BF69: 5.083072893
A70: 0.18 | B70: 0.18 | C70: 0.2 | D70: 0.18 | E70: 0.18 | F70: 0.18 | G70: 0.18 | H70: 0.18 | I70: 0.4 | J70: 0.2 | K70: 0.18 | L70: 0.18 | M70: 0.2 | N70: 0.18 | O70: 0.18 | P70: 0.18 | Q70: 0.2 | R70: 0.2 | S70: 0.18 | T70: 0.2 | U70: 0.18 | V70: 0.2 | W70: 0.18 | X70: 0.18 | Y70: 0.2 | Z70: 0.2 | AA70: 0.2 | AB70: 0.2 | AC70: 0.02 | AD70: 0.02 | AE70: 0.02 | AF70: 0.02 | AG70: 0.02 | AH70: 0.02 | AI70: 0.02 | AJ70: 0.02 | AK70: 0.02 | AL70: 0.02 | AM70: 0.02 | AN70: 0.02 | AO70: 0.02 | AP70: 0.02 | AQ70: 0.02 | AR70: 0.02 | AS70: 0.02 | AT70: 0.02 | AU70: 0.02 | AV70: 0.02 | AW70: 0.02 | AX70: 0.02 | AY70: 0.02 | AZ70: 0.02 | BA70: 0.02 | BB70: 0.02 | BC70: 0.02 | BD70: 0.02 | BE70: 0.02 | BF70: 0.02
A71: 2013/14 USER ASSUMPTION
A72: Buckinghamshire | B72: Cambridgeshire | C72: Cumbria | D72: Derbyshire | E72: Devon | F72: Dorset | G72: East Sussex | H72: Essex | I72: GLA | J72: Gloucestershire | K72: Hampshire | L72: Worcestershire | M72: Hertfordshire | N72: Kent | O72: Lancashire | P72: Leicestershire | Q72: Lincolnshire | R72: Norfolk | S72: North Yorkshire | T72: Northamptonshire | U72: Nottinghamshire | V72: Oxfordshire | W72: Somerset | X72: Staffordshire | Y72: Suffolk | Z72: Surrey | AA72: Warwickshire | AB72: West Sussex | AC72: Avon Fire | AD72: Bedfordshire Fire | AE72: Berkshire Fire Authority | AF72: Buckinghamshire Fire | AG72: Cambridgeshire Fire | AH72: Cheshire Fire | AI72: Cleveland Fire | AJ72: Derbyshire Fire | AK72: Dorset Fire | AL72: Durham Fire | AM72: East Sussex Fire | AN72: Essex Fire Authority | AO72: Hampshire Fire | AP72: Hereford & Worcester Fire | AQ72: Humberside Fire | AR72: Kent Fire | AS72: Lancashire Fire | AT72: Leicestershire Fire | AU72: North Yorkshire Fire | AV72: Nottinghamshire Fire | AW72: Shropshire Fire | AX72: Staffordshire Fire | AY72: Wiltshire Fire | AZ72: Greater Manchester Fire | BA72: Merseyside Fire | BB72: South Yorkshire Fire | BC72: Tyne and Wear Fire | BD72: West Midlands Fire | BE72: West Yorkshire Fire | BF72: Devon and Somerset Fire
A73: =IF(ISERROR(VLOOKUP(A2,'Existing Pool'!$C$73:$M$140,4,0)),A36,VLOOKUP(A2,'Existing Pool'!$C$73:$M$140,4,0)*0.18) -> 4.25276281 | B73: =IF(ISERROR(VLOOKUP(B2,'Existing Pool'!$C$73:$M$140,4,0)),B36,VLOOKUP(B2,'Existing Pool'!$C$73:$M$140,4,0)*0.18) -> 8.103914667 | C73: =IF(ISERROR(VLOOKUP(C2,'Existing Pool'!$C$73:$M$140,4,0)),C36,VLOOKUP(C2,'Existing Pool'!$C$73:$M$140,4,0)*0.2) -> 2.457358016 | D73: =IF(ISERROR(VLOOKUP(D2,'Existing Pool'!$C$73:$M$140,4,0)),D36,VLOOKUP(D2,'Existing Pool'!$C$73:$M$140,4,0)*0.18) -> 2.593564533 | E73: =IF(ISERROR(VLOOKUP(E2,'Existing Pool'!$C$73:$M$140,4,0)),E36,VLOOKUP(E2,'Existing Pool'!$C$73:$M$140,4,0)*0.18) -> 2.763256621 | F73: =IF(ISERROR(VLOOKUP(F2,'Existing Pool'!$C$73:$M$140,4,0)),F36,VLOOKUP(F2,'Existing Pool'!$C$73:$M$140,4,0)*0.18) -> 1.555145189 | G73: =IF(ISERROR(VLOOKUP(G2,'Existing Pool'!$C$73:$M$140,4,0)),G36,VLOOKUP(G2,'Existing Pool'!$C$73:$M$140,4,0)*0.18) -> 2.892191549 | H73: =IF(ISERROR(VLOOKUP(H2,'Existing Pool'!$C$73:$M$140,4,0)),H36,VLOOKUP(H2,'Existing Pool'!$C$73:$M$140,4,0)*0.18) -> 6.741328442 | I73: =IF(ISERROR(VLOOKUP(I2,'Existing Pool'!$C$73:$M$140,4,0)),I36,VLOOKUP(I2,'Existing Pool'!$C$73:$M$140,4,0)*0.4) -> 11.14321874 | J73: =IF(ISERROR(VLOOKUP(J2,'Existing Pool'!$C$73:$M$140,4,0)),J36,VLOOKUP(J2,'Existing Pool'!$C$73:$M$140,4,0)*0.2) -> 5.212719141 | K73: =IF(ISERROR(VLOOKUP(K2,'Existing Pool'!$C$73:$M$140,4,0)),K36,VLOOKUP(K2,'Existing Pool'!$C$73:$M$140,4,0)*0.18) -> 6.43433434 | L73: =IF(ISERROR(VLOOKUP(L2,'Existing Pool'!$C$73:$M$140,4,0)),L36,VLOOKUP(L2,'Existing Pool'!$C$73:$M$140,4,0)*0.18) -> 2.332114159 | M73: =IF(ISERROR(VLOOKUP(M2,'Existing Pool'!$C$73:$M$140,4,0)),M36,VLOOKUP(M2,'Existing Pool'!$C$73:$M$140,4,0)*0.2) -> 3.820285973 | N73: =IF(ISERROR(VLOOKUP(N2,'Existing Pool'!$C$73:$M$140,4,0)),N36,VLOOKUP(N2,'Existing Pool'!$C$73:$M$140,4,0)*0.18) -> 3.921177535 | O73: =IF(ISERROR(VLOOKUP(O2,'Existing Pool'!$C$73:$M$140,4,0)),O36,VLOOKUP(O2,'Existing Pool'!$C$73:$M$140,4,0)*0.18) -> 2.37887988 | P73: =IF(ISERROR(VLOOKUP(P2,'Existing Pool'!$C$73:$M$140,4,0)),P36,VLOOKUP(P2,'Existing Pool'!$C$73:$M$140,4,0)*0.18) -> 3.426537791 | Q73: =IF(ISERROR(VLOOKUP(Q2,'Existing Pool'!$C$73:$M$140,4,0)),Q36,VLOOKUP(Q2,'Existing Pool'!$C$73:$M$140,4,0)*0.2) -> 1.824734561 | R73: =IF(ISERROR(VLOOKUP(R2,'Existing Pool'!$C$73:$M$140,4,0)),R36,VLOOKUP(R2,'Existing Pool'!$C$73:$M$140,4,0)*0.2) -> 2.766111986 | S73: =IF(ISERROR(VLOOKUP(S2,'Existing Pool'!$C$73:$M$140,4,0)),S36,VLOOKUP(S2,'Existing Pool'!$C$73:$M$140,4,0)*0.18) -> 1.553989491 | T73: =IF(ISERROR(VLOOKUP(T2,'Existing Pool'!$C$73:$M$140,4,0)),T36,VLOOKUP(T2,'Existing Pool'!$C$73:$M$140,4,0)*0.2) -> 2.985686479 | U73: =IF(ISERROR(VLOOKUP(U2,'Existing Pool'!$C$73:$M$140,4,0)),U36,VLOOKUP(U2,'Existing Pool'!$C$73:$M$140,4,0)*0.18) -> 2.77182479 | V73: =IF(ISERROR(VLOOKUP(V2,'Existing Pool'!$C$73:$M$140,4,0)),V36,VLOOKUP(V2,'Existing Pool'!$C$73:$M$140,4,0)*0.2) -> 6.547796444 | W73: =IF(ISERROR(VLOOKUP(W2,'Existing Pool'!$C$73:$M$140,4,0)),W36,VLOOKUP(W2,'Existing Pool'!$C$73:$M$140,4,0)*0.18) -> 2.72815257 | X73: =IF(ISERROR(VLOOKUP(X2,'Existing Pool'!$C$73:$M$140,4,0)),X36,VLOOKUP(X2,'Existing Pool'!$C$73:$M$140,4,0)*0.18) -> 2.879486013 | Y73: =IF(ISERROR(VLOOKUP(Y2,'Existing Pool'!$C$73:$M$140,4,0)),Y36,VLOOKUP(Y2,'Existing Pool'!$C$73:$M$140,4,0)*0.2) -> 2.201197098 | Z73: =IF(ISERROR(VLOOKUP(Z2,'Existing Pool'!$C$73:$M$140,4,0)),Z36,VLOOKUP(Z2,'Existing Pool'!$C$73:$M$140,4,0)*0.2) -> 5.023720458 | AA73: =IF(ISERROR(VLOOKUP(AA2,'Existing Pool'!$C$73:$M$140,4,0)),AA36,VLOOKUP(AA2,'Existing Pool'!$C$73:$M$140,4,0)*0.2) -> 3.915537115 | AB73: =IF(ISERROR(VLOOKUP(AB2,'Existing Pool'!$C$73:$M$140,4,0)),AB36,VLOOKUP(AB2,'Existing Pool'!$C$73:$M$140,4,0)*0.2) -> 1.627567452 | AC73: =IF(ISERROR(VLOOKUP(AC2,'Existing Pool'!$C$73:$M$140,4,0)),AC36,VLOOKUP(AC2,'Existing Pool'!$C$73:$M$140,4,0)*0.02) -> 0.6155612383 | AD73: =IF(ISERROR(VLOOKUP(AD2,'Existing Pool'!$C$73:$M$140,4,0)),AD36,VLOOKUP(AD2,'Existing Pool'!$C$73:$M$140,4,0)*0.02) -> 0.6144799338 | AE73: =IF(ISERROR(VLOOKUP(AE2,'Existing Pool'!$C$73:$M$140,4,0)),AE36,VLOOKUP(AE2,'Existing Pool'!$C$73:$M$140,4,0)*0.02) -> 0.5198620297 | AF73: =IF(ISERROR(VLOOKUP(AF2,'Existing Pool'!$C$73:$M$140,4,0)),AF36,VLOOKUP(AF2,'Existing Pool'!$C$73:$M$140,4,0)*0.02) -> 0.4725292011 | AG73: =IF(ISERROR(VLOOKUP(AG2,'Existing Pool'!$C$73:$M$140,4,0)),AG36,VLOOKUP(AG2,'Existing Pool'!$C$73:$M$140,4,0)*0.02) -> 0.900434963 | AH73: =IF(ISERROR(VLOOKUP(AH2,'Existing Pool'!$C$73:$M$140,4,0)),AH36,VLOOKUP(AH2,'Existing Pool'!$C$73:$M$140,4,0)*0.02) -> 1.325023777 | AI73: =IF(ISERROR(VLOOKUP(AI2,'Existing Pool'!$C$73:$M$140,4,0)),AI36,VLOOKUP(AI2,'Existing Pool'!$C$73:$M$140,4,0)*0.02) -> 0.3616515954 | AJ73: =IF(ISERROR(VLOOKUP(AJ2,'Existing Pool'!$C$73:$M$140,4,0)),AJ36,VLOOKUP(AJ2,'Existing Pool'!$C$73:$M$140,4,0)*0.02) -> 0.2881738369 | AK73: =IF(ISERROR(VLOOKUP(AK2,'Existing Pool'!$C$73:$M$140,4,0)),AK36,VLOOKUP(AK2,'Existing Pool'!$C$73:$M$140,4,0)*0.02) -> 0.6502495956 | AL73: =IF(ISERROR(VLOOKUP(AL2,'Existing Pool'!$C$73:$M$140,4,0)),AL36,VLOOKUP(AL2,'Existing Pool'!$C$73:$M$140,4,0)*0.02) -> 1.081334018 | AM73: =IF(ISERROR(VLOOKUP(AM2,'Existing Pool'!$C$73:$M$140,4,0)),AM36,VLOOKUP(AM2,'Existing Pool'!$C$73:$M$140,4,0)*0.02) -> 1.022019777 | AN73: =IF(ISERROR(VLOOKUP(AN2,'Existing Pool'!$C$73:$M$140,4,0)),AN36,VLOOKUP(AN2,'Existing Pool'!$C$73:$M$140,4,0)*0.02) -> 0.7490364936 | AO73: =IF(ISERROR(VLOOKUP(AO2,'Existing Pool'!$C$73:$M$140,4,0)),AO36,VLOOKUP(AO2,'Existing Pool'!$C$73:$M$140,4,0)*0.02) -> 0.7149260378 | AP73: =IF(ISERROR(VLOOKUP(AP2,'Existing Pool'!$C$73:$M$140,4,0)),AP36,VLOOKUP(AP2,'Existing Pool'!$C$73:$M$140,4,0)*0.02) -> 0.2591237955 | AQ73: =IF(ISERROR(VLOOKUP(AQ2,'Existing Pool'!$C$73:$M$140,4,0)),AQ36,VLOOKUP(AQ2,'Existing Pool'!$C$73:$M$140,4,0)*0.02) -> 0.8343917233 | AR73: =IF(ISERROR(VLOOKUP(AR2,'Existing Pool'!$C$73:$M$140,4,0)),AR36,VLOOKUP(AR2,'Existing Pool'!$C$73:$M$140,4,0)*0.02) -> 0.4356863928 | AS73: =IF(ISERROR(VLOOKUP(AS2,'Existing Pool'!$C$73:$M$140,4,0)),AS36,VLOOKUP(AS2,'Existing Pool'!$C$73:$M$140,4,0)*0.02) -> 0.4442896774 | AT73: =IF(ISERROR(VLOOKUP(AT2,'Existing Pool'!$C$73:$M$140,4,0)),AT36,VLOOKUP(AT2,'Existing Pool'!$C$73:$M$140,4,0)*0.02) -> 0.3807264212 | AU73: =IF(ISERROR(VLOOKUP(AU2,'Existing Pool'!$C$73:$M$140,4,0)),AU36,VLOOKUP(AU2,'Existing Pool'!$C$73:$M$140,4,0)*0.02) -> 0.172665499 | AV73: =IF(ISERROR(VLOOKUP(AV2,'Existing Pool'!$C$73:$M$140,4,0)),AV36,VLOOKUP(AV2,'Existing Pool'!$C$73:$M$140,4,0)*0.02) -> 0.3079805322 | AW73: =IF(ISERROR(VLOOKUP(AW2,'Existing Pool'!$C$73:$M$140,4,0)),AW36,VLOOKUP(AW2,'Existing Pool'!$C$73:$M$140,4,0)*0.02) -> 0.7135221861 | AX73: =IF(ISERROR(VLOOKUP(AX2,'Existing Pool'!$C$73:$M$140,4,0)),AX36,VLOOKUP(AX2,'Existing Pool'!$C$73:$M$140,4,0)*0.02) -> 0.3199428904 | AY73: =IF(ISERROR(VLOOKUP(AY2,'Existing Pool'!$C$73:$M$140,4,0)),AY36,VLOOKUP(AY2,'Existing Pool'!$C$73:$M$140,4,0)*0.02) -> 1.388727087 | AZ73: =IF(ISERROR(VLOOKUP(AZ2,'Existing Pool'!$C$73:$M$140,4,0)),AZ36,VLOOKUP(AZ2,'Existing Pool'!$C$73:$M$140,4,0)*0.02) -> 0.83854361 | BA73: =IF(ISERROR(VLOOKUP(BA2,'Existing Pool'!$C$73:$M$140,4,0)),BA36,VLOOKUP(BA2,'Existing Pool'!$C$73:$M$140,4,0)*0.02) -> 0.3945223656 | BB73: =IF(ISERROR(VLOOKUP(BB2,'Existing Pool'!$C$73:$M$140,4,0)),BB36,VLOOKUP(BB2,'Existing Pool'!$C$73:$M$140,4,0)*0.02) -> 0.4957876831 | BC73: =IF(ISERROR(VLOOKUP(BC2,'Existing Pool'!$C$73:$M$140,4,0)),BC36,VLOOKUP(BC2,'Existing Pool'!$C$73:$M$140,4,0)*0.02) -> 0.848547163 | BD73: =IF(ISERROR(VLOOKUP(BD2,'Existing Pool'!$C$73:$M$140,4,0)),BD36,VLOOKUP(BD2,'Existing Pool'!$C$73:$M$140,4,0)*0.02) -> 3.91097306 | BE73: =IF(ISERROR(VLOOKUP(BE2,'Existing Pool'!$C$73:$M$140,4,0)),BE36,VLOOKUP(BE2,'Existing Pool'!$C$73:$M$140,4,0)*0.02) -> 1.371556986 | BF73: =IF(ISERROR(VLOOKUP(BF2,'Existing Pool'!$C$73:$M$140,4,0)),BF36,VLOOKUP(BF2,'Existing Pool'!$C$73:$M$140,4,0)*0.02) -> 0.3070285134
A74: =IF(ISERROR(VLOOKUP(A3,'Existing Pool'!$C$73:$M$140,4,0)),A37,VLOOKUP(A3,'Existing Pool'!$C$73:$M$140,4,0)*0.18) -> 1.779227666 | B74: =IF(ISERROR(VLOOKUP(B3,'Existing Pool'!$C$73:$M$140,4,0)),B37,VLOOKUP(B3,'Existing Pool'!$C$73:$M$140,4,0)*0.18) -> 1.511933459 | C74: =IF(ISERROR(VLOOKUP(C3,'Existing Pool'!$C$73:$M$140,4,0)),C37,VLOOKUP(C3,'Existing Pool'!$C$73:$M$140,4,0)*0.2) -> 2.19467906 | D74: =IF(ISERROR(VLOOKUP(D3,'Existing Pool'!$C$73:$M$140,4,0)),D37,VLOOKUP(D3,'Existing Pool'!$C$73:$M$140,4,0)*0.18) -> 1.783064631 | E74: =IF(ISERROR(VLOOKUP(E3,'Existing Pool'!$C$73:$M$140,4,0)),E37,VLOOKUP(E3,'Existing Pool'!$C$73:$M$140,4,0)*0.18) -> 6.522778111 | F74: =IF(ISERROR(VLOOKUP(F3,'Existing Pool'!$C$73:$M$140,4,0)),F37,VLOOKUP(F3,'Existing Pool'!$C$73:$M$140,4,0)*0.18) -> 1.871385042 | G74: =IF(ISERROR(VLOOKUP(G3,'Existing Pool'!$C$73:$M$140,4,0)),G37,VLOOKUP(G3,'Existing Pool'!$C$73:$M$140,4,0)*0.18) -> 1.904211096 | H74: =IF(ISERROR(VLOOKUP(H3,'Existing Pool'!$C$73:$M$140,4,0)),H37,VLOOKUP(H3,'Existing Pool'!$C$73:$M$140,4,0)*0.18) -> 3.480330894 | I74: =IF(ISERROR(VLOOKUP(I3,'Existing Pool'!$C$73:$M$140,4,0)),I37,VLOOKUP(I3,'Existing Pool'!$C$73:$M$140,4,0)*0.4) -> 22.58099834 | J74: =IF(ISERROR(VLOOKUP(J3,'Existing Pool'!$C$73:$M$140,4,0)),J37,VLOOKUP(J3,'Existing Pool'!$C$73:$M$140,4,0)*0.2) -> 2.870357982 | K74: =IF(ISERROR(VLOOKUP(K3,'Existing Pool'!$C$73:$M$140,4,0)),K37,VLOOKUP(K3,'Existing Pool'!$C$73:$M$140,4,0)*0.18) -> 2.486244684 | L74: =IF(ISERROR(VLOOKUP(L3,'Existing Pool'!$C$73:$M$140,4,0)),L37,VLOOKUP(L3,'Existing Pool'!$C$73:$M$140,4,0)*0.18) -> 1.400682635 | M74: =IF(ISERROR(VLOOKUP(M3,'Existing Pool'!$C$73:$M$140,4,0)),M37,VLOOKUP(M3,'Existing Pool'!$C$73:$M$140,4,0)*0.2) -> 5.930097073 | N74: =IF(ISERROR(VLOOKUP(N3,'Existing Pool'!$C$73:$M$140,4,0)),N37,VLOOKUP(N3,'Existing Pool'!$C$73:$M$140,4,0)*0.18) -> 4.488447343 | O74: =IF(ISERROR(VLOOKUP(O3,'Existing Pool'!$C$73:$M$140,4,0)),O37,VLOOKUP(O3,'Existing Pool'!$C$73:$M$140,4,0)*0.18) -> 2.265478841 | P74: =IF(ISERROR(VLOOKUP(P3,'Existing Pool'!$C$73:$M$140,4,0)),P37,VLOOKUP(P3,'Existing Pool'!$C$73:$M$140,4,0)*0.18) -> 3.873475541 | Q74: =IF(ISERROR(VLOOKUP(Q3,'Existing Pool'!$C$73:$M$140,4,0)),Q37,VLOOKUP(Q3,'Existing Pool'!$C$73:$M$140,4,0)*0.2) -> 3.077226107 | R74: =IF(ISERROR(VLOOKUP(R3,'Existing Pool'!$C$73:$M$140,4,0)),R37,VLOOKUP(R3,'Existing Pool'!$C$73:$M$140,4,0)*0.2) -> 2.774730689 | S74: =IF(ISERROR(VLOOKUP(S3,'Existing Pool'!$C$73:$M$140,4,0)),S37,VLOOKUP(S3,'Existing Pool'!$C$73:$M$140,4,0)*0.18) -> 2.329326295 | T74: =IF(ISERROR(VLOOKUP(T3,'Existing Pool'!$C$73:$M$140,4,0)),T37,VLOOKUP(T3,'Existing Pool'!$C$73:$M$140,4,0)*0.2) -> 3.522241288 | U74: =IF(ISERROR(VLOOKUP(U3,'Existing Pool'!$C$73:$M$140,4,0)),U37,VLOOKUP(U3,'Existing Pool'!$C$73:$M$140,4,0)*0.18) -> 4.107095144 | V74: =IF(ISERROR(VLOOKUP(V3,'Existing Pool'!$C$73:$M$140,4,0)),V37,VLOOKUP(V3,'Existing Pool'!$C$73:$M$140,4,0)*0.2) -> 7.979559181 | W74: =IF(ISERROR(VLOOKUP(W3,'Existing Pool'!$C$73:$M$140,4,0)),W37,VLOOKUP(W3,'Existing Pool'!$C$73:$M$140,4,0)*0.18) -> 2.984183929 | X74: =IF(ISERROR(VLOOKUP(X3,'Existing Pool'!$C$73:$M$140,4,0)),X37,VLOOKUP(X3,'Existing Pool'!$C$73:$M$140,4,0)*0.18) -> 4.674110903 | Y74: =IF(ISERROR(VLOOKUP(Y3,'Existing Pool'!$C$73:$M$140,4,0)),Y37,VLOOKUP(Y3,'Existing Pool'!$C$73:$M$140,4,0)*0.2) -> 2.113744774 | Z74: =IF(ISERROR(VLOOKUP(Z3,'Existing Pool'!$C$73:$M$140,4,0)),Z37,VLOOKUP(Z3,'Existing Pool'!$C$73:$M$140,4,0)*0.2) -> 2.280802109 | AA74: =IF(ISERROR(VLOOKUP(AA3,'Existing Pool'!$C$73:$M$140,4,0)),AA37,VLOOKUP(AA3,'Existing Pool'!$C$73:$M$140,4,0)*0.2) -> 3.168302758 | AB74: =IF(ISERROR(VLOOKUP(AB3,'Existing Pool'!$C$73:$M$140,4,0)),AB37,VLOOKUP(AB3,'Existing Pool'!$C$73:$M$140,4,0)*0.2) -> 2.906311624 | AC74: =IF(ISERROR(VLOOKUP(AC3,'Existing Pool'!$C$73:$M$140,4,0)),AC37,VLOOKUP(AC3,'Existing Pool'!$C$73:$M$140,4,0)*0.02) -> 2.015025422 | AD74: =IF(ISERROR(VLOOKUP(AD3,'Existing Pool'!$C$73:$M$140,4,0)),AD37,VLOOKUP(AD3,'Existing Pool'!$C$73:$M$140,4,0)*0.02) -> 0.75715686 | AE74: =IF(ISERROR(VLOOKUP(AE3,'Existing Pool'!$C$73:$M$140,4,0)),AE37,VLOOKUP(AE3,'Existing Pool'!$C$73:$M$140,4,0)*0.02) -> 0.9829734951 | AF74: =IF(ISERROR(VLOOKUP(AF3,'Existing Pool'!$C$73:$M$140,4,0)),AF37,VLOOKUP(AF3,'Existing Pool'!$C$73:$M$140,4,0)*0.02) -> 0.1976919629 | AG74: =IF(ISERROR(VLOOKUP(AG3,'Existing Pool'!$C$73:$M$140,4,0)),AG37,VLOOKUP(AG3,'Existing Pool'!$C$73:$M$140,4,0)*0.02) -> 0.1679926065 | AH74: =IF(ISERROR(VLOOKUP(AH3,'Existing Pool'!$C$73:$M$140,4,0)),AH37,VLOOKUP(AH3,'Existing Pool'!$C$73:$M$140,4,0)*0.02) -> 1.447123198 | AI74: =IF(ISERROR(VLOOKUP(AI3,'Existing Pool'!$C$73:$M$140,4,0)),AI37,VLOOKUP(AI3,'Existing Pool'!$C$73:$M$140,4,0)*0.02) -> 0.3955417985 | AJ74: =IF(ISERROR(VLOOKUP(AJ3,'Existing Pool'!$C$73:$M$140,4,0)),AJ37,VLOOKUP(AJ3,'Existing Pool'!$C$73:$M$140,4,0)*0.02) -> 0.1981182923 | AK74: =IF(ISERROR(VLOOKUP(AK3,'Existing Pool'!$C$73:$M$140,4,0)),AK37,VLOOKUP(AK3,'Existing Pool'!$C$73:$M$140,4,0)*0.02) -> 0.1727939099 | AL74: =IF(ISERROR(VLOOKUP(AL3,'Existing Pool'!$C$73:$M$140,4,0)),AL37,VLOOKUP(AL3,'Existing Pool'!$C$73:$M$140,4,0)*0.02) -> 0.3302291116 | AM74: =IF(ISERROR(VLOOKUP(AM3,'Existing Pool'!$C$73:$M$140,4,0)),AM37,VLOOKUP(AM3,'Existing Pool'!$C$73:$M$140,4,0)*0.02) -> 0.3213546165 | AN74: =IF(ISERROR(VLOOKUP(AN3,'Existing Pool'!$C$73:$M$140,4,0)),AN37,VLOOKUP(AN3,'Existing Pool'!$C$73:$M$140,4,0)*0.02) -> 0.3867034327 | AO74: =IF(ISERROR(VLOOKUP(AO3,'Existing Pool'!$C$73:$M$140,4,0)),AO37,VLOOKUP(AO3,'Existing Pool'!$C$73:$M$140,4,0)*0.02) -> 0.2762494094 | AP74: =IF(ISERROR(VLOOKUP(AP3,'Existing Pool'!$C$73:$M$140,4,0)),AP37,VLOOKUP(AP3,'Existing Pool'!$C$73:$M$140,4,0)*0.02) -> 0.4480799875 | AQ74: =IF(ISERROR(VLOOKUP(AQ3,'Existing Pool'!$C$73:$M$140,4,0)),AQ37,VLOOKUP(AQ3,'Existing Pool'!$C$73:$M$140,4,0)*0.02) -> 0.8431418556 | AR74: =IF(ISERROR(VLOOKUP(AR3,'Existing Pool'!$C$73:$M$140,4,0)),AR37,VLOOKUP(AR3,'Existing Pool'!$C$73:$M$140,4,0)*0.02) -> 0.4987163715 | AS74: =IF(ISERROR(VLOOKUP(AS3,'Existing Pool'!$C$73:$M$140,4,0)),AS37,VLOOKUP(AS3,'Existing Pool'!$C$73:$M$140,4,0)*0.02) -> 0.4848109777 | AT74: =IF(ISERROR(VLOOKUP(AT3,'Existing Pool'!$C$73:$M$140,4,0)),AT37,VLOOKUP(AT3,'Existing Pool'!$C$73:$M$140,4,0)*0.02) -> 0.4303861712 | AU74: =IF(ISERROR(VLOOKUP(AU3,'Existing Pool'!$C$73:$M$140,4,0)),AU37,VLOOKUP(AU3,'Existing Pool'!$C$73:$M$140,4,0)*0.02) -> 0.2588140327 | AV74: =IF(ISERROR(VLOOKUP(AV3,'Existing Pool'!$C$73:$M$140,4,0)),AV37,VLOOKUP(AV3,'Existing Pool'!$C$73:$M$140,4,0)*0.02) -> 0.4563439049 | AW74: =IF(ISERROR(VLOOKUP(AW3,'Existing Pool'!$C$73:$M$140,4,0)),AW37,VLOOKUP(AW3,'Existing Pool'!$C$73:$M$140,4,0)*0.02) -> 0.649107875 | AX74: =IF(ISERROR(VLOOKUP(AX3,'Existing Pool'!$C$73:$M$140,4,0)),AX37,VLOOKUP(AX3,'Existing Pool'!$C$73:$M$140,4,0)*0.02) -> 0.5193456559 | AY74: =IF(ISERROR(VLOOKUP(AY3,'Existing Pool'!$C$73:$M$140,4,0)),AY37,VLOOKUP(AY3,'Existing Pool'!$C$73:$M$140,4,0)*0.02) -> 1.008676429 | AZ74: =IF(ISERROR(VLOOKUP(AZ3,'Existing Pool'!$C$73:$M$140,4,0)),AZ37,VLOOKUP(AZ3,'Existing Pool'!$C$73:$M$140,4,0)*0.02) -> 0.492933251 | BA74: =IF(ISERROR(VLOOKUP(BA3,'Existing Pool'!$C$73:$M$140,4,0)),BA37,VLOOKUP(BA3,'Existing Pool'!$C$73:$M$140,4,0)*0.02) -> 1.881796212 | BB74: =IF(ISERROR(VLOOKUP(BB3,'Existing Pool'!$C$73:$M$140,4,0)),BB37,VLOOKUP(BB3,'Existing Pool'!$C$73:$M$140,4,0)*0.02) -> 0.8316750053 | BC74: =IF(ISERROR(VLOOKUP(BC3,'Existing Pool'!$C$73:$M$140,4,0)),BC37,VLOOKUP(BC3,'Existing Pool'!$C$73:$M$140,4,0)*0.02) -> 1.452371463 | BD74: =IF(ISERROR(VLOOKUP(BD3,'Existing Pool'!$C$73:$M$140,4,0)),BD37,VLOOKUP(BD3,'Existing Pool'!$C$73:$M$140,4,0)*0.02) -> 1.128184141 | BE74: =IF(ISERROR(VLOOKUP(BE3,'Existing Pool'!$C$73:$M$140,4,0)),BE37,VLOOKUP(BE3,'Existing Pool'!$C$73:$M$140,4,0)*0.02) -> 0.5650988239 | BF74: =IF(ISERROR(VLOOKUP(BF3,'Existing Pool'!$C$73:$M$140,4,0)),BF37,VLOOKUP(BF3,'Existing Pool'!$C$73:$M$140,4,0)*0.02) -> 0.7247531235
A75: =IF(ISERROR(VLOOKUP(A4,'Existing Pool'!$C$73:$M$140,4,0)),A38,VLOOKUP(A4,'Existing Pool'!$C$73:$M$140,4,0)*0.18) -> 2.582387396 | B75: =IF(ISERROR(VLOOKUP(B4,'Existing Pool'!$C$73:$M$140,4,0)),B38,VLOOKUP(B4,'Existing Pool'!$C$73:$M$140,4,0)*0.18) -> 2.099932769 | C75: =IF(ISERROR(VLOOKUP(C4,'Existing Pool'!$C$73:$M$140,4,0)),C38,VLOOKUP(C4,'Existing Pool'!$C$73:$M$140,4,0)*0.2) -> 3.963909899 | D75: =IF(ISERROR(VLOOKUP(D4,'Existing Pool'!$C$73:$M$140,4,0)),D38,VLOOKUP(D4,'Existing Pool'!$C$73:$M$140,4,0)*0.18) -> 3.055940708 | E75: =IF(ISERROR(VLOOKUP(E4,'Existing Pool'!$C$73:$M$140,4,0)),E38,VLOOKUP(E4,'Existing Pool'!$C$73:$M$140,4,0)*0.18) -> 1.314822263 | F75: =IF(ISERROR(VLOOKUP(F4,'Existing Pool'!$C$73:$M$140,4,0)),F38,VLOOKUP(F4,'Existing Pool'!$C$73:$M$140,4,0)*0.18) -> 1.264506119 | G75: =IF(ISERROR(VLOOKUP(G4,'Existing Pool'!$C$73:$M$140,4,0)),G38,VLOOKUP(G4,'Existing Pool'!$C$73:$M$140,4,0)*0.18) -> 2.03000469 | H75: =IF(ISERROR(VLOOKUP(H4,'Existing Pool'!$C$73:$M$140,4,0)),H38,VLOOKUP(H4,'Existing Pool'!$C$73:$M$140,4,0)*0.18) -> 2.611782026 | I75: =IF(ISERROR(VLOOKUP(I4,'Existing Pool'!$C$73:$M$140,4,0)),I38,VLOOKUP(I4,'Existing Pool'!$C$73:$M$140,4,0)*0.4) -> 12.11838512 | J75: =IF(ISERROR(VLOOKUP(J4,'Existing Pool'!$C$73:$M$140,4,0)),J38,VLOOKUP(J4,'Existing Pool'!$C$73:$M$140,4,0)*0.2) -> 1.131777457 | K75: =IF(ISERROR(VLOOKUP(K4,'Existing Pool'!$C$73:$M$140,4,0)),K38,VLOOKUP(K4,'Existing Pool'!$C$73:$M$140,4,0)*0.18) -> 4.907007475 | L75: =IF(ISERROR(VLOOKUP(L4,'Existing Pool'!$C$73:$M$140,4,0)),L38,VLOOKUP(L4,'Existing Pool'!$C$73:$M$140,4,0)*0.18) -> 3.118424546 | M75: =IF(ISERROR(VLOOKUP(M4,'Existing Pool'!$C$73:$M$140,4,0)),M38,VLOOKUP(M4,'Existing Pool'!$C$73:$M$140,4,0)*0.2) -> 4.311149328 | N75: =IF(ISERROR(VLOOKUP(N4,'Existing Pool'!$C$73:$M$140,4,0)),N38,VLOOKUP(N4,'Existing Pool'!$C$73:$M$140,4,0)*0.18) -> 7.085394748 | O75: =IF(ISERROR(VLOOKUP(O4,'Existing Pool'!$C$73:$M$140,4,0)),O38,VLOOKUP(O4,'Existing Pool'!$C$73:$M$140,4,0)*0.18) -> 2.151611635 | P75: =IF(ISERROR(VLOOKUP(P4,'Existing Pool'!$C$73:$M$140,4,0)),P38,VLOOKUP(P4,'Existing Pool'!$C$73:$M$140,4,0)*0.18) -> 2.92815211 | Q75: =IF(ISERROR(VLOOKUP(Q4,'Existing Pool'!$C$73:$M$140,4,0)),Q38,VLOOKUP(Q4,'Existing Pool'!$C$73:$M$140,4,0)*0.2) -> 3.92003161 | R75: =IF(ISERROR(VLOOKUP(R4,'Existing Pool'!$C$73:$M$140,4,0)),R38,VLOOKUP(R4,'Existing Pool'!$C$73:$M$140,4,0)*0.2) -> 2.921884141 | S75: =IF(ISERROR(VLOOKUP(S4,'Existing Pool'!$C$73:$M$140,4,0)),S38,VLOOKUP(S4,'Existing Pool'!$C$73:$M$140,4,0)*0.18) -> 5.267092047 | T75: =IF(ISERROR(VLOOKUP(T4,'Existing Pool'!$C$73:$M$140,4,0)),T38,VLOOKUP(T4,'Existing Pool'!$C$73:$M$140,4,0)*0.2) -> 1.933384076 | U75: =IF(ISERROR(VLOOKUP(U4,'Existing Pool'!$C$73:$M$140,4,0)),U38,VLOOKUP(U4,'Existing Pool'!$C$73:$M$140,4,0)*0.18) -> 2.118948691 | V75: =IF(ISERROR(VLOOKUP(V4,'Existing Pool'!$C$73:$M$140,4,0)),V38,VLOOKUP(V4,'Existing Pool'!$C$73:$M$140,4,0)*0.2) -> 4.148934845 | W75: =IF(ISERROR(VLOOKUP(W4,'Existing Pool'!$C$73:$M$140,4,0)),W38,VLOOKUP(W4,'Existing Pool'!$C$73:$M$140,4,0)*0.18) -> 3.741677036 | X75: =IF(ISERROR(VLOOKUP(X4,'Existing Pool'!$C$73:$M$140,4,0)),X38,VLOOKUP(X4,'Existing Pool'!$C$73:$M$140,4,0)*0.18) -> 2.836422147 | Y75: =IF(ISERROR(VLOOKUP(Y4,'Existing Pool'!$C$73:$M$140,4,0)),Y38,VLOOKUP(Y4,'Existing Pool'!$C$73:$M$140,4,0)*0.2) -> 5.265336428 | Z75: =IF(ISERROR(VLOOKUP(Z4,'Existing Pool'!$C$73:$M$140,4,0)),Z38,VLOOKUP(Z4,'Existing Pool'!$C$73:$M$140,4,0)*0.2) -> 7.391457339 | AA75: =IF(ISERROR(VLOOKUP(AA4,'Existing Pool'!$C$73:$M$140,4,0)),AA38,VLOOKUP(AA4,'Existing Pool'!$C$73:$M$140,4,0)*0.2) -> 3.813259544 | AB75: =IF(ISERROR(VLOOKUP(AB4,'Existing Pool'!$C$73:$M$140,4,0)),AB38,VLOOKUP(AB4,'Existing Pool'!$C$73:$M$140,4,0)*0.2) -> 4.173660464 | AC75: =IF(ISERROR(VLOOKUP(AC4,'Existing Pool'!$C$73:$M$140,4,0)),AC38,VLOOKUP(AC4,'Existing Pool'!$C$73:$M$140,4,0)*0.02) -> 0.5603691555 | AD75: =IF(ISERROR(VLOOKUP(AD4,'Existing Pool'!$C$73:$M$140,4,0)),AD38,VLOOKUP(AD4,'Existing Pool'!$C$73:$M$140,4,0)*0.02) -> 0.65766755 | AE75: =IF(ISERROR(VLOOKUP(AE4,'Existing Pool'!$C$73:$M$140,4,0)),AE38,VLOOKUP(AE4,'Existing Pool'!$C$73:$M$140,4,0)*0.02) -> 0.9013660489 | AF75: =IF(ISERROR(VLOOKUP(AF4,'Existing Pool'!$C$73:$M$140,4,0)),AF38,VLOOKUP(AF4,'Existing Pool'!$C$73:$M$140,4,0)*0.02) -> 1.372240156 | AG75: =IF(ISERROR(VLOOKUP(AG4,'Existing Pool'!$C$73:$M$140,4,0)),AG38,VLOOKUP(AG4,'Existing Pool'!$C$73:$M$140,4,0)*0.02) -> 0.2333258632 | AH75: =IF(ISERROR(VLOOKUP(AH4,'Existing Pool'!$C$73:$M$140,4,0)),AH38,VLOOKUP(AH4,'Existing Pool'!$C$73:$M$140,4,0)*0.02) -> 0.4973465382 | AI75: =IF(ISERROR(VLOOKUP(AI4,'Existing Pool'!$C$73:$M$140,4,0)),AI38,VLOOKUP(AI4,'Existing Pool'!$C$73:$M$140,4,0)*0.02) -> 0.476449034 | AJ75: =IF(ISERROR(VLOOKUP(AJ4,'Existing Pool'!$C$73:$M$140,4,0)),AJ38,VLOOKUP(AJ4,'Existing Pool'!$C$73:$M$140,4,0)*0.02) -> 0.3395489675 | AK75: =IF(ISERROR(VLOOKUP(AK4,'Existing Pool'!$C$73:$M$140,4,0)),AK38,VLOOKUP(AK4,'Existing Pool'!$C$73:$M$140,4,0)*0.02) -> 0.2079316714 | AL75: =IF(ISERROR(VLOOKUP(AL4,'Existing Pool'!$C$73:$M$140,4,0)),AL38,VLOOKUP(AL4,'Existing Pool'!$C$73:$M$140,4,0)*0.02) -> 0 | AM75: =IF(ISERROR(VLOOKUP(AM4,'Existing Pool'!$C$73:$M$140,4,0)),AM38,VLOOKUP(AM4,'Existing Pool'!$C$73:$M$140,4,0)*0.02) -> 0.2115790106 | AN75: =IF(ISERROR(VLOOKUP(AN4,'Existing Pool'!$C$73:$M$140,4,0)),AN38,VLOOKUP(AN4,'Existing Pool'!$C$73:$M$140,4,0)*0.02) -> 0.2901980029 | AO75: =IF(ISERROR(VLOOKUP(AO4,'Existing Pool'!$C$73:$M$140,4,0)),AO38,VLOOKUP(AO4,'Existing Pool'!$C$73:$M$140,4,0)*0.02) -> 0.5452230528 | AP75: =IF(ISERROR(VLOOKUP(AP4,'Existing Pool'!$C$73:$M$140,4,0)),AP38,VLOOKUP(AP4,'Existing Pool'!$C$73:$M$140,4,0)*0.02) -> 0.1556314038 | AQ75: =IF(ISERROR(VLOOKUP(AQ4,'Existing Pool'!$C$73:$M$140,4,0)),AQ38,VLOOKUP(AQ4,'Existing Pool'!$C$73:$M$140,4,0)*0.02) -> 0.6389472743 | AR75: =IF(ISERROR(VLOOKUP(AR4,'Existing Pool'!$C$73:$M$140,4,0)),AR38,VLOOKUP(AR4,'Existing Pool'!$C$73:$M$140,4,0)*0.02) -> 0.7872660831 | AS75: =IF(ISERROR(VLOOKUP(AS4,'Existing Pool'!$C$73:$M$140,4,0)),AS38,VLOOKUP(AS4,'Existing Pool'!$C$73:$M$140,4,0)*0.02) -> 0.2643199866 | AT75: =IF(ISERROR(VLOOKUP(AT4,'Existing Pool'!$C$73:$M$140,4,0)),AT38,VLOOKUP(AT4,'Existing Pool'!$C$73:$M$140,4,0)*0.02) -> 0.3253502344 | AU75: =IF(ISERROR(VLOOKUP(AU4,'Existing Pool'!$C$73:$M$140,4,0)),AU38,VLOOKUP(AU4,'Existing Pool'!$C$73:$M$140,4,0)*0.02) -> 0.5852324497 | AV75: =IF(ISERROR(VLOOKUP(AV4,'Existing Pool'!$C$73:$M$140,4,0)),AV38,VLOOKUP(AV4,'Existing Pool'!$C$73:$M$140,4,0)*0.02) -> 0.2354387434 | AW75: =IF(ISERROR(VLOOKUP(AW4,'Existing Pool'!$C$73:$M$140,4,0)),AW38,VLOOKUP(AW4,'Existing Pool'!$C$73:$M$140,4,0)*0.02) -> 0 | AX75: =IF(ISERROR(VLOOKUP(AX4,'Existing Pool'!$C$73:$M$140,4,0)),AX38,VLOOKUP(AX4,'Existing Pool'!$C$73:$M$140,4,0)*0.02) -> 0.3151580163 | AY75: =IF(ISERROR(VLOOKUP(AY4,'Existing Pool'!$C$73:$M$140,4,0)),AY38,VLOOKUP(AY4,'Existing Pool'!$C$73:$M$140,4,0)*0.02) -> 0 | AZ75: =IF(ISERROR(VLOOKUP(AZ4,'Existing Pool'!$C$73:$M$140,4,0)),AZ38,VLOOKUP(AZ4,'Existing Pool'!$C$73:$M$140,4,0)*0.02) -> 3.039553515 | BA75: =IF(ISERROR(VLOOKUP(BA4,'Existing Pool'!$C$73:$M$140,4,0)),BA38,VLOOKUP(BA4,'Existing Pool'!$C$73:$M$140,4,0)*0.02) -> 0.6811889909 | BB75: =IF(ISERROR(VLOOKUP(BB4,'Existing Pool'!$C$73:$M$140,4,0)),BB38,VLOOKUP(BB4,'Existing Pool'!$C$73:$M$140,4,0)*0.02) -> 0.7000901559 | BC75: =IF(ISERROR(VLOOKUP(BC4,'Existing Pool'!$C$73:$M$140,4,0)),BC38,VLOOKUP(BC4,'Existing Pool'!$C$73:$M$140,4,0)*0.02) -> 0.5558005828 | BD75: =IF(ISERROR(VLOOKUP(BD4,'Existing Pool'!$C$73:$M$140,4,0)),BD38,VLOOKUP(BD4,'Existing Pool'!$C$73:$M$140,4,0)*0.02) -> 0.9299585191 | BE75: =IF(ISERROR(VLOOKUP(BE4,'Existing Pool'!$C$73:$M$140,4,0)),BE38,VLOOKUP(BE4,'Existing Pool'!$C$73:$M$140,4,0)*0.02) -> 1.05656273 | BF75: =IF(ISERROR(VLOOKUP(BF4,'Existing Pool'!$C$73:$M$140,4,0)),BF38,VLOOKUP(BF4,'Existing Pool'!$C$73:$M$140,4,0)*0.02) -> 0.3031280633
A76: =IF(ISERROR(VLOOKUP(A5,'Existing Pool'!$C$73:$M$140,4,0)),A39,VLOOKUP(A5,'Existing Pool'!$C$73:$M$140,4,0)*0.18) -> 6.029683236 | B76: =IF(ISERROR(VLOOKUP(B5,'Existing Pool'!$C$73:$M$140,4,0)),B39,VLOOKUP(B5,'Existing Pool'!$C$73:$M$140,4,0)*0.18) -> 4.978917895 | C76: =IF(ISERROR(VLOOKUP(C5,'Existing Pool'!$C$73:$M$140,4,0)),C39,VLOOKUP(C5,'Existing Pool'!$C$73:$M$140,4,0)*0.2) -> 3.972725491 | D76: =IF(ISERROR(VLOOKUP(D5,'Existing Pool'!$C$73:$M$140,4,0)),D39,VLOOKUP(D5,'Existing Pool'!$C$73:$M$140,4,0)*0.18) -> 1.51175627 | E76: =IF(ISERROR(VLOOKUP(E5,'Existing Pool'!$C$73:$M$140,4,0)),E39,VLOOKUP(E5,'Existing Pool'!$C$73:$M$140,4,0)*0.18) -> 2.811864119 | F76: =IF(ISERROR(VLOOKUP(F5,'Existing Pool'!$C$73:$M$140,4,0)),F39,VLOOKUP(F5,'Existing Pool'!$C$73:$M$140,4,0)*0.18) -> 1.527557476 | G76: =IF(ISERROR(VLOOKUP(G5,'Existing Pool'!$C$73:$M$140,4,0)),G39,VLOOKUP(G5,'Existing Pool'!$C$73:$M$140,4,0)*0.18) -> 1.454476855 | H76: =IF(ISERROR(VLOOKUP(H5,'Existing Pool'!$C$73:$M$140,4,0)),H39,VLOOKUP(H5,'Existing Pool'!$C$73:$M$140,4,0)*0.18) -> 1.309176672 | I76: =IF(ISERROR(VLOOKUP(I5,'Existing Pool'!$C$73:$M$140,4,0)),I39,VLOOKUP(I5,'Existing Pool'!$C$73:$M$140,4,0)*0.4) -> 20.41557532 | J76: =IF(ISERROR(VLOOKUP(J5,'Existing Pool'!$C$73:$M$140,4,0)),J39,VLOOKUP(J5,'Existing Pool'!$C$73:$M$140,4,0)*0.2) -> 4.780288302 | K76: =IF(ISERROR(VLOOKUP(K5,'Existing Pool'!$C$73:$M$140,4,0)),K39,VLOOKUP(K5,'Existing Pool'!$C$73:$M$140,4,0)*0.18) -> 3.6596778 | L76: =IF(ISERROR(VLOOKUP(L5,'Existing Pool'!$C$73:$M$140,4,0)),L39,VLOOKUP(L5,'Existing Pool'!$C$73:$M$140,4,0)*0.18) -> 3.475691118 | M76: =IF(ISERROR(VLOOKUP(M5,'Existing Pool'!$C$73:$M$140,4,0)),M39,VLOOKUP(M5,'Existing Pool'!$C$73:$M$140,4,0)*0.2) -> 4.225991228 | N76: =IF(ISERROR(VLOOKUP(N5,'Existing Pool'!$C$73:$M$140,4,0)),N39,VLOOKUP(N5,'Existing Pool'!$C$73:$M$140,4,0)*0.18) -> 3.005810007 | O76: =IF(ISERROR(VLOOKUP(O5,'Existing Pool'!$C$73:$M$140,4,0)),O39,VLOOKUP(O5,'Existing Pool'!$C$73:$M$140,4,0)*0.18) -> 1.795189013 | P76: =IF(ISERROR(VLOOKUP(P5,'Existing Pool'!$C$73:$M$140,4,0)),P39,VLOOKUP(P5,'Existing Pool'!$C$73:$M$140,4,0)*0.18) -> 2.452778438 | Q76: =IF(ISERROR(VLOOKUP(Q5,'Existing Pool'!$C$73:$M$140,4,0)),Q39,VLOOKUP(Q5,'Existing Pool'!$C$73:$M$140,4,0)*0.2) -> 2.163950625 | R76: =IF(ISERROR(VLOOKUP(R5,'Existing Pool'!$C$73:$M$140,4,0)),R39,VLOOKUP(R5,'Existing Pool'!$C$73:$M$140,4,0)*0.2) -> 4.019903983 | S76: =IF(ISERROR(VLOOKUP(S5,'Existing Pool'!$C$73:$M$140,4,0)),S39,VLOOKUP(S5,'Existing Pool'!$C$73:$M$140,4,0)*0.18) -> 1.103735324 | T76: =IF(ISERROR(VLOOKUP(T5,'Existing Pool'!$C$73:$M$140,4,0)),T39,VLOOKUP(T5,'Existing Pool'!$C$73:$M$140,4,0)*0.2) -> 2.714173889 | U76: =IF(ISERROR(VLOOKUP(U5,'Existing Pool'!$C$73:$M$140,4,0)),U39,VLOOKUP(U5,'Existing Pool'!$C$73:$M$140,4,0)*0.18) -> 1.79192979 | V76: =IF(ISERROR(VLOOKUP(V5,'Existing Pool'!$C$73:$M$140,4,0)),V39,VLOOKUP(V5,'Existing Pool'!$C$73:$M$140,4,0)*0.2) -> 5.541885051 | W76: =IF(ISERROR(VLOOKUP(W5,'Existing Pool'!$C$73:$M$140,4,0)),W39,VLOOKUP(W5,'Existing Pool'!$C$73:$M$140,4,0)*0.18) -> 3.505489261 | X76: =IF(ISERROR(VLOOKUP(X5,'Existing Pool'!$C$73:$M$140,4,0)),X39,VLOOKUP(X5,'Existing Pool'!$C$73:$M$140,4,0)*0.18) -> 2.793363702 | Y76: =IF(ISERROR(VLOOKUP(Y5,'Existing Pool'!$C$73:$M$140,4,0)),Y39,VLOOKUP(Y5,'Existing Pool'!$C$73:$M$140,4,0)*0.2) -> 2.075305041 | Z76: =IF(ISERROR(VLOOKUP(Z5,'Existing Pool'!$C$73:$M$140,4,0)),Z39,VLOOKUP(Z5,'Existing Pool'!$C$73:$M$140,4,0)*0.2) -> 3.486124655 | AA76: =IF(ISERROR(VLOOKUP(AA5,'Existing Pool'!$C$73:$M$140,4,0)),AA39,VLOOKUP(AA5,'Existing Pool'!$C$73:$M$140,4,0)*0.2) -> 5.013507742 | AB76: =IF(ISERROR(VLOOKUP(AB5,'Existing Pool'!$C$73:$M$140,4,0)),AB39,VLOOKUP(AB5,'Existing Pool'!$C$73:$M$140,4,0)*0.2) -> 10.822174 | AC76: =IF(ISERROR(VLOOKUP(AC5,'Existing Pool'!$C$73:$M$140,4,0)),AC39,VLOOKUP(AC5,'Existing Pool'!$C$73:$M$140,4,0)*0.02) -> 1.276725516 | AD76: =IF(ISERROR(VLOOKUP(AD5,'Existing Pool'!$C$73:$M$140,4,0)),AD39,VLOOKUP(AD5,'Existing Pool'!$C$73:$M$140,4,0)*0.02) -> 0 | AE76: =IF(ISERROR(VLOOKUP(AE5,'Existing Pool'!$C$73:$M$140,4,0)),AE39,VLOOKUP(AE5,'Existing Pool'!$C$73:$M$140,4,0)*0.02) -> 0.762249423 | AF76: =IF(ISERROR(VLOOKUP(AF5,'Existing Pool'!$C$73:$M$140,4,0)),AF39,VLOOKUP(AF5,'Existing Pool'!$C$73:$M$140,4,0)*0.02) -> 0.2869319329 | AG76: =IF(ISERROR(VLOOKUP(AG5,'Existing Pool'!$C$73:$M$140,4,0)),AG39,VLOOKUP(AG5,'Existing Pool'!$C$73:$M$140,4,0)*0.02) -> 0.5532130994 | AH76: =IF(ISERROR(VLOOKUP(AH5,'Existing Pool'!$C$73:$M$140,4,0)),AH39,VLOOKUP(AH5,'Existing Pool'!$C$73:$M$140,4,0)*0.02) -> 1.019549268 | AI76: =IF(ISERROR(VLOOKUP(AI5,'Existing Pool'!$C$73:$M$140,4,0)),AI39,VLOOKUP(AI5,'Existing Pool'!$C$73:$M$140,4,0)*0.02) -> 0.7562717748 | AJ76: =IF(ISERROR(VLOOKUP(AJ5,'Existing Pool'!$C$73:$M$140,4,0)),AJ39,VLOOKUP(AJ5,'Existing Pool'!$C$73:$M$140,4,0)*0.02) -> 0.7705535836 | AK76: =IF(ISERROR(VLOOKUP(AK5,'Existing Pool'!$C$73:$M$140,4,0)),AK39,VLOOKUP(AK5,'Existing Pool'!$C$73:$M$140,4,0)*0.02) -> 0.1405006799 | AL76: =IF(ISERROR(VLOOKUP(AL5,'Existing Pool'!$C$73:$M$140,4,0)),AL39,VLOOKUP(AL5,'Existing Pool'!$C$73:$M$140,4,0)*0.02) -> 0 | AM76: =IF(ISERROR(VLOOKUP(AM5,'Existing Pool'!$C$73:$M$140,4,0)),AM39,VLOOKUP(AM5,'Existing Pool'!$C$73:$M$140,4,0)*0.02) -> 0.2255560766 | AN76: =IF(ISERROR(VLOOKUP(AN5,'Existing Pool'!$C$73:$M$140,4,0)),AN39,VLOOKUP(AN5,'Existing Pool'!$C$73:$M$140,4,0)*0.02) -> 0.1454640746 | AO76: =IF(ISERROR(VLOOKUP(AO5,'Existing Pool'!$C$73:$M$140,4,0)),AO39,VLOOKUP(AO5,'Existing Pool'!$C$73:$M$140,4,0)*0.02) -> 0.4066308667 | AP76: =IF(ISERROR(VLOOKUP(AP5,'Existing Pool'!$C$73:$M$140,4,0)),AP39,VLOOKUP(AP5,'Existing Pool'!$C$73:$M$140,4,0)*0.02) -> 0.3464916162 | AQ76: =IF(ISERROR(VLOOKUP(AQ5,'Existing Pool'!$C$73:$M$140,4,0)),AQ39,VLOOKUP(AQ5,'Existing Pool'!$C$73:$M$140,4,0)*0.02) -> 0.7842769556 | AR76: =IF(ISERROR(VLOOKUP(AR5,'Existing Pool'!$C$73:$M$140,4,0)),AR39,VLOOKUP(AR5,'Existing Pool'!$C$73:$M$140,4,0)*0.02) -> 0.3339788897 | AS76: =IF(ISERROR(VLOOKUP(AS5,'Existing Pool'!$C$73:$M$140,4,0)),AS39,VLOOKUP(AS5,'Existing Pool'!$C$73:$M$140,4,0)*0.02) -> 0.2517198712 | AT76: =IF(ISERROR(VLOOKUP(AT5,'Existing Pool'!$C$73:$M$140,4,0)),AT39,VLOOKUP(AT5,'Existing Pool'!$C$73:$M$140,4,0)*0.02) -> 0.2725309375 | AU76: =IF(ISERROR(VLOOKUP(AU5,'Existing Pool'!$C$73:$M$140,4,0)),AU39,VLOOKUP(AU5,'Existing Pool'!$C$73:$M$140,4,0)*0.02) -> 0.1226372582 | AV76: =IF(ISERROR(VLOOKUP(AV5,'Existing Pool'!$C$73:$M$140,4,0)),AV39,VLOOKUP(AV5,'Existing Pool'!$C$73:$M$140,4,0)*0.02) -> 0.19910331 | AW76: =IF(ISERROR(VLOOKUP(AW5,'Existing Pool'!$C$73:$M$140,4,0)),AW39,VLOOKUP(AW5,'Existing Pool'!$C$73:$M$140,4,0)*0.02) -> 0 | AX76: =IF(ISERROR(VLOOKUP(AX5,'Existing Pool'!$C$73:$M$140,4,0)),AX39,VLOOKUP(AX5,'Existing Pool'!$C$73:$M$140,4,0)*0.02) -> 0.3103737446 | AY76: =IF(ISERROR(VLOOKUP(AY5,'Existing Pool'!$C$73:$M$140,4,0)),AY39,VLOOKUP(AY5,'Existing Pool'!$C$73:$M$140,4,0)*0.02) -> 0 | AZ76: =IF(ISERROR(VLOOKUP(AZ5,'Existing Pool'!$C$73:$M$140,4,0)),AZ39,VLOOKUP(AZ5,'Existing Pool'!$C$73:$M$140,4,0)*0.02) -> 0.5661019583 | BA76: =IF(ISERROR(VLOOKUP(BA5,'Existing Pool'!$C$73:$M$140,4,0)),BA39,VLOOKUP(BA5,'Existing Pool'!$C$73:$M$140,4,0)*0.02) -> 0.4705261294 | BB76: =IF(ISERROR(VLOOKUP(BB5,'Existing Pool'!$C$73:$M$140,4,0)),BB39,VLOOKUP(BB5,'Existing Pool'!$C$73:$M$140,4,0)*0.02) -> 2.013706923 | BC76: =IF(ISERROR(VLOOKUP(BC5,'Existing Pool'!$C$73:$M$140,4,0)),BC39,VLOOKUP(BC5,'Existing Pool'!$C$73:$M$140,4,0)*0.02) -> 0.2924771366 | BD76: =IF(ISERROR(VLOOKUP(BD5,'Existing Pool'!$C$73:$M$140,4,0)),BD39,VLOOKUP(BD5,'Existing Pool'!$C$73:$M$140,4,0)*0.02) -> 0.9375564637 | BE76: =IF(ISERROR(VLOOKUP(BE5,'Existing Pool'!$C$73:$M$140,4,0)),BE39,VLOOKUP(BE5,'Existing Pool'!$C$73:$M$140,4,0)*0.02) -> 3.470403683 | BF76: =IF(ISERROR(VLOOKUP(BF5,'Existing Pool'!$C$73:$M$140,4,0)),BF39,VLOOKUP(BF5,'Existing Pool'!$C$73:$M$140,4,0)*0.02) -> 0.1460913626
A77: =IF(ISERROR(VLOOKUP(A6,'Existing Pool'!$C$73:$M$140,4,0)),A40,VLOOKUP(A6,'Existing Pool'!$C$73:$M$140,4,0)*0.18) -> 0 | B77: =IF(ISERROR(VLOOKUP(B6,'Existing Pool'!$C$73:$M$140,4,0)),B40,VLOOKUP(B6,'Existing Pool'!$C$73:$M$140,4,0)*0.18) -> 5.728735019 | C77: =IF(ISERROR(VLOOKUP(C6,'Existing Pool'!$C$73:$M$140,4,0)),C40,VLOOKUP(C6,'Existing Pool'!$C$73:$M$140,4,0)*0.2) -> 1.918198095 | D77: =IF(ISERROR(VLOOKUP(D6,'Existing Pool'!$C$73:$M$140,4,0)),D40,VLOOKUP(D6,'Existing Pool'!$C$73:$M$140,4,0)*0.18) -> 2.076134358 | E77: =IF(ISERROR(VLOOKUP(E6,'Existing Pool'!$C$73:$M$140,4,0)),E40,VLOOKUP(E6,'Existing Pool'!$C$73:$M$140,4,0)*0.18) -> 2.816769658 | F77: =IF(ISERROR(VLOOKUP(F6,'Existing Pool'!$C$73:$M$140,4,0)),F40,VLOOKUP(F6,'Existing Pool'!$C$73:$M$140,4,0)*0.18) -> 2.589811152 | G77: =IF(ISERROR(VLOOKUP(G6,'Existing Pool'!$C$73:$M$140,4,0)),G40,VLOOKUP(G6,'Existing Pool'!$C$73:$M$140,4,0)*0.18) -> 2.596827736 | H77: =IF(ISERROR(VLOOKUP(H6,'Existing Pool'!$C$73:$M$140,4,0)),H40,VLOOKUP(H6,'Existing Pool'!$C$73:$M$140,4,0)*0.18) -> 6.749239832 | I77: =IF(ISERROR(VLOOKUP(I6,'Existing Pool'!$C$73:$M$140,4,0)),I40,VLOOKUP(I6,'Existing Pool'!$C$73:$M$140,4,0)*0.4) -> 16.02192537 | J77: =IF(ISERROR(VLOOKUP(J6,'Existing Pool'!$C$73:$M$140,4,0)),J40,VLOOKUP(J6,'Existing Pool'!$C$73:$M$140,4,0)*0.2) -> 2.37735245 | K77: =IF(ISERROR(VLOOKUP(K6,'Existing Pool'!$C$73:$M$140,4,0)),K40,VLOOKUP(K6,'Existing Pool'!$C$73:$M$140,4,0)*0.18) -> 1.248524451 | L77: =IF(ISERROR(VLOOKUP(L6,'Existing Pool'!$C$73:$M$140,4,0)),L40,VLOOKUP(L6,'Existing Pool'!$C$73:$M$140,4,0)*0.18) -> 3.430836662 | M77: =IF(ISERROR(VLOOKUP(M6,'Existing Pool'!$C$73:$M$140,4,0)),M40,VLOOKUP(M6,'Existing Pool'!$C$73:$M$140,4,0)*0.2) -> 3.661783393 | N77: =IF(ISERROR(VLOOKUP(N6,'Existing Pool'!$C$73:$M$140,4,0)),N40,VLOOKUP(N6,'Existing Pool'!$C$73:$M$140,4,0)*0.18) -> 1.968565933 | O77: =IF(ISERROR(VLOOKUP(O6,'Existing Pool'!$C$73:$M$140,4,0)),O40,VLOOKUP(O6,'Existing Pool'!$C$73:$M$140,4,0)*0.18) -> 5.407510482 | P77: =IF(ISERROR(VLOOKUP(P6,'Existing Pool'!$C$73:$M$140,4,0)),P40,VLOOKUP(P6,'Existing Pool'!$C$73:$M$140,4,0)*0.18) -> 1.117593505 | Q77: =IF(ISERROR(VLOOKUP(Q6,'Existing Pool'!$C$73:$M$140,4,0)),Q40,VLOOKUP(Q6,'Existing Pool'!$C$73:$M$140,4,0)*0.2) -> 2.341624061 | R77: =IF(ISERROR(VLOOKUP(R6,'Existing Pool'!$C$73:$M$140,4,0)),R40,VLOOKUP(R6,'Existing Pool'!$C$73:$M$140,4,0)*0.2) -> 2.328309095 | S77: =IF(ISERROR(VLOOKUP(S6,'Existing Pool'!$C$73:$M$140,4,0)),S40,VLOOKUP(S6,'Existing Pool'!$C$73:$M$140,4,0)*0.18) -> 1.43327516 | T77: =IF(ISERROR(VLOOKUP(T6,'Existing Pool'!$C$73:$M$140,4,0)),T40,VLOOKUP(T6,'Existing Pool'!$C$73:$M$140,4,0)*0.2) -> 9.366948739 | U77: =IF(ISERROR(VLOOKUP(U6,'Existing Pool'!$C$73:$M$140,4,0)),U40,VLOOKUP(U6,'Existing Pool'!$C$73:$M$140,4,0)*0.18) -> 2.339198778 | V77: =IF(ISERROR(VLOOKUP(V6,'Existing Pool'!$C$73:$M$140,4,0)),V40,VLOOKUP(V6,'Existing Pool'!$C$73:$M$140,4,0)*0.2) -> 2.947141845 | W77: =IF(ISERROR(VLOOKUP(W6,'Existing Pool'!$C$73:$M$140,4,0)),W40,VLOOKUP(W6,'Existing Pool'!$C$73:$M$140,4,0)*0.18) -> 0.893962227 | X77: =IF(ISERROR(VLOOKUP(X6,'Existing Pool'!$C$73:$M$140,4,0)),X40,VLOOKUP(X6,'Existing Pool'!$C$73:$M$140,4,0)*0.18) -> 1.722401734 | Y77: =IF(ISERROR(VLOOKUP(Y6,'Existing Pool'!$C$73:$M$140,4,0)),Y40,VLOOKUP(Y6,'Existing Pool'!$C$73:$M$140,4,0)*0.2) -> 4.3800917 | Z77: =IF(ISERROR(VLOOKUP(Z6,'Existing Pool'!$C$73:$M$140,4,0)),Z40,VLOOKUP(Z6,'Existing Pool'!$C$73:$M$140,4,0)*0.2) -> 4.688069645 | AA77: =IF(ISERROR(VLOOKUP(AA6,'Existing Pool'!$C$73:$M$140,4,0)),AA40,VLOOKUP(AA6,'Existing Pool'!$C$73:$M$140,4,0)*0.2) -> 6.259737728 | AB77: =IF(ISERROR(VLOOKUP(AB6,'Existing Pool'!$C$73:$M$140,4,0)),AB40,VLOOKUP(AB6,'Existing Pool'!$C$73:$M$140,4,0)*0.2) -> 3.806364371 | AC77: =IF(ISERROR(VLOOKUP(AC6,'Existing Pool'!$C$73:$M$140,4,0)),AC40,VLOOKUP(AC6,'Existing Pool'!$C$73:$M$140,4,0)*0.02) -> 0 | AD77: =IF(ISERROR(VLOOKUP(AD6,'Existing Pool'!$C$73:$M$140,4,0)),AD40,VLOOKUP(AD6,'Existing Pool'!$C$73:$M$140,4,0)*0.02) -> 0 | AE77: =IF(ISERROR(VLOOKUP(AE6,'Existing Pool'!$C$73:$M$140,4,0)),AE40,VLOOKUP(AE6,'Existing Pool'!$C$73:$M$140,4,0)*0.02) -> 0.7421760186 | AF77: =IF(ISERROR(VLOOKUP(AF6,'Existing Pool'!$C$73:$M$140,4,0)),AF40,VLOOKUP(AF6,'Existing Pool'!$C$73:$M$140,4,0)*0.02) -> 0.669964804 | AG77: =IF(ISERROR(VLOOKUP(AG6,'Existing Pool'!$C$73:$M$140,4,0)),AG40,VLOOKUP(AG6,'Existing Pool'!$C$73:$M$140,4,0)*0.02) -> 0.8802114417 | AH77: =IF(ISERROR(VLOOKUP(AH6,'Existing Pool'!$C$73:$M$140,4,0)),AH40,VLOOKUP(AH6,'Existing Pool'!$C$73:$M$140,4,0)*0.02) -> 0 | AI77: =IF(ISERROR(VLOOKUP(AI6,'Existing Pool'!$C$73:$M$140,4,0)),AI40,VLOOKUP(AI6,'Existing Pool'!$C$73:$M$140,4,0)*0.02) -> 0 | AJ77: =IF(ISERROR(VLOOKUP(AJ6,'Existing Pool'!$C$73:$M$140,4,0)),AJ40,VLOOKUP(AJ6,'Existing Pool'!$C$73:$M$140,4,0)*0.02) -> 0.1679729189 | AK77: =IF(ISERROR(VLOOKUP(AK6,'Existing Pool'!$C$73:$M$140,4,0)),AK40,VLOOKUP(AK6,'Existing Pool'!$C$73:$M$140,4,0)*0.02) -> 0.5947053389 | AL77: =IF(ISERROR(VLOOKUP(AL6,'Existing Pool'!$C$73:$M$140,4,0)),AL40,VLOOKUP(AL6,'Existing Pool'!$C$73:$M$140,4,0)*0.02) -> 0 | AM77: =IF(ISERROR(VLOOKUP(AM6,'Existing Pool'!$C$73:$M$140,4,0)),AM40,VLOOKUP(AM6,'Existing Pool'!$C$73:$M$140,4,0)*0.02) -> 0.1616085394 | AN77: =IF(ISERROR(VLOOKUP(AN6,'Existing Pool'!$C$73:$M$140,4,0)),AN40,VLOOKUP(AN6,'Existing Pool'!$C$73:$M$140,4,0)*0.02) -> 0.7499155369 | AO77: =IF(ISERROR(VLOOKUP(AO6,'Existing Pool'!$C$73:$M$140,4,0)),AO40,VLOOKUP(AO6,'Existing Pool'!$C$73:$M$140,4,0)*0.02) -> 0.138724939 | AP77: =IF(ISERROR(VLOOKUP(AP6,'Existing Pool'!$C$73:$M$140,4,0)),AP40,VLOOKUP(AP6,'Existing Pool'!$C$73:$M$140,4,0)*0.02) -> 0.386187902 | AQ77: =IF(ISERROR(VLOOKUP(AQ6,'Existing Pool'!$C$73:$M$140,4,0)),AQ40,VLOOKUP(AQ6,'Existing Pool'!$C$73:$M$140,4,0)*0.02) -> 0 | AR77: =IF(ISERROR(VLOOKUP(AR6,'Existing Pool'!$C$73:$M$140,4,0)),AR40,VLOOKUP(AR6,'Existing Pool'!$C$73:$M$140,4,0)*0.02) -> 0.2187295481 | AS77: =IF(ISERROR(VLOOKUP(AS6,'Existing Pool'!$C$73:$M$140,4,0)),AS40,VLOOKUP(AS6,'Existing Pool'!$C$73:$M$140,4,0)*0.02) -> 0.2390679594 | AT77: =IF(ISERROR(VLOOKUP(AT6,'Existing Pool'!$C$73:$M$140,4,0)),AT40,VLOOKUP(AT6,'Existing Pool'!$C$73:$M$140,4,0)*0.02) -> 0.9451083699 | AU77: =IF(ISERROR(VLOOKUP(AU6,'Existing Pool'!$C$73:$M$140,4,0)),AU40,VLOOKUP(AU6,'Existing Pool'!$C$73:$M$140,4,0)*0.02) -> 0.1592527956 | AV77: =IF(ISERROR(VLOOKUP(AV6,'Existing Pool'!$C$73:$M$140,4,0)),AV40,VLOOKUP(AV6,'Existing Pool'!$C$73:$M$140,4,0)*0.02) -> 0.2599109754 | AW77: =IF(ISERROR(VLOOKUP(AW6,'Existing Pool'!$C$73:$M$140,4,0)),AW40,VLOOKUP(AW6,'Existing Pool'!$C$73:$M$140,4,0)*0.02) -> 0 | AX77: =IF(ISERROR(VLOOKUP(AX6,'Existing Pool'!$C$73:$M$140,4,0)),AX40,VLOOKUP(AX6,'Existing Pool'!$C$73:$M$140,4,0)*0.02) -> 0.1913779705 | AY77: =IF(ISERROR(VLOOKUP(AY6,'Existing Pool'!$C$73:$M$140,4,0)),AY40,VLOOKUP(AY6,'Existing Pool'!$C$73:$M$140,4,0)*0.02) -> 0 | AZ77: =IF(ISERROR(VLOOKUP(AZ6,'Existing Pool'!$C$73:$M$140,4,0)),AZ40,VLOOKUP(AZ6,'Existing Pool'!$C$73:$M$140,4,0)*0.02) -> 0.5912386851 | BA77: =IF(ISERROR(VLOOKUP(BA6,'Existing Pool'!$C$73:$M$140,4,0)),BA40,VLOOKUP(BA6,'Existing Pool'!$C$73:$M$140,4,0)*0.02) -> 0.6412985031 | BB77: =IF(ISERROR(VLOOKUP(BB6,'Existing Pool'!$C$73:$M$140,4,0)),BB40,VLOOKUP(BB6,'Existing Pool'!$C$73:$M$140,4,0)*0.02) -> 0 | BC77: =IF(ISERROR(VLOOKUP(BC6,'Existing Pool'!$C$73:$M$140,4,0)),BC40,VLOOKUP(BC6,'Existing Pool'!$C$73:$M$140,4,0)*0.02) -> 0.8247871815 | BD77: =IF(ISERROR(VLOOKUP(BD6,'Existing Pool'!$C$73:$M$140,4,0)),BD40,VLOOKUP(BD6,'Existing Pool'!$C$73:$M$140,4,0)*0.02) -> 1.049657261 | BE77: =IF(ISERROR(VLOOKUP(BE6,'Existing Pool'!$C$73:$M$140,4,0)),BE40,VLOOKUP(BE6,'Existing Pool'!$C$73:$M$140,4,0)*0.02) -> 1.150113262 | BF77: =IF(ISERROR(VLOOKUP(BF6,'Existing Pool'!$C$73:$M$140,4,0)),BF40,VLOOKUP(BF6,'Existing Pool'!$C$73:$M$140,4,0)*0.02) -> 0.3124293466
A78: =IF(ISERROR(VLOOKUP(A7,'Existing Pool'!$C$73:$M$140,4,0)),A41,VLOOKUP(A7,'Existing Pool'!$C$73:$M$140,4,0)*0.18) -> 0 | B78: =IF(ISERROR(VLOOKUP(B7,'Existing Pool'!$C$73:$M$140,4,0)),B41,VLOOKUP(B7,'Existing Pool'!$C$73:$M$140,4,0)*0.18) -> 0 | C78: =IF(ISERROR(VLOOKUP(C7,'Existing Pool'!$C$73:$M$140,4,0)),C41,VLOOKUP(C7,'Existing Pool'!$C$73:$M$140,4,0)*0.2) -> 3.8850145 | D78: =IF(ISERROR(VLOOKUP(D7,'Existing Pool'!$C$73:$M$140,4,0)),D41,VLOOKUP(D7,'Existing Pool'!$C$73:$M$140,4,0)*0.18) -> 2.022186881 | E78: =IF(ISERROR(VLOOKUP(E7,'Existing Pool'!$C$73:$M$140,4,0)),E41,VLOOKUP(E7,'Existing Pool'!$C$73:$M$140,4,0)*0.18) -> 2.694263886 | F78: =IF(ISERROR(VLOOKUP(F7,'Existing Pool'!$C$73:$M$140,4,0)),F41,VLOOKUP(F7,'Existing Pool'!$C$73:$M$140,4,0)*0.18) -> 1.445371057 | G78: =IF(ISERROR(VLOOKUP(G7,'Existing Pool'!$C$73:$M$140,4,0)),G41,VLOOKUP(G7,'Existing Pool'!$C$73:$M$140,4,0)*0.18) -> 0 | H78: =IF(ISERROR(VLOOKUP(H7,'Existing Pool'!$C$73:$M$140,4,0)),H41,VLOOKUP(H7,'Existing Pool'!$C$73:$M$140,4,0)*0.18) -> 5.171517033 | I78: =IF(ISERROR(VLOOKUP(I7,'Existing Pool'!$C$73:$M$140,4,0)),I41,VLOOKUP(I7,'Existing Pool'!$C$73:$M$140,4,0)*0.4) -> 95.02989923 | J78: =IF(ISERROR(VLOOKUP(J7,'Existing Pool'!$C$73:$M$140,4,0)),J41,VLOOKUP(J7,'Existing Pool'!$C$73:$M$140,4,0)*0.2) -> 3.321410509 | K78: =IF(ISERROR(VLOOKUP(K7,'Existing Pool'!$C$73:$M$140,4,0)),K41,VLOOKUP(K7,'Existing Pool'!$C$73:$M$140,4,0)*0.18) -> 2.559978528 | L78: =IF(ISERROR(VLOOKUP(L7,'Existing Pool'!$C$73:$M$140,4,0)),L41,VLOOKUP(L7,'Existing Pool'!$C$73:$M$140,4,0)*0.18) -> 2.489734446 | M78: =IF(ISERROR(VLOOKUP(M7,'Existing Pool'!$C$73:$M$140,4,0)),M41,VLOOKUP(M7,'Existing Pool'!$C$73:$M$140,4,0)*0.2) -> 6.209133605 | N78: =IF(ISERROR(VLOOKUP(N7,'Existing Pool'!$C$73:$M$140,4,0)),N41,VLOOKUP(N7,'Existing Pool'!$C$73:$M$140,4,0)*0.18) -> 4.861819208 | O78: =IF(ISERROR(VLOOKUP(O7,'Existing Pool'!$C$73:$M$140,4,0)),O41,VLOOKUP(O7,'Existing Pool'!$C$73:$M$140,4,0)*0.18) -> 1.679499823 | P78: =IF(ISERROR(VLOOKUP(P7,'Existing Pool'!$C$73:$M$140,4,0)),P41,VLOOKUP(P7,'Existing Pool'!$C$73:$M$140,4,0)*0.18) -> 4.117750626 | Q78: =IF(ISERROR(VLOOKUP(Q7,'Existing Pool'!$C$73:$M$140,4,0)),Q41,VLOOKUP(Q7,'Existing Pool'!$C$73:$M$140,4,0)*0.2) -> 3.872952103 | R78: =IF(ISERROR(VLOOKUP(R7,'Existing Pool'!$C$73:$M$140,4,0)),R41,VLOOKUP(R7,'Existing Pool'!$C$73:$M$140,4,0)*0.2) -> 7.536077928 | S78: =IF(ISERROR(VLOOKUP(S7,'Existing Pool'!$C$73:$M$140,4,0)),S41,VLOOKUP(S7,'Existing Pool'!$C$73:$M$140,4,0)*0.18) -> 2.811672247 | T78: =IF(ISERROR(VLOOKUP(T7,'Existing Pool'!$C$73:$M$140,4,0)),T41,VLOOKUP(T7,'Existing Pool'!$C$73:$M$140,4,0)*0.2) -> 1.938243842 | U78: =IF(ISERROR(VLOOKUP(U7,'Existing Pool'!$C$73:$M$140,4,0)),U41,VLOOKUP(U7,'Existing Pool'!$C$73:$M$140,4,0)*0.18) -> 2.985609267 | V78: =IF(ISERROR(VLOOKUP(V7,'Existing Pool'!$C$73:$M$140,4,0)),V41,VLOOKUP(V7,'Existing Pool'!$C$73:$M$140,4,0)*0.2) -> 0 | W78: =IF(ISERROR(VLOOKUP(W7,'Existing Pool'!$C$73:$M$140,4,0)),W41,VLOOKUP(W7,'Existing Pool'!$C$73:$M$140,4,0)*0.18) -> 0 | X78: =IF(ISERROR(VLOOKUP(X7,'Existing Pool'!$C$73:$M$140,4,0)),X41,VLOOKUP(X7,'Existing Pool'!$C$73:$M$140,4,0)*0.18) -> 3.668004934 | Y78: =IF(ISERROR(VLOOKUP(Y7,'Existing Pool'!$C$73:$M$140,4,0)),Y41,VLOOKUP(Y7,'Existing Pool'!$C$73:$M$140,4,0)*0.2) -> 4.713757327 | Z78: =IF(ISERROR(VLOOKUP(Z7,'Existing Pool'!$C$73:$M$140,4,0)),Z41,VLOOKUP(Z7,'Existing Pool'!$C$73:$M$140,4,0)*0.2) -> 4.210421846 | AA78: =IF(ISERROR(VLOOKUP(AA7,'Existing Pool'!$C$73:$M$140,4,0)),AA41,VLOOKUP(AA7,'Existing Pool'!$C$73:$M$140,4,0)*0.2) -> 0 | AB78: =IF(ISERROR(VLOOKUP(AB7,'Existing Pool'!$C$73:$M$140,4,0)),AB41,VLOOKUP(AB7,'Existing Pool'!$C$73:$M$140,4,0)*0.2) -> 4.045245951 | AC78: =IF(ISERROR(VLOOKUP(AC7,'Existing Pool'!$C$73:$M$140,4,0)),AC41,VLOOKUP(AC7,'Existing Pool'!$C$73:$M$140,4,0)*0.02) -> 0 | AD78: =IF(ISERROR(VLOOKUP(AD7,'Existing Pool'!$C$73:$M$140,4,0)),AD41,VLOOKUP(AD7,'Existing Pool'!$C$73:$M$140,4,0)*0.02) -> 0 | AE78: =IF(ISERROR(VLOOKUP(AE7,'Existing Pool'!$C$73:$M$140,4,0)),AE41,VLOOKUP(AE7,'Existing Pool'!$C$73:$M$140,4,0)*0.02) -> 0.5203243601 | AF78: =IF(ISERROR(VLOOKUP(AF7,'Existing Pool'!$C$73:$M$140,4,0)),AF41,VLOOKUP(AF7,'Existing Pool'!$C$73:$M$140,4,0)*0.02) -> 0 | AG78: =IF(ISERROR(VLOOKUP(AG7,'Existing Pool'!$C$73:$M$140,4,0)),AG41,VLOOKUP(AG7,'Existing Pool'!$C$73:$M$140,4,0)*0.02) -> 0.6365261133 | AH78: =IF(ISERROR(VLOOKUP(AH7,'Existing Pool'!$C$73:$M$140,4,0)),AH41,VLOOKUP(AH7,'Existing Pool'!$C$73:$M$140,4,0)*0.02) -> 0 | AI78: =IF(ISERROR(VLOOKUP(AI7,'Existing Pool'!$C$73:$M$140,4,0)),AI41,VLOOKUP(AI7,'Existing Pool'!$C$73:$M$140,4,0)*0.02) -> 0 | AJ78: =IF(ISERROR(VLOOKUP(AJ7,'Existing Pool'!$C$73:$M$140,4,0)),AJ41,VLOOKUP(AJ7,'Existing Pool'!$C$73:$M$140,4,0)*0.02) -> 0.2306815953 | AK78: =IF(ISERROR(VLOOKUP(AK7,'Existing Pool'!$C$73:$M$140,4,0)),AK41,VLOOKUP(AK7,'Existing Pool'!$C$73:$M$140,4,0)*0.02) -> 0.1697286085 | AL78: =IF(ISERROR(VLOOKUP(AL7,'Existing Pool'!$C$73:$M$140,4,0)),AL41,VLOOKUP(AL7,'Existing Pool'!$C$73:$M$140,4,0)*0.02) -> 0 | AM78: =IF(ISERROR(VLOOKUP(AM7,'Existing Pool'!$C$73:$M$140,4,0)),AM41,VLOOKUP(AM7,'Existing Pool'!$C$73:$M$140,4,0)*0.02) -> 0.2885364151 | AN78: =IF(ISERROR(VLOOKUP(AN7,'Existing Pool'!$C$73:$M$140,4,0)),AN41,VLOOKUP(AN7,'Existing Pool'!$C$73:$M$140,4,0)*0.02) -> 0.5746130037 | AO78: =IF(ISERROR(VLOOKUP(AO7,'Existing Pool'!$C$73:$M$140,4,0)),AO41,VLOOKUP(AO7,'Existing Pool'!$C$73:$M$140,4,0)*0.02) -> 0.2844420587 | AP78: =IF(ISERROR(VLOOKUP(AP7,'Existing Pool'!$C$73:$M$140,4,0)),AP41,VLOOKUP(AP7,'Existing Pool'!$C$73:$M$140,4,0)*0.02) -> 0.3812040735 | AQ78: =IF(ISERROR(VLOOKUP(AQ7,'Existing Pool'!$C$73:$M$140,4,0)),AQ41,VLOOKUP(AQ7,'Existing Pool'!$C$73:$M$140,4,0)*0.02) -> 0 | AR78: =IF(ISERROR(VLOOKUP(AR7,'Existing Pool'!$C$73:$M$140,4,0)),AR41,VLOOKUP(AR7,'Existing Pool'!$C$73:$M$140,4,0)*0.02) -> 0.5402021342 | AS78: =IF(ISERROR(VLOOKUP(AS7,'Existing Pool'!$C$73:$M$140,4,0)),AS41,VLOOKUP(AS7,'Existing Pool'!$C$73:$M$140,4,0)*0.02) -> 0.1994654459 | AT78: =IF(ISERROR(VLOOKUP(AT7,'Existing Pool'!$C$73:$M$140,4,0)),AT41,VLOOKUP(AT7,'Existing Pool'!$C$73:$M$140,4,0)*0.02) -> 0.1241770561 | AU78: =IF(ISERROR(VLOOKUP(AU7,'Existing Pool'!$C$73:$M$140,4,0)),AU41,VLOOKUP(AU7,'Existing Pool'!$C$73:$M$140,4,0)*0.02) -> 0.3124080275 | AV78: =IF(ISERROR(VLOOKUP(AV7,'Existing Pool'!$C$73:$M$140,4,0)),AV41,VLOOKUP(AV7,'Existing Pool'!$C$73:$M$140,4,0)*0.02) -> 0.331734363 | AW78: =IF(ISERROR(VLOOKUP(AW7,'Existing Pool'!$C$73:$M$140,4,0)),AW41,VLOOKUP(AW7,'Existing Pool'!$C$73:$M$140,4,0)*0.02) -> 0 | AX78: =IF(ISERROR(VLOOKUP(AX7,'Existing Pool'!$C$73:$M$140,4,0)),AX41,VLOOKUP(AX7,'Existing Pool'!$C$73:$M$140,4,0)*0.02) -> 0.4075561037 | AY78: =IF(ISERROR(VLOOKUP(AY7,'Existing Pool'!$C$73:$M$140,4,0)),AY41,VLOOKUP(AY7,'Existing Pool'!$C$73:$M$140,4,0)*0.02) -> 0 | AZ78: =IF(ISERROR(VLOOKUP(AZ7,'Existing Pool'!$C$73:$M$140,4,0)),AZ41,VLOOKUP(AZ7,'Existing Pool'!$C$73:$M$140,4,0)*0.02) -> 0.7950848967 | BA78: =IF(ISERROR(VLOOKUP(BA7,'Existing Pool'!$C$73:$M$140,4,0)),BA41,VLOOKUP(BA7,'Existing Pool'!$C$73:$M$140,4,0)*0.02) -> 0 | BB78: =IF(ISERROR(VLOOKUP(BB7,'Existing Pool'!$C$73:$M$140,4,0)),BB41,VLOOKUP(BB7,'Existing Pool'!$C$73:$M$140,4,0)*0.02) -> 0 | BC78: =IF(ISERROR(VLOOKUP(BC7,'Existing Pool'!$C$73:$M$140,4,0)),BC41,VLOOKUP(BC7,'Existing Pool'!$C$73:$M$140,4,0)*0.02) -> 0 | BD78: =IF(ISERROR(VLOOKUP(BD7,'Existing Pool'!$C$73:$M$140,4,0)),BD41,VLOOKUP(BD7,'Existing Pool'!$C$73:$M$140,4,0)*0.02) -> 0.6818069049 | BE78: =IF(ISERROR(VLOOKUP(BE7,'Existing Pool'!$C$73:$M$140,4,0)),BE41,VLOOKUP(BE7,'Existing Pool'!$C$73:$M$140,4,0)*0.02) -> 0 | BF78: =IF(ISERROR(VLOOKUP(BF7,'Existing Pool'!$C$73:$M$140,4,0)),BF41,VLOOKUP(BF7,'Existing Pool'!$C$73:$M$140,4,0)*0.02) -> 0.8600355936
A79: =IF(ISERROR(VLOOKUP(A8,'Existing Pool'!$C$73:$M$140,4,0)),A42,VLOOKUP(A8,'Existing Pool'!$C$73:$M$140,4,0)*0.18) -> 0 | B79: =IF(ISERROR(VLOOKUP(B8,'Existing Pool'!$C$73:$M$140,4,0)),B42,VLOOKUP(B8,'Existing Pool'!$C$73:$M$140,4,0)*0.18) -> 0 | C79: =IF(ISERROR(VLOOKUP(C8,'Existing Pool'!$C$73:$M$140,4,0)),C42,VLOOKUP(C8,'Existing Pool'!$C$73:$M$140,4,0)*0.2) -> 0 | D79: =IF(ISERROR(VLOOKUP(D8,'Existing Pool'!$C$73:$M$140,4,0)),D42,VLOOKUP(D8,'Existing Pool'!$C$73:$M$140,4,0)*0.18) -> 1.196570233 | E79: =IF(ISERROR(VLOOKUP(E8,'Existing Pool'!$C$73:$M$140,4,0)),E42,VLOOKUP(E8,'Existing Pool'!$C$73:$M$140,4,0)*0.18) -> 0.9463050586 | F79: =IF(ISERROR(VLOOKUP(F8,'Existing Pool'!$C$73:$M$140,4,0)),F42,VLOOKUP(F8,'Existing Pool'!$C$73:$M$140,4,0)*0.18) -> 0 | G79: =IF(ISERROR(VLOOKUP(G8,'Existing Pool'!$C$73:$M$140,4,0)),G42,VLOOKUP(G8,'Existing Pool'!$C$73:$M$140,4,0)*0.18) -> 0 | H79: =IF(ISERROR(VLOOKUP(H8,'Existing Pool'!$C$73:$M$140,4,0)),H42,VLOOKUP(H8,'Existing Pool'!$C$73:$M$140,4,0)*0.18) -> 2.869950229 | I79: =IF(ISERROR(VLOOKUP(I8,'Existing Pool'!$C$73:$M$140,4,0)),I42,VLOOKUP(I8,'Existing Pool'!$C$73:$M$140,4,0)*0.4) -> 150.2915307 | J79: =IF(ISERROR(VLOOKUP(J8,'Existing Pool'!$C$73:$M$140,4,0)),J42,VLOOKUP(J8,'Existing Pool'!$C$73:$M$140,4,0)*0.2) -> 0 | K79: =IF(ISERROR(VLOOKUP(K8,'Existing Pool'!$C$73:$M$140,4,0)),K42,VLOOKUP(K8,'Existing Pool'!$C$73:$M$140,4,0)*0.18) -> 2.772260702 | L79: =IF(ISERROR(VLOOKUP(L8,'Existing Pool'!$C$73:$M$140,4,0)),L42,VLOOKUP(L8,'Existing Pool'!$C$73:$M$140,4,0)*0.18) -> 0 | M79: =IF(ISERROR(VLOOKUP(M8,'Existing Pool'!$C$73:$M$140,4,0)),M42,VLOOKUP(M8,'Existing Pool'!$C$73:$M$140,4,0)*0.2) -> 4.469109282 | N79: =IF(ISERROR(VLOOKUP(N8,'Existing Pool'!$C$73:$M$140,4,0)),N42,VLOOKUP(N8,'Existing Pool'!$C$73:$M$140,4,0)*0.18) -> 3.053493907 | O79: =IF(ISERROR(VLOOKUP(O8,'Existing Pool'!$C$73:$M$140,4,0)),O42,VLOOKUP(O8,'Existing Pool'!$C$73:$M$140,4,0)*0.18) -> 5.802169591 | P79: =IF(ISERROR(VLOOKUP(P8,'Existing Pool'!$C$73:$M$140,4,0)),P42,VLOOKUP(P8,'Existing Pool'!$C$73:$M$140,4,0)*0.18) -> 1.063690708 | Q79: =IF(ISERROR(VLOOKUP(Q8,'Existing Pool'!$C$73:$M$140,4,0)),Q42,VLOOKUP(Q8,'Existing Pool'!$C$73:$M$140,4,0)*0.2) -> 1.49343009 | R79: =IF(ISERROR(VLOOKUP(R8,'Existing Pool'!$C$73:$M$140,4,0)),R42,VLOOKUP(R8,'Existing Pool'!$C$73:$M$140,4,0)*0.2) -> 2.647683641 | S79: =IF(ISERROR(VLOOKUP(S8,'Existing Pool'!$C$73:$M$140,4,0)),S42,VLOOKUP(S8,'Existing Pool'!$C$73:$M$140,4,0)*0.18) -> 3.6660422 | T79: =IF(ISERROR(VLOOKUP(T8,'Existing Pool'!$C$73:$M$140,4,0)),T42,VLOOKUP(T8,'Existing Pool'!$C$73:$M$140,4,0)*0.2) -> 2.60809343 | U79: =IF(ISERROR(VLOOKUP(U8,'Existing Pool'!$C$73:$M$140,4,0)),U42,VLOOKUP(U8,'Existing Pool'!$C$73:$M$140,4,0)*0.18) -> 2.386310457 | V79: =IF(ISERROR(VLOOKUP(V8,'Existing Pool'!$C$73:$M$140,4,0)),V42,VLOOKUP(V8,'Existing Pool'!$C$73:$M$140,4,0)*0.2) -> 0 | W79: =IF(ISERROR(VLOOKUP(W8,'Existing Pool'!$C$73:$M$140,4,0)),W42,VLOOKUP(W8,'Existing Pool'!$C$73:$M$140,4,0)*0.18) -> 0 | X79: =IF(ISERROR(VLOOKUP(X8,'Existing Pool'!$C$73:$M$140,4,0)),X42,VLOOKUP(X8,'Existing Pool'!$C$73:$M$140,4,0)*0.18) -> 1.536751168 | Y79: =IF(ISERROR(VLOOKUP(Y8,'Existing Pool'!$C$73:$M$140,4,0)),Y42,VLOOKUP(Y8,'Existing Pool'!$C$73:$M$140,4,0)*0.2) -> 2.572934671 | Z79: =IF(ISERROR(VLOOKUP(Z8,'Existing Pool'!$C$73:$M$140,4,0)),Z42,VLOOKUP(Z8,'Existing Pool'!$C$73:$M$140,4,0)*0.2) -> 3.813381611 | AA79: =IF(ISERROR(VLOOKUP(AA8,'Existing Pool'!$C$73:$M$140,4,0)),AA42,VLOOKUP(AA8,'Existing Pool'!$C$73:$M$140,4,0)*0.2) -> 0 | AB79: =IF(ISERROR(VLOOKUP(AB8,'Existing Pool'!$C$73:$M$140,4,0)),AB42,VLOOKUP(AB8,'Existing Pool'!$C$73:$M$140,4,0)*0.2) -> 2.993332039 | AC79: =IF(ISERROR(VLOOKUP(AC8,'Existing Pool'!$C$73:$M$140,4,0)),AC42,VLOOKUP(AC8,'Existing Pool'!$C$73:$M$140,4,0)*0.02) -> 0 | AD79: =IF(ISERROR(VLOOKUP(AD8,'Existing Pool'!$C$73:$M$140,4,0)),AD42,VLOOKUP(AD8,'Existing Pool'!$C$73:$M$140,4,0)*0.02) -> 0 | AE79: =IF(ISERROR(VLOOKUP(AE8,'Existing Pool'!$C$73:$M$140,4,0)),AE42,VLOOKUP(AE8,'Existing Pool'!$C$73:$M$140,4,0)*0.02) -> 0 | AF79: =IF(ISERROR(VLOOKUP(AF8,'Existing Pool'!$C$73:$M$140,4,0)),AF42,VLOOKUP(AF8,'Existing Pool'!$C$73:$M$140,4,0)*0.02) -> 0 | AG79: =IF(ISERROR(VLOOKUP(AG8,'Existing Pool'!$C$73:$M$140,4,0)),AG42,VLOOKUP(AG8,'Existing Pool'!$C$73:$M$140,4,0)*0.02) -> 0 | AH79: =IF(ISERROR(VLOOKUP(AH8,'Existing Pool'!$C$73:$M$140,4,0)),AH42,VLOOKUP(AH8,'Existing Pool'!$C$73:$M$140,4,0)*0.02) -> 0 | AI79: =IF(ISERROR(VLOOKUP(AI8,'Existing Pool'!$C$73:$M$140,4,0)),AI42,VLOOKUP(AI8,'Existing Pool'!$C$73:$M$140,4,0)*0.02) -> 0 | AJ79: =IF(ISERROR(VLOOKUP(AJ8,'Existing Pool'!$C$73:$M$140,4,0)),AJ42,VLOOKUP(AJ8,'Existing Pool'!$C$73:$M$140,4,0)*0.02) -> 0.2246874312 | AK79: =IF(ISERROR(VLOOKUP(AK8,'Existing Pool'!$C$73:$M$140,4,0)),AK42,VLOOKUP(AK8,'Existing Pool'!$C$73:$M$140,4,0)*0.02) -> 0.2877567947 | AL79: =IF(ISERROR(VLOOKUP(AL8,'Existing Pool'!$C$73:$M$140,4,0)),AL42,VLOOKUP(AL8,'Existing Pool'!$C$73:$M$140,4,0)*0.02) -> 0 | AM79: =IF(ISERROR(VLOOKUP(AM8,'Existing Pool'!$C$73:$M$140,4,0)),AM42,VLOOKUP(AM8,'Existing Pool'!$C$73:$M$140,4,0)*0.02) -> 0 | AN79: =IF(ISERROR(VLOOKUP(AN8,'Existing Pool'!$C$73:$M$140,4,0)),AN42,VLOOKUP(AN8,'Existing Pool'!$C$73:$M$140,4,0)*0.02) -> 0.3188833587 | AO79: =IF(ISERROR(VLOOKUP(AO8,'Existing Pool'!$C$73:$M$140,4,0)),AO42,VLOOKUP(AO8,'Existing Pool'!$C$73:$M$140,4,0)*0.02) -> 0.3080289669 | AP79: =IF(ISERROR(VLOOKUP(AP8,'Existing Pool'!$C$73:$M$140,4,0)),AP42,VLOOKUP(AP8,'Existing Pool'!$C$73:$M$140,4,0)*0.02) -> 0.2766371607 | AQ79: =IF(ISERROR(VLOOKUP(AQ8,'Existing Pool'!$C$73:$M$140,4,0)),AQ42,VLOOKUP(AQ8,'Existing Pool'!$C$73:$M$140,4,0)*0.02) -> 0 | AR79: =IF(ISERROR(VLOOKUP(AR8,'Existing Pool'!$C$73:$M$140,4,0)),AR42,VLOOKUP(AR8,'Existing Pool'!$C$73:$M$140,4,0)*0.02) -> 0.8511434226 | AS79: =IF(ISERROR(VLOOKUP(AS8,'Existing Pool'!$C$73:$M$140,4,0)),AS42,VLOOKUP(AS8,'Existing Pool'!$C$73:$M$140,4,0)*0.02) -> 0.600834498 | AT79: =IF(ISERROR(VLOOKUP(AT8,'Existing Pool'!$C$73:$M$140,4,0)),AT42,VLOOKUP(AT8,'Existing Pool'!$C$73:$M$140,4,0)*0.02) -> 0.4575278474 | AU79: =IF(ISERROR(VLOOKUP(AU8,'Existing Pool'!$C$73:$M$140,4,0)),AU42,VLOOKUP(AU8,'Existing Pool'!$C$73:$M$140,4,0)*0.02) -> 0.4073380222 | AV79: =IF(ISERROR(VLOOKUP(AV8,'Existing Pool'!$C$73:$M$140,4,0)),AV42,VLOOKUP(AV8,'Existing Pool'!$C$73:$M$140,4,0)*0.02) -> 1.185411421 | AW79: =IF(ISERROR(VLOOKUP(AW8,'Existing Pool'!$C$73:$M$140,4,0)),AW42,VLOOKUP(AW8,'Existing Pool'!$C$73:$M$140,4,0)*0.02) -> 0 | AX79: =IF(ISERROR(VLOOKUP(AX8,'Existing Pool'!$C$73:$M$140,4,0)),AX42,VLOOKUP(AX8,'Existing Pool'!$C$73:$M$140,4,0)*0.02) -> 0.1707501297 | AY79: =IF(ISERROR(VLOOKUP(AY8,'Existing Pool'!$C$73:$M$140,4,0)),AY42,VLOOKUP(AY8,'Existing Pool'!$C$73:$M$140,4,0)*0.02) -> 0 | AZ79: =IF(ISERROR(VLOOKUP(AZ8,'Existing Pool'!$C$73:$M$140,4,0)),AZ42,VLOOKUP(AZ8,'Existing Pool'!$C$73:$M$140,4,0)*0.02) -> 0.8875777026 | BA79: =IF(ISERROR(VLOOKUP(BA8,'Existing Pool'!$C$73:$M$140,4,0)),BA42,VLOOKUP(BA8,'Existing Pool'!$C$73:$M$140,4,0)*0.02) -> 0 | BB79: =IF(ISERROR(VLOOKUP(BB8,'Existing Pool'!$C$73:$M$140,4,0)),BB42,VLOOKUP(BB8,'Existing Pool'!$C$73:$M$140,4,0)*0.02) -> 0 | BC79: =IF(ISERROR(VLOOKUP(BC8,'Existing Pool'!$C$73:$M$140,4,0)),BC42,VLOOKUP(BC8,'Existing Pool'!$C$73:$M$140,4,0)*0.02) -> 0 | BD79: =IF(ISERROR(VLOOKUP(BD8,'Existing Pool'!$C$73:$M$140,4,0)),BD42,VLOOKUP(BD8,'Existing Pool'!$C$73:$M$140,4,0)*0.02) -> 0.7152958167 | BE79: =IF(ISERROR(VLOOKUP(BE8,'Existing Pool'!$C$73:$M$140,4,0)),BE42,VLOOKUP(BE8,'Existing Pool'!$C$73:$M$140,4,0)*0.02) -> 0 | BF79: =IF(ISERROR(VLOOKUP(BF8,'Existing Pool'!$C$73:$M$140,4,0)),BF42,VLOOKUP(BF8,'Existing Pool'!$C$73:$M$140,4,0)*0.02) -> 0.3315759922
A80: =IF(ISERROR(VLOOKUP(A9,'Existing Pool'!$C$73:$M$140,4,0)),A43,VLOOKUP(A9,'Existing Pool'!$C$73:$M$140,4,0)*0.18) -> 0 | B80: =IF(ISERROR(VLOOKUP(B9,'Existing Pool'!$C$73:$M$140,4,0)),B43,VLOOKUP(B9,'Existing Pool'!$C$73:$M$140,4,0)*0.18) -> 0 | C80: =IF(ISERROR(VLOOKUP(C9,'Existing Pool'!$C$73:$M$140,4,0)),C43,VLOOKUP(C9,'Existing Pool'!$C$73:$M$140,4,0)*0.2) -> 0 | D80: =IF(ISERROR(VLOOKUP(D9,'Existing Pool'!$C$73:$M$140,4,0)),D43,VLOOKUP(D9,'Existing Pool'!$C$73:$M$140,4,0)*0.18) -> 1.838835667 | E80: =IF(ISERROR(VLOOKUP(E9,'Existing Pool'!$C$73:$M$140,4,0)),E43,VLOOKUP(E9,'Existing Pool'!$C$73:$M$140,4,0)*0.18) -> 0.9722670323 | F80: =IF(ISERROR(VLOOKUP(F9,'Existing Pool'!$C$73:$M$140,4,0)),F43,VLOOKUP(F9,'Existing Pool'!$C$73:$M$140,4,0)*0.18) -> 0 | G80: =IF(ISERROR(VLOOKUP(G9,'Existing Pool'!$C$73:$M$140,4,0)),G43,VLOOKUP(G9,'Existing Pool'!$C$73:$M$140,4,0)*0.18) -> 0 | H80: =IF(ISERROR(VLOOKUP(H9,'Existing Pool'!$C$73:$M$140,4,0)),H43,VLOOKUP(H9,'Existing Pool'!$C$73:$M$140,4,0)*0.18) -> 4.016899304 | I80: =IF(ISERROR(VLOOKUP(I9,'Existing Pool'!$C$73:$M$140,4,0)),I43,VLOOKUP(I9,'Existing Pool'!$C$73:$M$140,4,0)*0.4) -> 21.97476591 | J80: =IF(ISERROR(VLOOKUP(J9,'Existing Pool'!$C$73:$M$140,4,0)),J43,VLOOKUP(J9,'Existing Pool'!$C$73:$M$140,4,0)*0.2) -> 0 | K80: =IF(ISERROR(VLOOKUP(K9,'Existing Pool'!$C$73:$M$140,4,0)),K43,VLOOKUP(K9,'Existing Pool'!$C$73:$M$140,4,0)*0.18) -> 5.592892568 | L80: =IF(ISERROR(VLOOKUP(L9,'Existing Pool'!$C$73:$M$140,4,0)),L43,VLOOKUP(L9,'Existing Pool'!$C$73:$M$140,4,0)*0.18) -> 0 | M80: =IF(ISERROR(VLOOKUP(M9,'Existing Pool'!$C$73:$M$140,4,0)),M43,VLOOKUP(M9,'Existing Pool'!$C$73:$M$140,4,0)*0.2) -> 2.515982564 | N80: =IF(ISERROR(VLOOKUP(N9,'Existing Pool'!$C$73:$M$140,4,0)),N43,VLOOKUP(N9,'Existing Pool'!$C$73:$M$140,4,0)*0.18) -> 2.10904747 | O80: =IF(ISERROR(VLOOKUP(O9,'Existing Pool'!$C$73:$M$140,4,0)),O43,VLOOKUP(O9,'Existing Pool'!$C$73:$M$140,4,0)*0.18) -> 1.202944308 | P80: =IF(ISERROR(VLOOKUP(P9,'Existing Pool'!$C$73:$M$140,4,0)),P43,VLOOKUP(P9,'Existing Pool'!$C$73:$M$140,4,0)*0.18) -> 0 | Q80: =IF(ISERROR(VLOOKUP(Q9,'Existing Pool'!$C$73:$M$140,4,0)),Q43,VLOOKUP(Q9,'Existing Pool'!$C$73:$M$140,4,0)*0.2) -> 0 | R80: =IF(ISERROR(VLOOKUP(R9,'Existing Pool'!$C$73:$M$140,4,0)),R43,VLOOKUP(R9,'Existing Pool'!$C$73:$M$140,4,0)*0.2) -> 0 | S80: =IF(ISERROR(VLOOKUP(S9,'Existing Pool'!$C$73:$M$140,4,0)),S43,VLOOKUP(S9,'Existing Pool'!$C$73:$M$140,4,0)*0.18) -> 0 | T80: =IF(ISERROR(VLOOKUP(T9,'Existing Pool'!$C$73:$M$140,4,0)),T43,VLOOKUP(T9,'Existing Pool'!$C$73:$M$140,4,0)*0.2) -> 0 | U80: =IF(ISERROR(VLOOKUP(U9,'Existing Pool'!$C$73:$M$140,4,0)),U43,VLOOKUP(U9,'Existing Pool'!$C$73:$M$140,4,0)*0.18) -> 0 | V80: =IF(ISERROR(VLOOKUP(V9,'Existing Pool'!$C$73:$M$140,4,0)),V43,VLOOKUP(V9,'Existing Pool'!$C$73:$M$140,4,0)*0.2) -> 0 | W80: =IF(ISERROR(VLOOKUP(W9,'Existing Pool'!$C$73:$M$140,4,0)),W43,VLOOKUP(W9,'Existing Pool'!$C$73:$M$140,4,0)*0.18) -> 0 | X80: =IF(ISERROR(VLOOKUP(X9,'Existing Pool'!$C$73:$M$140,4,0)),X43,VLOOKUP(X9,'Existing Pool'!$C$73:$M$140,4,0)*0.18) -> 2.744819996 | Y80: =IF(ISERROR(VLOOKUP(Y9,'Existing Pool'!$C$73:$M$140,4,0)),Y43,VLOOKUP(Y9,'Existing Pool'!$C$73:$M$140,4,0)*0.2) -> 0 | Z80: =IF(ISERROR(VLOOKUP(Z9,'Existing Pool'!$C$73:$M$140,4,0)),Z43,VLOOKUP(Z9,'Existing Pool'!$C$73:$M$140,4,0)*0.2) -> 3.275118021 | AA80: =IF(ISERROR(VLOOKUP(AA9,'Existing Pool'!$C$73:$M$140,4,0)),AA43,VLOOKUP(AA9,'Existing Pool'!$C$73:$M$140,4,0)*0.2) -> 0 | AB80: =IF(ISERROR(VLOOKUP(AB9,'Existing Pool'!$C$73:$M$140,4,0)),AB43,VLOOKUP(AB9,'Existing Pool'!$C$73:$M$140,4,0)*0.2) -> 0 | AC80: =IF(ISERROR(VLOOKUP(AC9,'Existing Pool'!$C$73:$M$140,4,0)),AC43,VLOOKUP(AC9,'Existing Pool'!$C$73:$M$140,4,0)*0.02) -> 0 | AD80: =IF(ISERROR(VLOOKUP(AD9,'Existing Pool'!$C$73:$M$140,4,0)),AD43,VLOOKUP(AD9,'Existing Pool'!$C$73:$M$140,4,0)*0.02) -> 0 | AE80: =IF(ISERROR(VLOOKUP(AE9,'Existing Pool'!$C$73:$M$140,4,0)),AE43,VLOOKUP(AE9,'Existing Pool'!$C$73:$M$140,4,0)*0.02) -> 0 | AF80: =IF(ISERROR(VLOOKUP(AF9,'Existing Pool'!$C$73:$M$140,4,0)),AF43,VLOOKUP(AF9,'Existing Pool'!$C$73:$M$140,4,0)*0.02) -> 0 | AG80: =IF(ISERROR(VLOOKUP(AG9,'Existing Pool'!$C$73:$M$140,4,0)),AG43,VLOOKUP(AG9,'Existing Pool'!$C$73:$M$140,4,0)*0.02) -> 0 | AH80: =IF(ISERROR(VLOOKUP(AH9,'Existing Pool'!$C$73:$M$140,4,0)),AH43,VLOOKUP(AH9,'Existing Pool'!$C$73:$M$140,4,0)*0.02) -> 0 | AI80: =IF(ISERROR(VLOOKUP(AI9,'Existing Pool'!$C$73:$M$140,4,0)),AI43,VLOOKUP(AI9,'Existing Pool'!$C$73:$M$140,4,0)*0.02) -> 0 | AJ80: =IF(ISERROR(VLOOKUP(AJ9,'Existing Pool'!$C$73:$M$140,4,0)),AJ43,VLOOKUP(AJ9,'Existing Pool'!$C$73:$M$140,4,0)*0.02) -> 0.1329522481 | AK80: =IF(ISERROR(VLOOKUP(AK9,'Existing Pool'!$C$73:$M$140,4,0)),AK43,VLOOKUP(AK9,'Existing Pool'!$C$73:$M$140,4,0)*0.02) -> 0.1605967842 | AL80: =IF(ISERROR(VLOOKUP(AL9,'Existing Pool'!$C$73:$M$140,4,0)),AL43,VLOOKUP(AL9,'Existing Pool'!$C$73:$M$140,4,0)*0.02) -> 0 | AM80: =IF(ISERROR(VLOOKUP(AM9,'Existing Pool'!$C$73:$M$140,4,0)),AM43,VLOOKUP(AM9,'Existing Pool'!$C$73:$M$140,4,0)*0.02) -> 0 | AN80: =IF(ISERROR(VLOOKUP(AN9,'Existing Pool'!$C$73:$M$140,4,0)),AN43,VLOOKUP(AN9,'Existing Pool'!$C$73:$M$140,4,0)*0.02) -> 0.4463221449 | AO80: =IF(ISERROR(VLOOKUP(AO9,'Existing Pool'!$C$73:$M$140,4,0)),AO43,VLOOKUP(AO9,'Existing Pool'!$C$73:$M$140,4,0)*0.02) -> 0.6214325076 | AP80: =IF(ISERROR(VLOOKUP(AP9,'Existing Pool'!$C$73:$M$140,4,0)),AP43,VLOOKUP(AP9,'Existing Pool'!$C$73:$M$140,4,0)*0.02) -> 0 | AQ80: =IF(ISERROR(VLOOKUP(AQ9,'Existing Pool'!$C$73:$M$140,4,0)),AQ43,VLOOKUP(AQ9,'Existing Pool'!$C$73:$M$140,4,0)*0.02) -> 0 | AR80: =IF(ISERROR(VLOOKUP(AR9,'Existing Pool'!$C$73:$M$140,4,0)),AR43,VLOOKUP(AR9,'Existing Pool'!$C$73:$M$140,4,0)*0.02) -> 0.3392771008 | AS80: =IF(ISERROR(VLOOKUP(AS9,'Existing Pool'!$C$73:$M$140,4,0)),AS43,VLOOKUP(AS9,'Existing Pool'!$C$73:$M$140,4,0)*0.02) -> 0.1866110914 | AT80: =IF(ISERROR(VLOOKUP(AT9,'Existing Pool'!$C$73:$M$140,4,0)),AT43,VLOOKUP(AT9,'Existing Pool'!$C$73:$M$140,4,0)*0.02) -> 0.1181878565 | AU80: =IF(ISERROR(VLOOKUP(AU9,'Existing Pool'!$C$73:$M$140,4,0)),AU43,VLOOKUP(AU9,'Existing Pool'!$C$73:$M$140,4,0)*0.02) -> 0.9204441953 | AV80: =IF(ISERROR(VLOOKUP(AV9,'Existing Pool'!$C$73:$M$140,4,0)),AV43,VLOOKUP(AV9,'Existing Pool'!$C$73:$M$140,4,0)*0.02) -> 0.2651456063 | AW80: =IF(ISERROR(VLOOKUP(AW9,'Existing Pool'!$C$73:$M$140,4,0)),AW43,VLOOKUP(AW9,'Existing Pool'!$C$73:$M$140,4,0)*0.02) -> 0 | AX80: =IF(ISERROR(VLOOKUP(AX9,'Existing Pool'!$C$73:$M$140,4,0)),AX43,VLOOKUP(AX9,'Existing Pool'!$C$73:$M$140,4,0)*0.02) -> 0.8001277305 | AY80: =IF(ISERROR(VLOOKUP(AY9,'Existing Pool'!$C$73:$M$140,4,0)),AY43,VLOOKUP(AY9,'Existing Pool'!$C$73:$M$140,4,0)*0.02) -> 0 | AZ80: =IF(ISERROR(VLOOKUP(AZ9,'Existing Pool'!$C$73:$M$140,4,0)),AZ43,VLOOKUP(AZ9,'Existing Pool'!$C$73:$M$140,4,0)*0.02) -> 0.5353363727 | BA80: =IF(ISERROR(VLOOKUP(BA9,'Existing Pool'!$C$73:$M$140,4,0)),BA43,VLOOKUP(BA9,'Existing Pool'!$C$73:$M$140,4,0)*0.02) -> 0 | BB80: =IF(ISERROR(VLOOKUP(BB9,'Existing Pool'!$C$73:$M$140,4,0)),BB43,VLOOKUP(BB9,'Existing Pool'!$C$73:$M$140,4,0)*0.02) -> 0 | BC80: =IF(ISERROR(VLOOKUP(BC9,'Existing Pool'!$C$73:$M$140,4,0)),BC43,VLOOKUP(BC9,'Existing Pool'!$C$73:$M$140,4,0)*0.02) -> 0 | BD80: =IF(ISERROR(VLOOKUP(BD9,'Existing Pool'!$C$73:$M$140,4,0)),BD43,VLOOKUP(BD9,'Existing Pool'!$C$73:$M$140,4,0)*0.02) -> 0 | BE80: =IF(ISERROR(VLOOKUP(BE9,'Existing Pool'!$C$73:$M$140,4,0)),BE43,VLOOKUP(BE9,'Existing Pool'!$C$73:$M$140,4,0)*0.02) -> 0 | BF80: =IF(ISERROR(VLOOKUP(BF9,'Existing Pool'!$C$73:$M$140,4,0)),BF43,VLOOKUP(BF9,'Existing Pool'!$C$73:$M$140,4,0)*0.02) -> 0.3129744065
A81: =IF(ISERROR(VLOOKUP(A10,'Existing Pool'!$C$73:$M$140,4,0)),A44,VLOOKUP(A10,'Existing Pool'!$C$73:$M$140,4,0)*0.18) -> 0 | B81: =IF(ISERROR(VLOOKUP(B10,'Existing Pool'!$C$73:$M$140,4,0)),B44,VLOOKUP(B10,'Existing Pool'!$C$73:$M$140,4,0)*0.18) -> 0 | C81: =IF(ISERROR(VLOOKUP(C10,'Existing Pool'!$C$73:$M$140,4,0)),C44,VLOOKUP(C10,'Existing Pool'!$C$73:$M$140,4,0)*0.2) -> 0 | D81: =IF(ISERROR(VLOOKUP(D10,'Existing Pool'!$C$73:$M$140,4,0)),D44,VLOOKUP(D10,'Existing Pool'!$C$73:$M$140,4,0)*0.18) -> 0 | E81: =IF(ISERROR(VLOOKUP(E10,'Existing Pool'!$C$73:$M$140,4,0)),E44,VLOOKUP(E10,'Existing Pool'!$C$73:$M$140,4,0)*0.18) -> 0 | F81: =IF(ISERROR(VLOOKUP(F10,'Existing Pool'!$C$73:$M$140,4,0)),F44,VLOOKUP(F10,'Existing Pool'!$C$73:$M$140,4,0)*0.18) -> 0 | G81: =IF(ISERROR(VLOOKUP(G10,'Existing Pool'!$C$73:$M$140,4,0)),G44,VLOOKUP(G10,'Existing Pool'!$C$73:$M$140,4,0)*0.18) -> 0 | H81: =IF(ISERROR(VLOOKUP(H10,'Existing Pool'!$C$73:$M$140,4,0)),H44,VLOOKUP(H10,'Existing Pool'!$C$73:$M$140,4,0)*0.18) -> 1.127881648 | I81: =IF(ISERROR(VLOOKUP(I10,'Existing Pool'!$C$73:$M$140,4,0)),I44,VLOOKUP(I10,'Existing Pool'!$C$73:$M$140,4,0)*0.4) -> 26.12676267 | J81: =IF(ISERROR(VLOOKUP(J10,'Existing Pool'!$C$73:$M$140,4,0)),J44,VLOOKUP(J10,'Existing Pool'!$C$73:$M$140,4,0)*0.2) -> 0 | K81: =IF(ISERROR(VLOOKUP(K10,'Existing Pool'!$C$73:$M$140,4,0)),K44,VLOOKUP(K10,'Existing Pool'!$C$73:$M$140,4,0)*0.18) -> 3.755050026 | L81: =IF(ISERROR(VLOOKUP(L10,'Existing Pool'!$C$73:$M$140,4,0)),L44,VLOOKUP(L10,'Existing Pool'!$C$73:$M$140,4,0)*0.18) -> 0 | M81: =IF(ISERROR(VLOOKUP(M10,'Existing Pool'!$C$73:$M$140,4,0)),M44,VLOOKUP(M10,'Existing Pool'!$C$73:$M$140,4,0)*0.2) -> 6.537302404 | N81: =IF(ISERROR(VLOOKUP(N10,'Existing Pool'!$C$73:$M$140,4,0)),N44,VLOOKUP(N10,'Existing Pool'!$C$73:$M$140,4,0)*0.18) -> 3.337773317 | O81: =IF(ISERROR(VLOOKUP(O10,'Existing Pool'!$C$73:$M$140,4,0)),O44,VLOOKUP(O10,'Existing Pool'!$C$73:$M$140,4,0)*0.18) -> 1.138397512 | P81: =IF(ISERROR(VLOOKUP(P10,'Existing Pool'!$C$73:$M$140,4,0)),P44,VLOOKUP(P10,'Existing Pool'!$C$73:$M$140,4,0)*0.18) -> 0 | Q81: =IF(ISERROR(VLOOKUP(Q10,'Existing Pool'!$C$73:$M$140,4,0)),Q44,VLOOKUP(Q10,'Existing Pool'!$C$73:$M$140,4,0)*0.2) -> 0 | R81: =IF(ISERROR(VLOOKUP(R10,'Existing Pool'!$C$73:$M$140,4,0)),R44,VLOOKUP(R10,'Existing Pool'!$C$73:$M$140,4,0)*0.2) -> 0 | S81: =IF(ISERROR(VLOOKUP(S10,'Existing Pool'!$C$73:$M$140,4,0)),S44,VLOOKUP(S10,'Existing Pool'!$C$73:$M$140,4,0)*0.18) -> 0 | T81: =IF(ISERROR(VLOOKUP(T10,'Existing Pool'!$C$73:$M$140,4,0)),T44,VLOOKUP(T10,'Existing Pool'!$C$73:$M$140,4,0)*0.2) -> 0 | U81: =IF(ISERROR(VLOOKUP(U10,'Existing Pool'!$C$73:$M$140,4,0)),U44,VLOOKUP(U10,'Existing Pool'!$C$73:$M$140,4,0)*0.18) -> 0 | V81: =IF(ISERROR(VLOOKUP(V10,'Existing Pool'!$C$73:$M$140,4,0)),V44,VLOOKUP(V10,'Existing Pool'!$C$73:$M$140,4,0)*0.2) -> 0 | W81: =IF(ISERROR(VLOOKUP(W10,'Existing Pool'!$C$73:$M$140,4,0)),W44,VLOOKUP(W10,'Existing Pool'!$C$73:$M$140,4,0)*0.18) -> 0 | X81: =IF(ISERROR(VLOOKUP(X10,'Existing Pool'!$C$73:$M$140,4,0)),X44,VLOOKUP(X10,'Existing Pool'!$C$73:$M$140,4,0)*0.18) -> 0 | Y81: =IF(ISERROR(VLOOKUP(Y10,'Existing Pool'!$C$73:$M$140,4,0)),Y44,VLOOKUP(Y10,'Existing Pool'!$C$73:$M$140,4,0)*0.2) -> 0 | Z81: =IF(ISERROR(VLOOKUP(Z10,'Existing Pool'!$C$73:$M$140,4,0)),Z44,VLOOKUP(Z10,'Existing Pool'!$C$73:$M$140,4,0)*0.2) -> 2.013279322 | AA81: =IF(ISERROR(VLOOKUP(AA10,'Existing Pool'!$C$73:$M$140,4,0)),AA44,VLOOKUP(AA10,'Existing Pool'!$C$73:$M$140,4,0)*0.2) -> 0 | AB81: =IF(ISERROR(VLOOKUP(AB10,'Existing Pool'!$C$73:$M$140,4,0)),AB44,VLOOKUP(AB10,'Existing Pool'!$C$73:$M$140,4,0)*0.2) -> 0 | AC81: =IF(ISERROR(VLOOKUP(AC10,'Existing Pool'!$C$73:$M$140,4,0)),AC44,VLOOKUP(AC10,'Existing Pool'!$C$73:$M$140,4,0)*0.02) -> 0 | AD81: =IF(ISERROR(VLOOKUP(AD10,'Existing Pool'!$C$73:$M$140,4,0)),AD44,VLOOKUP(AD10,'Existing Pool'!$C$73:$M$140,4,0)*0.02) -> 0 | AE81: =IF(ISERROR(VLOOKUP(AE10,'Existing Pool'!$C$73:$M$140,4,0)),AE44,VLOOKUP(AE10,'Existing Pool'!$C$73:$M$140,4,0)*0.02) -> 0 | AF81: =IF(ISERROR(VLOOKUP(AF10,'Existing Pool'!$C$73:$M$140,4,0)),AF44,VLOOKUP(AF10,'Existing Pool'!$C$73:$M$140,4,0)*0.02) -> 0 | AG81: =IF(ISERROR(VLOOKUP(AG10,'Existing Pool'!$C$73:$M$140,4,0)),AG44,VLOOKUP(AG10,'Existing Pool'!$C$73:$M$140,4,0)*0.02) -> 0 | AH81: =IF(ISERROR(VLOOKUP(AH10,'Existing Pool'!$C$73:$M$140,4,0)),AH44,VLOOKUP(AH10,'Existing Pool'!$C$73:$M$140,4,0)*0.02) -> 0 | AI81: =IF(ISERROR(VLOOKUP(AI10,'Existing Pool'!$C$73:$M$140,4,0)),AI44,VLOOKUP(AI10,'Existing Pool'!$C$73:$M$140,4,0)*0.02) -> 0 | AJ81: =IF(ISERROR(VLOOKUP(AJ10,'Existing Pool'!$C$73:$M$140,4,0)),AJ44,VLOOKUP(AJ10,'Existing Pool'!$C$73:$M$140,4,0)*0.02) -> 0.2043150742 | AK81: =IF(ISERROR(VLOOKUP(AK10,'Existing Pool'!$C$73:$M$140,4,0)),AK44,VLOOKUP(AK10,'Existing Pool'!$C$73:$M$140,4,0)*0.02) -> 0 | AL81: =IF(ISERROR(VLOOKUP(AL10,'Existing Pool'!$C$73:$M$140,4,0)),AL44,VLOOKUP(AL10,'Existing Pool'!$C$73:$M$140,4,0)*0.02) -> 0 | AM81: =IF(ISERROR(VLOOKUP(AM10,'Existing Pool'!$C$73:$M$140,4,0)),AM44,VLOOKUP(AM10,'Existing Pool'!$C$73:$M$140,4,0)*0.02) -> 0 | AN81: =IF(ISERROR(VLOOKUP(AN10,'Existing Pool'!$C$73:$M$140,4,0)),AN44,VLOOKUP(AN10,'Existing Pool'!$C$73:$M$140,4,0)*0.02) -> 0.1253201831 | AO81: =IF(ISERROR(VLOOKUP(AO10,'Existing Pool'!$C$73:$M$140,4,0)),AO44,VLOOKUP(AO10,'Existing Pool'!$C$73:$M$140,4,0)*0.02) -> 0.777323002 | AP81: =IF(ISERROR(VLOOKUP(AP10,'Existing Pool'!$C$73:$M$140,4,0)),AP44,VLOOKUP(AP10,'Existing Pool'!$C$73:$M$140,4,0)*0.02) -> 0 | AQ81: =IF(ISERROR(VLOOKUP(AQ10,'Existing Pool'!$C$73:$M$140,4,0)),AQ44,VLOOKUP(AQ10,'Existing Pool'!$C$73:$M$140,4,0)*0.02) -> 0 | AR81: =IF(ISERROR(VLOOKUP(AR10,'Existing Pool'!$C$73:$M$140,4,0)),AR44,VLOOKUP(AR10,'Existing Pool'!$C$73:$M$140,4,0)*0.02) -> 0.2343386077 | AS81: =IF(ISERROR(VLOOKUP(AS10,'Existing Pool'!$C$73:$M$140,4,0)),AS44,VLOOKUP(AS10,'Existing Pool'!$C$73:$M$140,4,0)*0.02) -> 0.6446855102 | AT81: =IF(ISERROR(VLOOKUP(AT10,'Existing Pool'!$C$73:$M$140,4,0)),AT44,VLOOKUP(AT10,'Existing Pool'!$C$73:$M$140,4,0)*0.02) -> 0.0949285061 | AU81: =IF(ISERROR(VLOOKUP(AU10,'Existing Pool'!$C$73:$M$140,4,0)),AU44,VLOOKUP(AU10,'Existing Pool'!$C$73:$M$140,4,0)*0.02) -> 0 | AV81: =IF(ISERROR(VLOOKUP(AV10,'Existing Pool'!$C$73:$M$140,4,0)),AV44,VLOOKUP(AV10,'Existing Pool'!$C$73:$M$140,4,0)*0.02) -> 0 | AW81: =IF(ISERROR(VLOOKUP(AW10,'Existing Pool'!$C$73:$M$140,4,0)),AW44,VLOOKUP(AW10,'Existing Pool'!$C$73:$M$140,4,0)*0.02) -> 0 | AX81: =IF(ISERROR(VLOOKUP(AX10,'Existing Pool'!$C$73:$M$140,4,0)),AX44,VLOOKUP(AX10,'Existing Pool'!$C$73:$M$140,4,0)*0.02) -> 0.3049799996 | AY81: =IF(ISERROR(VLOOKUP(AY10,'Existing Pool'!$C$73:$M$140,4,0)),AY44,VLOOKUP(AY10,'Existing Pool'!$C$73:$M$140,4,0)*0.02) -> 0 | AZ81: =IF(ISERROR(VLOOKUP(AZ10,'Existing Pool'!$C$73:$M$140,4,0)),AZ44,VLOOKUP(AZ10,'Existing Pool'!$C$73:$M$140,4,0)*0.02) -> 1.516337489 | BA81: =IF(ISERROR(VLOOKUP(BA10,'Existing Pool'!$C$73:$M$140,4,0)),BA44,VLOOKUP(BA10,'Existing Pool'!$C$73:$M$140,4,0)*0.02) -> 0 | BB81: =IF(ISERROR(VLOOKUP(BB10,'Existing Pool'!$C$73:$M$140,4,0)),BB44,VLOOKUP(BB10,'Existing Pool'!$C$73:$M$140,4,0)*0.02) -> 0 | BC81: =IF(ISERROR(VLOOKUP(BC10,'Existing Pool'!$C$73:$M$140,4,0)),BC44,VLOOKUP(BC10,'Existing Pool'!$C$73:$M$140,4,0)*0.02) -> 0 | BD81: =IF(ISERROR(VLOOKUP(BD10,'Existing Pool'!$C$73:$M$140,4,0)),BD44,VLOOKUP(BD10,'Existing Pool'!$C$73:$M$140,4,0)*0.02) -> 0 | BE81: =IF(ISERROR(VLOOKUP(BE10,'Existing Pool'!$C$73:$M$140,4,0)),BE44,VLOOKUP(BE10,'Existing Pool'!$C$73:$M$140,4,0)*0.02) -> 0 | BF81: =IF(ISERROR(VLOOKUP(BF10,'Existing Pool'!$C$73:$M$140,4,0)),BF44,VLOOKUP(BF10,'Existing Pool'!$C$73:$M$140,4,0)*0.02) -> 0.4157418929
A82: =IF(ISERROR(VLOOKUP(A11,'Existing Pool'!$C$73:$M$140,4,0)),A45,VLOOKUP(A11,'Existing Pool'!$C$73:$M$140,4,0)*0.18) -> 0 | B82: =IF(ISERROR(VLOOKUP(B11,'Existing Pool'!$C$73:$M$140,4,0)),B45,VLOOKUP(B11,'Existing Pool'!$C$73:$M$140,4,0)*0.18) -> 0 | C82: =IF(ISERROR(VLOOKUP(C11,'Existing Pool'!$C$73:$M$140,4,0)),C45,VLOOKUP(C11,'Existing Pool'!$C$73:$M$140,4,0)*0.2) -> 0 | D82: =IF(ISERROR(VLOOKUP(D11,'Existing Pool'!$C$73:$M$140,4,0)),D45,VLOOKUP(D11,'Existing Pool'!$C$73:$M$140,4,0)*0.18) -> 0 | E82: =IF(ISERROR(VLOOKUP(E11,'Existing Pool'!$C$73:$M$140,4,0)),E45,VLOOKUP(E11,'Existing Pool'!$C$73:$M$140,4,0)*0.18) -> 0 | F82: =IF(ISERROR(VLOOKUP(F11,'Existing Pool'!$C$73:$M$140,4,0)),F45,VLOOKUP(F11,'Existing Pool'!$C$73:$M$140,4,0)*0.18) -> 0 | G82: =IF(ISERROR(VLOOKUP(G11,'Existing Pool'!$C$73:$M$140,4,0)),G45,VLOOKUP(G11,'Existing Pool'!$C$73:$M$140,4,0)*0.18) -> 0 | H82: =IF(ISERROR(VLOOKUP(H11,'Existing Pool'!$C$73:$M$140,4,0)),H45,VLOOKUP(H11,'Existing Pool'!$C$73:$M$140,4,0)*0.18) -> 1.390502657 | I82: =IF(ISERROR(VLOOKUP(I11,'Existing Pool'!$C$73:$M$140,4,0)),I45,VLOOKUP(I11,'Existing Pool'!$C$73:$M$140,4,0)*0.4) -> 20.55614665 | J82: =IF(ISERROR(VLOOKUP(J11,'Existing Pool'!$C$73:$M$140,4,0)),J45,VLOOKUP(J11,'Existing Pool'!$C$73:$M$140,4,0)*0.2) -> 0 | K82: =IF(ISERROR(VLOOKUP(K11,'Existing Pool'!$C$73:$M$140,4,0)),K45,VLOOKUP(K11,'Existing Pool'!$C$73:$M$140,4,0)*0.18) -> 4.002778076 | L82: =IF(ISERROR(VLOOKUP(L11,'Existing Pool'!$C$73:$M$140,4,0)),L45,VLOOKUP(L11,'Existing Pool'!$C$73:$M$140,4,0)*0.18) -> 0 | M82: =IF(ISERROR(VLOOKUP(M11,'Existing Pool'!$C$73:$M$140,4,0)),M45,VLOOKUP(M11,'Existing Pool'!$C$73:$M$140,4,0)*0.2) -> 5.387306132 | N82: =IF(ISERROR(VLOOKUP(N11,'Existing Pool'!$C$73:$M$140,4,0)),N45,VLOOKUP(N11,'Existing Pool'!$C$73:$M$140,4,0)*0.18) -> 2.846055593 | O82: =IF(ISERROR(VLOOKUP(O11,'Existing Pool'!$C$73:$M$140,4,0)),O45,VLOOKUP(O11,'Existing Pool'!$C$73:$M$140,4,0)*0.18) -> 3.028765204 | P82: =IF(ISERROR(VLOOKUP(P11,'Existing Pool'!$C$73:$M$140,4,0)),P45,VLOOKUP(P11,'Existing Pool'!$C$73:$M$140,4,0)*0.18) -> 0 | Q82: =IF(ISERROR(VLOOKUP(Q11,'Existing Pool'!$C$73:$M$140,4,0)),Q45,VLOOKUP(Q11,'Existing Pool'!$C$73:$M$140,4,0)*0.2) -> 0 | R82: =IF(ISERROR(VLOOKUP(R11,'Existing Pool'!$C$73:$M$140,4,0)),R45,VLOOKUP(R11,'Existing Pool'!$C$73:$M$140,4,0)*0.2) -> 0 | S82: =IF(ISERROR(VLOOKUP(S11,'Existing Pool'!$C$73:$M$140,4,0)),S45,VLOOKUP(S11,'Existing Pool'!$C$73:$M$140,4,0)*0.18) -> 0 | T82: =IF(ISERROR(VLOOKUP(T11,'Existing Pool'!$C$73:$M$140,4,0)),T45,VLOOKUP(T11,'Existing Pool'!$C$73:$M$140,4,0)*0.2) -> 0 | U82: =IF(ISERROR(VLOOKUP(U11,'Existing Pool'!$C$73:$M$140,4,0)),U45,VLOOKUP(U11,'Existing Pool'!$C$73:$M$140,4,0)*0.18) -> 0 | V82: =IF(ISERROR(VLOOKUP(V11,'Existing Pool'!$C$73:$M$140,4,0)),V45,VLOOKUP(V11,'Existing Pool'!$C$73:$M$140,4,0)*0.2) -> 0 | W82: =IF(ISERROR(VLOOKUP(W11,'Existing Pool'!$C$73:$M$140,4,0)),W45,VLOOKUP(W11,'Existing Pool'!$C$73:$M$140,4,0)*0.18) -> 0 | X82: =IF(ISERROR(VLOOKUP(X11,'Existing Pool'!$C$73:$M$140,4,0)),X45,VLOOKUP(X11,'Existing Pool'!$C$73:$M$140,4,0)*0.18) -> 0 | Y82: =IF(ISERROR(VLOOKUP(Y11,'Existing Pool'!$C$73:$M$140,4,0)),Y45,VLOOKUP(Y11,'Existing Pool'!$C$73:$M$140,4,0)*0.2) -> 0 | Z82: =IF(ISERROR(VLOOKUP(Z11,'Existing Pool'!$C$73:$M$140,4,0)),Z45,VLOOKUP(Z11,'Existing Pool'!$C$73:$M$140,4,0)*0.2) -> 3.466848054 | AA82: =IF(ISERROR(VLOOKUP(AA11,'Existing Pool'!$C$73:$M$140,4,0)),AA45,VLOOKUP(AA11,'Existing Pool'!$C$73:$M$140,4,0)*0.2) -> 0 | AB82: =IF(ISERROR(VLOOKUP(AB11,'Existing Pool'!$C$73:$M$140,4,0)),AB45,VLOOKUP(AB11,'Existing Pool'!$C$73:$M$140,4,0)*0.2) -> 0 | AC82: =IF(ISERROR(VLOOKUP(AC11,'Existing Pool'!$C$73:$M$140,4,0)),AC45,VLOOKUP(AC11,'Existing Pool'!$C$73:$M$140,4,0)*0.02) -> 0 | AD82: =IF(ISERROR(VLOOKUP(AD11,'Existing Pool'!$C$73:$M$140,4,0)),AD45,VLOOKUP(AD11,'Existing Pool'!$C$73:$M$140,4,0)*0.02) -> 0 | AE82: =IF(ISERROR(VLOOKUP(AE11,'Existing Pool'!$C$73:$M$140,4,0)),AE45,VLOOKUP(AE11,'Existing Pool'!$C$73:$M$140,4,0)*0.02) -> 0 | AF82: =IF(ISERROR(VLOOKUP(AF11,'Existing Pool'!$C$73:$M$140,4,0)),AF45,VLOOKUP(AF11,'Existing Pool'!$C$73:$M$140,4,0)*0.02) -> 0 | AG82: =IF(ISERROR(VLOOKUP(AG11,'Existing Pool'!$C$73:$M$140,4,0)),AG45,VLOOKUP(AG11,'Existing Pool'!$C$73:$M$140,4,0)*0.02) -> 0 | AH82: =IF(ISERROR(VLOOKUP(AH11,'Existing Pool'!$C$73:$M$140,4,0)),AH45,VLOOKUP(AH11,'Existing Pool'!$C$73:$M$140,4,0)*0.02) -> 0 | AI82: =IF(ISERROR(VLOOKUP(AI11,'Existing Pool'!$C$73:$M$140,4,0)),AI45,VLOOKUP(AI11,'Existing Pool'!$C$73:$M$140,4,0)*0.02) -> 0 | AJ82: =IF(ISERROR(VLOOKUP(AJ11,'Existing Pool'!$C$73:$M$140,4,0)),AJ45,VLOOKUP(AJ11,'Existing Pool'!$C$73:$M$140,4,0)*0.02) -> 0 | AK82: =IF(ISERROR(VLOOKUP(AK11,'Existing Pool'!$C$73:$M$140,4,0)),AK45,VLOOKUP(AK11,'Existing Pool'!$C$73:$M$140,4,0)*0.02) -> 0 | AL82: =IF(ISERROR(VLOOKUP(AL11,'Existing Pool'!$C$73:$M$140,4,0)),AL45,VLOOKUP(AL11,'Existing Pool'!$C$73:$M$140,4,0)*0.02) -> 0 | AM82: =IF(ISERROR(VLOOKUP(AM11,'Existing Pool'!$C$73:$M$140,4,0)),AM45,VLOOKUP(AM11,'Existing Pool'!$C$73:$M$140,4,0)*0.02) -> 0 | AN82: =IF(ISERROR(VLOOKUP(AN11,'Existing Pool'!$C$73:$M$140,4,0)),AN45,VLOOKUP(AN11,'Existing Pool'!$C$73:$M$140,4,0)*0.02) -> 0.1545002952 | AO82: =IF(ISERROR(VLOOKUP(AO11,'Existing Pool'!$C$73:$M$140,4,0)),AO45,VLOOKUP(AO11,'Existing Pool'!$C$73:$M$140,4,0)*0.02) -> 0.4172277806 | AP82: =IF(ISERROR(VLOOKUP(AP11,'Existing Pool'!$C$73:$M$140,4,0)),AP45,VLOOKUP(AP11,'Existing Pool'!$C$73:$M$140,4,0)*0.02) -> 0 | AQ82: =IF(ISERROR(VLOOKUP(AQ11,'Existing Pool'!$C$73:$M$140,4,0)),AQ45,VLOOKUP(AQ11,'Existing Pool'!$C$73:$M$140,4,0)*0.02) -> 0 | AR82: =IF(ISERROR(VLOOKUP(AR11,'Existing Pool'!$C$73:$M$140,4,0)),AR45,VLOOKUP(AR11,'Existing Pool'!$C$73:$M$140,4,0)*0.02) -> 0.3708637018 | AS82: =IF(ISERROR(VLOOKUP(AS11,'Existing Pool'!$C$73:$M$140,4,0)),AS45,VLOOKUP(AS11,'Existing Pool'!$C$73:$M$140,4,0)*0.02) -> 0.1336604787 | AT82: =IF(ISERROR(VLOOKUP(AT11,'Existing Pool'!$C$73:$M$140,4,0)),AT45,VLOOKUP(AT11,'Existing Pool'!$C$73:$M$140,4,0)*0.02) -> 0 | AU82: =IF(ISERROR(VLOOKUP(AU11,'Existing Pool'!$C$73:$M$140,4,0)),AU45,VLOOKUP(AU11,'Existing Pool'!$C$73:$M$140,4,0)*0.02) -> 0 | AV82: =IF(ISERROR(VLOOKUP(AV11,'Existing Pool'!$C$73:$M$140,4,0)),AV45,VLOOKUP(AV11,'Existing Pool'!$C$73:$M$140,4,0)*0.02) -> 0 | AW82: =IF(ISERROR(VLOOKUP(AW11,'Existing Pool'!$C$73:$M$140,4,0)),AW45,VLOOKUP(AW11,'Existing Pool'!$C$73:$M$140,4,0)*0.02) -> 0 | AX82: =IF(ISERROR(VLOOKUP(AX11,'Existing Pool'!$C$73:$M$140,4,0)),AX45,VLOOKUP(AX11,'Existing Pool'!$C$73:$M$140,4,0)*0.02) -> 0 | AY82: =IF(ISERROR(VLOOKUP(AY11,'Existing Pool'!$C$73:$M$140,4,0)),AY45,VLOOKUP(AY11,'Existing Pool'!$C$73:$M$140,4,0)*0.02) -> 0 | AZ82: =IF(ISERROR(VLOOKUP(AZ11,'Existing Pool'!$C$73:$M$140,4,0)),AZ45,VLOOKUP(AZ11,'Existing Pool'!$C$73:$M$140,4,0)*0.02) -> 0.7527821782 | BA82: =IF(ISERROR(VLOOKUP(BA11,'Existing Pool'!$C$73:$M$140,4,0)),BA45,VLOOKUP(BA11,'Existing Pool'!$C$73:$M$140,4,0)*0.02) -> 0 | BB82: =IF(ISERROR(VLOOKUP(BB11,'Existing Pool'!$C$73:$M$140,4,0)),BB45,VLOOKUP(BB11,'Existing Pool'!$C$73:$M$140,4,0)*0.02) -> 0 | BC82: =IF(ISERROR(VLOOKUP(BC11,'Existing Pool'!$C$73:$M$140,4,0)),BC45,VLOOKUP(BC11,'Existing Pool'!$C$73:$M$140,4,0)*0.02) -> 0 | BD82: =IF(ISERROR(VLOOKUP(BD11,'Existing Pool'!$C$73:$M$140,4,0)),BD45,VLOOKUP(BD11,'Existing Pool'!$C$73:$M$140,4,0)*0.02) -> 0 | BE82: =IF(ISERROR(VLOOKUP(BE11,'Existing Pool'!$C$73:$M$140,4,0)),BE45,VLOOKUP(BE11,'Existing Pool'!$C$73:$M$140,4,0)*0.02) -> 0 | BF82: =IF(ISERROR(VLOOKUP(BF11,'Existing Pool'!$C$73:$M$140,4,0)),BF45,VLOOKUP(BF11,'Existing Pool'!$C$73:$M$140,4,0)*0.02) -> 0.3894988068
A83: =IF(ISERROR(VLOOKUP(A12,'Existing Pool'!$C$73:$M$140,4,0)),A46,VLOOKUP(A12,'Existing Pool'!$C$73:$M$140,4,0)*0.18) -> 0 | B83: =IF(ISERROR(VLOOKUP(B12,'Existing Pool'!$C$73:$M$140,4,0)),B46,VLOOKUP(B12,'Existing Pool'!$C$73:$M$140,4,0)*0.18) -> 0 | C83: =IF(ISERROR(VLOOKUP(C12,'Existing Pool'!$C$73:$M$140,4,0)),C46,VLOOKUP(C12,'Existing Pool'!$C$73:$M$140,4,0)*0.2) -> 0 | D83: =IF(ISERROR(VLOOKUP(D12,'Existing Pool'!$C$73:$M$140,4,0)),D46,VLOOKUP(D12,'Existing Pool'!$C$73:$M$140,4,0)*0.18) -> 0 | E83: =IF(ISERROR(VLOOKUP(E12,'Existing Pool'!$C$73:$M$140,4,0)),E46,VLOOKUP(E12,'Existing Pool'!$C$73:$M$140,4,0)*0.18) -> 0 | F83: =IF(ISERROR(VLOOKUP(F12,'Existing Pool'!$C$73:$M$140,4,0)),F46,VLOOKUP(F12,'Existing Pool'!$C$73:$M$140,4,0)*0.18) -> 0 | G83: =IF(ISERROR(VLOOKUP(G12,'Existing Pool'!$C$73:$M$140,4,0)),G46,VLOOKUP(G12,'Existing Pool'!$C$73:$M$140,4,0)*0.18) -> 0 | H83: =IF(ISERROR(VLOOKUP(H12,'Existing Pool'!$C$73:$M$140,4,0)),H46,VLOOKUP(H12,'Existing Pool'!$C$73:$M$140,4,0)*0.18) -> 2.139831049 | I83: =IF(ISERROR(VLOOKUP(I12,'Existing Pool'!$C$73:$M$140,4,0)),I46,VLOOKUP(I12,'Existing Pool'!$C$73:$M$140,4,0)*0.4) -> 11.8792065 | J83: =IF(ISERROR(VLOOKUP(J12,'Existing Pool'!$C$73:$M$140,4,0)),J46,VLOOKUP(J12,'Existing Pool'!$C$73:$M$140,4,0)*0.2) -> 0 | K83: =IF(ISERROR(VLOOKUP(K12,'Existing Pool'!$C$73:$M$140,4,0)),K46,VLOOKUP(K12,'Existing Pool'!$C$73:$M$140,4,0)*0.18) -> 4.422621514 | L83: =IF(ISERROR(VLOOKUP(L12,'Existing Pool'!$C$73:$M$140,4,0)),L46,VLOOKUP(L12,'Existing Pool'!$C$73:$M$140,4,0)*0.18) -> 0 | M83: =IF(ISERROR(VLOOKUP(M12,'Existing Pool'!$C$73:$M$140,4,0)),M46,VLOOKUP(M12,'Existing Pool'!$C$73:$M$140,4,0)*0.2) -> 0 | N83: =IF(ISERROR(VLOOKUP(N12,'Existing Pool'!$C$73:$M$140,4,0)),N46,VLOOKUP(N12,'Existing Pool'!$C$73:$M$140,4,0)*0.18) -> 4.81620626 | O83: =IF(ISERROR(VLOOKUP(O12,'Existing Pool'!$C$73:$M$140,4,0)),O46,VLOOKUP(O12,'Existing Pool'!$C$73:$M$140,4,0)*0.18) -> 2.720518648 | P83: =IF(ISERROR(VLOOKUP(P12,'Existing Pool'!$C$73:$M$140,4,0)),P46,VLOOKUP(P12,'Existing Pool'!$C$73:$M$140,4,0)*0.18) -> 0 | Q83: =IF(ISERROR(VLOOKUP(Q12,'Existing Pool'!$C$73:$M$140,4,0)),Q46,VLOOKUP(Q12,'Existing Pool'!$C$73:$M$140,4,0)*0.2) -> 0 | R83: =IF(ISERROR(VLOOKUP(R12,'Existing Pool'!$C$73:$M$140,4,0)),R46,VLOOKUP(R12,'Existing Pool'!$C$73:$M$140,4,0)*0.2) -> 0 | S83: =IF(ISERROR(VLOOKUP(S12,'Existing Pool'!$C$73:$M$140,4,0)),S46,VLOOKUP(S12,'Existing Pool'!$C$73:$M$140,4,0)*0.18) -> 0 | T83: =IF(ISERROR(VLOOKUP(T12,'Existing Pool'!$C$73:$M$140,4,0)),T46,VLOOKUP(T12,'Existing Pool'!$C$73:$M$140,4,0)*0.2) -> 0 | U83: =IF(ISERROR(VLOOKUP(U12,'Existing Pool'!$C$73:$M$140,4,0)),U46,VLOOKUP(U12,'Existing Pool'!$C$73:$M$140,4,0)*0.18) -> 0 | V83: =IF(ISERROR(VLOOKUP(V12,'Existing Pool'!$C$73:$M$140,4,0)),V46,VLOOKUP(V12,'Existing Pool'!$C$73:$M$140,4,0)*0.2) -> 0 | W83: =IF(ISERROR(VLOOKUP(W12,'Existing Pool'!$C$73:$M$140,4,0)),W46,VLOOKUP(W12,'Existing Pool'!$C$73:$M$140,4,0)*0.18) -> 0 | X83: =IF(ISERROR(VLOOKUP(X12,'Existing Pool'!$C$73:$M$140,4,0)),X46,VLOOKUP(X12,'Existing Pool'!$C$73:$M$140,4,0)*0.18) -> 0 | Y83: =IF(ISERROR(VLOOKUP(Y12,'Existing Pool'!$C$73:$M$140,4,0)),Y46,VLOOKUP(Y12,'Existing Pool'!$C$73:$M$140,4,0)*0.2) -> 0 | Z83: =IF(ISERROR(VLOOKUP(Z12,'Existing Pool'!$C$73:$M$140,4,0)),Z46,VLOOKUP(Z12,'Existing Pool'!$C$73:$M$140,4,0)*0.2) -> 4.21345778 | AA83: =IF(ISERROR(VLOOKUP(AA12,'Existing Pool'!$C$73:$M$140,4,0)),AA46,VLOOKUP(AA12,'Existing Pool'!$C$73:$M$140,4,0)*0.2) -> 0 | AB83: =IF(ISERROR(VLOOKUP(AB12,'Existing Pool'!$C$73:$M$140,4,0)),AB46,VLOOKUP(AB12,'Existing Pool'!$C$73:$M$140,4,0)*0.2) -> 0 | AC83: =IF(ISERROR(VLOOKUP(AC12,'Existing Pool'!$C$73:$M$140,4,0)),AC46,VLOOKUP(AC12,'Existing Pool'!$C$73:$M$140,4,0)*0.02) -> 0 | AD83: =IF(ISERROR(VLOOKUP(AD12,'Existing Pool'!$C$73:$M$140,4,0)),AD46,VLOOKUP(AD12,'Existing Pool'!$C$73:$M$140,4,0)*0.02) -> 0 | AE83: =IF(ISERROR(VLOOKUP(AE12,'Existing Pool'!$C$73:$M$140,4,0)),AE46,VLOOKUP(AE12,'Existing Pool'!$C$73:$M$140,4,0)*0.02) -> 0 | AF83: =IF(ISERROR(VLOOKUP(AF12,'Existing Pool'!$C$73:$M$140,4,0)),AF46,VLOOKUP(AF12,'Existing Pool'!$C$73:$M$140,4,0)*0.02) -> 0 | AG83: =IF(ISERROR(VLOOKUP(AG12,'Existing Pool'!$C$73:$M$140,4,0)),AG46,VLOOKUP(AG12,'Existing Pool'!$C$73:$M$140,4,0)*0.02) -> 0 | AH83: =IF(ISERROR(VLOOKUP(AH12,'Existing Pool'!$C$73:$M$140,4,0)),AH46,VLOOKUP(AH12,'Existing Pool'!$C$73:$M$140,4,0)*0.02) -> 0 | AI83: =IF(ISERROR(VLOOKUP(AI12,'Existing Pool'!$C$73:$M$140,4,0)),AI46,VLOOKUP(AI12,'Existing Pool'!$C$73:$M$140,4,0)*0.02) -> 0 | AJ83: =IF(ISERROR(VLOOKUP(AJ12,'Existing Pool'!$C$73:$M$140,4,0)),AJ46,VLOOKUP(AJ12,'Existing Pool'!$C$73:$M$140,4,0)*0.02) -> 0 | AK83: =IF(ISERROR(VLOOKUP(AK12,'Existing Pool'!$C$73:$M$140,4,0)),AK46,VLOOKUP(AK12,'Existing Pool'!$C$73:$M$140,4,0)*0.02) -> 0 | AL83: =IF(ISERROR(VLOOKUP(AL12,'Existing Pool'!$C$73:$M$140,4,0)),AL46,VLOOKUP(AL12,'Existing Pool'!$C$73:$M$140,4,0)*0.02) -> 0 | AM83: =IF(ISERROR(VLOOKUP(AM12,'Existing Pool'!$C$73:$M$140,4,0)),AM46,VLOOKUP(AM12,'Existing Pool'!$C$73:$M$140,4,0)*0.02) -> 0 | AN83: =IF(ISERROR(VLOOKUP(AN12,'Existing Pool'!$C$73:$M$140,4,0)),AN46,VLOOKUP(AN12,'Existing Pool'!$C$73:$M$140,4,0)*0.02) -> 0.4436394379 | AO83: =IF(ISERROR(VLOOKUP(AO12,'Existing Pool'!$C$73:$M$140,4,0)),AO46,VLOOKUP(AO12,'Existing Pool'!$C$73:$M$140,4,0)*0.02) -> 0.955267559 | AP83: =IF(ISERROR(VLOOKUP(AP12,'Existing Pool'!$C$73:$M$140,4,0)),AP46,VLOOKUP(AP12,'Existing Pool'!$C$73:$M$140,4,0)*0.02) -> 0 | AQ83: =IF(ISERROR(VLOOKUP(AQ12,'Existing Pool'!$C$73:$M$140,4,0)),AQ46,VLOOKUP(AQ12,'Existing Pool'!$C$73:$M$140,4,0)*0.02) -> 0 | AR83: =IF(ISERROR(VLOOKUP(AR12,'Existing Pool'!$C$73:$M$140,4,0)),AR46,VLOOKUP(AR12,'Existing Pool'!$C$73:$M$140,4,0)*0.02) -> 0.3162283993 | AS83: =IF(ISERROR(VLOOKUP(AS12,'Existing Pool'!$C$73:$M$140,4,0)),AS46,VLOOKUP(AS12,'Existing Pool'!$C$73:$M$140,4,0)*0.02) -> 0.1264886125 | AT83: =IF(ISERROR(VLOOKUP(AT12,'Existing Pool'!$C$73:$M$140,4,0)),AT46,VLOOKUP(AT12,'Existing Pool'!$C$73:$M$140,4,0)*0.02) -> 0 | AU83: =IF(ISERROR(VLOOKUP(AU12,'Existing Pool'!$C$73:$M$140,4,0)),AU46,VLOOKUP(AU12,'Existing Pool'!$C$73:$M$140,4,0)*0.02) -> 0 | AV83: =IF(ISERROR(VLOOKUP(AV12,'Existing Pool'!$C$73:$M$140,4,0)),AV46,VLOOKUP(AV12,'Existing Pool'!$C$73:$M$140,4,0)*0.02) -> 0 | AW83: =IF(ISERROR(VLOOKUP(AW12,'Existing Pool'!$C$73:$M$140,4,0)),AW46,VLOOKUP(AW12,'Existing Pool'!$C$73:$M$140,4,0)*0.02) -> 0 | AX83: =IF(ISERROR(VLOOKUP(AX12,'Existing Pool'!$C$73:$M$140,4,0)),AX46,VLOOKUP(AX12,'Existing Pool'!$C$73:$M$140,4,0)*0.02) -> 0 | AY83: =IF(ISERROR(VLOOKUP(AY12,'Existing Pool'!$C$73:$M$140,4,0)),AY46,VLOOKUP(AY12,'Existing Pool'!$C$73:$M$140,4,0)*0.02) -> 0 | AZ83: =IF(ISERROR(VLOOKUP(AZ12,'Existing Pool'!$C$73:$M$140,4,0)),AZ46,VLOOKUP(AZ12,'Existing Pool'!$C$73:$M$140,4,0)*0.02) -> 0 | BA83: =IF(ISERROR(VLOOKUP(BA12,'Existing Pool'!$C$73:$M$140,4,0)),BA46,VLOOKUP(BA12,'Existing Pool'!$C$73:$M$140,4,0)*0.02) -> 0 | BB83: =IF(ISERROR(VLOOKUP(BB12,'Existing Pool'!$C$73:$M$140,4,0)),BB46,VLOOKUP(BB12,'Existing Pool'!$C$73:$M$140,4,0)*0.02) -> 0 | BC83: =IF(ISERROR(VLOOKUP(BC12,'Existing Pool'!$C$73:$M$140,4,0)),BC46,VLOOKUP(BC12,'Existing Pool'!$C$73:$M$140,4,0)*0.02) -> 0 | BD83: =IF(ISERROR(VLOOKUP(BD12,'Existing Pool'!$C$73:$M$140,4,0)),BD46,VLOOKUP(BD12,'Existing Pool'!$C$73:$M$140,4,0)*0.02) -> 0 | BE83: =IF(ISERROR(VLOOKUP(BE12,'Existing Pool'!$C$73:$M$140,4,0)),BE46,VLOOKUP(BE12,'Existing Pool'!$C$73:$M$140,4,0)*0.02) -> 0 | BF83: =IF(ISERROR(VLOOKUP(BF12,'Existing Pool'!$C$73:$M$140,4,0)),BF46,VLOOKUP(BF12,'Existing Pool'!$C$73:$M$140,4,0)*0.02) -> 0.299362654
A84: =IF(ISERROR(VLOOKUP(A13,'Existing Pool'!$C$73:$M$140,4,0)),A47,VLOOKUP(A13,'Existing Pool'!$C$73:$M$140,4,0)*0.18) -> 0 | B84: =IF(ISERROR(VLOOKUP(B13,'Existing Pool'!$C$73:$M$140,4,0)),B47,VLOOKUP(B13,'Existing Pool'!$C$73:$M$140,4,0)*0.18) -> 0 | C84: =IF(ISERROR(VLOOKUP(C13,'Existing Pool'!$C$73:$M$140,4,0)),C47,VLOOKUP(C13,'Existing Pool'!$C$73:$M$140,4,0)*0.2) -> 0 | D84: =IF(ISERROR(VLOOKUP(D13,'Existing Pool'!$C$73:$M$140,4,0)),D47,VLOOKUP(D13,'Existing Pool'!$C$73:$M$140,4,0)*0.18) -> 0 | E84: =IF(ISERROR(VLOOKUP(E13,'Existing Pool'!$C$73:$M$140,4,0)),E47,VLOOKUP(E13,'Existing Pool'!$C$73:$M$140,4,0)*0.18) -> 0 | F84: =IF(ISERROR(VLOOKUP(F13,'Existing Pool'!$C$73:$M$140,4,0)),F47,VLOOKUP(F13,'Existing Pool'!$C$73:$M$140,4,0)*0.18) -> 0 | G84: =IF(ISERROR(VLOOKUP(G13,'Existing Pool'!$C$73:$M$140,4,0)),G47,VLOOKUP(G13,'Existing Pool'!$C$73:$M$140,4,0)*0.18) -> 0 | H84: =IF(ISERROR(VLOOKUP(H13,'Existing Pool'!$C$73:$M$140,4,0)),H47,VLOOKUP(H13,'Existing Pool'!$C$73:$M$140,4,0)*0.18) -> 3.485224051 | I84: =IF(ISERROR(VLOOKUP(I13,'Existing Pool'!$C$73:$M$140,4,0)),I47,VLOOKUP(I13,'Existing Pool'!$C$73:$M$140,4,0)*0.4) -> 16.84499058 | J84: =IF(ISERROR(VLOOKUP(J13,'Existing Pool'!$C$73:$M$140,4,0)),J47,VLOOKUP(J13,'Existing Pool'!$C$73:$M$140,4,0)*0.2) -> 0 | K84: =IF(ISERROR(VLOOKUP(K13,'Existing Pool'!$C$73:$M$140,4,0)),K47,VLOOKUP(K13,'Existing Pool'!$C$73:$M$140,4,0)*0.18) -> 0 | L84: =IF(ISERROR(VLOOKUP(L13,'Existing Pool'!$C$73:$M$140,4,0)),L47,VLOOKUP(L13,'Existing Pool'!$C$73:$M$140,4,0)*0.18) -> 0 | M84: =IF(ISERROR(VLOOKUP(M13,'Existing Pool'!$C$73:$M$140,4,0)),M47,VLOOKUP(M13,'Existing Pool'!$C$73:$M$140,4,0)*0.2) -> 0 | N84: =IF(ISERROR(VLOOKUP(N13,'Existing Pool'!$C$73:$M$140,4,0)),N47,VLOOKUP(N13,'Existing Pool'!$C$73:$M$140,4,0)*0.18) -> 4.322033337 | O84: =IF(ISERROR(VLOOKUP(O13,'Existing Pool'!$C$73:$M$140,4,0)),O47,VLOOKUP(O13,'Existing Pool'!$C$73:$M$140,4,0)*0.18) -> 2.249233996 | P84: =IF(ISERROR(VLOOKUP(P13,'Existing Pool'!$C$73:$M$140,4,0)),P47,VLOOKUP(P13,'Existing Pool'!$C$73:$M$140,4,0)*0.18) -> 0 | Q84: =IF(ISERROR(VLOOKUP(Q13,'Existing Pool'!$C$73:$M$140,4,0)),Q47,VLOOKUP(Q13,'Existing Pool'!$C$73:$M$140,4,0)*0.2) -> 0 | R84: =IF(ISERROR(VLOOKUP(R13,'Existing Pool'!$C$73:$M$140,4,0)),R47,VLOOKUP(R13,'Existing Pool'!$C$73:$M$140,4,0)*0.2) -> 0 | S84: =IF(ISERROR(VLOOKUP(S13,'Existing Pool'!$C$73:$M$140,4,0)),S47,VLOOKUP(S13,'Existing Pool'!$C$73:$M$140,4,0)*0.18) -> 0 | T84: =IF(ISERROR(VLOOKUP(T13,'Existing Pool'!$C$73:$M$140,4,0)),T47,VLOOKUP(T13,'Existing Pool'!$C$73:$M$140,4,0)*0.2) -> 0 | U84: =IF(ISERROR(VLOOKUP(U13,'Existing Pool'!$C$73:$M$140,4,0)),U47,VLOOKUP(U13,'Existing Pool'!$C$73:$M$140,4,0)*0.18) -> 0 | V84: =IF(ISERROR(VLOOKUP(V13,'Existing Pool'!$C$73:$M$140,4,0)),V47,VLOOKUP(V13,'Existing Pool'!$C$73:$M$140,4,0)*0.2) -> 0 | W84: =IF(ISERROR(VLOOKUP(W13,'Existing Pool'!$C$73:$M$140,4,0)),W47,VLOOKUP(W13,'Existing Pool'!$C$73:$M$140,4,0)*0.18) -> 0 | X84: =IF(ISERROR(VLOOKUP(X13,'Existing Pool'!$C$73:$M$140,4,0)),X47,VLOOKUP(X13,'Existing Pool'!$C$73:$M$140,4,0)*0.18) -> 0 | Y84: =IF(ISERROR(VLOOKUP(Y13,'Existing Pool'!$C$73:$M$140,4,0)),Y47,VLOOKUP(Y13,'Existing Pool'!$C$73:$M$140,4,0)*0.2) -> 0 | Z84: =IF(ISERROR(VLOOKUP(Z13,'Existing Pool'!$C$73:$M$140,4,0)),Z47,VLOOKUP(Z13,'Existing Pool'!$C$73:$M$140,4,0)*0.2) -> 0 | AA84: =IF(ISERROR(VLOOKUP(AA13,'Existing Pool'!$C$73:$M$140,4,0)),AA47,VLOOKUP(AA13,'Existing Pool'!$C$73:$M$140,4,0)*0.2) -> 0 | AB84: =IF(ISERROR(VLOOKUP(AB13,'Existing Pool'!$C$73:$M$140,4,0)),AB47,VLOOKUP(AB13,'Existing Pool'!$C$73:$M$140,4,0)*0.2) -> 0 | AC84: =IF(ISERROR(VLOOKUP(AC13,'Existing Pool'!$C$73:$M$140,4,0)),AC47,VLOOKUP(AC13,'Existing Pool'!$C$73:$M$140,4,0)*0.02) -> 0 | AD84: =IF(ISERROR(VLOOKUP(AD13,'Existing Pool'!$C$73:$M$140,4,0)),AD47,VLOOKUP(AD13,'Existing Pool'!$C$73:$M$140,4,0)*0.02) -> 0 | AE84: =IF(ISERROR(VLOOKUP(AE13,'Existing Pool'!$C$73:$M$140,4,0)),AE47,VLOOKUP(AE13,'Existing Pool'!$C$73:$M$140,4,0)*0.02) -> 0 | AF84: =IF(ISERROR(VLOOKUP(AF13,'Existing Pool'!$C$73:$M$140,4,0)),AF47,VLOOKUP(AF13,'Existing Pool'!$C$73:$M$140,4,0)*0.02) -> 0 | AG84: =IF(ISERROR(VLOOKUP(AG13,'Existing Pool'!$C$73:$M$140,4,0)),AG47,VLOOKUP(AG13,'Existing Pool'!$C$73:$M$140,4,0)*0.02) -> 0 | AH84: =IF(ISERROR(VLOOKUP(AH13,'Existing Pool'!$C$73:$M$140,4,0)),AH47,VLOOKUP(AH13,'Existing Pool'!$C$73:$M$140,4,0)*0.02) -> 0 | AI84: =IF(ISERROR(VLOOKUP(AI13,'Existing Pool'!$C$73:$M$140,4,0)),AI47,VLOOKUP(AI13,'Existing Pool'!$C$73:$M$140,4,0)*0.02) -> 0 | AJ84: =IF(ISERROR(VLOOKUP(AJ13,'Existing Pool'!$C$73:$M$140,4,0)),AJ47,VLOOKUP(AJ13,'Existing Pool'!$C$73:$M$140,4,0)*0.02) -> 0 | AK84: =IF(ISERROR(VLOOKUP(AK13,'Existing Pool'!$C$73:$M$140,4,0)),AK47,VLOOKUP(AK13,'Existing Pool'!$C$73:$M$140,4,0)*0.02) -> 0 | AL84: =IF(ISERROR(VLOOKUP(AL13,'Existing Pool'!$C$73:$M$140,4,0)),AL47,VLOOKUP(AL13,'Existing Pool'!$C$73:$M$140,4,0)*0.02) -> 0 | AM84: =IF(ISERROR(VLOOKUP(AM13,'Existing Pool'!$C$73:$M$140,4,0)),AM47,VLOOKUP(AM13,'Existing Pool'!$C$73:$M$140,4,0)*0.02) -> 0 | AN84: =IF(ISERROR(VLOOKUP(AN13,'Existing Pool'!$C$73:$M$140,4,0)),AN47,VLOOKUP(AN13,'Existing Pool'!$C$73:$M$140,4,0)*0.02) -> 0.2377590055 | AO84: =IF(ISERROR(VLOOKUP(AO13,'Existing Pool'!$C$73:$M$140,4,0)),AO47,VLOOKUP(AO13,'Existing Pool'!$C$73:$M$140,4,0)*0.02) -> 0.4447531196 | AP84: =IF(ISERROR(VLOOKUP(AP13,'Existing Pool'!$C$73:$M$140,4,0)),AP47,VLOOKUP(AP13,'Existing Pool'!$C$73:$M$140,4,0)*0.02) -> 0 | AQ84: =IF(ISERROR(VLOOKUP(AQ13,'Existing Pool'!$C$73:$M$140,4,0)),AQ47,VLOOKUP(AQ13,'Existing Pool'!$C$73:$M$140,4,0)*0.02) -> 0 | AR84: =IF(ISERROR(VLOOKUP(AR13,'Existing Pool'!$C$73:$M$140,4,0)),AR47,VLOOKUP(AR13,'Existing Pool'!$C$73:$M$140,4,0)*0.02) -> 0.5351340289 | AS84: =IF(ISERROR(VLOOKUP(AS13,'Existing Pool'!$C$73:$M$140,4,0)),AS47,VLOOKUP(AS13,'Existing Pool'!$C$73:$M$140,4,0)*0.02) -> 0.3365294671 | AT84: =IF(ISERROR(VLOOKUP(AT13,'Existing Pool'!$C$73:$M$140,4,0)),AT47,VLOOKUP(AT13,'Existing Pool'!$C$73:$M$140,4,0)*0.02) -> 0 | AU84: =IF(ISERROR(VLOOKUP(AU13,'Existing Pool'!$C$73:$M$140,4,0)),AU47,VLOOKUP(AU13,'Existing Pool'!$C$73:$M$140,4,0)*0.02) -> 0 | AV84: =IF(ISERROR(VLOOKUP(AV13,'Existing Pool'!$C$73:$M$140,4,0)),AV47,VLOOKUP(AV13,'Existing Pool'!$C$73:$M$140,4,0)*0.02) -> 0 | AW84: =IF(ISERROR(VLOOKUP(AW13,'Existing Pool'!$C$73:$M$140,4,0)),AW47,VLOOKUP(AW13,'Existing Pool'!$C$73:$M$140,4,0)*0.02) -> 0 | AX84: =IF(ISERROR(VLOOKUP(AX13,'Existing Pool'!$C$73:$M$140,4,0)),AX47,VLOOKUP(AX13,'Existing Pool'!$C$73:$M$140,4,0)*0.02) -> 0 | AY84: =IF(ISERROR(VLOOKUP(AY13,'Existing Pool'!$C$73:$M$140,4,0)),AY47,VLOOKUP(AY13,'Existing Pool'!$C$73:$M$140,4,0)*0.02) -> 0 | AZ84: =IF(ISERROR(VLOOKUP(AZ13,'Existing Pool'!$C$73:$M$140,4,0)),AZ47,VLOOKUP(AZ13,'Existing Pool'!$C$73:$M$140,4,0)*0.02) -> 0 | BA84: =IF(ISERROR(VLOOKUP(BA13,'Existing Pool'!$C$73:$M$140,4,0)),BA47,VLOOKUP(BA13,'Existing Pool'!$C$73:$M$140,4,0)*0.02) -> 0 | BB84: =IF(ISERROR(VLOOKUP(BB13,'Existing Pool'!$C$73:$M$140,4,0)),BB47,VLOOKUP(BB13,'Existing Pool'!$C$73:$M$140,4,0)*0.02) -> 0 | BC84: =IF(ISERROR(VLOOKUP(BC13,'Existing Pool'!$C$73:$M$140,4,0)),BC47,VLOOKUP(BC13,'Existing Pool'!$C$73:$M$140,4,0)*0.02) -> 0 | BD84: =IF(ISERROR(VLOOKUP(BD13,'Existing Pool'!$C$73:$M$140,4,0)),BD47,VLOOKUP(BD13,'Existing Pool'!$C$73:$M$140,4,0)*0.02) -> 0 | BE84: =IF(ISERROR(VLOOKUP(BE13,'Existing Pool'!$C$73:$M$140,4,0)),BE47,VLOOKUP(BE13,'Existing Pool'!$C$73:$M$140,4,0)*0.02) -> 0 | BF84: =IF(ISERROR(VLOOKUP(BF13,'Existing Pool'!$C$73:$M$140,4,0)),BF47,VLOOKUP(BF13,'Existing Pool'!$C$73:$M$140,4,0)*0.02) -> 0.3679493244
A85: =IF(ISERROR(VLOOKUP(A14,'Existing Pool'!$C$73:$M$140,4,0)),A48,VLOOKUP(A14,'Existing Pool'!$C$73:$M$140,4,0)*0.18) -> 0 | B85: =IF(ISERROR(VLOOKUP(B14,'Existing Pool'!$C$73:$M$140,4,0)),B48,VLOOKUP(B14,'Existing Pool'!$C$73:$M$140,4,0)*0.18) -> 0 | C85: =IF(ISERROR(VLOOKUP(C14,'Existing Pool'!$C$73:$M$140,4,0)),C48,VLOOKUP(C14,'Existing Pool'!$C$73:$M$140,4,0)*0.2) -> 0 | D85: =IF(ISERROR(VLOOKUP(D14,'Existing Pool'!$C$73:$M$140,4,0)),D48,VLOOKUP(D14,'Existing Pool'!$C$73:$M$140,4,0)*0.18) -> 0 | E85: =IF(ISERROR(VLOOKUP(E14,'Existing Pool'!$C$73:$M$140,4,0)),E48,VLOOKUP(E14,'Existing Pool'!$C$73:$M$140,4,0)*0.18) -> 0 | F85: =IF(ISERROR(VLOOKUP(F14,'Existing Pool'!$C$73:$M$140,4,0)),F48,VLOOKUP(F14,'Existing Pool'!$C$73:$M$140,4,0)*0.18) -> 0 | G85: =IF(ISERROR(VLOOKUP(G14,'Existing Pool'!$C$73:$M$140,4,0)),G48,VLOOKUP(G14,'Existing Pool'!$C$73:$M$140,4,0)*0.18) -> 0 | H85: =IF(ISERROR(VLOOKUP(H14,'Existing Pool'!$C$73:$M$140,4,0)),H48,VLOOKUP(H14,'Existing Pool'!$C$73:$M$140,4,0)*0.18) -> 0 | I85: =IF(ISERROR(VLOOKUP(I14,'Existing Pool'!$C$73:$M$140,4,0)),I48,VLOOKUP(I14,'Existing Pool'!$C$73:$M$140,4,0)*0.4) -> 37.90878982 | J85: =IF(ISERROR(VLOOKUP(J14,'Existing Pool'!$C$73:$M$140,4,0)),J48,VLOOKUP(J14,'Existing Pool'!$C$73:$M$140,4,0)*0.2) -> 0 | K85: =IF(ISERROR(VLOOKUP(K14,'Existing Pool'!$C$73:$M$140,4,0)),K48,VLOOKUP(K14,'Existing Pool'!$C$73:$M$140,4,0)*0.18) -> 0 | L85: =IF(ISERROR(VLOOKUP(L14,'Existing Pool'!$C$73:$M$140,4,0)),L48,VLOOKUP(L14,'Existing Pool'!$C$73:$M$140,4,0)*0.18) -> 0 | M85: =IF(ISERROR(VLOOKUP(M14,'Existing Pool'!$C$73:$M$140,4,0)),M48,VLOOKUP(M14,'Existing Pool'!$C$73:$M$140,4,0)*0.2) -> 0 | N85: =IF(ISERROR(VLOOKUP(N14,'Existing Pool'!$C$73:$M$140,4,0)),N48,VLOOKUP(N14,'Existing Pool'!$C$73:$M$140,4,0)*0.18) -> 0 | O85: =IF(ISERROR(VLOOKUP(O14,'Existing Pool'!$C$73:$M$140,4,0)),O48,VLOOKUP(O14,'Existing Pool'!$C$73:$M$140,4,0)*0.18) -> 0 | P85: =IF(ISERROR(VLOOKUP(P14,'Existing Pool'!$C$73:$M$140,4,0)),P48,VLOOKUP(P14,'Existing Pool'!$C$73:$M$140,4,0)*0.18) -> 0 | Q85: =IF(ISERROR(VLOOKUP(Q14,'Existing Pool'!$C$73:$M$140,4,0)),Q48,VLOOKUP(Q14,'Existing Pool'!$C$73:$M$140,4,0)*0.2) -> 0 | R85: =IF(ISERROR(VLOOKUP(R14,'Existing Pool'!$C$73:$M$140,4,0)),R48,VLOOKUP(R14,'Existing Pool'!$C$73:$M$140,4,0)*0.2) -> 0 | S85: =IF(ISERROR(VLOOKUP(S14,'Existing Pool'!$C$73:$M$140,4,0)),S48,VLOOKUP(S14,'Existing Pool'!$C$73:$M$140,4,0)*0.18) -> 0 | T85: =IF(ISERROR(VLOOKUP(T14,'Existing Pool'!$C$73:$M$140,4,0)),T48,VLOOKUP(T14,'Existing Pool'!$C$73:$M$140,4,0)*0.2) -> 0 | U85: =IF(ISERROR(VLOOKUP(U14,'Existing Pool'!$C$73:$M$140,4,0)),U48,VLOOKUP(U14,'Existing Pool'!$C$73:$M$140,4,0)*0.18) -> 0 | V85: =IF(ISERROR(VLOOKUP(V14,'Existing Pool'!$C$73:$M$140,4,0)),V48,VLOOKUP(V14,'Existing Pool'!$C$73:$M$140,4,0)*0.2) -> 0 | W85: =IF(ISERROR(VLOOKUP(W14,'Existing Pool'!$C$73:$M$140,4,0)),W48,VLOOKUP(W14,'Existing Pool'!$C$73:$M$140,4,0)*0.18) -> 0 | X85: =IF(ISERROR(VLOOKUP(X14,'Existing Pool'!$C$73:$M$140,4,0)),X48,VLOOKUP(X14,'Existing Pool'!$C$73:$M$140,4,0)*0.18) -> 0 | Y85: =IF(ISERROR(VLOOKUP(Y14,'Existing Pool'!$C$73:$M$140,4,0)),Y48,VLOOKUP(Y14,'Existing Pool'!$C$73:$M$140,4,0)*0.2) -> 0 | Z85: =IF(ISERROR(VLOOKUP(Z14,'Existing Pool'!$C$73:$M$140,4,0)),Z48,VLOOKUP(Z14,'Existing Pool'!$C$73:$M$140,4,0)*0.2) -> 0 | AA85: =IF(ISERROR(VLOOKUP(AA14,'Existing Pool'!$C$73:$M$140,4,0)),AA48,VLOOKUP(AA14,'Existing Pool'!$C$73:$M$140,4,0)*0.2) -> 0 | AB85: =IF(ISERROR(VLOOKUP(AB14,'Existing Pool'!$C$73:$M$140,4,0)),AB48,VLOOKUP(AB14,'Existing Pool'!$C$73:$M$140,4,0)*0.2) -> 0 | AC85: =IF(ISERROR(VLOOKUP(AC14,'Existing Pool'!$C$73:$M$140,4,0)),AC48,VLOOKUP(AC14,'Existing Pool'!$C$73:$M$140,4,0)*0.02) -> 0 | AD85: =IF(ISERROR(VLOOKUP(AD14,'Existing Pool'!$C$73:$M$140,4,0)),AD48,VLOOKUP(AD14,'Existing Pool'!$C$73:$M$140,4,0)*0.02) -> 0 | AE85: =IF(ISERROR(VLOOKUP(AE14,'Existing Pool'!$C$73:$M$140,4,0)),AE48,VLOOKUP(AE14,'Existing Pool'!$C$73:$M$140,4,0)*0.02) -> 0 | AF85: =IF(ISERROR(VLOOKUP(AF14,'Existing Pool'!$C$73:$M$140,4,0)),AF48,VLOOKUP(AF14,'Existing Pool'!$C$73:$M$140,4,0)*0.02) -> 0 | AG85: =IF(ISERROR(VLOOKUP(AG14,'Existing Pool'!$C$73:$M$140,4,0)),AG48,VLOOKUP(AG14,'Existing Pool'!$C$73:$M$140,4,0)*0.02) -> 0 | AH85: =IF(ISERROR(VLOOKUP(AH14,'Existing Pool'!$C$73:$M$140,4,0)),AH48,VLOOKUP(AH14,'Existing Pool'!$C$73:$M$140,4,0)*0.02) -> 0 | AI85: =IF(ISERROR(VLOOKUP(AI14,'Existing Pool'!$C$73:$M$140,4,0)),AI48,VLOOKUP(AI14,'Existing Pool'!$C$73:$M$140,4,0)*0.02) -> 0 | AJ85: =IF(ISERROR(VLOOKUP(AJ14,'Existing Pool'!$C$73:$M$140,4,0)),AJ48,VLOOKUP(AJ14,'Existing Pool'!$C$73:$M$140,4,0)*0.02) -> 0 | AK85: =IF(ISERROR(VLOOKUP(AK14,'Existing Pool'!$C$73:$M$140,4,0)),AK48,VLOOKUP(AK14,'Existing Pool'!$C$73:$M$140,4,0)*0.02) -> 0 | AL85: =IF(ISERROR(VLOOKUP(AL14,'Existing Pool'!$C$73:$M$140,4,0)),AL48,VLOOKUP(AL14,'Existing Pool'!$C$73:$M$140,4,0)*0.02) -> 0 | AM85: =IF(ISERROR(VLOOKUP(AM14,'Existing Pool'!$C$73:$M$140,4,0)),AM48,VLOOKUP(AM14,'Existing Pool'!$C$73:$M$140,4,0)*0.02) -> 0 | AN85: =IF(ISERROR(VLOOKUP(AN14,'Existing Pool'!$C$73:$M$140,4,0)),AN48,VLOOKUP(AN14,'Existing Pool'!$C$73:$M$140,4,0)*0.02) -> 1.056941034 | AO85: =IF(ISERROR(VLOOKUP(AO14,'Existing Pool'!$C$73:$M$140,4,0)),AO48,VLOOKUP(AO14,'Existing Pool'!$C$73:$M$140,4,0)*0.02) -> 0.4914023905 | AP85: =IF(ISERROR(VLOOKUP(AP14,'Existing Pool'!$C$73:$M$140,4,0)),AP48,VLOOKUP(AP14,'Existing Pool'!$C$73:$M$140,4,0)*0.02) -> 0 | AQ85: =IF(ISERROR(VLOOKUP(AQ14,'Existing Pool'!$C$73:$M$140,4,0)),AQ48,VLOOKUP(AQ14,'Existing Pool'!$C$73:$M$140,4,0)*0.02) -> 0 | AR85: =IF(ISERROR(VLOOKUP(AR14,'Existing Pool'!$C$73:$M$140,4,0)),AR48,VLOOKUP(AR14,'Existing Pool'!$C$73:$M$140,4,0)*0.02) -> 0.4802259264 | AS85: =IF(ISERROR(VLOOKUP(AS14,'Existing Pool'!$C$73:$M$140,4,0)),AS48,VLOOKUP(AS14,'Existing Pool'!$C$73:$M$140,4,0)*0.02) -> 0.3022798497 | AT85: =IF(ISERROR(VLOOKUP(AT14,'Existing Pool'!$C$73:$M$140,4,0)),AT48,VLOOKUP(AT14,'Existing Pool'!$C$73:$M$140,4,0)*0.02) -> 0 | AU85: =IF(ISERROR(VLOOKUP(AU14,'Existing Pool'!$C$73:$M$140,4,0)),AU48,VLOOKUP(AU14,'Existing Pool'!$C$73:$M$140,4,0)*0.02) -> 0 | AV85: =IF(ISERROR(VLOOKUP(AV14,'Existing Pool'!$C$73:$M$140,4,0)),AV48,VLOOKUP(AV14,'Existing Pool'!$C$73:$M$140,4,0)*0.02) -> 0 | AW85: =IF(ISERROR(VLOOKUP(AW14,'Existing Pool'!$C$73:$M$140,4,0)),AW48,VLOOKUP(AW14,'Existing Pool'!$C$73:$M$140,4,0)*0.02) -> 0 | AX85: =IF(ISERROR(VLOOKUP(AX14,'Existing Pool'!$C$73:$M$140,4,0)),AX48,VLOOKUP(AX14,'Existing Pool'!$C$73:$M$140,4,0)*0.02) -> 0 | AY85: =IF(ISERROR(VLOOKUP(AY14,'Existing Pool'!$C$73:$M$140,4,0)),AY48,VLOOKUP(AY14,'Existing Pool'!$C$73:$M$140,4,0)*0.02) -> 0 | AZ85: =IF(ISERROR(VLOOKUP(AZ14,'Existing Pool'!$C$73:$M$140,4,0)),AZ48,VLOOKUP(AZ14,'Existing Pool'!$C$73:$M$140,4,0)*0.02) -> 0 | BA85: =IF(ISERROR(VLOOKUP(BA14,'Existing Pool'!$C$73:$M$140,4,0)),BA48,VLOOKUP(BA14,'Existing Pool'!$C$73:$M$140,4,0)*0.02) -> 0 | BB85: =IF(ISERROR(VLOOKUP(BB14,'Existing Pool'!$C$73:$M$140,4,0)),BB48,VLOOKUP(BB14,'Existing Pool'!$C$73:$M$140,4,0)*0.02) -> 0 | BC85: =IF(ISERROR(VLOOKUP(BC14,'Existing Pool'!$C$73:$M$140,4,0)),BC48,VLOOKUP(BC14,'Existing Pool'!$C$73:$M$140,4,0)*0.02) -> 0 | BD85: =IF(ISERROR(VLOOKUP(BD14,'Existing Pool'!$C$73:$M$140,4,0)),BD48,VLOOKUP(BD14,'Existing Pool'!$C$73:$M$140,4,0)*0.02) -> 0 | BE85: =IF(ISERROR(VLOOKUP(BE14,'Existing Pool'!$C$73:$M$140,4,0)),BE48,VLOOKUP(BE14,'Existing Pool'!$C$73:$M$140,4,0)*0.02) -> 0 | BF85: =IF(ISERROR(VLOOKUP(BF14,'Existing Pool'!$C$73:$M$140,4,0)),BF48,VLOOKUP(BF14,'Existing Pool'!$C$73:$M$140,4,0)*0.02) -> 0.1051450065
A86: =IF(ISERROR(VLOOKUP(A15,'Existing Pool'!$C$73:$M$140,4,0)),A49,VLOOKUP(A15,'Existing Pool'!$C$73:$M$140,4,0)*0.18) -> 0 | B86: =IF(ISERROR(VLOOKUP(B15,'Existing Pool'!$C$73:$M$140,4,0)),B49,VLOOKUP(B15,'Existing Pool'!$C$73:$M$140,4,0)*0.18) -> 0 | C86: =IF(ISERROR(VLOOKUP(C15,'Existing Pool'!$C$73:$M$140,4,0)),C49,VLOOKUP(C15,'Existing Pool'!$C$73:$M$140,4,0)*0.2) -> 0 | D86: =IF(ISERROR(VLOOKUP(D15,'Existing Pool'!$C$73:$M$140,4,0)),D49,VLOOKUP(D15,'Existing Pool'!$C$73:$M$140,4,0)*0.18) -> 0 | E86: =IF(ISERROR(VLOOKUP(E15,'Existing Pool'!$C$73:$M$140,4,0)),E49,VLOOKUP(E15,'Existing Pool'!$C$73:$M$140,4,0)*0.18) -> 0 | F86: =IF(ISERROR(VLOOKUP(F15,'Existing Pool'!$C$73:$M$140,4,0)),F49,VLOOKUP(F15,'Existing Pool'!$C$73:$M$140,4,0)*0.18) -> 0 | G86: =IF(ISERROR(VLOOKUP(G15,'Existing Pool'!$C$73:$M$140,4,0)),G49,VLOOKUP(G15,'Existing Pool'!$C$73:$M$140,4,0)*0.18) -> 0 | H86: =IF(ISERROR(VLOOKUP(H15,'Existing Pool'!$C$73:$M$140,4,0)),H49,VLOOKUP(H15,'Existing Pool'!$C$73:$M$140,4,0)*0.18) -> 0 | I86: =IF(ISERROR(VLOOKUP(I15,'Existing Pool'!$C$73:$M$140,4,0)),I49,VLOOKUP(I15,'Existing Pool'!$C$73:$M$140,4,0)*0.4) -> 12.60985453 | J86: =IF(ISERROR(VLOOKUP(J15,'Existing Pool'!$C$73:$M$140,4,0)),J49,VLOOKUP(J15,'Existing Pool'!$C$73:$M$140,4,0)*0.2) -> 0 | K86: =IF(ISERROR(VLOOKUP(K15,'Existing Pool'!$C$73:$M$140,4,0)),K49,VLOOKUP(K15,'Existing Pool'!$C$73:$M$140,4,0)*0.18) -> 0 | L86: =IF(ISERROR(VLOOKUP(L15,'Existing Pool'!$C$73:$M$140,4,0)),L49,VLOOKUP(L15,'Existing Pool'!$C$73:$M$140,4,0)*0.18) -> 0 | M86: =IF(ISERROR(VLOOKUP(M15,'Existing Pool'!$C$73:$M$140,4,0)),M49,VLOOKUP(M15,'Existing Pool'!$C$73:$M$140,4,0)*0.2) -> 0 | N86: =IF(ISERROR(VLOOKUP(N15,'Existing Pool'!$C$73:$M$140,4,0)),N49,VLOOKUP(N15,'Existing Pool'!$C$73:$M$140,4,0)*0.18) -> 0 | O86: =IF(ISERROR(VLOOKUP(O15,'Existing Pool'!$C$73:$M$140,4,0)),O49,VLOOKUP(O15,'Existing Pool'!$C$73:$M$140,4,0)*0.18) -> 0 | P86: =IF(ISERROR(VLOOKUP(P15,'Existing Pool'!$C$73:$M$140,4,0)),P49,VLOOKUP(P15,'Existing Pool'!$C$73:$M$140,4,0)*0.18) -> 0 | Q86: =IF(ISERROR(VLOOKUP(Q15,'Existing Pool'!$C$73:$M$140,4,0)),Q49,VLOOKUP(Q15,'Existing Pool'!$C$73:$M$140,4,0)*0.2) -> 0 | R86: =IF(ISERROR(VLOOKUP(R15,'Existing Pool'!$C$73:$M$140,4,0)),R49,VLOOKUP(R15,'Existing Pool'!$C$73:$M$140,4,0)*0.2) -> 0 | S86: =IF(ISERROR(VLOOKUP(S15,'Existing Pool'!$C$73:$M$140,4,0)),S49,VLOOKUP(S15,'Existing Pool'!$C$73:$M$140,4,0)*0.18) -> 0 | T86: =IF(ISERROR(VLOOKUP(T15,'Existing Pool'!$C$73:$M$140,4,0)),T49,VLOOKUP(T15,'Existing Pool'!$C$73:$M$140,4,0)*0.2) -> 0 | U86: =IF(ISERROR(VLOOKUP(U15,'Existing Pool'!$C$73:$M$140,4,0)),U49,VLOOKUP(U15,'Existing Pool'!$C$73:$M$140,4,0)*0.18) -> 0 | V86: =IF(ISERROR(VLOOKUP(V15,'Existing Pool'!$C$73:$M$140,4,0)),V49,VLOOKUP(V15,'Existing Pool'!$C$73:$M$140,4,0)*0.2) -> 0 | W86: =IF(ISERROR(VLOOKUP(W15,'Existing Pool'!$C$73:$M$140,4,0)),W49,VLOOKUP(W15,'Existing Pool'!$C$73:$M$140,4,0)*0.18) -> 0 | X86: =IF(ISERROR(VLOOKUP(X15,'Existing Pool'!$C$73:$M$140,4,0)),X49,VLOOKUP(X15,'Existing Pool'!$C$73:$M$140,4,0)*0.18) -> 0 | Y86: =IF(ISERROR(VLOOKUP(Y15,'Existing Pool'!$C$73:$M$140,4,0)),Y49,VLOOKUP(Y15,'Existing Pool'!$C$73:$M$140,4,0)*0.2) -> 0 | Z86: =IF(ISERROR(VLOOKUP(Z15,'Existing Pool'!$C$73:$M$140,4,0)),Z49,VLOOKUP(Z15,'Existing Pool'!$C$73:$M$140,4,0)*0.2) -> 0 | AA86: =IF(ISERROR(VLOOKUP(AA15,'Existing Pool'!$C$73:$M$140,4,0)),AA49,VLOOKUP(AA15,'Existing Pool'!$C$73:$M$140,4,0)*0.2) -> 0 | AB86: =IF(ISERROR(VLOOKUP(AB15,'Existing Pool'!$C$73:$M$140,4,0)),AB49,VLOOKUP(AB15,'Existing Pool'!$C$73:$M$140,4,0)*0.2) -> 0 | AC86: =IF(ISERROR(VLOOKUP(AC15,'Existing Pool'!$C$73:$M$140,4,0)),AC49,VLOOKUP(AC15,'Existing Pool'!$C$73:$M$140,4,0)*0.02) -> 0 | AD86: =IF(ISERROR(VLOOKUP(AD15,'Existing Pool'!$C$73:$M$140,4,0)),AD49,VLOOKUP(AD15,'Existing Pool'!$C$73:$M$140,4,0)*0.02) -> 0 | AE86: =IF(ISERROR(VLOOKUP(AE15,'Existing Pool'!$C$73:$M$140,4,0)),AE49,VLOOKUP(AE15,'Existing Pool'!$C$73:$M$140,4,0)*0.02) -> 0 | AF86: =IF(ISERROR(VLOOKUP(AF15,'Existing Pool'!$C$73:$M$140,4,0)),AF49,VLOOKUP(AF15,'Existing Pool'!$C$73:$M$140,4,0)*0.02) -> 0 | AG86: =IF(ISERROR(VLOOKUP(AG15,'Existing Pool'!$C$73:$M$140,4,0)),AG49,VLOOKUP(AG15,'Existing Pool'!$C$73:$M$140,4,0)*0.02) -> 0 | AH86: =IF(ISERROR(VLOOKUP(AH15,'Existing Pool'!$C$73:$M$140,4,0)),AH49,VLOOKUP(AH15,'Existing Pool'!$C$73:$M$140,4,0)*0.02) -> 0 | AI86: =IF(ISERROR(VLOOKUP(AI15,'Existing Pool'!$C$73:$M$140,4,0)),AI49,VLOOKUP(AI15,'Existing Pool'!$C$73:$M$140,4,0)*0.02) -> 0 | AJ86: =IF(ISERROR(VLOOKUP(AJ15,'Existing Pool'!$C$73:$M$140,4,0)),AJ49,VLOOKUP(AJ15,'Existing Pool'!$C$73:$M$140,4,0)*0.02) -> 0 | AK86: =IF(ISERROR(VLOOKUP(AK15,'Existing Pool'!$C$73:$M$140,4,0)),AK49,VLOOKUP(AK15,'Existing Pool'!$C$73:$M$140,4,0)*0.02) -> 0 | AL86: =IF(ISERROR(VLOOKUP(AL15,'Existing Pool'!$C$73:$M$140,4,0)),AL49,VLOOKUP(AL15,'Existing Pool'!$C$73:$M$140,4,0)*0.02) -> 0 | AM86: =IF(ISERROR(VLOOKUP(AM15,'Existing Pool'!$C$73:$M$140,4,0)),AM49,VLOOKUP(AM15,'Existing Pool'!$C$73:$M$140,4,0)*0.02) -> 0 | AN86: =IF(ISERROR(VLOOKUP(AN15,'Existing Pool'!$C$73:$M$140,4,0)),AN49,VLOOKUP(AN15,'Existing Pool'!$C$73:$M$140,4,0)*0.02) -> 0.3872471167 | AO86: =IF(ISERROR(VLOOKUP(AO15,'Existing Pool'!$C$73:$M$140,4,0)),AO49,VLOOKUP(AO15,'Existing Pool'!$C$73:$M$140,4,0)*0.02) -> 0 | AP86: =IF(ISERROR(VLOOKUP(AP15,'Existing Pool'!$C$73:$M$140,4,0)),AP49,VLOOKUP(AP15,'Existing Pool'!$C$73:$M$140,4,0)*0.02) -> 0 | AQ86: =IF(ISERROR(VLOOKUP(AQ15,'Existing Pool'!$C$73:$M$140,4,0)),AQ49,VLOOKUP(AQ15,'Existing Pool'!$C$73:$M$140,4,0)*0.02) -> 0 | AR86: =IF(ISERROR(VLOOKUP(AR15,'Existing Pool'!$C$73:$M$140,4,0)),AR49,VLOOKUP(AR15,'Existing Pool'!$C$73:$M$140,4,0)*0.02) -> 0 | AS86: =IF(ISERROR(VLOOKUP(AS15,'Existing Pool'!$C$73:$M$140,4,0)),AS49,VLOOKUP(AS15,'Existing Pool'!$C$73:$M$140,4,0)*0.02) -> 0.2499148885 | AT86: =IF(ISERROR(VLOOKUP(AT15,'Existing Pool'!$C$73:$M$140,4,0)),AT49,VLOOKUP(AT15,'Existing Pool'!$C$73:$M$140,4,0)*0.02) -> 0 | AU86: =IF(ISERROR(VLOOKUP(AU15,'Existing Pool'!$C$73:$M$140,4,0)),AU49,VLOOKUP(AU15,'Existing Pool'!$C$73:$M$140,4,0)*0.02) -> 0 | AV86: =IF(ISERROR(VLOOKUP(AV15,'Existing Pool'!$C$73:$M$140,4,0)),AV49,VLOOKUP(AV15,'Existing Pool'!$C$73:$M$140,4,0)*0.02) -> 0 | AW86: =IF(ISERROR(VLOOKUP(AW15,'Existing Pool'!$C$73:$M$140,4,0)),AW49,VLOOKUP(AW15,'Existing Pool'!$C$73:$M$140,4,0)*0.02) -> 0 | AX86: =IF(ISERROR(VLOOKUP(AX15,'Existing Pool'!$C$73:$M$140,4,0)),AX49,VLOOKUP(AX15,'Existing Pool'!$C$73:$M$140,4,0)*0.02) -> 0 | AY86: =IF(ISERROR(VLOOKUP(AY15,'Existing Pool'!$C$73:$M$140,4,0)),AY49,VLOOKUP(AY15,'Existing Pool'!$C$73:$M$140,4,0)*0.02) -> 0 | AZ86: =IF(ISERROR(VLOOKUP(AZ15,'Existing Pool'!$C$73:$M$140,4,0)),AZ49,VLOOKUP(AZ15,'Existing Pool'!$C$73:$M$140,4,0)*0.02) -> 0 | BA86: =IF(ISERROR(VLOOKUP(BA15,'Existing Pool'!$C$73:$M$140,4,0)),BA49,VLOOKUP(BA15,'Existing Pool'!$C$73:$M$140,4,0)*0.02) -> 0 | BB86: =IF(ISERROR(VLOOKUP(BB15,'Existing Pool'!$C$73:$M$140,4,0)),BB49,VLOOKUP(BB15,'Existing Pool'!$C$73:$M$140,4,0)*0.02) -> 0 | BC86: =IF(ISERROR(VLOOKUP(BC15,'Existing Pool'!$C$73:$M$140,4,0)),BC49,VLOOKUP(BC15,'Existing Pool'!$C$73:$M$140,4,0)*0.02) -> 0 | BD86: =IF(ISERROR(VLOOKUP(BD15,'Existing Pool'!$C$73:$M$140,4,0)),BD49,VLOOKUP(BD15,'Existing Pool'!$C$73:$M$140,4,0)*0.02) -> 0 | BE86: =IF(ISERROR(VLOOKUP(BE15,'Existing Pool'!$C$73:$M$140,4,0)),BE49,VLOOKUP(BE15,'Existing Pool'!$C$73:$M$140,4,0)*0.02) -> 0 | BF86: =IF(ISERROR(VLOOKUP(BF15,'Existing Pool'!$C$73:$M$140,4,0)),BF49,VLOOKUP(BF15,'Existing Pool'!$C$73:$M$140,4,0)*0.02) -> 0.1080296703
A87: =IF(ISERROR(VLOOKUP(A16,'Existing Pool'!$C$73:$M$140,4,0)),A50,VLOOKUP(A16,'Existing Pool'!$C$73:$M$140,4,0)*0.18) -> 0 | B87: =IF(ISERROR(VLOOKUP(B16,'Existing Pool'!$C$73:$M$140,4,0)),B50,VLOOKUP(B16,'Existing Pool'!$C$73:$M$140,4,0)*0.18) -> 0 | C87: =IF(ISERROR(VLOOKUP(C16,'Existing Pool'!$C$73:$M$140,4,0)),C50,VLOOKUP(C16,'Existing Pool'!$C$73:$M$140,4,0)*0.2) -> 0 | D87: =IF(ISERROR(VLOOKUP(D16,'Existing Pool'!$C$73:$M$140,4,0)),D50,VLOOKUP(D16,'Existing Pool'!$C$73:$M$140,4,0)*0.18) -> 0 | E87: =IF(ISERROR(VLOOKUP(E16,'Existing Pool'!$C$73:$M$140,4,0)),E50,VLOOKUP(E16,'Existing Pool'!$C$73:$M$140,4,0)*0.18) -> 0 | F87: =IF(ISERROR(VLOOKUP(F16,'Existing Pool'!$C$73:$M$140,4,0)),F50,VLOOKUP(F16,'Existing Pool'!$C$73:$M$140,4,0)*0.18) -> 0 | G87: =IF(ISERROR(VLOOKUP(G16,'Existing Pool'!$C$73:$M$140,4,0)),G50,VLOOKUP(G16,'Existing Pool'!$C$73:$M$140,4,0)*0.18) -> 0 | H87: =IF(ISERROR(VLOOKUP(H16,'Existing Pool'!$C$73:$M$140,4,0)),H50,VLOOKUP(H16,'Existing Pool'!$C$73:$M$140,4,0)*0.18) -> 0 | I87: =IF(ISERROR(VLOOKUP(I16,'Existing Pool'!$C$73:$M$140,4,0)),I50,VLOOKUP(I16,'Existing Pool'!$C$73:$M$140,4,0)*0.4) -> 9.670782965 | J87: =IF(ISERROR(VLOOKUP(J16,'Existing Pool'!$C$73:$M$140,4,0)),J50,VLOOKUP(J16,'Existing Pool'!$C$73:$M$140,4,0)*0.2) -> 0 | K87: =IF(ISERROR(VLOOKUP(K16,'Existing Pool'!$C$73:$M$140,4,0)),K50,VLOOKUP(K16,'Existing Pool'!$C$73:$M$140,4,0)*0.18) -> 0 | L87: =IF(ISERROR(VLOOKUP(L16,'Existing Pool'!$C$73:$M$140,4,0)),L50,VLOOKUP(L16,'Existing Pool'!$C$73:$M$140,4,0)*0.18) -> 0 | M87: =IF(ISERROR(VLOOKUP(M16,'Existing Pool'!$C$73:$M$140,4,0)),M50,VLOOKUP(M16,'Existing Pool'!$C$73:$M$140,4,0)*0.2) -> 0 | N87: =IF(ISERROR(VLOOKUP(N16,'Existing Pool'!$C$73:$M$140,4,0)),N50,VLOOKUP(N16,'Existing Pool'!$C$73:$M$140,4,0)*0.18) -> 0 | O87: =IF(ISERROR(VLOOKUP(O16,'Existing Pool'!$C$73:$M$140,4,0)),O50,VLOOKUP(O16,'Existing Pool'!$C$73:$M$140,4,0)*0.18) -> 0 | P87: =IF(ISERROR(VLOOKUP(P16,'Existing Pool'!$C$73:$M$140,4,0)),P50,VLOOKUP(P16,'Existing Pool'!$C$73:$M$140,4,0)*0.18) -> 0 | Q87: =IF(ISERROR(VLOOKUP(Q16,'Existing Pool'!$C$73:$M$140,4,0)),Q50,VLOOKUP(Q16,'Existing Pool'!$C$73:$M$140,4,0)*0.2) -> 0 | R87: =IF(ISERROR(VLOOKUP(R16,'Existing Pool'!$C$73:$M$140,4,0)),R50,VLOOKUP(R16,'Existing Pool'!$C$73:$M$140,4,0)*0.2) -> 0 | S87: =IF(ISERROR(VLOOKUP(S16,'Existing Pool'!$C$73:$M$140,4,0)),S50,VLOOKUP(S16,'Existing Pool'!$C$73:$M$140,4,0)*0.18) -> 0 | T87: =IF(ISERROR(VLOOKUP(T16,'Existing Pool'!$C$73:$M$140,4,0)),T50,VLOOKUP(T16,'Existing Pool'!$C$73:$M$140,4,0)*0.2) -> 0 | U87: =IF(ISERROR(VLOOKUP(U16,'Existing Pool'!$C$73:$M$140,4,0)),U50,VLOOKUP(U16,'Existing Pool'!$C$73:$M$140,4,0)*0.18) -> 0 | V87: =IF(ISERROR(VLOOKUP(V16,'Existing Pool'!$C$73:$M$140,4,0)),V50,VLOOKUP(V16,'Existing Pool'!$C$73:$M$140,4,0)*0.2) -> 0 | W87: =IF(ISERROR(VLOOKUP(W16,'Existing Pool'!$C$73:$M$140,4,0)),W50,VLOOKUP(W16,'Existing Pool'!$C$73:$M$140,4,0)*0.18) -> 0 | X87: =IF(ISERROR(VLOOKUP(X16,'Existing Pool'!$C$73:$M$140,4,0)),X50,VLOOKUP(X16,'Existing Pool'!$C$73:$M$140,4,0)*0.18) -> 0 | Y87: =IF(ISERROR(VLOOKUP(Y16,'Existing Pool'!$C$73:$M$140,4,0)),Y50,VLOOKUP(Y16,'Existing Pool'!$C$73:$M$140,4,0)*0.2) -> 0 | Z87: =IF(ISERROR(VLOOKUP(Z16,'Existing Pool'!$C$73:$M$140,4,0)),Z50,VLOOKUP(Z16,'Existing Pool'!$C$73:$M$140,4,0)*0.2) -> 0 | AA87: =IF(ISERROR(VLOOKUP(AA16,'Existing Pool'!$C$73:$M$140,4,0)),AA50,VLOOKUP(AA16,'Existing Pool'!$C$73:$M$140,4,0)*0.2) -> 0 | AB87: =IF(ISERROR(VLOOKUP(AB16,'Existing Pool'!$C$73:$M$140,4,0)),AB50,VLOOKUP(AB16,'Existing Pool'!$C$73:$M$140,4,0)*0.2) -> 0 | AC87: =IF(ISERROR(VLOOKUP(AC16,'Existing Pool'!$C$73:$M$140,4,0)),AC50,VLOOKUP(AC16,'Existing Pool'!$C$73:$M$140,4,0)*0.02) -> 0 | AD87: =IF(ISERROR(VLOOKUP(AD16,'Existing Pool'!$C$73:$M$140,4,0)),AD50,VLOOKUP(AD16,'Existing Pool'!$C$73:$M$140,4,0)*0.02) -> 0 | AE87: =IF(ISERROR(VLOOKUP(AE16,'Existing Pool'!$C$73:$M$140,4,0)),AE50,VLOOKUP(AE16,'Existing Pool'!$C$73:$M$140,4,0)*0.02) -> 0 | AF87: =IF(ISERROR(VLOOKUP(AF16,'Existing Pool'!$C$73:$M$140,4,0)),AF50,VLOOKUP(AF16,'Existing Pool'!$C$73:$M$140,4,0)*0.02) -> 0 | AG87: =IF(ISERROR(VLOOKUP(AG16,'Existing Pool'!$C$73:$M$140,4,0)),AG50,VLOOKUP(AG16,'Existing Pool'!$C$73:$M$140,4,0)*0.02) -> 0 | AH87: =IF(ISERROR(VLOOKUP(AH16,'Existing Pool'!$C$73:$M$140,4,0)),AH50,VLOOKUP(AH16,'Existing Pool'!$C$73:$M$140,4,0)*0.02) -> 0 | AI87: =IF(ISERROR(VLOOKUP(AI16,'Existing Pool'!$C$73:$M$140,4,0)),AI50,VLOOKUP(AI16,'Existing Pool'!$C$73:$M$140,4,0)*0.02) -> 0 | AJ87: =IF(ISERROR(VLOOKUP(AJ16,'Existing Pool'!$C$73:$M$140,4,0)),AJ50,VLOOKUP(AJ16,'Existing Pool'!$C$73:$M$140,4,0)*0.02) -> 0 | AK87: =IF(ISERROR(VLOOKUP(AK16,'Existing Pool'!$C$73:$M$140,4,0)),AK50,VLOOKUP(AK16,'Existing Pool'!$C$73:$M$140,4,0)*0.02) -> 0 | AL87: =IF(ISERROR(VLOOKUP(AL16,'Existing Pool'!$C$73:$M$140,4,0)),AL50,VLOOKUP(AL16,'Existing Pool'!$C$73:$M$140,4,0)*0.02) -> 0 | AM87: =IF(ISERROR(VLOOKUP(AM16,'Existing Pool'!$C$73:$M$140,4,0)),AM50,VLOOKUP(AM16,'Existing Pool'!$C$73:$M$140,4,0)*0.02) -> 0 | AN87: =IF(ISERROR(VLOOKUP(AN16,'Existing Pool'!$C$73:$M$140,4,0)),AN50,VLOOKUP(AN16,'Existing Pool'!$C$73:$M$140,4,0)*0.02) -> 0 | AO87: =IF(ISERROR(VLOOKUP(AO16,'Existing Pool'!$C$73:$M$140,4,0)),AO50,VLOOKUP(AO16,'Existing Pool'!$C$73:$M$140,4,0)*0.02) -> 0 | AP87: =IF(ISERROR(VLOOKUP(AP16,'Existing Pool'!$C$73:$M$140,4,0)),AP50,VLOOKUP(AP16,'Existing Pool'!$C$73:$M$140,4,0)*0.02) -> 0 | AQ87: =IF(ISERROR(VLOOKUP(AQ16,'Existing Pool'!$C$73:$M$140,4,0)),AQ50,VLOOKUP(AQ16,'Existing Pool'!$C$73:$M$140,4,0)*0.02) -> 0 | AR87: =IF(ISERROR(VLOOKUP(AR16,'Existing Pool'!$C$73:$M$140,4,0)),AR50,VLOOKUP(AR16,'Existing Pool'!$C$73:$M$140,4,0)*0.02) -> 0 | AS87: =IF(ISERROR(VLOOKUP(AS16,'Existing Pool'!$C$73:$M$140,4,0)),AS50,VLOOKUP(AS16,'Existing Pool'!$C$73:$M$140,4,0)*0.02) -> 0 | AT87: =IF(ISERROR(VLOOKUP(AT16,'Existing Pool'!$C$73:$M$140,4,0)),AT50,VLOOKUP(AT16,'Existing Pool'!$C$73:$M$140,4,0)*0.02) -> 0 | AU87: =IF(ISERROR(VLOOKUP(AU16,'Existing Pool'!$C$73:$M$140,4,0)),AU50,VLOOKUP(AU16,'Existing Pool'!$C$73:$M$140,4,0)*0.02) -> 0 | AV87: =IF(ISERROR(VLOOKUP(AV16,'Existing Pool'!$C$73:$M$140,4,0)),AV50,VLOOKUP(AV16,'Existing Pool'!$C$73:$M$140,4,0)*0.02) -> 0 | AW87: =IF(ISERROR(VLOOKUP(AW16,'Existing Pool'!$C$73:$M$140,4,0)),AW50,VLOOKUP(AW16,'Existing Pool'!$C$73:$M$140,4,0)*0.02) -> 0 | AX87: =IF(ISERROR(VLOOKUP(AX16,'Existing Pool'!$C$73:$M$140,4,0)),AX50,VLOOKUP(AX16,'Existing Pool'!$C$73:$M$140,4,0)*0.02) -> 0 | AY87: =IF(ISERROR(VLOOKUP(AY16,'Existing Pool'!$C$73:$M$140,4,0)),AY50,VLOOKUP(AY16,'Existing Pool'!$C$73:$M$140,4,0)*0.02) -> 0 | AZ87: =IF(ISERROR(VLOOKUP(AZ16,'Existing Pool'!$C$73:$M$140,4,0)),AZ50,VLOOKUP(AZ16,'Existing Pool'!$C$73:$M$140,4,0)*0.02) -> 0 | BA87: =IF(ISERROR(VLOOKUP(BA16,'Existing Pool'!$C$73:$M$140,4,0)),BA50,VLOOKUP(BA16,'Existing Pool'!$C$73:$M$140,4,0)*0.02) -> 0 | BB87: =IF(ISERROR(VLOOKUP(BB16,'Existing Pool'!$C$73:$M$140,4,0)),BB50,VLOOKUP(BB16,'Existing Pool'!$C$73:$M$140,4,0)*0.02) -> 0 | BC87: =IF(ISERROR(VLOOKUP(BC16,'Existing Pool'!$C$73:$M$140,4,0)),BC50,VLOOKUP(BC16,'Existing Pool'!$C$73:$M$140,4,0)*0.02) -> 0 | BD87: =IF(ISERROR(VLOOKUP(BD16,'Existing Pool'!$C$73:$M$140,4,0)),BD50,VLOOKUP(BD16,'Existing Pool'!$C$73:$M$140,4,0)*0.02) -> 0 | BE87: =IF(ISERROR(VLOOKUP(BE16,'Existing Pool'!$C$73:$M$140,4,0)),BE50,VLOOKUP(BE16,'Existing Pool'!$C$73:$M$140,4,0)*0.02) -> 0 | BF87: =IF(ISERROR(VLOOKUP(BF16,'Existing Pool'!$C$73:$M$140,4,0)),BF50,VLOOKUP(BF16,'Existing Pool'!$C$73:$M$140,4,0)*0.02) -> 0.09932913634
A88: =IF(ISERROR(VLOOKUP(A17,'Existing Pool'!$C$73:$M$140,4,0)),A51,VLOOKUP(A17,'Existing Pool'!$C$73:$M$140,4,0)*0.18) -> 0 | B88: =IF(ISERROR(VLOOKUP(B17,'Existing Pool'!$C$73:$M$140,4,0)),B51,VLOOKUP(B17,'Existing Pool'!$C$73:$M$140,4,0)*0.18) -> 0 | C88: =IF(ISERROR(VLOOKUP(C17,'Existing Pool'!$C$73:$M$140,4,0)),C51,VLOOKUP(C17,'Existing Pool'!$C$73:$M$140,4,0)*0.2) -> 0 | D88: =IF(ISERROR(VLOOKUP(D17,'Existing Pool'!$C$73:$M$140,4,0)),D51,VLOOKUP(D17,'Existing Pool'!$C$73:$M$140,4,0)*0.18) -> 0 | E88: =IF(ISERROR(VLOOKUP(E17,'Existing Pool'!$C$73:$M$140,4,0)),E51,VLOOKUP(E17,'Existing Pool'!$C$73:$M$140,4,0)*0.18) -> 0 | F88: =IF(ISERROR(VLOOKUP(F17,'Existing Pool'!$C$73:$M$140,4,0)),F51,VLOOKUP(F17,'Existing Pool'!$C$73:$M$140,4,0)*0.18) -> 0 | G88: =IF(ISERROR(VLOOKUP(G17,'Existing Pool'!$C$73:$M$140,4,0)),G51,VLOOKUP(G17,'Existing Pool'!$C$73:$M$140,4,0)*0.18) -> 0 | H88: =IF(ISERROR(VLOOKUP(H17,'Existing Pool'!$C$73:$M$140,4,0)),H51,VLOOKUP(H17,'Existing Pool'!$C$73:$M$140,4,0)*0.18) -> 0 | I88: =IF(ISERROR(VLOOKUP(I17,'Existing Pool'!$C$73:$M$140,4,0)),I51,VLOOKUP(I17,'Existing Pool'!$C$73:$M$140,4,0)*0.4) -> 14.1046507 | J88: =IF(ISERROR(VLOOKUP(J17,'Existing Pool'!$C$73:$M$140,4,0)),J51,VLOOKUP(J17,'Existing Pool'!$C$73:$M$140,4,0)*0.2) -> 0 | K88: =IF(ISERROR(VLOOKUP(K17,'Existing Pool'!$C$73:$M$140,4,0)),K51,VLOOKUP(K17,'Existing Pool'!$C$73:$M$140,4,0)*0.18) -> 0 | L88: =IF(ISERROR(VLOOKUP(L17,'Existing Pool'!$C$73:$M$140,4,0)),L51,VLOOKUP(L17,'Existing Pool'!$C$73:$M$140,4,0)*0.18) -> 0 | M88: =IF(ISERROR(VLOOKUP(M17,'Existing Pool'!$C$73:$M$140,4,0)),M51,VLOOKUP(M17,'Existing Pool'!$C$73:$M$140,4,0)*0.2) -> 0 | N88: =IF(ISERROR(VLOOKUP(N17,'Existing Pool'!$C$73:$M$140,4,0)),N51,VLOOKUP(N17,'Existing Pool'!$C$73:$M$140,4,0)*0.18) -> 0 | O88: =IF(ISERROR(VLOOKUP(O17,'Existing Pool'!$C$73:$M$140,4,0)),O51,VLOOKUP(O17,'Existing Pool'!$C$73:$M$140,4,0)*0.18) -> 0 | P88: =IF(ISERROR(VLOOKUP(P17,'Existing Pool'!$C$73:$M$140,4,0)),P51,VLOOKUP(P17,'Existing Pool'!$C$73:$M$140,4,0)*0.18) -> 0 | Q88: =IF(ISERROR(VLOOKUP(Q17,'Existing Pool'!$C$73:$M$140,4,0)),Q51,VLOOKUP(Q17,'Existing Pool'!$C$73:$M$140,4,0)*0.2) -> 0 | R88: =IF(ISERROR(VLOOKUP(R17,'Existing Pool'!$C$73:$M$140,4,0)),R51,VLOOKUP(R17,'Existing Pool'!$C$73:$M$140,4,0)*0.2) -> 0 | S88: =IF(ISERROR(VLOOKUP(S17,'Existing Pool'!$C$73:$M$140,4,0)),S51,VLOOKUP(S17,'Existing Pool'!$C$73:$M$140,4,0)*0.18) -> 0 | T88: =IF(ISERROR(VLOOKUP(T17,'Existing Pool'!$C$73:$M$140,4,0)),T51,VLOOKUP(T17,'Existing Pool'!$C$73:$M$140,4,0)*0.2) -> 0 | U88: =IF(ISERROR(VLOOKUP(U17,'Existing Pool'!$C$73:$M$140,4,0)),U51,VLOOKUP(U17,'Existing Pool'!$C$73:$M$140,4,0)*0.18) -> 0 | V88: =IF(ISERROR(VLOOKUP(V17,'Existing Pool'!$C$73:$M$140,4,0)),V51,VLOOKUP(V17,'Existing Pool'!$C$73:$M$140,4,0)*0.2) -> 0 | W88: =IF(ISERROR(VLOOKUP(W17,'Existing Pool'!$C$73:$M$140,4,0)),W51,VLOOKUP(W17,'Existing Pool'!$C$73:$M$140,4,0)*0.18) -> 0 | X88: =IF(ISERROR(VLOOKUP(X17,'Existing Pool'!$C$73:$M$140,4,0)),X51,VLOOKUP(X17,'Existing Pool'!$C$73:$M$140,4,0)*0.18) -> 0 | Y88: =IF(ISERROR(VLOOKUP(Y17,'Existing Pool'!$C$73:$M$140,4,0)),Y51,VLOOKUP(Y17,'Existing Pool'!$C$73:$M$140,4,0)*0.2) -> 0 | Z88: =IF(ISERROR(VLOOKUP(Z17,'Existing Pool'!$C$73:$M$140,4,0)),Z51,VLOOKUP(Z17,'Existing Pool'!$C$73:$M$140,4,0)*0.2) -> 0 | AA88: =IF(ISERROR(VLOOKUP(AA17,'Existing Pool'!$C$73:$M$140,4,0)),AA51,VLOOKUP(AA17,'Existing Pool'!$C$73:$M$140,4,0)*0.2) -> 0 | AB88: =IF(ISERROR(VLOOKUP(AB17,'Existing Pool'!$C$73:$M$140,4,0)),AB51,VLOOKUP(AB17,'Existing Pool'!$C$73:$M$140,4,0)*0.2) -> 0 | AC88: =IF(ISERROR(VLOOKUP(AC17,'Existing Pool'!$C$73:$M$140,4,0)),AC51,VLOOKUP(AC17,'Existing Pool'!$C$73:$M$140,4,0)*0.02) -> 0 | AD88: =IF(ISERROR(VLOOKUP(AD17,'Existing Pool'!$C$73:$M$140,4,0)),AD51,VLOOKUP(AD17,'Existing Pool'!$C$73:$M$140,4,0)*0.02) -> 0 | AE88: =IF(ISERROR(VLOOKUP(AE17,'Existing Pool'!$C$73:$M$140,4,0)),AE51,VLOOKUP(AE17,'Existing Pool'!$C$73:$M$140,4,0)*0.02) -> 0 | AF88: =IF(ISERROR(VLOOKUP(AF17,'Existing Pool'!$C$73:$M$140,4,0)),AF51,VLOOKUP(AF17,'Existing Pool'!$C$73:$M$140,4,0)*0.02) -> 0 | AG88: =IF(ISERROR(VLOOKUP(AG17,'Existing Pool'!$C$73:$M$140,4,0)),AG51,VLOOKUP(AG17,'Existing Pool'!$C$73:$M$140,4,0)*0.02) -> 0 | AH88: =IF(ISERROR(VLOOKUP(AH17,'Existing Pool'!$C$73:$M$140,4,0)),AH51,VLOOKUP(AH17,'Existing Pool'!$C$73:$M$140,4,0)*0.02) -> 0 | AI88: =IF(ISERROR(VLOOKUP(AI17,'Existing Pool'!$C$73:$M$140,4,0)),AI51,VLOOKUP(AI17,'Existing Pool'!$C$73:$M$140,4,0)*0.02) -> 0 | AJ88: =IF(ISERROR(VLOOKUP(AJ17,'Existing Pool'!$C$73:$M$140,4,0)),AJ51,VLOOKUP(AJ17,'Existing Pool'!$C$73:$M$140,4,0)*0.02) -> 0 | AK88: =IF(ISERROR(VLOOKUP(AK17,'Existing Pool'!$C$73:$M$140,4,0)),AK51,VLOOKUP(AK17,'Existing Pool'!$C$73:$M$140,4,0)*0.02) -> 0 | AL88: =IF(ISERROR(VLOOKUP(AL17,'Existing Pool'!$C$73:$M$140,4,0)),AL51,VLOOKUP(AL17,'Existing Pool'!$C$73:$M$140,4,0)*0.02) -> 0 | AM88: =IF(ISERROR(VLOOKUP(AM17,'Existing Pool'!$C$73:$M$140,4,0)),AM51,VLOOKUP(AM17,'Existing Pool'!$C$73:$M$140,4,0)*0.02) -> 0 | AN88: =IF(ISERROR(VLOOKUP(AN17,'Existing Pool'!$C$73:$M$140,4,0)),AN51,VLOOKUP(AN17,'Existing Pool'!$C$73:$M$140,4,0)*0.02) -> 0 | AO88: =IF(ISERROR(VLOOKUP(AO17,'Existing Pool'!$C$73:$M$140,4,0)),AO51,VLOOKUP(AO17,'Existing Pool'!$C$73:$M$140,4,0)*0.02) -> 0 | AP88: =IF(ISERROR(VLOOKUP(AP17,'Existing Pool'!$C$73:$M$140,4,0)),AP51,VLOOKUP(AP17,'Existing Pool'!$C$73:$M$140,4,0)*0.02) -> 0 | AQ88: =IF(ISERROR(VLOOKUP(AQ17,'Existing Pool'!$C$73:$M$140,4,0)),AQ51,VLOOKUP(AQ17,'Existing Pool'!$C$73:$M$140,4,0)*0.02) -> 0 | AR88: =IF(ISERROR(VLOOKUP(AR17,'Existing Pool'!$C$73:$M$140,4,0)),AR51,VLOOKUP(AR17,'Existing Pool'!$C$73:$M$140,4,0)*0.02) -> 0 | AS88: =IF(ISERROR(VLOOKUP(AS17,'Existing Pool'!$C$73:$M$140,4,0)),AS51,VLOOKUP(AS17,'Existing Pool'!$C$73:$M$140,4,0)*0.02) -> 0 | AT88: =IF(ISERROR(VLOOKUP(AT17,'Existing Pool'!$C$73:$M$140,4,0)),AT51,VLOOKUP(AT17,'Existing Pool'!$C$73:$M$140,4,0)*0.02) -> 0 | AU88: =IF(ISERROR(VLOOKUP(AU17,'Existing Pool'!$C$73:$M$140,4,0)),AU51,VLOOKUP(AU17,'Existing Pool'!$C$73:$M$140,4,0)*0.02) -> 0 | AV88: =IF(ISERROR(VLOOKUP(AV17,'Existing Pool'!$C$73:$M$140,4,0)),AV51,VLOOKUP(AV17,'Existing Pool'!$C$73:$M$140,4,0)*0.02) -> 0 | AW88: =IF(ISERROR(VLOOKUP(AW17,'Existing Pool'!$C$73:$M$140,4,0)),AW51,VLOOKUP(AW17,'Existing Pool'!$C$73:$M$140,4,0)*0.02) -> 0 | AX88: =IF(ISERROR(VLOOKUP(AX17,'Existing Pool'!$C$73:$M$140,4,0)),AX51,VLOOKUP(AX17,'Existing Pool'!$C$73:$M$140,4,0)*0.02) -> 0 | AY88: =IF(ISERROR(VLOOKUP(AY17,'Existing Pool'!$C$73:$M$140,4,0)),AY51,VLOOKUP(AY17,'Existing Pool'!$C$73:$M$140,4,0)*0.02) -> 0 | AZ88: =IF(ISERROR(VLOOKUP(AZ17,'Existing Pool'!$C$73:$M$140,4,0)),AZ51,VLOOKUP(AZ17,'Existing Pool'!$C$73:$M$140,4,0)*0.02) -> 0 | BA88: =IF(ISERROR(VLOOKUP(BA17,'Existing Pool'!$C$73:$M$140,4,0)),BA51,VLOOKUP(BA17,'Existing Pool'!$C$73:$M$140,4,0)*0.02) -> 0 | BB88: =IF(ISERROR(VLOOKUP(BB17,'Existing Pool'!$C$73:$M$140,4,0)),BB51,VLOOKUP(BB17,'Existing Pool'!$C$73:$M$140,4,0)*0.02) -> 0 | BC88: =IF(ISERROR(VLOOKUP(BC17,'Existing Pool'!$C$73:$M$140,4,0)),BC51,VLOOKUP(BC17,'Existing Pool'!$C$73:$M$140,4,0)*0.02) -> 0 | BD88: =IF(ISERROR(VLOOKUP(BD17,'Existing Pool'!$C$73:$M$140,4,0)),BD51,VLOOKUP(BD17,'Existing Pool'!$C$73:$M$140,4,0)*0.02) -> 0 | BE88: =IF(ISERROR(VLOOKUP(BE17,'Existing Pool'!$C$73:$M$140,4,0)),BE51,VLOOKUP(BE17,'Existing Pool'!$C$73:$M$140,4,0)*0.02) -> 0 | BF88: =IF(ISERROR(VLOOKUP(BF17,'Existing Pool'!$C$73:$M$140,4,0)),BF51,VLOOKUP(BF17,'Existing Pool'!$C$73:$M$140,4,0)*0.02) -> 0
A89: =IF(ISERROR(VLOOKUP(A18,'Existing Pool'!$C$73:$M$140,4,0)),A52,VLOOKUP(A18,'Existing Pool'!$C$73:$M$140,4,0)*0.18) -> 0 | B89: =IF(ISERROR(VLOOKUP(B18,'Existing Pool'!$C$73:$M$140,4,0)),B52,VLOOKUP(B18,'Existing Pool'!$C$73:$M$140,4,0)*0.18) -> 0 | C89: =IF(ISERROR(VLOOKUP(C18,'Existing Pool'!$C$73:$M$140,4,0)),C52,VLOOKUP(C18,'Existing Pool'!$C$73:$M$140,4,0)*0.2) -> 0 | D89: =IF(ISERROR(VLOOKUP(D18,'Existing Pool'!$C$73:$M$140,4,0)),D52,VLOOKUP(D18,'Existing Pool'!$C$73:$M$140,4,0)*0.18) -> 0 | E89: =IF(ISERROR(VLOOKUP(E18,'Existing Pool'!$C$73:$M$140,4,0)),E52,VLOOKUP(E18,'Existing Pool'!$C$73:$M$140,4,0)*0.18) -> 0 | F89: =IF(ISERROR(VLOOKUP(F18,'Existing Pool'!$C$73:$M$140,4,0)),F52,VLOOKUP(F18,'Existing Pool'!$C$73:$M$140,4,0)*0.18) -> 0 | G89: =IF(ISERROR(VLOOKUP(G18,'Existing Pool'!$C$73:$M$140,4,0)),G52,VLOOKUP(G18,'Existing Pool'!$C$73:$M$140,4,0)*0.18) -> 0 | H89: =IF(ISERROR(VLOOKUP(H18,'Existing Pool'!$C$73:$M$140,4,0)),H52,VLOOKUP(H18,'Existing Pool'!$C$73:$M$140,4,0)*0.18) -> 0 | I89: =IF(ISERROR(VLOOKUP(I18,'Existing Pool'!$C$73:$M$140,4,0)),I52,VLOOKUP(I18,'Existing Pool'!$C$73:$M$140,4,0)*0.4) -> 66.18598994 | J89: =IF(ISERROR(VLOOKUP(J18,'Existing Pool'!$C$73:$M$140,4,0)),J52,VLOOKUP(J18,'Existing Pool'!$C$73:$M$140,4,0)*0.2) -> 0 | K89: =IF(ISERROR(VLOOKUP(K18,'Existing Pool'!$C$73:$M$140,4,0)),K52,VLOOKUP(K18,'Existing Pool'!$C$73:$M$140,4,0)*0.18) -> 0 | L89: =IF(ISERROR(VLOOKUP(L18,'Existing Pool'!$C$73:$M$140,4,0)),L52,VLOOKUP(L18,'Existing Pool'!$C$73:$M$140,4,0)*0.18) -> 0 | M89: =IF(ISERROR(VLOOKUP(M18,'Existing Pool'!$C$73:$M$140,4,0)),M52,VLOOKUP(M18,'Existing Pool'!$C$73:$M$140,4,0)*0.2) -> 0 | N89: =IF(ISERROR(VLOOKUP(N18,'Existing Pool'!$C$73:$M$140,4,0)),N52,VLOOKUP(N18,'Existing Pool'!$C$73:$M$140,4,0)*0.18) -> 0 | O89: =IF(ISERROR(VLOOKUP(O18,'Existing Pool'!$C$73:$M$140,4,0)),O52,VLOOKUP(O18,'Existing Pool'!$C$73:$M$140,4,0)*0.18) -> 0 | P89: =IF(ISERROR(VLOOKUP(P18,'Existing Pool'!$C$73:$M$140,4,0)),P52,VLOOKUP(P18,'Existing Pool'!$C$73:$M$140,4,0)*0.18) -> 0 | Q89: =IF(ISERROR(VLOOKUP(Q18,'Existing Pool'!$C$73:$M$140,4,0)),Q52,VLOOKUP(Q18,'Existing Pool'!$C$73:$M$140,4,0)*0.2) -> 0 | R89: =IF(ISERROR(VLOOKUP(R18,'Existing Pool'!$C$73:$M$140,4,0)),R52,VLOOKUP(R18,'Existing Pool'!$C$73:$M$140,4,0)*0.2) -> 0 | S89: =IF(ISERROR(VLOOKUP(S18,'Existing Pool'!$C$73:$M$140,4,0)),S52,VLOOKUP(S18,'Existing Pool'!$C$73:$M$140,4,0)*0.18) -> 0 | T89: =IF(ISERROR(VLOOKUP(T18,'Existing Pool'!$C$73:$M$140,4,0)),T52,VLOOKUP(T18,'Existing Pool'!$C$73:$M$140,4,0)*0.2) -> 0 | U89: =IF(ISERROR(VLOOKUP(U18,'Existing Pool'!$C$73:$M$140,4,0)),U52,VLOOKUP(U18,'Existing Pool'!$C$73:$M$140,4,0)*0.18) -> 0 | V89: =IF(ISERROR(VLOOKUP(V18,'Existing Pool'!$C$73:$M$140,4,0)),V52,VLOOKUP(V18,'Existing Pool'!$C$73:$M$140,4,0)*0.2) -> 0 | W89: =IF(ISERROR(VLOOKUP(W18,'Existing Pool'!$C$73:$M$140,4,0)),W52,VLOOKUP(W18,'Existing Pool'!$C$73:$M$140,4,0)*0.18) -> 0 | X89: =IF(ISERROR(VLOOKUP(X18,'Existing Pool'!$C$73:$M$140,4,0)),X52,VLOOKUP(X18,'Existing Pool'!$C$73:$M$140,4,0)*0.18) -> 0 | Y89: =IF(ISERROR(VLOOKUP(Y18,'Existing Pool'!$C$73:$M$140,4,0)),Y52,VLOOKUP(Y18,'Existing Pool'!$C$73:$M$140,4,0)*0.2) -> 0 | Z89: =IF(ISERROR(VLOOKUP(Z18,'Existing Pool'!$C$73:$M$140,4,0)),Z52,VLOOKUP(Z18,'Existing Pool'!$C$73:$M$140,4,0)*0.2) -> 0 | AA89: =IF(ISERROR(VLOOKUP(AA18,'Existing Pool'!$C$73:$M$140,4,0)),AA52,VLOOKUP(AA18,'Existing Pool'!$C$73:$M$140,4,0)*0.2) -> 0 | AB89: =IF(ISERROR(VLOOKUP(AB18,'Existing Pool'!$C$73:$M$140,4,0)),AB52,VLOOKUP(AB18,'Existing Pool'!$C$73:$M$140,4,0)*0.2) -> 0 | AC89: =IF(ISERROR(VLOOKUP(AC18,'Existing Pool'!$C$73:$M$140,4,0)),AC52,VLOOKUP(AC18,'Existing Pool'!$C$73:$M$140,4,0)*0.02) -> 0 | AD89: =IF(ISERROR(VLOOKUP(AD18,'Existing Pool'!$C$73:$M$140,4,0)),AD52,VLOOKUP(AD18,'Existing Pool'!$C$73:$M$140,4,0)*0.02) -> 0 | AE89: =IF(ISERROR(VLOOKUP(AE18,'Existing Pool'!$C$73:$M$140,4,0)),AE52,VLOOKUP(AE18,'Existing Pool'!$C$73:$M$140,4,0)*0.02) -> 0 | AF89: =IF(ISERROR(VLOOKUP(AF18,'Existing Pool'!$C$73:$M$140,4,0)),AF52,VLOOKUP(AF18,'Existing Pool'!$C$73:$M$140,4,0)*0.02) -> 0 | AG89: =IF(ISERROR(VLOOKUP(AG18,'Existing Pool'!$C$73:$M$140,4,0)),AG52,VLOOKUP(AG18,'Existing Pool'!$C$73:$M$140,4,0)*0.02) -> 0 | AH89: =IF(ISERROR(VLOOKUP(AH18,'Existing Pool'!$C$73:$M$140,4,0)),AH52,VLOOKUP(AH18,'Existing Pool'!$C$73:$M$140,4,0)*0.02) -> 0 | AI89: =IF(ISERROR(VLOOKUP(AI18,'Existing Pool'!$C$73:$M$140,4,0)),AI52,VLOOKUP(AI18,'Existing Pool'!$C$73:$M$140,4,0)*0.02) -> 0 | AJ89: =IF(ISERROR(VLOOKUP(AJ18,'Existing Pool'!$C$73:$M$140,4,0)),AJ52,VLOOKUP(AJ18,'Existing Pool'!$C$73:$M$140,4,0)*0.02) -> 0 | AK89: =IF(ISERROR(VLOOKUP(AK18,'Existing Pool'!$C$73:$M$140,4,0)),AK52,VLOOKUP(AK18,'Existing Pool'!$C$73:$M$140,4,0)*0.02) -> 0 | AL89: =IF(ISERROR(VLOOKUP(AL18,'Existing Pool'!$C$73:$M$140,4,0)),AL52,VLOOKUP(AL18,'Existing Pool'!$C$73:$M$140,4,0)*0.02) -> 0 | AM89: =IF(ISERROR(VLOOKUP(AM18,'Existing Pool'!$C$73:$M$140,4,0)),AM52,VLOOKUP(AM18,'Existing Pool'!$C$73:$M$140,4,0)*0.02) -> 0 | AN89: =IF(ISERROR(VLOOKUP(AN18,'Existing Pool'!$C$73:$M$140,4,0)),AN52,VLOOKUP(AN18,'Existing Pool'!$C$73:$M$140,4,0)*0.02) -> 0 | AO89: =IF(ISERROR(VLOOKUP(AO18,'Existing Pool'!$C$73:$M$140,4,0)),AO52,VLOOKUP(AO18,'Existing Pool'!$C$73:$M$140,4,0)*0.02) -> 0 | AP89: =IF(ISERROR(VLOOKUP(AP18,'Existing Pool'!$C$73:$M$140,4,0)),AP52,VLOOKUP(AP18,'Existing Pool'!$C$73:$M$140,4,0)*0.02) -> 0 | AQ89: =IF(ISERROR(VLOOKUP(AQ18,'Existing Pool'!$C$73:$M$140,4,0)),AQ52,VLOOKUP(AQ18,'Existing Pool'!$C$73:$M$140,4,0)*0.02) -> 0 | AR89: =IF(ISERROR(VLOOKUP(AR18,'Existing Pool'!$C$73:$M$140,4,0)),AR52,VLOOKUP(AR18,'Existing Pool'!$C$73:$M$140,4,0)*0.02) -> 0 | AS89: =IF(ISERROR(VLOOKUP(AS18,'Existing Pool'!$C$73:$M$140,4,0)),AS52,VLOOKUP(AS18,'Existing Pool'!$C$73:$M$140,4,0)*0.02) -> 0 | AT89: =IF(ISERROR(VLOOKUP(AT18,'Existing Pool'!$C$73:$M$140,4,0)),AT52,VLOOKUP(AT18,'Existing Pool'!$C$73:$M$140,4,0)*0.02) -> 0 | AU89: =IF(ISERROR(VLOOKUP(AU18,'Existing Pool'!$C$73:$M$140,4,0)),AU52,VLOOKUP(AU18,'Existing Pool'!$C$73:$M$140,4,0)*0.02) -> 0 | AV89: =IF(ISERROR(VLOOKUP(AV18,'Existing Pool'!$C$73:$M$140,4,0)),AV52,VLOOKUP(AV18,'Existing Pool'!$C$73:$M$140,4,0)*0.02) -> 0 | AW89: =IF(ISERROR(VLOOKUP(AW18,'Existing Pool'!$C$73:$M$140,4,0)),AW52,VLOOKUP(AW18,'Existing Pool'!$C$73:$M$140,4,0)*0.02) -> 0 | AX89: =IF(ISERROR(VLOOKUP(AX18,'Existing Pool'!$C$73:$M$140,4,0)),AX52,VLOOKUP(AX18,'Existing Pool'!$C$73:$M$140,4,0)*0.02) -> 0 | AY89: =IF(ISERROR(VLOOKUP(AY18,'Existing Pool'!$C$73:$M$140,4,0)),AY52,VLOOKUP(AY18,'Existing Pool'!$C$73:$M$140,4,0)*0.02) -> 0 | AZ89: =IF(ISERROR(VLOOKUP(AZ18,'Existing Pool'!$C$73:$M$140,4,0)),AZ52,VLOOKUP(AZ18,'Existing Pool'!$C$73:$M$140,4,0)*0.02) -> 0 | BA89: =IF(ISERROR(VLOOKUP(BA18,'Existing Pool'!$C$73:$M$140,4,0)),BA52,VLOOKUP(BA18,'Existing Pool'!$C$73:$M$140,4,0)*0.02) -> 0 | BB89: =IF(ISERROR(VLOOKUP(BB18,'Existing Pool'!$C$73:$M$140,4,0)),BB52,VLOOKUP(BB18,'Existing Pool'!$C$73:$M$140,4,0)*0.02) -> 0 | BC89: =IF(ISERROR(VLOOKUP(BC18,'Existing Pool'!$C$73:$M$140,4,0)),BC52,VLOOKUP(BC18,'Existing Pool'!$C$73:$M$140,4,0)*0.02) -> 0 | BD89: =IF(ISERROR(VLOOKUP(BD18,'Existing Pool'!$C$73:$M$140,4,0)),BD52,VLOOKUP(BD18,'Existing Pool'!$C$73:$M$140,4,0)*0.02) -> 0 | BE89: =IF(ISERROR(VLOOKUP(BE18,'Existing Pool'!$C$73:$M$140,4,0)),BE52,VLOOKUP(BE18,'Existing Pool'!$C$73:$M$140,4,0)*0.02) -> 0 | BF89: =IF(ISERROR(VLOOKUP(BF18,'Existing Pool'!$C$73:$M$140,4,0)),BF52,VLOOKUP(BF18,'Existing Pool'!$C$73:$M$140,4,0)*0.02) -> 0
A90: =IF(ISERROR(VLOOKUP(A19,'Existing Pool'!$C$73:$M$140,4,0)),A53,VLOOKUP(A19,'Existing Pool'!$C$73:$M$140,4,0)*0.18) -> 0 | B90: =IF(ISERROR(VLOOKUP(B19,'Existing Pool'!$C$73:$M$140,4,0)),B53,VLOOKUP(B19,'Existing Pool'!$C$73:$M$140,4,0)*0.18) -> 0 | C90: =IF(ISERROR(VLOOKUP(C19,'Existing Pool'!$C$73:$M$140,4,0)),C53,VLOOKUP(C19,'Existing Pool'!$C$73:$M$140,4,0)*0.2) -> 0 | D90: =IF(ISERROR(VLOOKUP(D19,'Existing Pool'!$C$73:$M$140,4,0)),D53,VLOOKUP(D19,'Existing Pool'!$C$73:$M$140,4,0)*0.18) -> 0 | E90: =IF(ISERROR(VLOOKUP(E19,'Existing Pool'!$C$73:$M$140,4,0)),E53,VLOOKUP(E19,'Existing Pool'!$C$73:$M$140,4,0)*0.18) -> 0 | F90: =IF(ISERROR(VLOOKUP(F19,'Existing Pool'!$C$73:$M$140,4,0)),F53,VLOOKUP(F19,'Existing Pool'!$C$73:$M$140,4,0)*0.18) -> 0 | G90: =IF(ISERROR(VLOOKUP(G19,'Existing Pool'!$C$73:$M$140,4,0)),G53,VLOOKUP(G19,'Existing Pool'!$C$73:$M$140,4,0)*0.18) -> 0 | H90: =IF(ISERROR(VLOOKUP(H19,'Existing Pool'!$C$73:$M$140,4,0)),H53,VLOOKUP(H19,'Existing Pool'!$C$73:$M$140,4,0)*0.18) -> 0 | I90: =IF(ISERROR(VLOOKUP(I19,'Existing Pool'!$C$73:$M$140,4,0)),I53,VLOOKUP(I19,'Existing Pool'!$C$73:$M$140,4,0)*0.4) -> 28.37454141 | J90: =IF(ISERROR(VLOOKUP(J19,'Existing Pool'!$C$73:$M$140,4,0)),J53,VLOOKUP(J19,'Existing Pool'!$C$73:$M$140,4,0)*0.2) -> 0 | K90: =IF(ISERROR(VLOOKUP(K19,'Existing Pool'!$C$73:$M$140,4,0)),K53,VLOOKUP(K19,'Existing Pool'!$C$73:$M$140,4,0)*0.18) -> 0 | L90: =IF(ISERROR(VLOOKUP(L19,'Existing Pool'!$C$73:$M$140,4,0)),L53,VLOOKUP(L19,'Existing Pool'!$C$73:$M$140,4,0)*0.18) -> 0 | M90: =IF(ISERROR(VLOOKUP(M19,'Existing Pool'!$C$73:$M$140,4,0)),M53,VLOOKUP(M19,'Existing Pool'!$C$73:$M$140,4,0)*0.2) -> 0 | N90: =IF(ISERROR(VLOOKUP(N19,'Existing Pool'!$C$73:$M$140,4,0)),N53,VLOOKUP(N19,'Existing Pool'!$C$73:$M$140,4,0)*0.18) -> 0 | O90: =IF(ISERROR(VLOOKUP(O19,'Existing Pool'!$C$73:$M$140,4,0)),O53,VLOOKUP(O19,'Existing Pool'!$C$73:$M$140,4,0)*0.18) -> 0 | P90: =IF(ISERROR(VLOOKUP(P19,'Existing Pool'!$C$73:$M$140,4,0)),P53,VLOOKUP(P19,'Existing Pool'!$C$73:$M$140,4,0)*0.18) -> 0 | Q90: =IF(ISERROR(VLOOKUP(Q19,'Existing Pool'!$C$73:$M$140,4,0)),Q53,VLOOKUP(Q19,'Existing Pool'!$C$73:$M$140,4,0)*0.2) -> 0 | R90: =IF(ISERROR(VLOOKUP(R19,'Existing Pool'!$C$73:$M$140,4,0)),R53,VLOOKUP(R19,'Existing Pool'!$C$73:$M$140,4,0)*0.2) -> 0 | S90: =IF(ISERROR(VLOOKUP(S19,'Existing Pool'!$C$73:$M$140,4,0)),S53,VLOOKUP(S19,'Existing Pool'!$C$73:$M$140,4,0)*0.18) -> 0 | T90: =IF(ISERROR(VLOOKUP(T19,'Existing Pool'!$C$73:$M$140,4,0)),T53,VLOOKUP(T19,'Existing Pool'!$C$73:$M$140,4,0)*0.2) -> 0 | U90: =IF(ISERROR(VLOOKUP(U19,'Existing Pool'!$C$73:$M$140,4,0)),U53,VLOOKUP(U19,'Existing Pool'!$C$73:$M$140,4,0)*0.18) -> 0 | V90: =IF(ISERROR(VLOOKUP(V19,'Existing Pool'!$C$73:$M$140,4,0)),V53,VLOOKUP(V19,'Existing Pool'!$C$73:$M$140,4,0)*0.2) -> 0 | W90: =IF(ISERROR(VLOOKUP(W19,'Existing Pool'!$C$73:$M$140,4,0)),W53,VLOOKUP(W19,'Existing Pool'!$C$73:$M$140,4,0)*0.18) -> 0 | X90: =IF(ISERROR(VLOOKUP(X19,'Existing Pool'!$C$73:$M$140,4,0)),X53,VLOOKUP(X19,'Existing Pool'!$C$73:$M$140,4,0)*0.18) -> 0 | Y90: =IF(ISERROR(VLOOKUP(Y19,'Existing Pool'!$C$73:$M$140,4,0)),Y53,VLOOKUP(Y19,'Existing Pool'!$C$73:$M$140,4,0)*0.2) -> 0 | Z90: =IF(ISERROR(VLOOKUP(Z19,'Existing Pool'!$C$73:$M$140,4,0)),Z53,VLOOKUP(Z19,'Existing Pool'!$C$73:$M$140,4,0)*0.2) -> 0 | AA90: =IF(ISERROR(VLOOKUP(AA19,'Existing Pool'!$C$73:$M$140,4,0)),AA53,VLOOKUP(AA19,'Existing Pool'!$C$73:$M$140,4,0)*0.2) -> 0 | AB90: =IF(ISERROR(VLOOKUP(AB19,'Existing Pool'!$C$73:$M$140,4,0)),AB53,VLOOKUP(AB19,'Existing Pool'!$C$73:$M$140,4,0)*0.2) -> 0 | AC90: =IF(ISERROR(VLOOKUP(AC19,'Existing Pool'!$C$73:$M$140,4,0)),AC53,VLOOKUP(AC19,'Existing Pool'!$C$73:$M$140,4,0)*0.02) -> 0 | AD90: =IF(ISERROR(VLOOKUP(AD19,'Existing Pool'!$C$73:$M$140,4,0)),AD53,VLOOKUP(AD19,'Existing Pool'!$C$73:$M$140,4,0)*0.02) -> 0 | AE90: =IF(ISERROR(VLOOKUP(AE19,'Existing Pool'!$C$73:$M$140,4,0)),AE53,VLOOKUP(AE19,'Existing Pool'!$C$73:$M$140,4,0)*0.02) -> 0 | AF90: =IF(ISERROR(VLOOKUP(AF19,'Existing Pool'!$C$73:$M$140,4,0)),AF53,VLOOKUP(AF19,'Existing Pool'!$C$73:$M$140,4,0)*0.02) -> 0 | AG90: =IF(ISERROR(VLOOKUP(AG19,'Existing Pool'!$C$73:$M$140,4,0)),AG53,VLOOKUP(AG19,'Existing Pool'!$C$73:$M$140,4,0)*0.02) -> 0 | AH90: =IF(ISERROR(VLOOKUP(AH19,'Existing Pool'!$C$73:$M$140,4,0)),AH53,VLOOKUP(AH19,'Existing Pool'!$C$73:$M$140,4,0)*0.02) -> 0 | AI90: =IF(ISERROR(VLOOKUP(AI19,'Existing Pool'!$C$73:$M$140,4,0)),AI53,VLOOKUP(AI19,'Existing Pool'!$C$73:$M$140,4,0)*0.02) -> 0 | AJ90: =IF(ISERROR(VLOOKUP(AJ19,'Existing Pool'!$C$73:$M$140,4,0)),AJ53,VLOOKUP(AJ19,'Existing Pool'!$C$73:$M$140,4,0)*0.02) -> 0 | AK90: =IF(ISERROR(VLOOKUP(AK19,'Existing Pool'!$C$73:$M$140,4,0)),AK53,VLOOKUP(AK19,'Existing Pool'!$C$73:$M$140,4,0)*0.02) -> 0 | AL90: =IF(ISERROR(VLOOKUP(AL19,'Existing Pool'!$C$73:$M$140,4,0)),AL53,VLOOKUP(AL19,'Existing Pool'!$C$73:$M$140,4,0)*0.02) -> 0 | AM90: =IF(ISERROR(VLOOKUP(AM19,'Existing Pool'!$C$73:$M$140,4,0)),AM53,VLOOKUP(AM19,'Existing Pool'!$C$73:$M$140,4,0)*0.02) -> 0 | AN90: =IF(ISERROR(VLOOKUP(AN19,'Existing Pool'!$C$73:$M$140,4,0)),AN53,VLOOKUP(AN19,'Existing Pool'!$C$73:$M$140,4,0)*0.02) -> 0 | AO90: =IF(ISERROR(VLOOKUP(AO19,'Existing Pool'!$C$73:$M$140,4,0)),AO53,VLOOKUP(AO19,'Existing Pool'!$C$73:$M$140,4,0)*0.02) -> 0 | AP90: =IF(ISERROR(VLOOKUP(AP19,'Existing Pool'!$C$73:$M$140,4,0)),AP53,VLOOKUP(AP19,'Existing Pool'!$C$73:$M$140,4,0)*0.02) -> 0 | AQ90: =IF(ISERROR(VLOOKUP(AQ19,'Existing Pool'!$C$73:$M$140,4,0)),AQ53,VLOOKUP(AQ19,'Existing Pool'!$C$73:$M$140,4,0)*0.02) -> 0 | AR90: =IF(ISERROR(VLOOKUP(AR19,'Existing Pool'!$C$73:$M$140,4,0)),AR53,VLOOKUP(AR19,'Existing Pool'!$C$73:$M$140,4,0)*0.02) -> 0 | AS90: =IF(ISERROR(VLOOKUP(AS19,'Existing Pool'!$C$73:$M$140,4,0)),AS53,VLOOKUP(AS19,'Existing Pool'!$C$73:$M$140,4,0)*0.02) -> 0 | AT90: =IF(ISERROR(VLOOKUP(AT19,'Existing Pool'!$C$73:$M$140,4,0)),AT53,VLOOKUP(AT19,'Existing Pool'!$C$73:$M$140,4,0)*0.02) -> 0 | AU90: =IF(ISERROR(VLOOKUP(AU19,'Existing Pool'!$C$73:$M$140,4,0)),AU53,VLOOKUP(AU19,'Existing Pool'!$C$73:$M$140,4,0)*0.02) -> 0 | AV90: =IF(ISERROR(VLOOKUP(AV19,'Existing Pool'!$C$73:$M$140,4,0)),AV53,VLOOKUP(AV19,'Existing Pool'!$C$73:$M$140,4,0)*0.02) -> 0 | AW90: =IF(ISERROR(VLOOKUP(AW19,'Existing Pool'!$C$73:$M$140,4,0)),AW53,VLOOKUP(AW19,'Existing Pool'!$C$73:$M$140,4,0)*0.02) -> 0 | AX90: =IF(ISERROR(VLOOKUP(AX19,'Existing Pool'!$C$73:$M$140,4,0)),AX53,VLOOKUP(AX19,'Existing Pool'!$C$73:$M$140,4,0)*0.02) -> 0 | AY90: =IF(ISERROR(VLOOKUP(AY19,'Existing Pool'!$C$73:$M$140,4,0)),AY53,VLOOKUP(AY19,'Existing Pool'!$C$73:$M$140,4,0)*0.02) -> 0 | AZ90: =IF(ISERROR(VLOOKUP(AZ19,'Existing Pool'!$C$73:$M$140,4,0)),AZ53,VLOOKUP(AZ19,'Existing Pool'!$C$73:$M$140,4,0)*0.02) -> 0 | BA90: =IF(ISERROR(VLOOKUP(BA19,'Existing Pool'!$C$73:$M$140,4,0)),BA53,VLOOKUP(BA19,'Existing Pool'!$C$73:$M$140,4,0)*0.02) -> 0 | BB90: =IF(ISERROR(VLOOKUP(BB19,'Existing Pool'!$C$73:$M$140,4,0)),BB53,VLOOKUP(BB19,'Existing Pool'!$C$73:$M$140,4,0)*0.02) -> 0 | BC90: =IF(ISERROR(VLOOKUP(BC19,'Existing Pool'!$C$73:$M$140,4,0)),BC53,VLOOKUP(BC19,'Existing Pool'!$C$73:$M$140,4,0)*0.02) -> 0 | BD90: =IF(ISERROR(VLOOKUP(BD19,'Existing Pool'!$C$73:$M$140,4,0)),BD53,VLOOKUP(BD19,'Existing Pool'!$C$73:$M$140,4,0)*0.02) -> 0 | BE90: =IF(ISERROR(VLOOKUP(BE19,'Existing Pool'!$C$73:$M$140,4,0)),BE53,VLOOKUP(BE19,'Existing Pool'!$C$73:$M$140,4,0)*0.02) -> 0 | BF90: =IF(ISERROR(VLOOKUP(BF19,'Existing Pool'!$C$73:$M$140,4,0)),BF53,VLOOKUP(BF19,'Existing Pool'!$C$73:$M$140,4,0)*0.02) -> 0
A91: =IF(ISERROR(VLOOKUP(A20,'Existing Pool'!$C$73:$M$140,4,0)),A54,VLOOKUP(A20,'Existing Pool'!$C$73:$M$140,4,0)*0.18) -> 0 | B91: =IF(ISERROR(VLOOKUP(B20,'Existing Pool'!$C$73:$M$140,4,0)),B54,VLOOKUP(B20,'Existing Pool'!$C$73:$M$140,4,0)*0.18) -> 0 | C91: =IF(ISERROR(VLOOKUP(C20,'Existing Pool'!$C$73:$M$140,4,0)),C54,VLOOKUP(C20,'Existing Pool'!$C$73:$M$140,4,0)*0.2) -> 0 | D91: =IF(ISERROR(VLOOKUP(D20,'Existing Pool'!$C$73:$M$140,4,0)),D54,VLOOKUP(D20,'Existing Pool'!$C$73:$M$140,4,0)*0.18) -> 0 | E91: =IF(ISERROR(VLOOKUP(E20,'Existing Pool'!$C$73:$M$140,4,0)),E54,VLOOKUP(E20,'Existing Pool'!$C$73:$M$140,4,0)*0.18) -> 0 | F91: =IF(ISERROR(VLOOKUP(F20,'Existing Pool'!$C$73:$M$140,4,0)),F54,VLOOKUP(F20,'Existing Pool'!$C$73:$M$140,4,0)*0.18) -> 0 | G91: =IF(ISERROR(VLOOKUP(G20,'Existing Pool'!$C$73:$M$140,4,0)),G54,VLOOKUP(G20,'Existing Pool'!$C$73:$M$140,4,0)*0.18) -> 0 | H91: =IF(ISERROR(VLOOKUP(H20,'Existing Pool'!$C$73:$M$140,4,0)),H54,VLOOKUP(H20,'Existing Pool'!$C$73:$M$140,4,0)*0.18) -> 0 | I91: =IF(ISERROR(VLOOKUP(I20,'Existing Pool'!$C$73:$M$140,4,0)),I54,VLOOKUP(I20,'Existing Pool'!$C$73:$M$140,4,0)*0.4) -> 36.57372666 | J91: =IF(ISERROR(VLOOKUP(J20,'Existing Pool'!$C$73:$M$140,4,0)),J54,VLOOKUP(J20,'Existing Pool'!$C$73:$M$140,4,0)*0.2) -> 0 | K91: =IF(ISERROR(VLOOKUP(K20,'Existing Pool'!$C$73:$M$140,4,0)),K54,VLOOKUP(K20,'Existing Pool'!$C$73:$M$140,4,0)*0.18) -> 0 | L91: =IF(ISERROR(VLOOKUP(L20,'Existing Pool'!$C$73:$M$140,4,0)),L54,VLOOKUP(L20,'Existing Pool'!$C$73:$M$140,4,0)*0.18) -> 0 | M91: =IF(ISERROR(VLOOKUP(M20,'Existing Pool'!$C$73:$M$140,4,0)),M54,VLOOKUP(M20,'Existing Pool'!$C$73:$M$140,4,0)*0.2) -> 0 | N91: =IF(ISERROR(VLOOKUP(N20,'Existing Pool'!$C$73:$M$140,4,0)),N54,VLOOKUP(N20,'Existing Pool'!$C$73:$M$140,4,0)*0.18) -> 0 | O91: =IF(ISERROR(VLOOKUP(O20,'Existing Pool'!$C$73:$M$140,4,0)),O54,VLOOKUP(O20,'Existing Pool'!$C$73:$M$140,4,0)*0.18) -> 0 | P91: =IF(ISERROR(VLOOKUP(P20,'Existing Pool'!$C$73:$M$140,4,0)),P54,VLOOKUP(P20,'Existing Pool'!$C$73:$M$140,4,0)*0.18) -> 0 | Q91: =IF(ISERROR(VLOOKUP(Q20,'Existing Pool'!$C$73:$M$140,4,0)),Q54,VLOOKUP(Q20,'Existing Pool'!$C$73:$M$140,4,0)*0.2) -> 0 | R91: =IF(ISERROR(VLOOKUP(R20,'Existing Pool'!$C$73:$M$140,4,0)),R54,VLOOKUP(R20,'Existing Pool'!$C$73:$M$140,4,0)*0.2) -> 0 | S91: =IF(ISERROR(VLOOKUP(S20,'Existing Pool'!$C$73:$M$140,4,0)),S54,VLOOKUP(S20,'Existing Pool'!$C$73:$M$140,4,0)*0.18) -> 0 | T91: =IF(ISERROR(VLOOKUP(T20,'Existing Pool'!$C$73:$M$140,4,0)),T54,VLOOKUP(T20,'Existing Pool'!$C$73:$M$140,4,0)*0.2) -> 0 | U91: =IF(ISERROR(VLOOKUP(U20,'Existing Pool'!$C$73:$M$140,4,0)),U54,VLOOKUP(U20,'Existing Pool'!$C$73:$M$140,4,0)*0.18) -> 0 | V91: =IF(ISERROR(VLOOKUP(V20,'Existing Pool'!$C$73:$M$140,4,0)),V54,VLOOKUP(V20,'Existing Pool'!$C$73:$M$140,4,0)*0.2) -> 0 | W91: =IF(ISERROR(VLOOKUP(W20,'Existing Pool'!$C$73:$M$140,4,0)),W54,VLOOKUP(W20,'Existing Pool'!$C$73:$M$140,4,0)*0.18) -> 0 | X91: =IF(ISERROR(VLOOKUP(X20,'Existing Pool'!$C$73:$M$140,4,0)),X54,VLOOKUP(X20,'Existing Pool'!$C$73:$M$140,4,0)*0.18) -> 0 | Y91: =IF(ISERROR(VLOOKUP(Y20,'Existing Pool'!$C$73:$M$140,4,0)),Y54,VLOOKUP(Y20,'Existing Pool'!$C$73:$M$140,4,0)*0.2) -> 0 | Z91: =IF(ISERROR(VLOOKUP(Z20,'Existing Pool'!$C$73:$M$140,4,0)),Z54,VLOOKUP(Z20,'Existing Pool'!$C$73:$M$140,4,0)*0.2) -> 0 | AA91: =IF(ISERROR(VLOOKUP(AA20,'Existing Pool'!$C$73:$M$140,4,0)),AA54,VLOOKUP(AA20,'Existing Pool'!$C$73:$M$140,4,0)*0.2) -> 0 | AB91: =IF(ISERROR(VLOOKUP(AB20,'Existing Pool'!$C$73:$M$140,4,0)),AB54,VLOOKUP(AB20,'Existing Pool'!$C$73:$M$140,4,0)*0.2) -> 0 | AC91: =IF(ISERROR(VLOOKUP(AC20,'Existing Pool'!$C$73:$M$140,4,0)),AC54,VLOOKUP(AC20,'Existing Pool'!$C$73:$M$140,4,0)*0.02) -> 0 | AD91: =IF(ISERROR(VLOOKUP(AD20,'Existing Pool'!$C$73:$M$140,4,0)),AD54,VLOOKUP(AD20,'Existing Pool'!$C$73:$M$140,4,0)*0.02) -> 0 | AE91: =IF(ISERROR(VLOOKUP(AE20,'Existing Pool'!$C$73:$M$140,4,0)),AE54,VLOOKUP(AE20,'Existing Pool'!$C$73:$M$140,4,0)*0.02) -> 0 | AF91: =IF(ISERROR(VLOOKUP(AF20,'Existing Pool'!$C$73:$M$140,4,0)),AF54,VLOOKUP(AF20,'Existing Pool'!$C$73:$M$140,4,0)*0.02) -> 0 | AG91: =IF(ISERROR(VLOOKUP(AG20,'Existing Pool'!$C$73:$M$140,4,0)),AG54,VLOOKUP(AG20,'Existing Pool'!$C$73:$M$140,4,0)*0.02) -> 0 | AH91: =IF(ISERROR(VLOOKUP(AH20,'Existing Pool'!$C$73:$M$140,4,0)),AH54,VLOOKUP(AH20,'Existing Pool'!$C$73:$M$140,4,0)*0.02) -> 0 | AI91: =IF(ISERROR(VLOOKUP(AI20,'Existing Pool'!$C$73:$M$140,4,0)),AI54,VLOOKUP(AI20,'Existing Pool'!$C$73:$M$140,4,0)*0.02) -> 0 | AJ91: =IF(ISERROR(VLOOKUP(AJ20,'Existing Pool'!$C$73:$M$140,4,0)),AJ54,VLOOKUP(AJ20,'Existing Pool'!$C$73:$M$140,4,0)*0.02) -> 0 | AK91: =IF(ISERROR(VLOOKUP(AK20,'Existing Pool'!$C$73:$M$140,4,0)),AK54,VLOOKUP(AK20,'Existing Pool'!$C$73:$M$140,4,0)*0.02) -> 0 | AL91: =IF(ISERROR(VLOOKUP(AL20,'Existing Pool'!$C$73:$M$140,4,0)),AL54,VLOOKUP(AL20,'Existing Pool'!$C$73:$M$140,4,0)*0.02) -> 0 | AM91: =IF(ISERROR(VLOOKUP(AM20,'Existing Pool'!$C$73:$M$140,4,0)),AM54,VLOOKUP(AM20,'Existing Pool'!$C$73:$M$140,4,0)*0.02) -> 0 | AN91: =IF(ISERROR(VLOOKUP(AN20,'Existing Pool'!$C$73:$M$140,4,0)),AN54,VLOOKUP(AN20,'Existing Pool'!$C$73:$M$140,4,0)*0.02) -> 0 | AO91: =IF(ISERROR(VLOOKUP(AO20,'Existing Pool'!$C$73:$M$140,4,0)),AO54,VLOOKUP(AO20,'Existing Pool'!$C$73:$M$140,4,0)*0.02) -> 0 | AP91: =IF(ISERROR(VLOOKUP(AP20,'Existing Pool'!$C$73:$M$140,4,0)),AP54,VLOOKUP(AP20,'Existing Pool'!$C$73:$M$140,4,0)*0.02) -> 0 | AQ91: =IF(ISERROR(VLOOKUP(AQ20,'Existing Pool'!$C$73:$M$140,4,0)),AQ54,VLOOKUP(AQ20,'Existing Pool'!$C$73:$M$140,4,0)*0.02) -> 0 | AR91: =IF(ISERROR(VLOOKUP(AR20,'Existing Pool'!$C$73:$M$140,4,0)),AR54,VLOOKUP(AR20,'Existing Pool'!$C$73:$M$140,4,0)*0.02) -> 0 | AS91: =IF(ISERROR(VLOOKUP(AS20,'Existing Pool'!$C$73:$M$140,4,0)),AS54,VLOOKUP(AS20,'Existing Pool'!$C$73:$M$140,4,0)*0.02) -> 0 | AT91: =IF(ISERROR(VLOOKUP(AT20,'Existing Pool'!$C$73:$M$140,4,0)),AT54,VLOOKUP(AT20,'Existing Pool'!$C$73:$M$140,4,0)*0.02) -> 0 | AU91: =IF(ISERROR(VLOOKUP(AU20,'Existing Pool'!$C$73:$M$140,4,0)),AU54,VLOOKUP(AU20,'Existing Pool'!$C$73:$M$140,4,0)*0.02) -> 0 | AV91: =IF(ISERROR(VLOOKUP(AV20,'Existing Pool'!$C$73:$M$140,4,0)),AV54,VLOOKUP(AV20,'Existing Pool'!$C$73:$M$140,4,0)*0.02) -> 0 | AW91: =IF(ISERROR(VLOOKUP(AW20,'Existing Pool'!$C$73:$M$140,4,0)),AW54,VLOOKUP(AW20,'Existing Pool'!$C$73:$M$140,4,0)*0.02) -> 0 | AX91: =IF(ISERROR(VLOOKUP(AX20,'Existing Pool'!$C$73:$M$140,4,0)),AX54,VLOOKUP(AX20,'Existing Pool'!$C$73:$M$140,4,0)*0.02) -> 0 | AY91: =IF(ISERROR(VLOOKUP(AY20,'Existing Pool'!$C$73:$M$140,4,0)),AY54,VLOOKUP(AY20,'Existing Pool'!$C$73:$M$140,4,0)*0.02) -> 0 | AZ91: =IF(ISERROR(VLOOKUP(AZ20,'Existing Pool'!$C$73:$M$140,4,0)),AZ54,VLOOKUP(AZ20,'Existing Pool'!$C$73:$M$140,4,0)*0.02) -> 0 | BA91: =IF(ISERROR(VLOOKUP(BA20,'Existing Pool'!$C$73:$M$140,4,0)),BA54,VLOOKUP(BA20,'Existing Pool'!$C$73:$M$140,4,0)*0.02) -> 0 | BB91: =IF(ISERROR(VLOOKUP(BB20,'Existing Pool'!$C$73:$M$140,4,0)),BB54,VLOOKUP(BB20,'Existing Pool'!$C$73:$M$140,4,0)*0.02) -> 0 | BC91: =IF(ISERROR(VLOOKUP(BC20,'Existing Pool'!$C$73:$M$140,4,0)),BC54,VLOOKUP(BC20,'Existing Pool'!$C$73:$M$140,4,0)*0.02) -> 0 | BD91: =IF(ISERROR(VLOOKUP(BD20,'Existing Pool'!$C$73:$M$140,4,0)),BD54,VLOOKUP(BD20,'Existing Pool'!$C$73:$M$140,4,0)*0.02) -> 0 | BE91: =IF(ISERROR(VLOOKUP(BE20,'Existing Pool'!$C$73:$M$140,4,0)),BE54,VLOOKUP(BE20,'Existing Pool'!$C$73:$M$140,4,0)*0.02) -> 0 | BF91: =IF(ISERROR(VLOOKUP(BF20,'Existing Pool'!$C$73:$M$140,4,0)),BF54,VLOOKUP(BF20,'Existing Pool'!$C$73:$M$140,4,0)*0.02) -> 0
A92: =IF(ISERROR(VLOOKUP(A21,'Existing Pool'!$C$73:$M$140,4,0)),A55,VLOOKUP(A21,'Existing Pool'!$C$73:$M$140,4,0)*0.18) -> 0 | B92: =IF(ISERROR(VLOOKUP(B21,'Existing Pool'!$C$73:$M$140,4,0)),B55,VLOOKUP(B21,'Existing Pool'!$C$73:$M$140,4,0)*0.18) -> 0 | C92: =IF(ISERROR(VLOOKUP(C21,'Existing Pool'!$C$73:$M$140,4,0)),C55,VLOOKUP(C21,'Existing Pool'!$C$73:$M$140,4,0)*0.2) -> 0 | D92: =IF(ISERROR(VLOOKUP(D21,'Existing Pool'!$C$73:$M$140,4,0)),D55,VLOOKUP(D21,'Existing Pool'!$C$73:$M$140,4,0)*0.18) -> 0 | E92: =IF(ISERROR(VLOOKUP(E21,'Existing Pool'!$C$73:$M$140,4,0)),E55,VLOOKUP(E21,'Existing Pool'!$C$73:$M$140,4,0)*0.18) -> 0 | F92: =IF(ISERROR(VLOOKUP(F21,'Existing Pool'!$C$73:$M$140,4,0)),F55,VLOOKUP(F21,'Existing Pool'!$C$73:$M$140,4,0)*0.18) -> 0 | G92: =IF(ISERROR(VLOOKUP(G21,'Existing Pool'!$C$73:$M$140,4,0)),G55,VLOOKUP(G21,'Existing Pool'!$C$73:$M$140,4,0)*0.18) -> 0 | H92: =IF(ISERROR(VLOOKUP(H21,'Existing Pool'!$C$73:$M$140,4,0)),H55,VLOOKUP(H21,'Existing Pool'!$C$73:$M$140,4,0)*0.18) -> 0 | I92: =IF(ISERROR(VLOOKUP(I21,'Existing Pool'!$C$73:$M$140,4,0)),I55,VLOOKUP(I21,'Existing Pool'!$C$73:$M$140,4,0)*0.4) -> 53.63929494 | J92: =IF(ISERROR(VLOOKUP(J21,'Existing Pool'!$C$73:$M$140,4,0)),J55,VLOOKUP(J21,'Existing Pool'!$C$73:$M$140,4,0)*0.2) -> 0 | K92: =IF(ISERROR(VLOOKUP(K21,'Existing Pool'!$C$73:$M$140,4,0)),K55,VLOOKUP(K21,'Existing Pool'!$C$73:$M$140,4,0)*0.18) -> 0 | L92: =IF(ISERROR(VLOOKUP(L21,'Existing Pool'!$C$73:$M$140,4,0)),L55,VLOOKUP(L21,'Existing Pool'!$C$73:$M$140,4,0)*0.18) -> 0 | M92: =IF(ISERROR(VLOOKUP(M21,'Existing Pool'!$C$73:$M$140,4,0)),M55,VLOOKUP(M21,'Existing Pool'!$C$73:$M$140,4,0)*0.2) -> 0 | N92: =IF(ISERROR(VLOOKUP(N21,'Existing Pool'!$C$73:$M$140,4,0)),N55,VLOOKUP(N21,'Existing Pool'!$C$73:$M$140,4,0)*0.18) -> 0 | O92: =IF(ISERROR(VLOOKUP(O21,'Existing Pool'!$C$73:$M$140,4,0)),O55,VLOOKUP(O21,'Existing Pool'!$C$73:$M$140,4,0)*0.18) -> 0 | P92: =IF(ISERROR(VLOOKUP(P21,'Existing Pool'!$C$73:$M$140,4,0)),P55,VLOOKUP(P21,'Existing Pool'!$C$73:$M$140,4,0)*0.18) -> 0 | Q92: =IF(ISERROR(VLOOKUP(Q21,'Existing Pool'!$C$73:$M$140,4,0)),Q55,VLOOKUP(Q21,'Existing Pool'!$C$73:$M$140,4,0)*0.2) -> 0 | R92: =IF(ISERROR(VLOOKUP(R21,'Existing Pool'!$C$73:$M$140,4,0)),R55,VLOOKUP(R21,'Existing Pool'!$C$73:$M$140,4,0)*0.2) -> 0 | S92: =IF(ISERROR(VLOOKUP(S21,'Existing Pool'!$C$73:$M$140,4,0)),S55,VLOOKUP(S21,'Existing Pool'!$C$73:$M$140,4,0)*0.18) -> 0 | T92: =IF(ISERROR(VLOOKUP(T21,'Existing Pool'!$C$73:$M$140,4,0)),T55,VLOOKUP(T21,'Existing Pool'!$C$73:$M$140,4,0)*0.2) -> 0 | U92: =IF(ISERROR(VLOOKUP(U21,'Existing Pool'!$C$73:$M$140,4,0)),U55,VLOOKUP(U21,'Existing Pool'!$C$73:$M$140,4,0)*0.18) -> 0 | V92: =IF(ISERROR(VLOOKUP(V21,'Existing Pool'!$C$73:$M$140,4,0)),V55,VLOOKUP(V21,'Existing Pool'!$C$73:$M$140,4,0)*0.2) -> 0 | W92: =IF(ISERROR(VLOOKUP(W21,'Existing Pool'!$C$73:$M$140,4,0)),W55,VLOOKUP(W21,'Existing Pool'!$C$73:$M$140,4,0)*0.18) -> 0 | X92: =IF(ISERROR(VLOOKUP(X21,'Existing Pool'!$C$73:$M$140,4,0)),X55,VLOOKUP(X21,'Existing Pool'!$C$73:$M$140,4,0)*0.18) -> 0 | Y92: =IF(ISERROR(VLOOKUP(Y21,'Existing Pool'!$C$73:$M$140,4,0)),Y55,VLOOKUP(Y21,'Existing Pool'!$C$73:$M$140,4,0)*0.2) -> 0 | Z92: =IF(ISERROR(VLOOKUP(Z21,'Existing Pool'!$C$73:$M$140,4,0)),Z55,VLOOKUP(Z21,'Existing Pool'!$C$73:$M$140,4,0)*0.2) -> 0 | AA92: =IF(ISERROR(VLOOKUP(AA21,'Existing Pool'!$C$73:$M$140,4,0)),AA55,VLOOKUP(AA21,'Existing Pool'!$C$73:$M$140,4,0)*0.2) -> 0 | AB92: =IF(ISERROR(VLOOKUP(AB21,'Existing Pool'!$C$73:$M$140,4,0)),AB55,VLOOKUP(AB21,'Existing Pool'!$C$73:$M$140,4,0)*0.2) -> 0 | AC92: =IF(ISERROR(VLOOKUP(AC21,'Existing Pool'!$C$73:$M$140,4,0)),AC55,VLOOKUP(AC21,'Existing Pool'!$C$73:$M$140,4,0)*0.02) -> 0 | AD92: =IF(ISERROR(VLOOKUP(AD21,'Existing Pool'!$C$73:$M$140,4,0)),AD55,VLOOKUP(AD21,'Existing Pool'!$C$73:$M$140,4,0)*0.02) -> 0 | AE92: =IF(ISERROR(VLOOKUP(AE21,'Existing Pool'!$C$73:$M$140,4,0)),AE55,VLOOKUP(AE21,'Existing Pool'!$C$73:$M$140,4,0)*0.02) -> 0 | AF92: =IF(ISERROR(VLOOKUP(AF21,'Existing Pool'!$C$73:$M$140,4,0)),AF55,VLOOKUP(AF21,'Existing Pool'!$C$73:$M$140,4,0)*0.02) -> 0 | AG92: =IF(ISERROR(VLOOKUP(AG21,'Existing Pool'!$C$73:$M$140,4,0)),AG55,VLOOKUP(AG21,'Existing Pool'!$C$73:$M$140,4,0)*0.02) -> 0 | AH92: =IF(ISERROR(VLOOKUP(AH21,'Existing Pool'!$C$73:$M$140,4,0)),AH55,VLOOKUP(AH21,'Existing Pool'!$C$73:$M$140,4,0)*0.02) -> 0 | AI92: =IF(ISERROR(VLOOKUP(AI21,'Existing Pool'!$C$73:$M$140,4,0)),AI55,VLOOKUP(AI21,'Existing Pool'!$C$73:$M$140,4,0)*0.02) -> 0 | AJ92: =IF(ISERROR(VLOOKUP(AJ21,'Existing Pool'!$C$73:$M$140,4,0)),AJ55,VLOOKUP(AJ21,'Existing Pool'!$C$73:$M$140,4,0)*0.02) -> 0 | AK92: =IF(ISERROR(VLOOKUP(AK21,'Existing Pool'!$C$73:$M$140,4,0)),AK55,VLOOKUP(AK21,'Existing Pool'!$C$73:$M$140,4,0)*0.02) -> 0 | AL92: =IF(ISERROR(VLOOKUP(AL21,'Existing Pool'!$C$73:$M$140,4,0)),AL55,VLOOKUP(AL21,'Existing Pool'!$C$73:$M$140,4,0)*0.02) -> 0 | AM92: =IF(ISERROR(VLOOKUP(AM21,'Existing Pool'!$C$73:$M$140,4,0)),AM55,VLOOKUP(AM21,'Existing Pool'!$C$73:$M$140,4,0)*0.02) -> 0 | AN92: =IF(ISERROR(VLOOKUP(AN21,'Existing Pool'!$C$73:$M$140,4,0)),AN55,VLOOKUP(AN21,'Existing Pool'!$C$73:$M$140,4,0)*0.02) -> 0 | AO92: =IF(ISERROR(VLOOKUP(AO21,'Existing Pool'!$C$73:$M$140,4,0)),AO55,VLOOKUP(AO21,'Existing Pool'!$C$73:$M$140,4,0)*0.02) -> 0 | AP92: =IF(ISERROR(VLOOKUP(AP21,'Existing Pool'!$C$73:$M$140,4,0)),AP55,VLOOKUP(AP21,'Existing Pool'!$C$73:$M$140,4,0)*0.02) -> 0 | AQ92: =IF(ISERROR(VLOOKUP(AQ21,'Existing Pool'!$C$73:$M$140,4,0)),AQ55,VLOOKUP(AQ21,'Existing Pool'!$C$73:$M$140,4,0)*0.02) -> 0 | AR92: =IF(ISERROR(VLOOKUP(AR21,'Existing Pool'!$C$73:$M$140,4,0)),AR55,VLOOKUP(AR21,'Existing Pool'!$C$73:$M$140,4,0)*0.02) -> 0 | AS92: =IF(ISERROR(VLOOKUP(AS21,'Existing Pool'!$C$73:$M$140,4,0)),AS55,VLOOKUP(AS21,'Existing Pool'!$C$73:$M$140,4,0)*0.02) -> 0 | AT92: =IF(ISERROR(VLOOKUP(AT21,'Existing Pool'!$C$73:$M$140,4,0)),AT55,VLOOKUP(AT21,'Existing Pool'!$C$73:$M$140,4,0)*0.02) -> 0 | AU92: =IF(ISERROR(VLOOKUP(AU21,'Existing Pool'!$C$73:$M$140,4,0)),AU55,VLOOKUP(AU21,'Existing Pool'!$C$73:$M$140,4,0)*0.02) -> 0 | AV92: =IF(ISERROR(VLOOKUP(AV21,'Existing Pool'!$C$73:$M$140,4,0)),AV55,VLOOKUP(AV21,'Existing Pool'!$C$73:$M$140,4,0)*0.02) -> 0 | AW92: =IF(ISERROR(VLOOKUP(AW21,'Existing Pool'!$C$73:$M$140,4,0)),AW55,VLOOKUP(AW21,'Existing Pool'!$C$73:$M$140,4,0)*0.02) -> 0 | AX92: =IF(ISERROR(VLOOKUP(AX21,'Existing Pool'!$C$73:$M$140,4,0)),AX55,VLOOKUP(AX21,'Existing Pool'!$C$73:$M$140,4,0)*0.02) -> 0 | AY92: =IF(ISERROR(VLOOKUP(AY21,'Existing Pool'!$C$73:$M$140,4,0)),AY55,VLOOKUP(AY21,'Existing Pool'!$C$73:$M$140,4,0)*0.02) -> 0 | AZ92: =IF(ISERROR(VLOOKUP(AZ21,'Existing Pool'!$C$73:$M$140,4,0)),AZ55,VLOOKUP(AZ21,'Existing Pool'!$C$73:$M$140,4,0)*0.02) -> 0 | BA92: =IF(ISERROR(VLOOKUP(BA21,'Existing Pool'!$C$73:$M$140,4,0)),BA55,VLOOKUP(BA21,'Existing Pool'!$C$73:$M$140,4,0)*0.02) -> 0 | BB92: =IF(ISERROR(VLOOKUP(BB21,'Existing Pool'!$C$73:$M$140,4,0)),BB55,VLOOKUP(BB21,'Existing Pool'!$C$73:$M$140,4,0)*0.02) -> 0 | BC92: =IF(ISERROR(VLOOKUP(BC21,'Existing Pool'!$C$73:$M$140,4,0)),BC55,VLOOKUP(BC21,'Existing Pool'!$C$73:$M$140,4,0)*0.02) -> 0 | BD92: =IF(ISERROR(VLOOKUP(BD21,'Existing Pool'!$C$73:$M$140,4,0)),BD55,VLOOKUP(BD21,'Existing Pool'!$C$73:$M$140,4,0)*0.02) -> 0 | BE92: =IF(ISERROR(VLOOKUP(BE21,'Existing Pool'!$C$73:$M$140,4,0)),BE55,VLOOKUP(BE21,'Existing Pool'!$C$73:$M$140,4,0)*0.02) -> 0 | BF92: =IF(ISERROR(VLOOKUP(BF21,'Existing Pool'!$C$73:$M$140,4,0)),BF55,VLOOKUP(BF21,'Existing Pool'!$C$73:$M$140,4,0)*0.02) -> 0
